Workbook

Sheet ISTRUZIONI
A1: Nel foglio "Foglio1": | D1: 2TWINS4EVER
D2: 3T
A3: - inserire nella cella C1 il nome della propria squadra, nella grafia indicata in colonna D di questo foglio "Istruzioni" | D3: A TUTTA CALLARA
D4: ABETO FC
A5: ="- accanto a ciascun giocatore (nella colonna B) inserire una X in corrispondenza degli 11 titolari che si vuole schierare" -> - accanto a ciascun giocatore (nella colonna B) inserire una X in corrispondenza degli 11 titolari che si vuole schierare | D5: AC DERBOLINA
D6: AC MORRONE
A7: - sempre nella colonna B va inserito un progressivo, da 1 a 14, accanto alle riserve che si intendono schierare. | D7: AC ZDENEK
D8: ACRESE
A9: - una volta fatte le due operazioni precedenti, cliccando sul pulsante "AGGIORNA FORMAZIONE" il foglio excel effettuerà una serie di controlli: gli eventuali messaggi di errore compariranno nella colonna P. | D9: ALAN FORD'S TEAM
D10: ALL BLACKS
A11: - selezionare le celle dalla N5 alla N30, copiarle nel corpo della mail ed inviare la formazione | D11: AL-ZENA
D12: AMBROSIANA
D13: AMOREODIO
D14: ANDREAS
D15: A'NFAMI
D16: ARMATA NERAZZURRA
D17: AS NEW TEAM
D18: AS QUARZA
D19: AS TOTTIGO
D20: AS_TONMARTIN
D21: ATLETICO MA NON TROPPO
D22: ATLETICO PIGROTTO
D23: ATLETICO PIPPAO
D24: ATLETICO SGANITO
D25: ATLETICO SQUONK
D26: BAR MARIO
D27: BARBERA & CHAMPAGNE
D28: BAYER LEVERRUKE
D29: BEAUTIFUL BUT LOSERS
D30: BEETLES
D31: BETIS SEVILLA
D32: BFC MARANO
D33: BLACK&WHITE
D34: BLUES BROTHERS
D35: BOMBARELLANDIA
D36: BORGOROSSO FC
D37: BRUDYLEGHORN
D38: CACAO MERAVIGLIAO
D39: CACCIATORI FC
D40: CAPIBARA SWOFFY FC
D41: CARLITO'S VELEZ
D42: CATENACCIO & CONTROPIEDE
D43: CAVESE
D44: CICCILLO
D45: CINICI
D46: CLOCKWORK ORANGE FC
D47: COSENZA
D48: COSENZA CALCIO 1914
D49: CRIMSON
D50: DAGNE BOYS
D51: DAJE MO'
D52: DAVINCI TEAM
D53: DEP LA CAROGNA
D54: DIAMANTE
D55: DINAMO VIGIAK
D56: DREAM TIN TEAM
D57: EARL OF KENT
D58: EL NIÑO
D59: EL NINO FC
D60: ELEVEN LIONS
D61: ENDYMION
D62: EROI DEL 1982
D63: ETRURIA UNITED
D64: EUREKA
D65: FANTARAPID CACCAMO
D66: FANTASPEZIA
D67: FANTONI & GINELLI
D68: FC BIBI 04
D69: FC BIRO
D70: FC FANTATLETICO
D71: FC JAVIER ZANETTI
D72: FC NAPOLI 2012
D73: FC PARTIZAN DEGRADO
D74: FC ROMA SUD
D75: FC TRIPLETE
D76: FC ZETAJ TEAM 1999
D77: FERRON
D78: FFC ALESSANDRO ALTOBELLI
D79: FFC ANGELO DOMENGHINI
D80: FFC EVARISTO BECCALOSSI
D81: FFC GIUSEPPE BERGOMI
D82: FFC LUISITO SUAREZ
D83: FFC MARIO CORSO
D84: FFC ROBERTO BONINSEGNA
D85: FFC SANDRO MAZZOLA
D86: FFC TARCISIO BURGNICH
D87: FFC TOPENHAM
D88: FIORENTINA
D89: FK'S TEAM
D90: FRIUL GALAXI
D91: FUFF TEAM
D92: GABRY FC
D93: GIAMBOTTINO FC
D94: GOBBOFINCHECAMPO
D95: GRATTACHECCA
D96: HIC SUNT FERAE
D97: HOBBIT
D98: I VAZANICCHI
D99: INAZUMA ELEVEN
D100: ISOLA CHE NON CE
D101: JUNIORT
D102: JUVE93
D103: KITEMMUOR TEAM
D104: LA BANDA DEGLI ONESTI
D105: LA MUCONE
D106: LA VECCHIA GUARDIA
D107: LA10 BIELLA FC
D108: LAMÙFOREVER
D109: LAZIO
D110: LIVELE
D111: LIVERCOOL
D112: LOS
D113: LUCHINS
D114: LUPIN III
D115: MAGODINA FC
D116: MANCHO FERE
D117: MANZO TEAM
D118: MARIANNA
D119: MARUEGO BOYS
D120: MOKA JUNIORS
D121: MOMENTI DI GLORIA
D122: MOMENTI DI GLORIA FMC
D123: MOMPRACEM
D124: NAPO-LEONI
D125: NAPOLI FOREVER
D126: NASONE NERAZZURRO
D127: NEAPOLIS
D128: NICKSTREGA
D129: NOJOSETTE
D130: NORTH COCKS
D131: OLTREMARE
D132: OLYMPIC KEBAB
D133: OSTIAMARE FC
D134: OXFORD UNITED
D135: P CUATRO
D136: PANZER8
D137: PAPAVERI E PAPERE
D138: PARASITE
D139: PERDENTUS FC
D140: PICARD
D141: PICCIOTTI NERAZZURRI
D142: PIGGI
D143: PRAVETTONI CC
D144: PRENESTINO FC
D145: PRINCESS OF ETRURIA
D146: PRO WC
D147: RASTA DB
D148: RASTA ZETA
D149: RAT-MEN
D150: REAL BABBUDOIU
D151: REAL BUCCINASCO
D152: REAL BUGGY
D153: REAL CHR
D154: REAL FARNESE
D155: REAL GENOA
D156: REAL GRIFO
D157: REAL MADRINK
D158: REAL PIPPERO
D159: RED HOT CHILI PEPPERS
D160: RED-GREEN
D161: RISK UNITED
D162: ROSSOBLU FC
D163: SALENTO FC
D164: SALEX
D165: SAN SIRO
D166: SFIGARENSE
D167: SOLSBURY HILL FC
D168: SPORTING 2000
D169: SPORTING LABRONICA
D170: SPORTING VINAO
D171: STROMBOLI
D172: SVICAT
D173: SWANSEA
D174: TC WILLIAMS
D175: TEAM ENO
D176: TERZO MUNICIPIO
D177: TIME OUT
D178: TITANS
D179: TORI BRIANZOLI
D180: TROPEA
D181: TWOSTARS
D182: UDI ONE
D183: UDINESE 1896
D184: URACAN
D185: VARCELLONA
D186: VIS FONNO
D187: VIS TRONKO
D188: VOTANTONIO
D189: YOUNG BOYS
D190: ZEMANLANDIA AFC
D191: ZERU TITULI
D192: ZERVENA VIGIAK

Sheet Foglio1
C1: ARMATA NERAZZURRA | D1: =VLOOKUP(C1,Foglio2!A:BF,58,FALSE) -> IMI_C1_girone_B@googlegroups.com | K1: =IF(LEN($P6&$P7&$P17&$P18&$P19&$P20&$P21&$P22&$P23&$P24&$P25&$P27&$P28&$P29&$P30)>3,"FORMAZIONE ERRATA","") -> 
C3: ROSA | F3: Gioc. | G3: Media | H3: Fmedia | J3: QUI SOTTO I RIGORISTI | K3: Indisponibile a causa di…. | N3: ="FORMAZIONE "&UPPER(C1) -> FORMAZIONE ARMATA NERAZZURRA | P3: ="MODULO: "&COUNTIF($M$5:$M$15,"D")&COUNTIF($M$5:$M$15,"C")&COUNTIF($M$5:$M$15,"A") -> MODULO: 433
B4: X | C4: =IF(VLOOKUP($C$1,Foglio2!$A:$AY,2,FALSE)=0,"n.d.",VLOOKUP($C$1,Foglio2!$A:$AY,2,FALSE)) -> SUZUKI | D4: P | E4: =IF(OR(C4="n.d.",C4=""),"",VLOOKUP($C4,Foglio2!$BA:$BC,2,FALSE)) -> PAR | F4: =IF(OR(C4="n.d.",C4=""),"",VLOOKUP(C4,Foglio2!BA:BD,4,FALSE)) -> 19 | G4: =IF(OR($C4="n.d.",$C4=""),"",VLOOKUP($C4,Foglio2!$BA:$BE,5,FALSE)) -> 5.973684211 | H4: =IF(OR($C4="n.d.",$C4=""),"",VLOOKUP($C4,Foglio2!$BA:$BC,3,FALSE)) -> 4.684210526 | I4: =IF(ISERROR(LOWER(VLOOKUP(E4,Foglio2!BK$2:BL$21,2,FALSE))),"",LOWER(VLOOKUP(E4,Foglio2!BK$2:BL$21,2,FALSE))) -> com - par | K4: =IF($C4="","",IF(ISERROR(VLOOKUP($C4,Foglio2!$BG$2:$BH$150,2,FALSE)),"",VLOOKUP($C4,Foglio2!$BG$2:$BH$150,2,FALSE))) ->  | M4: Ruolo | O4: Sq. | R4: =IF(TRIM($B4)<>"",IF(ISNUMBER(B4),(100-$B4),$D4),"") -> P | S4: =IF(J4="",$C4,$C4&","&J4) -> SUZUKI | T4: =IF(R4="","",IF(AND(TRIM($B4)<>"",ISTEXT($B4)),1,0)) -> 1
B5: 1 | C5: =IF(VLOOKUP($C$1,Foglio2!$A:$AY,4,FALSE)=0,"n.d.",VLOOKUP($C$1,Foglio2!$A:$AY,4,FALSE)) -> CORVI | D5: P | E5: =IF(OR(C5="n.d.",C5="",C5="p_n.d."),"",VLOOKUP($C5,Foglio2!$BA:$BC,2,FALSE)) -> PAR | F5: =IF(OR(C5="n.d.",C5=""),"",VLOOKUP(C5,Foglio2!BA:BD,4,FALSE)) -> 16 | G5: =IF(OR($C5="n.d.",$C5=""),"",VLOOKUP($C5,Foglio2!$BA:$BE,5,FALSE)) -> 6.15625 | H5: =IF(OR(C5="n.d.",C5=""),"",VLOOKUP(C5,Foglio2!BA:BC,3,FALSE)) -> 5 | I5: =IF(ISERROR(LOWER(VLOOKUP(E5,Foglio2!BK$2:BL$21,2,FALSE))),"",LOWER(VLOOKUP(E5,Foglio2!BK$2:BL$21,2,FALSE))) -> com - par | K5: =IF($C5="","",IF(ISERROR(VLOOKUP($C5,Foglio2!$BG$2:$BH$150,2,FALSE)),"",VLOOKUP($C5,Foglio2!$BG$2:$BH$150,2,FALSE))) ->  | L5: 1 | M5: =IF(W5<>"",IF(ISTEXT(VLOOKUP($W5,$C$4:$E$28,2,FALSE)),VLOOKUP($W5,$C$4:$E$28,2,FALSE),""),"") -> P | N5: =IF(BB5<>"",BC5&";","") -> SUZUKI; | O5: =IF(LEN(W5)<>1,IF(ISTEXT(VLOOKUP($W5,$C$4:$E$28,3,FALSE)),VLOOKUP($W5,$C$4:$E$28,3,FALSE),""),"ERRORE") -> PAR | R5: 99 | S5: CORVI | T5: =IF(R5="","",IF(AND(TRIM($B5)<>"",ISTEXT($B5)),1,0)) -> 0 | W5: =IF(N5="","",IF(ISERROR(FIND(",",N5,1)),LEFT(N5,FIND(";",N5,1)-1),LEFT(N5,FIND(",",N5,1)-1))) -> SUZUKI | BB5: P | BC5: SUZUKI | BD5: 1 | BE5: =IF(ISERROR(VLOOKUP(IF(ISERROR(FIND(",",BF5,1)),BF5,LEFT(BF5,FIND(",",BF5,1)-1)),$C$4:$D$28,2,FALSE)),"",VLOOKUP(IF(ISERROR(FIND(",",BF5,1)),BF5,LEFT(BF5,FIND(",",BF5,1)-1)),$C$4:$D$28,2,FALSE)) ->  | BF5: =IF(BD16="",BC16,"") -> 
B6: 2 | C6: =IF(VLOOKUP($C$1,Foglio2!$A:$AY,6,FALSE)=0,"n.d.",VLOOKUP($C$1,Foglio2!$A:$AY,6,FALSE)) -> RINALDI | D6: P | E6: =IF(OR(C6="n.d.",C6="",C6="p_n.d."),"",VLOOKUP($C6,Foglio2!$BA:$BC,2,FALSE)) -> PAR | F6: =IF(OR(C6="n.d.",C6=""),"",VLOOKUP(C6,Foglio2!BA:BD,4,FALSE)) -> 1 | G6: =IF(OR($C6="n.d.",$C6=""),"",VLOOKUP($C6,Foglio2!$BA:$BE,5,FALSE)) -> 7 | H6: =IF(OR(C6="n.d.",C6=""),"",VLOOKUP(C6,Foglio2!BA:BC,3,FALSE)) -> 6.5 | I6: =IF(ISERROR(LOWER(VLOOKUP(E6,Foglio2!BK$2:BL$21,2,FALSE))),"",LOWER(VLOOKUP(E6,Foglio2!BK$2:BL$21,2,FALSE))) -> com - par | K6: =IF($C6="","",IF(ISERROR(VLOOKUP($C6,Foglio2!$BG$2:$BH$150,2,FALSE)),"",VLOOKUP($C6,Foglio2!$BG$2:$BH$150,2,FALSE))) ->  | L6: 2 | M6: D | N6: =IF(BB6<>"",BC6&";","") -> AKANJI; | O6: INT | P6: =IF(OR(RIGHT($P$3,3)="352",RIGHT($P$3,3)="343",RIGHT($P$3,3)="442",RIGHT($P$3,3)="433",RIGHT($P$3,3)="451",RIGHT($P$3,3)="541",RIGHT($P$3,3)="631",RIGHT($P$3,3)="532"),"","MODULO DI GIOCO ERRATO") ->  | R6: 98 | S6: RINALDI | T6: 0 | W6: AKANJI | BB6: D | BC6: AKANJI | BD6: 1 | BF6: =IF(BD17="",BC17,"") -> 
B7: 3 | C7: =IF(VLOOKUP($C$1,Foglio2!$A:$AY,8,FALSE)=0,"n.d.",VLOOKUP($C$1,Foglio2!$A:$AY,8,FALSE)) -> ASTALDI | D7: P | E7: =IF(OR(C7="n.d.",C7=" ",C7="p_n.d."),"",VLOOKUP($C7,Foglio2!$BA:$BC,2,FALSE)) -> PAR | F7: =IF(OR(C7="n.d.",C7=" ",C7="P_n.d."),0,VLOOKUP(C7,Foglio2!BA:BD,4,FALSE)) -> 0 | G7: =IF(OR($C7="n.d.",$C7=""),"",VLOOKUP($C7,Foglio2!$BA:$BE,5,FALSE)) -> 0 | H7: =IF(OR(C7="n.d.",C7=" ",C7="P_n.d."),0,VLOOKUP(C7,Foglio2!BA:BC,3,FALSE)) -> 0 | I7: =IF(ISERROR(LOWER(VLOOKUP(E7,Foglio2!BK$2:BL$21,2,FALSE))),"",LOWER(VLOOKUP(E7,Foglio2!BK$2:BL$21,2,FALSE))) -> com - par | K7: =IF($C7="","",IF(ISERROR(VLOOKUP($C7,Foglio2!$BG$2:$BH$150,2,FALSE)),"",VLOOKUP($C7,Foglio2!$BG$2:$BH$150,2,FALSE))) ->  | L7: 3 | M7: D | N7: BISSECK; | O7: INT | P7: =IF(SUM(T4:T28)<>11,CONCATENATE("CI SONO ",SUM(T4:T28)," TITOLARI"),"") ->  | R7: 97 | S7: ASTALDI | T7: 0 | W7: BISSECK | BB7: D | BC7: BISSECK | BD7: 1
B8: X | C8: =IF(VLOOKUP($C$1,Foglio2!$A:$AY,10,FALSE)=0,"n.d.",VLOOKUP($C$1,Foglio2!$A:$AY,10,FALSE)) -> AKANJI | D8: D | E8: =IF(OR(C8="n.d.",C8=""),"",VLOOKUP($C8,Foglio2!$BA:$BC,2,FALSE)) -> INT | F8: =IF(OR(C8="n.d.",C8=""),"",VLOOKUP(C8,Foglio2!BA:BD,4,FALSE)) -> 32 | G8: =IF(OR($C8="n.d.",$C8=""),"",VLOOKUP($C8,Foglio2!$BA:$BE,5,FALSE)) -> 6.28125 | H8: =IF(OR(C8="n.d.",C8=""),"",VLOOKUP(C8,Foglio2!BA:BC,3,FALSE)) -> 6.40625 | I8: =IF(ISERROR(LOWER(VLOOKUP(E8,Foglio2!BK$2:BL$21,2,FALSE))),"",LOWER(VLOOKUP(E8,Foglio2!BK$2:BL$21,2,FALSE))) -> int - ver | K8: =IF($C8="","",IF(ISERROR(VLOOKUP($C8,Foglio2!$BG$2:$BH$150,2,FALSE)),"",VLOOKUP($C8,Foglio2!$BG$2:$BH$150,2,FALSE))) ->  | L8: 4 | M8: D | N8: HIEN; | O8: ATA | R8: D | S8: AKANJI | T8: 1 | W8: HIEN | BB8: D | BC8: HIEN | BD8: 1
B9: X | C9: =IF(VLOOKUP($C$1,Foglio2!$A:$AY,12,FALSE)=0,"n.d.",VLOOKUP($C$1,Foglio2!$A:$AY,12,FALSE)) -> BISSECK | D9: D | E9: =IF(OR(C9="n.d.",C9=""),"",VLOOKUP($C9,Foglio2!$BA:$BC,2,FALSE)) -> INT | F9: =IF(OR(C9="n.d.",C9=""),"",VLOOKUP(C9,Foglio2!BA:BD,4,FALSE)) -> 22 | G9: =IF(OR($C9="n.d.",$C9=""),"",VLOOKUP($C9,Foglio2!$BA:$BE,5,FALSE)) -> 6.25 | H9: =IF(OR(C9="n.d.",C9=""),"",VLOOKUP(C9,Foglio2!BA:BC,3,FALSE)) -> 6.613636364 | I9: =IF(ISERROR(LOWER(VLOOKUP(E9,Foglio2!BK$2:BL$21,2,FALSE))),"",LOWER(VLOOKUP(E9,Foglio2!BK$2:BL$21,2,FALSE))) -> int - ver | K9: =IF($C9="","",IF(ISERROR(VLOOKUP($C9,Foglio2!$BG$2:$BH$150,2,FALSE)),"",VLOOKUP($C9,Foglio2!$BG$2:$BH$150,2,FALSE))) ->  | L9: 5 | M9: D | N9: KALULU; | O9: JUV | R9: D | S9: BISSECK | T9: 1 | W9: KALULU | BB9: D | BC9: KALULU | BD9: 1
B10: X | C10: =IF(VLOOKUP($C$1,Foglio2!$A:$AY,14,FALSE)=0,"n.d.",VLOOKUP($C$1,Foglio2!$A:$AY,14,FALSE)) -> HIEN | D10: D | E10: =IF(OR(C10="n.d.",C10=""),"",VLOOKUP($C10,Foglio2!$BA:$BC,2,FALSE)) -> ATA | F10: =IF(OR(C10="n.d.",C10=""),"",VLOOKUP(C10,Foglio2!BA:BD,4,FALSE)) -> 27 | G10: =IF(OR($C10="n.d.",$C10=""),"",VLOOKUP($C10,Foglio2!$BA:$BE,5,FALSE)) -> 5.888888889 | H10: =IF(OR(C10="n.d.",C10=""),"",VLOOKUP(C10,Foglio2!BA:BC,3,FALSE)) -> 5.833333333 | I10: =IF(ISERROR(LOWER(VLOOKUP(E10,Foglio2!BK$2:BL$21,2,FALSE))),"",LOWER(VLOOKUP(E10,Foglio2!BK$2:BL$21,2,FALSE))) -> ata - bol | K10: =IF($C10="","",IF(ISERROR(VLOOKUP($C10,Foglio2!$BG$2:$BH$150,2,FALSE)),"",VLOOKUP($C10,Foglio2!$BG$2:$BH$150,2,FALSE))) ->  | L10: 6 | M10: C | N10: CALHANOGLU; | O10: INT | R10: D | S10: HIEN | T10: 1 | W10: CALHANOGLU | BB10: C | BC10: CALHANOGLU | BD10: 1
B11: X | C11: =IF(VLOOKUP($C$1,Foglio2!$A:$AY,16,FALSE)=0,"n.d.",VLOOKUP($C$1,Foglio2!$A:$AY,16,FALSE)) -> KALULU | D11: D | E11: =IF(OR(C11="n.d.",C11=""),"",VLOOKUP($C11,Foglio2!$BA:$BC,2,FALSE)) -> JUV | F11: =IF(OR(C11="n.d.",C11=""),"",VLOOKUP(C11,Foglio2!BA:BD,4,FALSE)) -> 35 | G11: =IF(OR($C11="n.d.",$C11=""),"",VLOOKUP($C11,Foglio2!$BA:$BE,5,FALSE)) -> 6.157142857 | H11: =IF(OR(C11="n.d.",C11=""),"",VLOOKUP(C11,Foglio2!BA:BC,3,FALSE)) -> 6.285714286 | I11: =IF(ISERROR(LOWER(VLOOKUP(E11,Foglio2!BK$2:BL$21,2,FALSE))),"",LOWER(VLOOKUP(E11,Foglio2!BK$2:BL$21,2,FALSE))) -> juv - fio | K11: =IF($C11="","",IF(ISERROR(VLOOKUP($C11,Foglio2!$BG$2:$BH$150,2,FALSE)),"",VLOOKUP($C11,Foglio2!$BG$2:$BH$150,2,FALSE))) ->  | L11: 7 | M11: C | N11: FAGIOLI; | O11: FIO | R11: D | S11: KALULU | T11: 1 | W11: FAGIOLI | BB11: C | BC11: FAGIOLI | BD11: 1
B12: 4 | C12: =IF(VLOOKUP($C$1,Foglio2!$A:$AY,18,FALSE)=0,"n.d.",VLOOKUP($C$1,Foglio2!$A:$AY,18,FALSE)) -> PARISI | D12: D | E12: =IF(OR(C12="n.d.",C12=""),"",VLOOKUP($C12,Foglio2!$BA:$BC,2,FALSE)) -> FIO | F12: =IF(OR(C12="n.d.",C12=""),"",VLOOKUP(C12,Foglio2!BA:BD,4,FALSE)) -> 22 | G12: =IF(OR($C12="n.d.",$C12=""),"",VLOOKUP($C12,Foglio2!$BA:$BE,5,FALSE)) -> 6.022727273 | H12: =IF(OR(C12="n.d.",C12=""),"",VLOOKUP(C12,Foglio2!BA:BC,3,FALSE)) -> 5.931818182 | I12: =IF(ISERROR(LOWER(VLOOKUP(E12,Foglio2!BK$2:BL$21,2,FALSE))),"",LOWER(VLOOKUP(E12,Foglio2!BK$2:BL$21,2,FALSE))) -> juv - fio | K12: =IF($C12="","",IF(ISERROR(VLOOKUP($C12,Foglio2!$BG$2:$BH$150,2,FALSE)),"",VLOOKUP($C12,Foglio2!$BG$2:$BH$150,2,FALSE))) ->  | L12: 8 | M12: C | N12: FRATTESI; | O12: INT | R12: 96 | S12: PARISI | T12: 0 | W12: FRATTESI | BB12: C | BC12: FRATTESI | BD12: 1
B13: 5 | C13: =IF(VLOOKUP($C$1,Foglio2!$A:$AY,20,FALSE)=0,"n.d.",VLOOKUP($C$1,Foglio2!$A:$AY,20,FALSE)) -> ROMAGNOLI | D13: D | E13: =IF(OR(C13="n.d.",C13=""),"",VLOOKUP($C13,Foglio2!$BA:$BC,2,FALSE)) -> LAZ | F13: =IF(OR(C13="n.d.",C13=""),"",VLOOKUP(C13,Foglio2!BA:BD,4,FALSE)) -> 31 | G13: =IF(OR($C13="n.d.",$C13=""),"",VLOOKUP($C13,Foglio2!$BA:$BE,5,FALSE)) -> 6.032258065 | H13: =IF(OR(C13="n.d.",C13=""),"",VLOOKUP(C13,Foglio2!BA:BC,3,FALSE)) -> 5.903225806 | I13: =IF(ISERROR(LOWER(VLOOKUP(E13,Foglio2!BK$2:BL$21,2,FALSE))),"",LOWER(VLOOKUP(E13,Foglio2!BK$2:BL$21,2,FALSE))) -> rom - laz | K13: =IF($C13="","",IF(ISERROR(VLOOKUP($C13,Foglio2!$BG$2:$BH$150,2,FALSE)),"",VLOOKUP($C13,Foglio2!$BG$2:$BH$150,2,FALSE))) ->  | L13: 9 | M13: A | N13: BONNY; | O13: INT | R13: 95 | S13: ROMAGNOLI | T13: 0 | W13: BONNY | BB13: A | BC13: BONNY | BD13: 1
B14: 6 | C14: =IF(VLOOKUP($C$1,Foglio2!$A:$AY,22,FALSE)=0,"n.d.",VLOOKUP($C$1,Foglio2!$A:$AY,22,FALSE)) -> SPINAZZOLA | D14: D | E14: =IF(OR(C14="n.d.",C14=""),"",VLOOKUP($C14,Foglio2!$BA:$BC,2,FALSE)) -> NAP | F14: =IF(OR(C14="n.d.",C14=""),"",VLOOKUP(C14,Foglio2!BA:BD,4,FALSE)) -> 29 | G14: =IF(OR($C14="n.d.",$C14=""),"",VLOOKUP($C14,Foglio2!$BA:$BE,5,FALSE)) -> 6.172413793 | H14: =IF(OR(C14="n.d.",C14=""),"",VLOOKUP(C14,Foglio2!BA:BC,3,FALSE)) -> 6.465517241 | I14: =IF(ISERROR(LOWER(VLOOKUP(E14,Foglio2!BK$2:BL$21,2,FALSE))),"",LOWER(VLOOKUP(E14,Foglio2!BK$2:BL$21,2,FALSE))) -> pis - nap | K14: =IF($C14="","",IF(ISERROR(VLOOKUP($C14,Foglio2!$BG$2:$BH$150,2,FALSE)),"",VLOOKUP($C14,Foglio2!$BG$2:$BH$150,2,FALSE))) ->  | L14: 10 | M14: A | N14: CHEDDIRA; | O14: LEC | R14: 94 | S14: SPINAZZOLA | T14: 0 | W14: CHEDDIRA | BB14: A | BC14: CHEDDIRA | BD14: 1
B15: 7 | C15: =IF(VLOOKUP($C$1,Foglio2!$A:$AY,24,FALSE)=0,"n.d.",VLOOKUP($C$1,Foglio2!$A:$AY,24,FALSE)) -> ZAPPACOSTA | D15: D | E15: =IF(OR(C15="n.d.",C15=""),"",VLOOKUP($C15,Foglio2!$BA:$BC,2,FALSE)) -> ATA | F15: =IF(OR(C15="n.d.",C15=""),"",VLOOKUP(C15,Foglio2!BA:BD,4,FALSE)) -> 33 | G15: =IF(OR($C15="n.d.",$C15=""),"",VLOOKUP($C15,Foglio2!$BA:$BE,5,FALSE)) -> 6.060606061 | H15: =IF(OR(C15="n.d.",C15=""),"",VLOOKUP(C15,Foglio2!BA:BC,3,FALSE)) -> 6.287878788 | I15: =IF(ISERROR(LOWER(VLOOKUP(E15,Foglio2!BK$2:BL$21,2,FALSE))),"",LOWER(VLOOKUP(E15,Foglio2!BK$2:BL$21,2,FALSE))) -> ata - bol | K15: =IF($C15="","",IF(ISERROR(VLOOKUP($C15,Foglio2!$BG$2:$BH$150,2,FALSE)),"",VLOOKUP($C15,Foglio2!$BG$2:$BH$150,2,FALSE))) ->  | L15: 11 | M15: A | N15: DYBALA; | O15: ROM | R15: 93 | S15: ZAPPACOSTA | T15: 0 | W15: DYBALA | BB15: A | BC15: DYBALA | BD15: 1
B16: X | C16: =IF(VLOOKUP($C$1,Foglio2!$A:$AY,26,FALSE)=0,"n.d.",VLOOKUP($C$1,Foglio2!$A:$AY,26,FALSE)) -> CALHANOGLU | D16: C | E16: =IF(OR(C16="n.d.",C16=""),"",VLOOKUP($C16,Foglio2!$BA:$BC,2,FALSE)) -> INT | F16: =IF(OR(C16="n.d.",C16=""),"",VLOOKUP(C16,Foglio2!BA:BD,4,FALSE)) -> 22 | G16: =IF(OR($C16="n.d.",$C16=""),"",VLOOKUP($C16,Foglio2!$BA:$BE,5,FALSE)) -> 6.522727273 | H16: =IF(OR(C16="n.d.",C16=""),"",VLOOKUP(C16,Foglio2!BA:BC,3,FALSE)) -> 7.454545455 | I16: =IF(ISERROR(LOWER(VLOOKUP(E16,Foglio2!BK$2:BL$21,2,FALSE))),"",LOWER(VLOOKUP(E16,Foglio2!BK$2:BL$21,2,FALSE))) -> int - ver | K16: =IF($C16="","",IF(ISERROR(VLOOKUP($C16,Foglio2!$BG$2:$BH$150,2,FALSE)),"",VLOOKUP($C16,Foglio2!$BG$2:$BH$150,2,FALSE))) ->  | R16: C | S16: CALHANOGLU | T16: 1 | BB16: 99 | BC16: CORVI | BD16: 0
B17: X | C17: =IF(VLOOKUP($C$1,Foglio2!$A:$AY,28,FALSE)=0,"n.d.",VLOOKUP($C$1,Foglio2!$A:$AY,28,FALSE)) -> FAGIOLI | D17: C | E17: =IF(OR(C17="n.d.",C17=""),"",VLOOKUP($C17,Foglio2!$BA:$BC,2,FALSE)) -> FIO | F17: =IF(OR(C17="n.d.",C17=""),"",VLOOKUP(C17,Foglio2!BA:BD,4,FALSE)) -> 32 | G17: =IF(OR($C17="n.d.",$C17=""),"",VLOOKUP($C17,Foglio2!$BA:$BE,5,FALSE)) -> 6.015625 | H17: =IF(OR(C17="n.d.",C17=""),"",VLOOKUP(C17,Foglio2!BA:BC,3,FALSE)) -> 6.125 | I17: =IF(ISERROR(LOWER(VLOOKUP(E17,Foglio2!BK$2:BL$21,2,FALSE))),"",LOWER(VLOOKUP(E17,Foglio2!BK$2:BL$21,2,FALSE))) -> juv - fio | K17: =IF($C17="","",IF(ISERROR(VLOOKUP($C17,Foglio2!$BG$2:$BH$150,2,FALSE)),"",VLOOKUP($C17,Foglio2!$BG$2:$BH$150,2,FALSE))) ->  | L17: 12 | M17: =IF(W17<>"",IF(ISTEXT(VLOOKUP($W17,$C$4:$E$28,2,FALSE)),VLOOKUP($W17,$C$4:$E$28,2,FALSE),""),"") -> P | N17: =IF(BD16<>"",BC16&";","") -> CORVI; | O17: =IF(LEN(W17)<>1,IF(ISTEXT(VLOOKUP($W17,$C$4:$E$28,3,FALSE)),VLOOKUP($W17,$C$4:$E$28,3,FALSE),""),"ERRORE") -> PAR | P17: =V17 ->  | R17: C | S17: FAGIOLI | T17: 1 | V17: =IF(M17<>"P","la prima riserva deve essere un portiere",IF(ISERROR(FIND(",",N17,1)),"","rigorista non disponibile")) ->  | W17: =IF(N17="","",IF(ISERROR(FIND(",",N17,1)),LEFT(N17,FIND(";",N17,1)-1),LEFT(N17,FIND(",",N17,1)-1))) -> CORVI | BB17: 98 | BC17: RINALDI | BD17: 0
B18: X | C18: =IF(VLOOKUP($C$1,Foglio2!$A:$AY,30,FALSE)=0,"n.d.",VLOOKUP($C$1,Foglio2!$A:$AY,30,FALSE)) -> FRATTESI | D18: C | E18: =IF(OR(C18="n.d.",C18=""),"",VLOOKUP($C18,Foglio2!$BA:$BC,2,FALSE)) -> INT | F18: =IF(OR(C18="n.d.",C18=""),"",VLOOKUP(C18,Foglio2!BA:BD,4,FALSE)) -> 14 | G18: =IF(OR($C18="n.d.",$C18=""),"",VLOOKUP($C18,Foglio2!$BA:$BE,5,FALSE)) -> 5.892857143 | H18: =IF(OR(C18="n.d.",C18=""),"",VLOOKUP(C18,Foglio2!BA:BC,3,FALSE)) -> 5.892857143 | I18: =IF(ISERROR(LOWER(VLOOKUP(E18,Foglio2!BK$2:BL$21,2,FALSE))),"",LOWER(VLOOKUP(E18,Foglio2!BK$2:BL$21,2,FALSE))) -> int - ver | K18: =IF($C18="","",IF(ISERROR(VLOOKUP($C18,Foglio2!$BG$2:$BH$150,2,FALSE)),"",VLOOKUP($C18,Foglio2!$BG$2:$BH$150,2,FALSE))) ->  | L18: 13 | M18: P | N18: =IF(BD17<>"",BC17&";","") -> RINALDI; | O18: PAR | P18: =V18 ->  | R18: C | S18: FRATTESI | T18: 1 | V18: =IF(ISERROR(FIND(",",N18,1)),"","rigorista non disponibile") ->  | W18: RINALDI | BB18: 97 | BC18: ASTALDI | BD18: 0
B19: 8 | C19: =IF(VLOOKUP($C$1,Foglio2!$A:$AY,32,FALSE)=0,"n.d.",VLOOKUP($C$1,Foglio2!$A:$AY,32,FALSE)) -> MALDINI | D19: C | E19: =IF(OR(C19="n.d.",C19=""),"",VLOOKUP($C19,Foglio2!$BA:$BC,2,FALSE)) -> LAZ | F19: =IF(OR(C19="n.d.",C19=""),"",VLOOKUP(C19,Foglio2!BA:BD,4,FALSE)) -> 16 | G19: =IF(OR($C19="n.d.",$C19=""),"",VLOOKUP($C19,Foglio2!$BA:$BE,5,FALSE)) -> 5.96875 | H19: =IF(OR(C19="n.d.",C19=""),"",VLOOKUP(C19,Foglio2!BA:BC,3,FALSE)) -> 6.3125 | I19: =IF(ISERROR(LOWER(VLOOKUP(E19,Foglio2!BK$2:BL$21,2,FALSE))),"",LOWER(VLOOKUP(E19,Foglio2!BK$2:BL$21,2,FALSE))) -> rom - laz | K19: =IF($C19="","",IF(ISERROR(VLOOKUP($C19,Foglio2!$BG$2:$BH$150,2,FALSE)),"",VLOOKUP($C19,Foglio2!$BG$2:$BH$150,2,FALSE))) ->  | L19: 14 | M19: P | N19: ASTALDI; | O19: PAR | R19: 92 | S19: MALDINI | T19: 0 | W19: ASTALDI | BB19: 96 | BC19: PARISI | BD19: 0
B20: 9 | C20: =IF(VLOOKUP($C$1,Foglio2!$A:$AY,34,FALSE)=0,"n.d.",VLOOKUP($C$1,Foglio2!$A:$AY,34,FALSE)) -> ROVELLA | D20: C | E20: =IF(OR(C20="n.d.",C20=""),"",VLOOKUP($C20,Foglio2!$BA:$BC,2,FALSE)) -> LAZ | F20: =IF(OR(C20="n.d.",C20=""),"",VLOOKUP(C20,Foglio2!BA:BD,4,FALSE)) -> 10 | G20: =IF(OR($C20="n.d.",$C20=""),"",VLOOKUP($C20,Foglio2!$BA:$BE,5,FALSE)) -> 5.85 | H20: =IF(OR(C20="n.d.",C20=""),"",VLOOKUP(C20,Foglio2!BA:BC,3,FALSE)) -> 5.8 | I20: =IF(ISERROR(LOWER(VLOOKUP(E20,Foglio2!BK$2:BL$21,2,FALSE))),"",LOWER(VLOOKUP(E20,Foglio2!BK$2:BL$21,2,FALSE))) -> rom - laz | K20: =IF($C20="","",IF(ISERROR(VLOOKUP($C20,Foglio2!$BG$2:$BH$150,2,FALSE)),"",VLOOKUP($C20,Foglio2!$BG$2:$BH$150,2,FALSE))) ->  | L20: 15 | M20: D | N20: PARISI; | O20: FIO | R20: 91 | S20: ROVELLA | T20: 0 | W20: PARISI | BB20: 95 | BC20: ROMAGNOLI | BD20: 0
B21: 10 | C21: =IF(VLOOKUP($C$1,Foglio2!$A:$AY,36,FALSE)=0,"n.d.",VLOOKUP($C$1,Foglio2!$A:$AY,36,FALSE)) -> SUCIC | D21: C | E21: =IF(OR(C21="n.d.",C21=""),"",VLOOKUP($C21,Foglio2!$BA:$BC,2,FALSE)) -> INT | F21: =IF(OR(C21="n.d.",C21=""),"",VLOOKUP(C21,Foglio2!BA:BD,4,FALSE)) -> 26 | G21: =IF(OR($C21="n.d.",$C21=""),"",VLOOKUP($C21,Foglio2!$BA:$BE,5,FALSE)) -> 6.076923077 | H21: =IF(OR(C21="n.d.",C21=""),"",VLOOKUP(C21,Foglio2!BA:BC,3,FALSE)) -> 6.211538462 | I21: =IF(ISERROR(LOWER(VLOOKUP(E21,Foglio2!BK$2:BL$21,2,FALSE))),"",LOWER(VLOOKUP(E21,Foglio2!BK$2:BL$21,2,FALSE))) -> int - ver | K21: =IF($C21="","",IF(ISERROR(VLOOKUP($C21,Foglio2!$BG$2:$BH$150,2,FALSE)),"",VLOOKUP($C21,Foglio2!$BG$2:$BH$150,2,FALSE))) ->  | L21: 16 | M21: D | N21: ROMAGNOLI; | O21: LAZ | R21: 90 | S21: SUCIC | T21: 0 | W21: ROMAGNOLI | BB21: 94 | BC21: SPINAZZOLA | BD21: 0
B22: 11 | C22: =IF(VLOOKUP($C$1,Foglio2!$A:$AY,38,FALSE)=0,"n.d.",VLOOKUP($C$1,Foglio2!$A:$AY,38,FALSE)) -> THURAM K. | D22: C | E22: =IF(OR(C22="n.d.",C22=""),"",VLOOKUP($C22,Foglio2!$BA:$BC,2,FALSE)) -> JUV | F22: =IF(OR(C22="n.d.",C22=""),"",VLOOKUP(C22,Foglio2!BA:BD,4,FALSE)) -> 32 | G22: =IF(OR($C22="n.d.",$C22=""),"",VLOOKUP($C22,Foglio2!$BA:$BE,5,FALSE)) -> 6.125 | H22: =IF(OR(C22="n.d.",C22=""),"",VLOOKUP(C22,Foglio2!BA:BC,3,FALSE)) -> 6.375 | I22: =IF(ISERROR(LOWER(VLOOKUP(E22,Foglio2!BK$2:BL$21,2,FALSE))),"",LOWER(VLOOKUP(E22,Foglio2!BK$2:BL$21,2,FALSE))) -> juv - fio | K22: =IF($C22="","",IF(ISERROR(VLOOKUP($C22,Foglio2!$BG$2:$BH$150,2,FALSE)),"",VLOOKUP($C22,Foglio2!$BG$2:$BH$150,2,FALSE))) ->  | L22: 17 | M22: D | N22: SPINAZZOLA; | O22: NAP | R22: 89 | S22: THURAM K. | T22: 0 | W22: SPINAZZOLA | BB22: 93 | BC22: ZAPPACOSTA | BD22: 0
B23: 12 | C23: =IF(VLOOKUP($C$1,Foglio2!$A:$AY,40,FALSE)=0,"n.d.",VLOOKUP($C$1,Foglio2!$A:$AY,40,FALSE)) -> ZALEWSKI | D23: C | E23: =IF(OR(C23="n.d.",C23=""),"",VLOOKUP($C23,Foglio2!$BA:$BC,2,FALSE)) -> ATA | F23: =IF(OR(C23="n.d.",C23=""),"",VLOOKUP(C23,Foglio2!BA:BD,4,FALSE)) -> 30 | G23: =IF(OR($C23="n.d.",$C23=""),"",VLOOKUP($C23,Foglio2!$BA:$BE,5,FALSE)) -> 6.116666667 | H23: =IF(OR(C23="n.d.",C23=""),"",VLOOKUP(C23,Foglio2!BA:BC,3,FALSE)) -> 6.266666667 | I23: =IF(ISERROR(LOWER(VLOOKUP(E23,Foglio2!BK$2:BL$21,2,FALSE))),"",LOWER(VLOOKUP(E23,Foglio2!BK$2:BL$21,2,FALSE))) -> ata - bol | K23: =IF($C23="","",IF(ISERROR(VLOOKUP($C23,Foglio2!$BG$2:$BH$150,2,FALSE)),"",VLOOKUP($C23,Foglio2!$BG$2:$BH$150,2,FALSE))) ->  | L23: 18 | M23: D | N23: ZAPPACOSTA; | O23: ATA | R23: 88 | S23: ZALEWSKI | T23: 0 | W23: ZAPPACOSTA | BB23: 92 | BC23: MALDINI | BD23: 0
B24: X | C24: =IF(VLOOKUP($C$1,Foglio2!$A:$AY,42,FALSE)=0,"n.d.",VLOOKUP($C$1,Foglio2!$A:$AY,42,FALSE)) -> BONNY | D24: A | E24: =IF(OR(C24="n.d.",C24=""),"",VLOOKUP($C24,Foglio2!$BA:$BC,2,FALSE)) -> INT | F24: =IF(OR(C24="n.d.",C24=""),"",VLOOKUP(C24,Foglio2!BA:BD,4,FALSE)) -> 25 | G24: =IF(OR($C24="n.d.",$C24=""),"",VLOOKUP($C24,Foglio2!$BA:$BE,5,FALSE)) -> 6.14 | H24: =IF(OR(C24="n.d.",C24=""),"",VLOOKUP(C24,Foglio2!BA:BC,3,FALSE)) -> 6.72 | I24: =IF(ISERROR(LOWER(VLOOKUP(E24,Foglio2!BK$2:BL$21,2,FALSE))),"",LOWER(VLOOKUP(E24,Foglio2!BK$2:BL$21,2,FALSE))) -> int - ver | K24: =IF($C24="","",IF(ISERROR(VLOOKUP($C24,Foglio2!$BG$2:$BH$150,2,FALSE)),"",VLOOKUP($C24,Foglio2!$BG$2:$BH$150,2,FALSE))) ->  | L24: 19 | M24: C | N24: MALDINI; | O24: LAZ | R24: A | S24: BONNY | T24: 1 | W24: =IF(N24="","",IF(ISERROR(FIND(",",N24,1)),LEFT(N24,FIND(";",N24,1)-1),LEFT(N24,FIND(",",N24,1)-1))) -> MALDINI | BB24: 91 | BC24: ROVELLA | BD24: 0
B25: X | C25: =IF(VLOOKUP($C$1,Foglio2!$A:$AY,44,FALSE)=0,"n.d.",VLOOKUP($C$1,Foglio2!$A:$AY,44,FALSE)) -> CHEDDIRA | D25: A | E25: =IF(OR(C25="n.d.",C25=""),"",VLOOKUP($C25,Foglio2!$BA:$BC,2,FALSE)) -> LEC | F25: =IF(OR(C25="n.d.",C25=""),"",VLOOKUP(C25,Foglio2!BA:BD,4,FALSE)) -> 22 | G25: =IF(OR($C25="n.d.",$C25=""),"",VLOOKUP($C25,Foglio2!$BA:$BE,5,FALSE)) -> 5.704545455 | H25: =IF(OR(C25="n.d.",C25=""),"",VLOOKUP(C25,Foglio2!BA:BC,3,FALSE)) -> 5.931818182 | I25: =IF(ISERROR(LOWER(VLOOKUP(E25,Foglio2!BK$2:BL$21,2,FALSE))),"",LOWER(VLOOKUP(E25,Foglio2!BK$2:BL$21,2,FALSE))) -> sas - lec | K25: =IF($C25="","",IF(ISERROR(VLOOKUP($C25,Foglio2!$BG$2:$BH$150,2,FALSE)),"",VLOOKUP($C25,Foglio2!$BG$2:$BH$150,2,FALSE))) ->  | L25: 20 | M25: C | N25: ROVELLA; | O25: LAZ | R25: A | S25: CHEDDIRA | T25: 1 | W25: ROVELLA | BB25: 90 | BC25: SUCIC | BD25: 0
B26: X | C26: =IF(VLOOKUP($C$1,Foglio2!$A:$AY,46,FALSE)=0,"n.d.",VLOOKUP($C$1,Foglio2!$A:$AY,46,FALSE)) -> DYBALA | D26: A | E26: =IF(OR(C26="n.d.",C26=""),"",VLOOKUP($C26,Foglio2!$BA:$BC,2,FALSE)) -> ROM | F26: =IF(OR(C26="n.d.",C26=""),"",VLOOKUP(C26,Foglio2!BA:BD,4,FALSE)) -> 19 | G26: =IF(OR($C26="n.d.",$C26=""),"",VLOOKUP($C26,Foglio2!$BA:$BE,5,FALSE)) -> 6.131578947 | H26: =IF(OR(C26="n.d.",C26=""),"",VLOOKUP(C26,Foglio2!BA:BC,3,FALSE)) -> 6.289473684 | I26: =IF(ISERROR(LOWER(VLOOKUP(E26,Foglio2!BK$2:BL$21,2,FALSE))),"",LOWER(VLOOKUP(E26,Foglio2!BK$2:BL$21,2,FALSE))) -> rom - laz | K26: =IF($C26="","",IF(ISERROR(VLOOKUP($C26,Foglio2!$BG$2:$BH$150,2,FALSE)),"",VLOOKUP($C26,Foglio2!$BG$2:$BH$150,2,FALSE))) ->  | L26: 21 | M26: C | N26: =IF(BD25<>"",BC25&";","") -> SUCIC; | O26: INT | R26: A | S26: DYBALA | T26: 1 | W26: SUCIC | BB26: 89 | BC26: THURAM K. | BD26: 0
B27: 13 | C27: =IF(VLOOKUP($C$1,Foglio2!$A:$AY,48,FALSE)=0,"n.d.",VLOOKUP($C$1,Foglio2!$A:$AY,48,FALSE)) -> NKUNKU | D27: A | E27: =IF(OR(C27="n.d.",C27=""),"",VLOOKUP($C27,Foglio2!$BA:$BC,2,FALSE)) -> MIL | F27: =IF(OR(C27="n.d.",C27=""),"",VLOOKUP(C27,Foglio2!BA:BD,4,FALSE)) -> 24 | G27: =IF(OR($C27="n.d.",$C27=""),"",VLOOKUP($C27,Foglio2!$BA:$BE,5,FALSE)) -> 5.9375 | H27: =IF(OR(C27="n.d.",C27=""),"",VLOOKUP(C27,Foglio2!BA:BC,3,FALSE)) -> 6.6875 | I27: =IF(ISERROR(LOWER(VLOOKUP(E27,Foglio2!BK$2:BL$21,2,FALSE))),"",LOWER(VLOOKUP(E27,Foglio2!BK$2:BL$21,2,FALSE))) -> gen - mil | K27: =IF($C27="","",IF(ISERROR(VLOOKUP($C27,Foglio2!$BG$2:$BH$150,2,FALSE)),"",VLOOKUP($C27,Foglio2!$BG$2:$BH$150,2,FALSE))) ->  | L27: 22 | M27: C | N27: =IF(BD26<>"",BC26&";","") -> THURAM K.; | O27: JUV | R27: 87 | S27: NKUNKU | T27: 0 | W27: THURAM K. | BB27: 88 | BC27: ZALEWSKI | BD27: 0
B28: 14 | C28: =IF(VLOOKUP($C$1,Foglio2!$A:$AY,50,FALSE)=0,"n.d.",VLOOKUP($C$1,Foglio2!$A:$AY,50,FALSE)) -> RASPADORI | D28: A | E28: =IF(OR(C28="n.d.",C28=""),"",VLOOKUP($C28,Foglio2!$BA:$BC,2,FALSE)) -> ATA | F28: =IF(OR(C28="n.d.",C28=""),"",VLOOKUP(C28,Foglio2!BA:BD,4,FALSE)) -> 11 | G28: =IF(OR($C28="n.d.",$C28=""),"",VLOOKUP($C28,Foglio2!$BA:$BE,5,FALSE)) -> 6.181818182 | H28: =IF(OR(C28="n.d.",C28=""),"",VLOOKUP(C28,Foglio2!BA:BC,3,FALSE)) -> 7 | I28: =IF(ISERROR(LOWER(VLOOKUP(E28,Foglio2!BK$2:BL$21,2,FALSE))),"",LOWER(VLOOKUP(E28,Foglio2!BK$2:BL$21,2,FALSE))) -> ata - bol | K28: =IF($C28="","",IF(ISERROR(VLOOKUP($C28,Foglio2!$BG$2:$BH$150,2,FALSE)),"",VLOOKUP($C28,Foglio2!$BG$2:$BH$150,2,FALSE))) ->  | L28: 23 | M28: C | N28: =IF(BD27<>"",BC27&";","") -> ZALEWSKI; | O28: ATA | R28: 86 | S28: RASPADORI | T28: =IF(R28="","",IF(AND(TRIM($B28)<>"",ISTEXT($B28)),1,0)) -> 0 | V28: =IF(ISERROR(FIND(",",N28,1)),"","rigorista non disponibile") ->  | W28: ZALEWSKI | BB28: 87 | BC28: NKUNKU | BD28: 0
E29: =IF(OR(C29="n.d.",C29=""),"",VLOOKUP($C29,Foglio2!$BA:$BC,2,FALSE)) ->  | F29: =IF(OR(C29="n.d.",C29=""),"",VLOOKUP(C29,Foglio2!BA:BD,4,FALSE)) ->  | H29: =IF(OR(C29="n.d.",C29=""),"",VLOOKUP(C29,Foglio2!BA:BC,3,FALSE)) ->  | I29: =IF(ISERROR(LOWER(VLOOKUP(E29,Foglio2!BK$2:BL$21,2,FALSE))),"",LOWER(VLOOKUP(E29,Foglio2!BK$2:BL$21,2,FALSE))) ->  | L29: 24 | M29: A | N29: =IF(BD28<>"",BC28&";","") -> NKUNKU; | O29: MIL | W29: NKUNKU | BB29: 86 | BC29: RASPADORI | BD29: 0
C30: =IF(ISERROR(VLOOKUP(C$1,Foglio2!CC:CF,4,FALSE)),"",VLOOKUP(C$1,Foglio2!CC:CF,4,FALSE)&": "&VLOOKUP(C$1,Foglio2!CC:CF,2,FALSE)&" - "&VLOOKUP(C$1,Foglio2!CC:CF,3,FALSE)) -> SPAREGGIO PROMOZIONE IN SERIE B: BOMBARELLANDIA - ARMATA NERAZZURRA | K30: =IF(C30="","","INSERIRE I RIGORISTI") -> INSERIRE I RIGORISTI | L30: 25 | M30: A | N30: =IF(BD29<>"",BC29&";","") -> RASPADORI; | O30: ATA | W30: RASPADORI
C31: =IF(ISERROR(VLOOKUP(C$1,Foglio2!CH:CK,4,FALSE)),"",VLOOKUP(C$1,Foglio2!CH:CK,4,FALSE)&": "&VLOOKUP(C$1,Foglio2!CH:CK,2,FALSE)&" - "&VLOOKUP(C$1,Foglio2!CH:CK,3,FALSE)) ->  | K31: =IF(C31="","","INSERIRE I RIGORISTI") -> 
C37: =IF(NOT(ISERROR(VLOOKUP($C$1,Foglio2!$CL:$CL,1,FALSE))),"MONDIALE PER CLUB - FINALE: "&VLOOKUP($C$1,Foglio2!$CL:$CN,2,FALSE)&" - "&VLOOKUP($C$1,Foglio2!$CL:$CN,3,FALSE),"SPAREGGIO PROMOZIONE IN SERIE B: "&IF(ISERROR(INDEX(Foglio2!$CI:$CJ,MATCH($C$1,Foglio2!$CI:$CI,0),2)),INDEX(Foglio2!$CI:$CJ,MATCH($C$1,Foglio2!$CJ:$CJ,0),1)&" - "&$C$1,$C$1&" - "&INDEX(Foglio2!$CI:$CJ,MATCH($C$1,Foglio2!$CI:$CI,0),2))) -> 
N40: =BH18 -> 

Sheet Foglio2
A1: ABETO FC | B1: MOTTA | C1: 1 | D1: PROVEDEL | E1: 0 | F1: GIACOMONE | G1: 0 | H1: PANNOZZO | I1: 0 | J1: BARTESAGHI | K1: 1 | L1: DIEGO CARLOS | M1: 1 | N1: HOLM | O1: 1 | P1: N'DICKA | Q1: 7 | R1: OSTIGARD | S1: 3 | T1: PAVLOVIC | U1: 17 | V1: PROVSTGAARD | W1: 1 | X1: ROMAGNOLI | Y1: 6 | Z1: CASADEI | AA1: 7 | AB1: EKKELENKAMP | AC1: 2 | AD1: KOOPMEINERS | AE1: 13 | AF1: MALDINI | AG1: 2 | AH1: MANDRAGORA | AI1: 7 | AJ1: PELLEGRINI LO. | AK1: 7 | AL1: SAELEMAEKERS | AM1: 11 | AN1: STREFEZZA | AO1: 2 | AP1: BOGA | AQ1: 2 | AR1: DE KETELAERE | AS1: 18 | AT1: LEAO | AU1: 11 | AV1: MALEN | AW1: 155 | AX1: SIMEONE | AY1: 71 | AZ1: ABETO FC | BA1: CARNESECCHI | BB1: ATA | BC1: 5.583333333 | BD1: 36 | BE1: 6.361111111 | BF1: IMI_SerieA@googlegroups.com | BG1: Calciatore | BN1: 2TWINS4EVER | CD1: COPPE EUROPEE | CH1: COPPA DI LEGA | CL1: SUPERCOPPA EUROPEA/MONDIALE PER CLUB/SPAREGGIO PER LA B | CR1: COPPE EUROPEE | CT1: COPPA DI LEGA
A2: DEP LA CAROGNA | B2: OKOYE | C2: 1 | D2: NUNZIANTE | E2: 0 | F2: PADELLI | G2: 0 | H2: SAVA | I2: 0 | J2: ANGORI | K2: 1 | L2: BASTONI | M2: 34 | N2: BREMER | O2: 36 | P2: DELPRATO | Q2: 9 | R2: FRESE | S2: 1 | T2: GOSENS | U2: 34 | V2: KABASELE | W2: 2 | X2: ZANOLI | Y2: 3 | Z2: BERNEDE | AA2: 1 | AB2: FREULER | AC2: 9 | AD2: LERIS | AE2: 1 | AF2: MORO | AG2: 1 | AH2: NICO PAZ | AI2: 11 | AJ2: PIEROTTI | AK2: 1 | AL2: SOTTIL | AM2: 2 | AN2: THORSTVEDT | AO2: 7 | AP2: ESPOSITO SE. | AQ2: 7 | AR2: LAURIENTÈ | AS2: 7 | AT2: LUKAKU | AU2: 23 | AV2: THURAM | AW2: 72 | AX2: VITINHA | AY2: 4 | AZ2: DEP. LA CAROGNA | BA2: ROSSI | BB2: ATA | BC2: 0 | BD2: 0 | BE2: 0 | BF2: IMI_SerieA@googlegroups.com | BK2: ATA | BL2: ATA - BOL | BN2: 3T | CC2: G1_ABETO FC | CD2: ABETO FC | CE2: EROI DEL 1982 | CF2: CHAMPIONS LEAGUE - G. 1 | CH2: ZZ_RASTA DB | CI2: ZZ_RASTA DB | CJ2: ZZ_TIME OUT | CK2: COPPA DI LEGA - FASE A GIRONI: 1a GIORNATA | CO2: SUPERCOPPA EUROPEA | CR2: ABETO FC | CS2: EROI DEL 1982 | CT2: RASTA DB | CU2: TIME OUT | CV2: G1
A3: RISK UNITED | B3: CARNESECCHI | C3: 21 | D3: ROSSI | E3: 0 | F3: SPORTIELLO | G3: 0 | H3: ZANCHI | I3: 0 | J3: CAMBIASO | K3: 3 | L3: FLORIANI | M3: 2 | N3: GILA | O3: 4 | P3: HEGGEM | Q3: 2 | R3: HIEN | S3: 3 | T3: LAZARO | U3: 2 | V3: MUHAREMOVIC | W3: 2 | X3: VITIK | Y3: 3 | Z3: FADERA | AA3: 7 | AB3: FERGUSON | AC3: 2 | AD3: GAETANO | AE3: 7 | AF3: PIOTROWSKI | AG3: 1 | AH3: RICCI | AI3: 2 | AJ3: TOURE' | AK3: 4 | AL3: ZACCAGNI | AM3: 71 | AN3: ZALEWSKI | AO3: 8 | AP3: BONNY | AQ3: 10 | AR3: CASTRO | AS3: 31 | AT3: FULLKRUG | AU3: 10 | AV3: VARDY | AW3: 31 | AX3: ZAPATA | AY3: 7 | AZ3: RISK UNITED | BA3: SPORTIELLO | BB3: ATA | BC3: 0 | BD3: 0 | BE3: 0 | BF3: IMI_SerieA@googlegroups.com | BG3: BAILEY | BH3: CEDUTO ALL'ASTON VILLA | BI3: BAILEY | BK3: BOL | BL3: ATA - BOL | BN3: A TUTTA CALLARA | CC3: G1_RASTA DB | CD3: RASTA DB | CE3: CICCILLO | CF3: CHAMPIONS LEAGUE - G. 1 | CH3: ZZ_REAL CHR | CI3: ZZ_REAL CHR | CJ3: ZZ_LAMÙFOREVER | CK3: COPPA DI LEGA - FASE A GIRONI: 1a GIORNATA | CL3: 0 | CO3: SUPERCOPPA EUROPEA | CR3: 0 | CS3: 0 | CT3: REAL CHR | CU3: LAMÙFOREVER | CV3: G1
A4: BAR MARIO | B4: DE GEA | C4: 12 | D4: LEZZERINI | E4: 0 | F4: CHRISTENSEN | G4: 0 | H4: DOLFI | I4: 0 | J4: ANGELINO | K4: 4 | L4: COCO | M4: 1 | N4: DUMFRIES | O4: 4 | P4: GUTIERREZ | Q4: 1 | R4: TERRACCIANO F. | S4: 1 | T4: TOMORI | U4: 3 | V4: VALLE | W4: 2 | X4: WALUKIEWICZ | Y4: 1 | Z4: CATALDI | AA4: 1 | AB4: DE ROON | AC4: 3 | AD4: ISAKSEN | AE4: 11 | AF4: LUIS HENRIQUE | AG4: 2 | AH4: NERES | AI4: 6 | AJ4: ORISTANIO | AK4: 1 | AL4: POLITANO | AM4: 9 | AN4: SANTOS | AO4: 36 | AP4: DAVIS | AQ4: 4 | AR4: DOVBYK | AS4: 22 | AT4: FERGUSON E. | AU4: 204 | AV4: NZOLA | AW4: 2 | AX4: SANABRIA | AY4: 2 | AZ4: BAR MARIO | BA4: ZANCHI | BB4: ATA | BC4: 0 | BD4: 0 | BE4: 0 | BF4: IMI_SerieA@googlegroups.com | BG4: CUTRONE | BH4: CEDUTO AL MONZA | BI4: CUTRONE | BK4: CAG | BL4: CAG - TOR | BN4: ABETO FC | CC4: G1_EUREKA | CD4: EU...REKA | CE4: MAGODINA FC | CF4: CHAMPIONS LEAGUE - G. 1 | CH4: ZZ_DAJE MO' | CI4: ZZ_DAJE MO' | CJ4: ZZ_FFC GIUSEPPE BERGOMI | CK4: COPPA DI LEGA - FASE A GIRONI: 1a GIORNATA | CR4: 0 | CS4: 0 | CT4: DAJE MO' | CU4: FFC GIUSEPPE BERGOMI | CV4: G1
A5: EARL & SOUL GALEONE | B5: DI GREGORIO | C5: 1 | D5: PERIN | E5: 0 | F5: PINSOGLIO | G5: 0 | H5: HULI | I5: 0 | J5: BELGHALI | K5: 1 | L5: BISSECK | M5: 1 | N5: CARLOS AUGUSTO | O5: 1 | P5: DIMARCO | Q5: 29 | R5: MARTIN | S5: 1 | T5: MARUSIC | U5: 1 | V5: MORENO | W5: 1 | X5: OBERT | Y5: 1 | Z5: BATURINA | AA5: 6 | AB5: CAQUERET | AC5: 1 | AD5: EL SHAARAWY | AE5: 1 | AF5: HARRISON | AG5: 2 | AH5: MAZZITELLI | AI5: 2 | AJ5: MESSIAS | AK5: 1 | AL5: PULISIC | AM5: 77 | AN5: VLASIC | AO5: 4 | AP5: DALLINGA | AQ5: 1 | AR5: ELPHEGE | AS5: 1 | AT5: PELLEGRINO | AU5: 5 | AV5: PINAMONTI | AW5: 18 | AX5: VLAHOVIC | AY5: 56 | AZ5: EARL & SOUL GALEONE | BA5: HAPPONEN | BB5: BOL | BC5: 0 | BD5: 0 | BE5: 0 | BF5: IMI_SerieA@googlegroups.com | BG5: TETE MORENTE | BH5: CEDUTO ALL'ELCHE | BI5: TETE MORENTE | BK5: COM | BL5: COM - PAR | BN5: AC DERBOLINA | CC5: G1_FC PARTIZAN DEGRADO | CD5: FC PARTIZAN DEGRADO | CE5: LA VECCHIA GUARDIA | CF5: CHAMPIONS LEAGUE - G. 1 | CH5: ZZ_A.S. TOTTIGO | CI5: ZZ_A.S. TOTTIGO | CJ5: ZZ_FC NAPOLI 2012 | CK5: COPPA DI LEGA - FASE A GIRONI: 1a GIORNATA | CO5: MONDIALE PER CLUB | CR5: 0 | CS5: 0 | CT5: A.S. TOTTIGO | CU5: FC NAPOLI 2012 | CV5: G1
A6: ROSSOBLU FC | B6: BUTEZ | C6: 2 | D6: CAVLINA | E6: 0 | F6: VIGORITO | G6: 0 | H6: MENKE | I6: 0 | J6: BEUKEMA | K6: 5 | L6: BUONGIORNO | M6: 30 | N6: EHIZIBUE | O6: 1 | P6: KAMARA | Q6: 1 | R6: RRAHMANI | S6: 23 | T6: VALERI | U6: 1 | V6: VASQUEZ | W6: 3 | X6: WESLEY | Y6: 21 | Z6: CALHANOGLU | AA6: 91 | AB6: DA CUNHA | AC6: 2 | AD6: FOFANA | AE6: 7 | AF6: LOBOTKA | AG6: 2 | AH6: MCKENNIE | AI6: 1 | AJ6: MKHITARYAN | AK6: 31 | AL6: SUCIC | AM6: 39 | AN6: ZIELINSKI | AO6: 1 | AP6: NOSLIN | AQ6: 2 | AR6: RASPADORI | AS6: 5 | AT6: SCAMACCA | AU6: 2 | AV6: SULEMANA K. | AW6: 3 | AX6: VAZ | AY6: 2 | AZ6: ROSSOBLU FC | BA6: PESSINA | BB6: BOL | BC6: 5.625 | BD6: 4 | BE6: 6.125 | BF6: IMI_SerieA@googlegroups.com | BG6: ABOUKHLAL | BH6: Il calciatore sottoposto il 7 aprile a un intervento per un problema al ginocchio destro. Il suo campionato è terminato con anticipo. | BI6: ABOUKHLAL | BK6: CRE | BL6: UDI - CRE | BN6: AC MORRONE | CC6: G1_PARASITE | CD6: PARASITE | CE6: NASONE NERAZZURRO | CF6: CHAMPIONS LEAGUE - G. 1 | CH6: ZZ_P CUATRO | CI6: ZZ_P CUATRO | CJ6: ZZ_FC ZETAJ TEAM 1999 | CK6: COPPA DI LEGA - FASE A GIRONI: 1a GIORNATA | CO6: MONDIALE PER CLUB | CR6: 0 | CS6: 0 | CT6: P CUATRO | CU6: FC ZETAJ TEAM 1999 | CV6: G1
A7: BLACK&WHITE | B7: MERET | C7: 12 | D7: CONTINI | E7: 0 | F7: MILINKOVIC | G7: 0 | H7: FERRANTE | I7: 0 | J7: GATTI | K7: 13 | L7: KALULU | M7: 1 | N7: KELLY | O7: 3 | P7: KEMPF | Q7: 1 | R7: PONGRACIC | S7: 3 | T7: RANIERI | U7: 6 | V7: RUGANI | W7: 1 | X7: TAVARES | Y7: 4 | Z7: ANGUISSA | AA7: 34 | AB7: CONCEICAO | AC7: 3 | AD7: GANDELMAN | AE7: 7 | AF7: LOCATELLI | AG7: 13 | AH7: MALINOVSKYI | AI7: 2 | AJ7: MIRETTI | AK7: 3 | AL7: THURAM K. | AM7: 13 | AN7: ZARAGOZA | AO7: 22 | AP7: MEISTER | AQ7: 23 | AR7: MOREO | AS7: 6 | AT7: SOLOMON | AU7: 46 | AV7: SOULE' | AW7: 23 | AX7: STULIC | AY7: 12 | AZ7: BLACK&WHITE | BA7: RAVAGLIA | BB7: BOL | BC7: 4.382352941 | BD7: 17 | BE7: 6.205882353 | BF7: IMI_SerieA@googlegroups.com | BG7: ADDAI | BH7: L'ala offensiva dei lariani ai box da fine febbraio per una lesione del tendine d'Achille della gamba sinistra. Tempi di recupero da valutare, ma il suo campionato è finito con anticipo. | BI7: ADDAI | BK7: FIO | BL7: JUV - FIO | BN7: AC ZDENEK | CC7: G1_ATLETICO SQUONK | CD7: ATLETICO SQUONK | CE7: REAL BUGGY | CF7: CHAMPIONS LEAGUE - G. 1 | CH7: ZZ_FANTARAPID CACCAMO | CI7: ZZ_FANTARAPID CACCAMO | CJ7: ZZ_REAL GENOA | CK7: COPPA DI LEGA - FASE A GIRONI: 1a GIORNATA | CR7: 0 | CS7: 0 | CT7: FANTARAPID CACCAMO | CU7: REAL GENOA | CV7: G1
A8: EUREKA | B8: MAIGNAN | C8: 26 | D8: TERRACCIANO | E8: 0 | F8: TORRIANI | G8: 0 | H8: DONEDA | I8: 0 | J8: BELLA-KOTCHAP | K8: 1 | L8: BELLANOVA | M8: 5 | N8: DODO' | O8: 5 | P8: GHILARDI | Q8: 3 | R8: JUAN JESUS | S8: 1 | T8: MIRANDA | U8: 1 | V8: PALESTRA | W8: 1 | X8: ZAPPACOSTA | Y8: 3 | Z8: EL AYNAOUI | AA8: 5 | AB8: GUDMUNDSSON | AC8: 37 | AD8: MATIC | AE8: 1 | AF8: PASALIC | AG8: 9 | AH8: RABIOT | AI8: 56 | AJ8: ROWE | AK8: 29 | AL8: SAMARDZIC | AM8: 3 | AN8: ZANIOLO | AO8: 3 | AP8: CHEDDIRA | AQ8: 2 | AR8: COLOMBO | AS8: 10 | AT8: DAVID | AU8: 167 | AV8: DYBALA | AW8: 51 | AX8: SARR | AY8: 1 | AZ8: EU...REKA | BA8: SKORUPSKI | BB8: BOL | BC8: 5.34375 | BD8: 16 | BE8: 6.1875 | BF8: IMI_SerieA@googlegroups.com | BG8: ANJORIN | BH8: Il centrocampista ai box per un trauma distorsivo-contusivo all'anca sinistra; assente contro Sassuolo, Inter e Udinese, da valutare in vista della 37a di campionato. | BI8: ANJORIN | BK8: GEN | BL8: GEN - MIL | BN8: ACRESE | CC8: G1_ROSSOBLU FC | CD8: ROSSOBLU FC | CE8: 2TWINS4EVER | CF8: CHAMPIONS LEAGUE - G. 1 | CH8: ZZ_A.C. ZDENEK | CI8: ZZ_A.C. ZDENEK | CJ8: ZZ_ATLETICO PIPPAO | CK8: COPPA DI LEGA - FASE A GIRONI: 1a GIORNATA | CR8: 0 | CS8: 0 | CT8: A.C. ZDENEK | CU8: ATLETICO PIPPAO | CV8: G1
A9: SPORTING VINAO | B9: SVILAR | C9: 2 | D9: GOLLINI | E9: 0 | F9: ZELEZNY | G9: 0 | H9: DE MARZI | I9: 0 | J9: ATHEKAME | K9: 1 | L9: CANESTRELLI | M9: 3 | N9: COMUZZO | O9: 2 | P9: DJIMSITI | Q9: 1 | R9: GABBIA | S9: 2 | T9: GALLO | U9: 1 | V9: HERMOSO | W9: 2 | X9: KOSSOUNOU | Y9: 2 | Z9: DE BRUYNE | AA9: 96 | AB9: ELMAS | AC9: 3 | AD9: FRATTESI | AE9: 1 | AF9: GINEITIS | AG9: 1 | AH9: JASHARI | AI9: 3 | AJ9: ORSOLINI | AK9: 83 | AL9: PERRONE | AM9: 2 | AN9: PISILLI | AO9: 1 | AP9: ADAMS | AQ9: 4 | AR9: EKHATOR | AS9: 1 | AT9: KEAN | AU9: 221 | AV9: LAUTARO | AW9: 217 | AX9: YILDIZ | AY9: 1 | AZ9: SPORTING VINAO | BA9: AUSEKLIS | BB9: CAG | BC9: 0 | BD9: 0 | BE9: 0 | BF9: IMI_SerieA@googlegroups.com | BG9: BAKOLA | BH9: Il calciatore assente contro Milan, Fiorentina e Como per noie fisiche. Da valutare in vista di venerdì a Torino nella 36a. | BI9: BAKOLA | BK9: INT | BL9: INT - VER | BN9: ALAN FORD'S TEAM | CC9: G1_ZERU TITULI | CD9: ZERU TITULI | CE9: SWANSEA | CF9: CHAMPIONS LEAGUE - G. 1 | CH9: ZZ_AMOREODIO | CI9: ZZ_AMOREODIO | CJ9: ZZ_ENDYMION | CK9: COPPA DI LEGA - FASE A GIRONI: 1a GIORNATA | CR9: 0 | CS9: 0 | CT9: AMOREODIO | CU9: ENDYMION | CV9: G1
A10: CATENACCIO & CONTROPIEDE | B10: FALCONE | C10: 2 | D10: FRUCHTL | E10: 0 | F10: SAMOOJA | G10: 0 | H10: PENEV | I10: 0 | J10: AHANOR | K10: 7 | L10: BERNASCONI | M10: 3 | N10: KOLASINAC | O10: 3 | P10: NORTON-CUFFY | Q10: 4 | R10: OBRADOR | S10: 2 | T10: SOLET | U10: 5 | V10: SPINAZZOLA | W10: 5 | X10: ZORTEA | Y10: 3 | Z10: ATTA | AA10: 22 | AB10: BALDANZI | AC10: 3 | AD10: BASIC | AE10: 4 | AF10: EDERSON | AG10: 27 | AH10: FAGIOLI | AI10: 4 | AJ10: MCTOMINAY | AK10: 54 | AL10: MODRIC | AM10: 20 | AN10: VERGARA | AO10: 3 | AP10: DOUVIKAS | AQ10: 31 | AR10: ESPOSITO F.P. | AS10: 12 | AT10: HOJLUND | AU10: 84 | AV10: KRSTOVIC | AW10: 36 | AX10: MENDY | AY10: 8 | AZ10: CATENACCIO & CONTROPIEDE | BA10: CAPRILE | BB10: CAG | BC10: 4.847222222 | BD10: 36 | BE10: 6.291666667 | BF10: IMI_SerieA@googlegroups.com | BG10: BALDANZI | BH10: Il trequartista non convocato dal 26 aprile contro il Como per noie fisiche w assente anche sabato scorso a Bergamo. Da valutare nei prossimi allenamenti in vista della trasferta di domenica a Firenze nella 36a. | BI10: BALDANZI | BK10: JUV | BL10: JUV - FIO | BN10: ALL BLACKS | CC10: G1_EARL & SOUL GALEONE | CD10: EARL & SOUL GALEONE | CE10: FUFF TEAM | CF10: CHAMPIONS LEAGUE - G. 1 | CH10: ZZ_FC FANTATLETICO | CI10: ZZ_FC FANTATLETICO | CJ10: ZZ_FANTASPEZIA | CK10: COPPA DI LEGA - FASE A GIRONI: 1a GIORNATA | CR10: 0 | CS10: 0 | CT10: FC FANTATLETICO | CU10: FANTASPEZIA | CV10: G1
A11: RAT-MEN | B11: SKORUPSKI | C11: 2 | D11: PESSINA | E11: 0 | F11: RAVAGLIA | G11: 0 | H11: HAPPONEN | I11: 0 | J11: AKANJI | K11: 21 | L11: BASCHIROTTO | M11: 16 | N11: CIRCATI | O11: 4 | P11: DI LORENZO | Q11: 25 | R11: MINA | S11: 4 | T11: RAMON | U11: 8 | V11: TIAGO GABRIEL | W11: 5 | X11: VOJVODA | Y11: 14 | Z11: BARELLA | AA11: 42 | AB11: BERNABE' | AC11: 23 | AD11: COULIBALY | AE11: 6 | AF11: CRISTANTE | AG11: 2 | AH11: KONE' | AI11: 28 | AJ11: PRATI | AK11: 14 | AL11: THORSBY | AM11: 13 | AN11: VANDEPUTTE | AO11: 16 | AP11: BANDA | AQ11: 2 | AR11: BERARDI | AS11: 62 | AT11: BONAZZOLI | AU11: 3 | AV11: DIAO | AW11: 8 | AX11: KILICSOY | AY11: 4 | AZ11: RAT-MEN | BA11: CIOCCI | BB11: CAG | BC11: 0 | BD11: 0 | BE11: 0 | BF11: IMI_SerieA@googlegroups.com | BG11: BASCHIROTTO | BH11: il difensore costretto al cambio il 4 maggio allo Zini contro la Lazio vittima di una lesione muscolare di alto grado all'altezza del retto femorale, dunque campionato finito anzitempo. | BI11: BASCHIROTTO | BK11: LAZ | BL11: ROM - LAZ | BN11: AL-ZENA | CC11: G1_REAL CHR | CD11: REAL CHR | CE11: UDI ONE | CF11: CHAMPIONS LEAGUE - G. 1 | CH11: ZZ_MOMENTI DI GLORIA | CI11: ZZ_MOMENTI DI GLORIA | CJ11: ZZ_OXFORD UNITED | CK11: COPPA DI LEGA - FASE A GIRONI: 1a GIORNATA | CR11: 0 | CS11: 0 | CT11: MOMENTI DI GLORIA | CU11: OXFORD UNITED | CV11: G1
A12: VIS FONNO | B12: SOMMER | C12: 35 | D12: MARTINEZ | E12: 0 | F12: ADOMAVICIUS | G12: 0 | H12: DI GENNARO | I12: 0 | J12: CELIK | K12: 2 | L12: KRISTENSEN | M12: 1 | N12: MANCINI | O12: 7 | P12: MARCANDALLI | Q12: 1 | R12: PEZZELLA | S12: 1 | T12: SCALVINI | U12: 2 | V12: SMOLCIC | W12: 1 | X12: VALENTI | Y12: 1 | Z12: BERNARDESCHI | AA12: 2 | AB12: BRESCIANINI | AC12: 2 | AD12: FOLORUNSHO | AE12: 5 | AF12: FRENDRUP | AG12: 1 | AH12: KONÈ I. | AI12: 1 | AJ12: LOFTUS-CHEEK | AK12: 44 | AL12: ODGAARD | AM12: 1 | AN12: TAYLOR | AO12: 1 | AP12: CANCELLIERI | AQ12: 5 | AR12: GIMENEZ | AS12: 89 | AT12: GIOVANE | AU12: 2 | AV12: NKUNKU | AW12: 131 | AX12: RODRIGUEZ | AY12: 1 | AZ12: VIS FONNO | BA12: RADUNOVIC | BB12: CAG | BC12: 0 | BD12: 0 | BE12: 0 | BF12: IMI_SerieA@googlegroups.com | BG12: BELLA-KOTCHAP | BH12: Il difensore alle prese con un problema alla spalla, out domenica scorsa contro la Juventus e va verso il forfait anche nel prossimo turno contro il Como. Se dovesse rendersi necessaria l'operazione chirurgica la sua stagione sarebbe già chiusa. | BI12: BELLA-KOTCHAP | BK12: LEC | BL12: SAS - LEC | BN12: AMBROSIANA | CC12: G1_CATENACCIO & CONTROPIEDE | CD12: CATENACCIO & CONTROPIEDE | CE12: DINAMO VIGIAK | CF12: CHAMPIONS LEAGUE - G. 1 | CH12: ZZ_FC PARTIZAN DEGRADO | CI12: ZZ_FC PARTIZAN DEGRADO | CJ12: ZZ_FFC SANDRO MAZZOLA | CK12: COPPA DI LEGA - FASE A GIRONI: 1a GIORNATA | CR12: 0 | CS12: 0 | CT12: FC PARTIZAN DEGRADO | CU12: FFC SANDRO MAZZOLA | CV12: G1
A13: ALL BLACKS | B13: OKOYE | C13: 1 | D13: NUNZIANTE | E13: 0 | F13: PADELLI | G13: 0 | H13: SAVA | I13: 0 | J13: AKANJI | K13: 12 | L13: COCO | M13: 5 | N13: DE WINTER | O13: 3 | P13: GATTI | Q13: 17 | R13: LYKOGIANNIS | S13: 3 | T13: OSTIGARD | U13: 2 | V13: SPINAZZOLA | W13: 11 | X13: VOJVODA | Y13: 3 | Z13: ANGUISSA | AA13: 19 | AB13: CATALDI | AC13: 2 | AD13: DA CUNHA | AE13: 11 | AF13: FREULER | AG13: 2 | AH13: KONE' | AI13: 3 | AJ13: LOCATELLI | AK13: 17 | AL13: NERES | AM13: 3 | AN13: ZARAGOZA | AO13: 30 | AP13: CHEDDIRA | AQ13: 6 | AR13: GIMENEZ | AS13: 27 | AT13: PEDRO | AU13: 9 | AV13: RASPADORI | AW13: 50 | AX13: THURAM | AY13: 75 | AZ13: ALL BLACKS | BA13: SHERRI | BB13: CAG | BC13: 0 | BD13: 0 | BE13: 0 | BF13: IMI_SerieB@googlegroups.com | BG13: BERISHA | BH13: Il centrocampista ha terminato anzitempo il suo campionato a causa di una lesione del tendine riflesso del retto femorale destro. | BI13: BERISHA | BK13: MIL | BL13: GEN - MIL | BN13: AMOREODIO | CC13: G1_SPORTING LABRONICA | CD13: SPORTING LABRONICA | CE13: FFC ANGELO DOMENGHINI | CF13: CHAMPIONS LEAGUE - G. 1 | CH13: ZZ_CLOCKWORK ORANGE FC | CI13: ZZ_CLOCKWORK ORANGE FC | CJ13: ZZ_SALENTO FC | CK13: COPPA DI LEGA - FASE A GIRONI: 1a GIORNATA | CR13: 0 | CS13: 0 | CT13: CLOCKWORK ORANGE FC | CU13: SALENTO FC | CV13: G1
A14: ELEVEN LIONS | B14: DI GREGORIO | C14: 22 | D14: PERIN | E14: 0 | F14: PINSOGLIO | G14: 0 | H14: HULI | I14: 0 | J14: DELPRATO | K14: 2 | L14: HERMOSO | M14: 2 | N14: LAZZARI | O14: 1 | P14: MARTIN | Q14: 2 | R14: MUHAREMOVIC | S14: 3 | T14: OBERT | U14: 3 | V14: VALERI | W14: 1 | X14: VALLE | Y14: 2 | Z14: CALHANOGLU | AA14: 51 | AB14: FADERA | AC14: 21 | AD14: KARLSTROM | AE14: 1 | AF14: LERIS | AG14: 2 | AH14: MANDRAGORA | AI14: 5 | AJ14: MATIC | AK14: 5 | AL14: ODGAARD | AM14: 21 | AN14: ZALEWSKI | AO14: 31 | AP14: BERARDI | AQ14: 71 | AR14: DE KETELAERE | AS14: 21 | AT14: KEAN | AU14: 11 | AV14: SCAMACCA | AW14: 31 | AX14: VARDY | AY14: 2 | AZ14: ELEVEN LIONS | BA14: BUTEZ | BB14: COM | BC14: 5.319444444 | BD14: 36 | BE14: 6.055555556 | BF14: IMI_SerieB@googlegroups.com | BG14: BERNASCONI | BH14: Il cursore di fascia della Dea costretto al cambio il 22 aprile in Coppa Italia per una lesione di primo-secondo grado del legamento collaterale mediale del ginocchio destro. Tre settimane di stop, ma la sua stagione è finita anzitempo. | BI14: BERNASCONI | BK14: NAP | BL14: PIS - NAP | BN14: ANDREAS | CC14: G1_RAT-MEN | CD14: RAT-MEN | CE14: GABRY FC | CF14: CHAMPIONS LEAGUE - G. 1 | CH14: ZZ_EL NIÑO | CI14: ZZ_EL NIÑO | CJ14: ZZ_SPORTING LABRONICA | CK14: COPPA DI LEGA - FASE A GIRONI: 1a GIORNATA | CR14: 0 | CS14: 0 | CT14: EL NIÑO | CU14: SPORTING LABRONICA | CV14: G1
A15: PRENESTINO FC | B15: BUTEZ | C15: 1 | D15: CAVLINA | E15: 0 | F15: VIGORITO | G15: 0 | H15: MENKE | I15: 0 | J15: EDMUNDSSON | K15: 1 | L15: GARCIA | M15: 1 | N15: KELLY | O15: 17 | P15: KEMPF | Q15: 2 | R15: N'DICKA | S15: 7 | T15: RRAHMANI | U15: 5 | V15: VITIK | W15: 14 | X15: ZAPPA | Y15: 2 | Z15: ELLERTSSON | AA15: 4 | AB15: FRENDRUP | AC15: 2 | AD15: MCTOMINAY | AE15: 51 | AF15: MKHITARYAN | AG15: 22 | AH15: NICOLUSSI CAVIGLIA | AI15: 1 | AJ15: RAMADANI | AK15: 1 | AL15: SOHM | AM15: 1 | AN15: VOLPATO | AO15: 2 | AP15: DOVBYK | AQ15: 13 | AR15: ESPOSITO F.P. | AS15: 2 | AT15: LAUTARO | AU15: 152 | AV15: MOREO | AW15: 1 | AX15: NOSLIN | AY15: 2 | AZ15: PRENESTINO FC | BA15: CAVLINA | BB15: COM | BC15: 0 | BD15: 0 | BE15: 0 | BF15: IMI_SerieB@googlegroups.com | BG15: BERTOLA | BH15: il difensore out dalla metà di aprile per una lesione muscolare al retto femorale della coscia destra; tentativo di rientro dalla prima metà di maggio, ma da valutare nella rifinitura le possibilità di convocazione per sabato a Cagliari. | BI15: BERTOLA | BK15: PAR | BL15: COM - PAR | BN15: A'NFAMI | CC15: G1_AS TOTTIGO | CD15: A.S. TOTTIGO | CE15: JUNIORT | CF15: CHAMPIONS LEAGUE - G. 1 | CH15: ZZ_VOTANTONIO | CI15: ZZ_VOTANTONIO | CJ15: ZZ_PANZER8 | CK15: COPPA DI LEGA - FASE A GIRONI: 1a GIORNATA | CR15: 0 | CS15: 0 | CT15: VOTANTONIO | CU15: PANZER8 | CV15: G1
A16: BLUES BROTHERS | B16: MAIGNAN | C16: 3 | D16: TERRACCIANO | E16: 0 | F16: TORRIANI | G16: 0 | H16: DONEDA | I16: 0 | J16: ATHEKAME | K16: 1 | L16: BARTESAGHI | M16: 1 | N16: BERNASCONI | O16: 1 | P16: GABBIA | Q16: 1 | R16: JOAO MARIO | S16: 1 | T16: SMOLCIC | U16: 1 | V16: TAVARES | W16: 1 | X16: TIAGO GABRIEL | Y16: 1 | Z16: EKKELENKAMP | AA16: 1 | AB16: FOFANA | AC16: 4 | AD16: LOFTUS-CHEEK | AE16: 1 | AF16: MESSIAS | AG16: 1 | AH16: MODRIC | AI16: 1 | AJ16: NICO PAZ | AK16: 114 | AL16: PISILLI | AM16: 1 | AN16: PULISIC | AO16: 82 | AP16: BOGA | AQ16: 3 | AR16: DOUVIKAS | AS16: 3 | AT16: GIOVANE | AU16: 1 | AV16: LEAO | AW16: 114 | AX16: MENDY | AY16: 1 | AZ16: BLUES BROTHERS | BA16: MANZI | BB16: COM | BC16: 0 | BD16: 0 | BE16: 0 | BF16: IMI_SerieB@googlegroups.com | BG16: BOLOCA | BH16: il centrocampista out per un problema al ginocchio sinistro. Ultimata la terapia conservativa, ha poi deciso di operarsi a metà febbraio per il perdurare del fastidio. Tempi di rientro da valutare, ma la sua stagione è terminata anzitempo. | BI16: BOLOCA | BK16: PIS | BL16: PIS - NAP | BN16: ARMATA NERAZZURRA | CC16: G1_BAR MARIO | CD16: BAR MARIO | CE16: NICKSTREGA | CF16: CHAMPIONS LEAGUE - G. 1 | CH16: ZZ_FRIUL GALAXI | CI16: ZZ_FRIUL GALAXI | CJ16: ZZ_ATLETICO SQUONK | CK16: COPPA DI LEGA - FASE A GIRONI: 1a GIORNATA | CR16: 0 | CS16: 0 | CT16: FRIUL GALAXI | CU16: ATLETICO SQUONK | CV16: G1
A17: FERRON | B17: MOTTA | C17: 1 | D17: PROVEDEL | E17: 0 | F17: GIACOMONE | G17: 0 | H17: PANNOZZO | I17: 0 | J17: ANGELINO | K17: 1 | L17: BASTONI | M17: 31 | N17: BELLANOVA | O17: 1 | P17: CIRCATI | Q17: 1 | R17: DARMIAN | S17: 1 | T17: DIMARCO | U17: 31 | V17: DUMFRIES | W17: 31 | X17: LAZARO | Y17: 1 | Z17: BATURINA | AA17: 1 | AB17: CAQUERET | AC17: 1 | AD17: POLITANO | AE17: 16 | AF17: ROWE | AG17: 6 | AH17: TAYLOR | AI17: 19 | AJ17: TRAMONI | AK17: 6 | AL17: VANDEPUTTE | AM17: 6 | AN17: ZHEGROVA | AO17: 16 | AP17: FULLKRUG | AQ17: 1 | AR17: MORATA | AS17: 1 | AT17: RATKOV | AU17: 80 | AV17: SOLOMON | AW17: 1 | AX17: YILDIZ | AY17: 101 | AZ17: FERRON | BA17: MENKE | BB17: COM | BC17: 0 | BD17: 0 | BE17: 0 | BF17: IMI_SerieB@googlegroups.com | BG17: BORRELLI | BH17: l'attaccante costretto al cambio contro l'Atalanta il 27 aprile per un problema muscolare alla coscia sinistra, tentativo rientro dalla metà di maggio. | BI17: BORRELLI | BK17: ROM | BL17: ROM - LAZ | BN17: AS NEW TEAM | CC17: G1_MOMENTI DI GLORIA | CD17: MOMENTI DI GLORIA | CE17: BRUDYLEGHORN | CF17: CHAMPIONS LEAGUE - G. 1 | CH17: ZZ_REAL BABBUDOIU | CI17: ZZ_REAL BABBUDOIU | CJ17: ZZ_SAN SIRO | CK17: COPPA DI LEGA - FASE A GIRONI: 1a GIORNATA | CR17: 0 | CS17: 0 | CT17: REAL BABBUDOIU | CU17: SAN SIRO | CV17: G1
A18: RED HOT CHILI PEPPERS | B18: DE GEA | C18: 21 | D18: LEZZERINI | E18: 0 | F18: CHRISTENSEN | G18: 0 | H18: DOLFI | I18: 0 | J18: ACERBI | K18: 7 | L18: DE VRIJ | M18: 1 | N18: ISMAJLI | O18: 3 | P18: KAMARA | Q18: 2 | R18: LUPERTO | S18: 1 | T18: MIRANDA | U18: 7 | V18: PAVLOVIC | W18: 11 | X18: TOMORI | Y18: 16 | Z18: BALDANZI | AA18: 1 | AB18: BARELLA | AC18: 21 | AD18: FERGUSON | AE18: 14 | AF18: LOBOTKA | AG18: 7 | AH18: LOVRIC | AI18: 1 | AJ18: SAELEMAEKERS | AK18: 36 | AL18: SAMARDZIC | AM18: 1 | AN18: SUCIC | AO18: 7 | AP18: BANDA | AQ18: 1 | AR18: DYBALA | AS18: 61 | AT18: ESPOSITO SE. | AU18: 3 | AV18: HOJLUND | AW18: 174 | AX18: VAZ | AY18: 24 | AZ18: RED HOT CHILI PEPPERS | BA18: TORNQVIST | BB18: COM | BC18: 0 | BD18: 0 | BE18: 0 | BF18: IMI_SerieB@googlegroups.com | BG18: CABAL | BH18: il difensore alle prese con un fastidio all'adduttore sinistro. La sua stagione rischia di essere terminata anzitempo. | BI18: CABAL | BK18: SAS | BL18: SAS - LEC | BN18: AS QUARZA | CC18: G1_FERRON | CD18: FERRON | CE18: GRATTACHECCA | CF18: CHAMPIONS LEAGUE - G. 1 | CH18: ZZ_ZERU TITULI | CI18: ZZ_ZERU TITULI | CJ18: ZZ_REAL BUCCINASCO | CK18: COPPA DI LEGA - FASE A GIRONI: 1a GIORNATA | CR18: 0 | CS18: 0 | CT18: ZERU TITULI | CU18: REAL BUCCINASCO | CV18: G1
A19: BORGOROSSO FC | B19: CARNESECCHI | C19: 12 | D19: ROSSI | E19: 0 | F19: SPORTIELLO | G19: 0 | H19: ZANCHI | I19: 0 | J19: BELGHALI | K19: 2 | L19: BISSECK | M19: 3 | N19: DIEGO CARLOS | O19: 1 | P19: DODO' | Q19: 15 | R19: GALLO | S19: 1 | T19: GHILARDI | U19: 1 | V19: GOSENS | W19: 2 | X19: MORENO | Y19: 1 | Z19: BERNABE' | AA19: 5 | AB19: CONCEICAO | AC19: 21 | AD19: GUDMUNDSSON | AE19: 15 | AF19: ISAKSEN | AG19: 3 | AH19: NDOUR | AI19: 1 | AJ19: SANTOS | AK19: 17 | AL19: VERGARA | AM19: 1 | AN19: ZACCAGNI | AO19: 42 | AP19: DAVIS | AQ19: 8 | AR19: ELPHEGE | AS19: 5 | AT19: KILICSOY | AU19: 3 | AV19: PELLEGRINO | AW19: 2 | AX19: SIMEONE | AY19: 32 | AZ19: BORGOROSSO F.C. | BA19: VIGORITO | BB19: COM | BC19: 0 | BD19: 0 | BE19: 0 | BF19: IMI_SerieB@googlegroups.com | BG19: CAMBIAGHI | BH19: l'attaccante ai box da fine aprile per una lesione di primo grado all’adduttore lungo sinistro. Stop di circa quattro settimane, campionato finito anzitempo. | BI19: CAMBIAGHI | BK19: TOR | BL19: CAG - TOR | BN19: AS TOTTIGO | CC19: G1_CLOCKWORK ORANGE FC | CD19: CLOCKWORK ORANGE FC | CE19: MARIANNA | CF19: CHAMPIONS LEAGUE - G. 1 | CH19: ZZ_AMBROSIANA | CI19: ZZ_AMBROSIANA | CJ19: ZZ_BARBERA & CHAMPAGNE | CK19: COPPA DI LEGA - FASE A GIRONI: 1a GIORNATA | CR19: 0 | CS19: 0 | CT19: AMBROSIANA | CU19: BARBERA & CHAMPAGNE | CV19: G1
A20: LUCHINS | B20: MERET | C20: 32 | D20: CONTINI | E20: 0 | F20: MILINKOVIC | G20: 0 | H20: FERRANTE | I20: 0 | J20: BASCHIROTTO | K20: 3 | L20: DI LORENZO | M20: 8 | N20: EHIZIBUE | O20: 4 | P20: GILA | Q20: 1 | R20: MANCINI | S20: 13 | T20: PEZZELLA | U20: 1 | V20: WESLEY | W20: 21 | X20: ZAPPACOSTA | Y20: 12 | Z20: CASADEI | AA20: 5 | AB20: DE ROON | AC20: 8 | AD20: EL SHAARAWY | AE20: 21 | AF20: FAGIOLI | AG20: 1 | AH20: GAETANO | AI20: 13 | AJ20: MALDINI | AK20: 23 | AL20: MCKENNIE | AM20: 3 | AN20: THURAM K. | AO20: 15 | AP20: ADAMS | AQ20: 21 | AR20: DAVID | AS20: 71 | AT20: DIA | AU20: 23 | AV20: PICCOLI | AW20: 1 | AX20: VLAHOVIC | AY20: 45 | AZ20: LUCHINS | BA20: AUDERO | BB20: CRE | BC20: 4.921875 | BD20: 32 | BE20: 6.171875 | BF20: IMI_SerieB@googlegroups.com | BG20: CANDE' | BH20: il difensore il 13 gennaio sottoposto alla ricostruzione del legamento crociato anteriore del ginocchio destro, campionato finito anzitempo. | BI20: CANDE' | BK20: UDI | BL20: UDI - CRE | BN20: AS_TONMARTIN | CC20: G1_BLACK&WHITE | CD20: BLACK&WHITE | CE20: TC WILLIAMS | CF20: CHAMPIONS LEAGUE - G. 1 | CH20: ZZ_REAL GRIFO | CI20: ZZ_REAL GRIFO | CJ20: ZZ_LA MUCONE | CK20: COPPA DI LEGA - FASE A GIRONI: 1a GIORNATA | CR20: 0 | CS20: 0 | CT20: REAL GRIFO | CU20: LA MUCONE | CV20: G1
A21: SALEX | B21: SKORUPSKI | C21: 9 | D21: PESSINA | E21: 0 | F21: RAVAGLIA | G21: 0 | H21: HAPPONEN | I21: 0 | J21: ANGORI | K21: 2 | L21: COMUZZO | M21: 2 | N21: DOIG | O21: 1 | P21: KALULU | Q21: 2 | R21: NORTON-CUFFY | S21: 1 | T21: PONGRACIC | U21: 3 | V21: RAMON | W21: 2 | X21: WALUKIEWICZ | Y21: 2 | Z21: EDERSON | AA21: 5 | AB21: JASHARI | AC21: 11 | AD21: PASALIC | AE21: 10 | AF21: PERRONE | AG21: 5 | AH21: SOTTIL | AI21: 5 | AJ21: SULEMANA I. | AK21: 5 | AL21: THORSBY | AM21: 5 | AN21: TOURE' | AO21: 1 | AP21: BOWIE | AQ21: 7 | AR21: LAURIENTÈ | AS21: 35 | AT21: ORBAN | AU21: 25 | AV21: SOULE' | AW21: 65 | AX21: SULEMANA K. | AY21: 7 | AZ21: SALEX | BA21: NAVA | BB21: CRE | BC21: 0 | BD21: 0 | BE21: 0 | BF21: IMI_SerieB@googlegroups.com | BG21: CASALE | BH21: Il difensore fermo da inizio maggio per una lesione al soleo sinistro. Campionato finito anzitempo. | BI21: CASALE | BK21: VER | BL21: INT - VER | BN21: ATLETICO MA NON TROPPO | CC21: G1_FANTARAPID CACCAMO | CD21: FANTARAPID CACCAMO | CE21: LA MUCONE | CF21: CHAMPIONS LEAGUE - G. 1 | CH21: ZZ_CAVESE | CI21: ZZ_CAVESE | CJ21: ZZ_CICCILLO | CK21: COPPA DI LEGA - FASE A GIRONI: 1a GIORNATA | CR21: 0 | CS21: 0 | CT21: CAVESE | CU21: CICCILLO | CV21: G1
A22: DAVINCI TEAM | B22: FALCONE | C22: 1 | D22: FRUCHTL | E22: 0 | F22: SAMOOJA | G22: 0 | H22: PENEV | I22: 0 | J22: CAMBIASO | K22: 20 | L22: CELIK | M22: 1 | N22: IDZES | O22: 1 | P22: KABASELE | Q22: 1 | R22: KOLASINAC | S22: 1 | T22: LUCUMI' | U22: 1 | V22: OBRADOR | W22: 1 | X22: PALESTRA | Y22: 1 | Z22: COULIBALY | AA22: 1 | AB22: DE BRUYNE | AC22: 81 | AD22: GANDELMAN | AE22: 1 | AF22: KEITA | AG22: 1 | AH22: MORO | AI22: 1 | AJ22: PIOTROWSKI | AK22: 1 | AL22: RABIOT | AM22: 65 | AN22: THORSTVEDT | AO22: 27 | AP22: CANCELLIERI | AQ22: 2 | AR22: LUKAKU | AS22: 21 | AT22: MALEN | AU22: 96 | AV22: PINAMONTI | AW22: 51 | AX22: ZAPATA | AY22: 50 | AZ22: DAVINCI TEAM | BA22: NOVATI | BB22: CRE | BC22: 0 | BD22: 0 | BE22: 0 | BF22: IMI_SerieB@googlegroups.com | BG22: CATALDI | BH22: il regista non è al meglio per noie fisiche e, dopo aver saltato le sfide contro Cremonese e Udinese, rimane da valutare in vista di sabato all'Olimpico contro l'Inter. | BI22: CATALDI | BN22: ATLETICO PIGROTTO | CC22: G1_VIS FONNO | CD22: VIS FONNO | CE22: FC BIBI 04 | CF22: CHAMPIONS LEAGUE - G. 1 | CH22: ZZ_COSENZA | CI22: ZZ_COSENZA | CJ22: ZZ_BETIS SEVILLA | CK22: COPPA DI LEGA - FASE A GIRONI: 1a GIORNATA | CR22: 0 | CS22: 0 | CT22: COSENZA | CU22: BETIS SEVILLA | CV22: G1
A23: PARASITE | B23: SOMMER | C23: 31 | D23: MARTINEZ | E23: 0 | F23: ADOMAVICIUS | G23: 0 | H23: DI GENNARO | I23: 0 | J23: BREMER | K23: 12 | L23: BUONGIORNO | M23: 16 | N23: KRISTENSEN | O23: 8 | P23: MLACIC | Q23: 3 | R23: ROMAGNOLI | S23: 2 | T23: SCALVINI | U23: 1 | V23: TERRACCIANO F. | W23: 6 | X23: ZIOLKOWSKI | Y23: 1 | Z23: EL AYNAOUI | AA23: 1 | AB23: ELMAS | AC23: 2 | AD23: KOOPMEINERS | AE23: 3 | AF23: MIRETTI | AG23: 1 | AH23: ORSOLINI | AI23: 21 | AJ23: STREFEZZA | AK23: 33 | AL23: VENTURINO | AM23: 3 | AN23: ZANIOLO | AO23: 1 | AP23: CASTRO | AQ23: 3 | AR23: COLOMBO | AS23: 5 | AT23: FERGUSON E. | AU23: 116 | AV23: KRSTOVIC | AW23: 18 | AX23: RODRIGUEZ | AY23: 21 | AZ23: PARASITE | BA23: SILVESTRI | BB23: CRE | BC23: 4.625 | BD23: 4 | BE23: 6.375 | BF23: IMI_SerieB@googlegroups.com | BG23: CREMASCHI | BH23: il calciatore fermo da metà marzo per una lesione del menisco esterno del ginocchio sinistro. Ipotesi di rientro tra i convocati dalla metà di maggio. | BI23: CREMASCHI | BN23: ATLETICO PIPPAO | CC23: G1_SAN SIRO | CD23: SAN SIRO | CE23: ISOLA CHE NON CE | CF23: CHAMPIONS LEAGUE - G. 1 | CH23: ZZ_MARUEGO BOYS | CI23: ZZ_MARUEGO BOYS | CJ23: ZZ_ATLETICO PIGROTTO | CK23: COPPA DI LEGA - FASE A GIRONI: 1a GIORNATA | CR23: 0 | CS23: 0 | CT23: MARUEGO BOYS | CU23: ATLETICO PIGROTTO | CV23: G1
A24: SVICAT | B24: SVILAR | C24: 21 | D24: GOLLINI | E24: 0 | F24: ZELEZNY | G24: 0 | H24: DE MARZI | I24: 0 | J24: BEUKEMA | K24: 2 | L24: CARLOS AUGUSTO | M24: 3 | N24: FLORIANI | O24: 2 | P24: MARUSIC | Q24: 2 | R24: MINA | S24: 2 | T24: RANIERI | U24: 1 | V24: SOLET | W24: 2 | X24: VASQUEZ | Y24: 6 | Z24: ATTA | AA24: 4 | AB24: CRISTANTE | AC24: 11 | AD24: FOLORUNSHO | AE24: 17 | AF24: HARRISON | AG24: 2 | AH24: KONÈ I. | AI24: 1 | AJ24: MALINOVSKYI | AK24: 6 | AL24: VLASIC | AM24: 28 | AN24: ZIELINSKI | AO24: 1 | AP24: BONAZZOLI | AQ24: 5 | AR24: BONNY | AS24: 18 | AT24: DIAO | AU24: 12 | AV24: EKUBAN | AW24: 1 | AX24: VITINHA | AY24: 5 | AZ24: SVICAT | BA24: CHRISTENSEN | BB24: FIO | BC24: 0 | BD24: 0 | BE24: 0 | BF24: IMI_SerieB@googlegroups.com | BG24: DEIOLA | BH24: il centrocampista KO a Bologna a inizio maggio per un affaticamento al retto femorale della coscia destra. Condizioni da valutare in vista della 37a giornata, non ci sarà infatti sabato contro l'Udinese. | BI24: DEIOLA | BN24: ATLETICO SGANITO | CC24: G1_LUCHINS | CD24: LUCHINS | CE24: AC DERBOLINA | CF24: CHAMPIONS LEAGUE - G. 1 | CH24: ZZ_DREAM TIN TEAM | CI24: ZZ_DREAM TIN TEAM | CJ24: ZZ_A TUTTA CALLARA | CK24: COPPA DI LEGA - FASE A GIRONI: 1a GIORNATA | CR24: 0 | CS24: 0 | CT24: DREAM TIN TEAM | CU24: A TUTTA CALLARA | CV24: G1
A25: BOMBARELLANDIA | B25: MAIGNAN | C25: 23 | D25: TERRACCIANO | E25: 0 | F25: TORRIANI | G25: 0 | H25: DONEDA | I25: 0 | J25: BELLANOVA | K25: 1 | L25: BERNASCONI | M25: 1 | N25: GUTIERREZ | O25: 6 | P25: MANCINI | Q25: 22 | R25: MUHAREMOVIC | S25: 1 | T25: NORTON-CUFFY | U25: 6 | V25: PALESTRA | W25: 2 | X25: TROILO | Y25: 1 | Z25: ATTA | AA25: 2 | AB25: FRATTESI | AC25: 1 | AD25: GUDMUNDSSON | AE25: 52 | AF25: KONÈ I. | AG25: 1 | AH25: NICO PAZ | AI25: 17 | AJ25: SANTOS | AK25: 5 | AL25: THORSTVEDT | AM25: 1 | AN25: ZACCAGNI | AO25: 35 | AP25: BOWIE | AQ25: 1 | AR25: GIOVANE | AS25: 1 | AT25: LAURIENTÈ | AU25: 5 | AV25: SULEMANA K. | AW25: 1 | AX25: VAZ | AY25: 2 | AZ25: BOMBARELLANDIA | BA25: DE GEA | BB25: FIO | BC25: 4.930555556 | BD25: 36 | BE25: 6.222222222 | BF25: IMI_C1_girone_A@googlegroups.com | BG25: DENOON | BH25: Il difensore alle prese con noie fisiche e out anche nel prossimo turno di campionato. Da valutare. | BI25: DENOON | BN25: ATLETICO SQUONK | CC25: G1_REAL GENOA | CD25: REAL GENOA | CE25: AC MORRONE | CF25: CHAMPIONS LEAGUE - G. 1 | CH25: ZZ_MOMENTI DI GLORIA FMC | CI25: ZZ_MOMENTI DI GLORIA FMC | CJ25: ZZ_LA VECCHIA GUARDIA | CK25: COPPA DI LEGA - FASE A GIRONI: 1a GIORNATA | CR25: 0 | CS25: 0 | CT25: MOMENTI DI GLORIA FMC | CU25: LA VECCHIA GUARDIA | CV25: G1
A26: DIAMANTE | B26: DI GREGORIO | C26: 41 | D26: PERIN | E26: 0 | F26: PINSOGLIO | G26: 0 | H26: HULI | I26: 0 | J26: BISSECK | K26: 1 | L26: BREMER | M26: 31 | N26: DE WINTER | O26: 1 | P26: HIEN | Q26: 2 | R26: MARTIN | S26: 2 | T26: SCALVINI | U26: 8 | V26: VALERI | W26: 5 | X26: VALLE | Y26: 2 | Z26: BASIC | AA26: 1 | AB26: BERNARDESCHI | AC26: 6 | AD26: MCKENNIE | AE26: 1 | AF26: MCTOMINAY | AG26: 38 | AH26: ROWE | AI26: 8 | AJ26: ZALEWSKI | AK26: 6 | AL26: ZANIOLO | AM26: 16 | AN26: ZARAGOZA | AO26: 29 | AP26: CAMBIAGHI | AQ26: 1 | AR26: CHEDDIRA | AS26: 8 | AT26: COLOMBO | AU26: 41 | AV26: OPENDA | AW26: 101 | AX26: PICCOLI | AY26: 4 | AZ26: DIAMANTE | BA26: DOLFI | BB26: FIO | BC26: 0 | BD26: 0 | BE26: 0 | BF26: IMI_C1_girone_A@googlegroups.com | BG26: DOVBYK | BH26: l'attaccante in recupero da una lesione miotendinea alla coscia sinistra, a metà gennaio ha deciso di operarsi. Rientro possibile dalla prima metà di maggio, ma da valutare la convocazione già domenica a Parma nella 36a. | BI26: DOVBYK | BN26: BAR MARIO | CC26: G1_RED HOT CHILI PEPPERS | CD26: RED HOT CHILI PEPPERS | CE26: FFC TOPENHAM | CF26: CHAMPIONS LEAGUE - G. 1 | CH26: ZZ_ACRESE | CI26: ZZ_ACRESE | CJ26: ZZ_HIC SUNT FERAE | CK26: COPPA DI LEGA - FASE A GIRONI: 1a GIORNATA | CR26: 0 | CS26: 0 | CT26: ACRESE | CU26: HIC SUNT FERAE | CV26: G1
A27: JUVE93 | B27: DE GEA | C27: 19 | D27: LEZZERINI | E27: 0 | F27: CHRISTENSEN | G27: 0 | H27: DOLFI | I27: 0 | J27: ANGORI | K27: 1 | L27: BASCHIROTTO | M27: 7 | N27: DUMFRIES | O27: 2 | P27: LUPERTO | Q27: 1 | R27: MARUSIC | S27: 1 | T27: MINA | U27: 2 | V27: N'DICKA | W27: 9 | X27: TAVARES | Y27: 15 | Z27: BERNEDE | AA27: 1 | AB27: ELLERTSSON | AC27: 3 | AD27: FOLORUNSHO | AE27: 1 | AF27: HARRISON | AG27: 1 | AH27: NERES | AI27: 29 | AJ27: ORISTANIO | AK27: 1 | AL27: ORSOLINI | AM27: 29 | AN27: TRAMONI | AO27: 1 | AP27: BERARDI | AQ27: 47 | AR27: BONNY | AS27: 7 | AT27: CANCELLIERI | AU27: 2 | AV27: SCAMACCA | AW27: 1 | AX27: THURAM | AY27: 67 | AZ27: JUVE93 | BA27: LEZZERINI | BB27: FIO | BC27: 0 | BD27: 0 | BE27: 0 | BF27: IMI_C1_girone_A@googlegroups.com | BG27: FADERA | BH27: squalificato nella 36a giornata di campionato | BI27: FADERA | BN27: BARBERA & CHAMPAGNE | CC27: G1_REAL BABBUDOIU | CD27: REAL BABBUDOIU | CE27: ACRESE | CF27: CHAMPIONS LEAGUE - G. 1 | CH27: ZZ_ANDREAS | CI27: ZZ_ANDREAS | CJ27: ZZ_REAL BUGGY | CK27: COPPA DI LEGA - FASE A GIRONI: 1a GIORNATA | CR27: 0 | CS27: 0 | CT27: ANDREAS | CU27: REAL BUGGY | CV27: G1
A28: CAPIBARA SWOFFY FC | B28: BUTEZ | C28: 13 | D28: CAVLINA | E28: 0 | F28: VIGORITO | G28: 0 | H28: MENKE | I28: 0 | J28: AKANJI | K28: 8 | L28: BEUKEMA | M28: 3 | N28: KELLY | O28: 8 | P28: LUCUMI' | Q28: 6 | R28: OBRADOR | S28: 1 | T28: OSTIGARD | U28: 3 | V28: RAMON | W28: 13 | X28: WESLEY | Y28: 26 | Z28: ANGUISSA | AA28: 17 | AB28: BARELLA | AC28: 33 | AD28: CASADEI | AE28: 6 | AF28: CONCEICAO | AG28: 43 | AH28: FABBIAN | AI28: 4 | AJ28: GANDELMAN | AK28: 1 | AL28: PULISIC | AM28: 47 | AN28: VLASIC | AO28: 3 | AP28: DIAO | AQ28: 2 | AR28: DOUVIKAS | AS28: 2 | AT28: ESPOSITO F.P. | AU28: 3 | AV28: GIMENEZ | AW28: 1 | AX28: ORBAN | AY28: 2 | AZ28: CAPIBARA SWOFFY FC | BA28: MARTINELLI | BB28: FIO | BC28: 0 | BD28: 0 | BE28: 0 | BF28: IMI_C1_girone_A@googlegroups.com | BG28: FELICI | BH28: Il calciatore vittima a inizio dicembre della rottura del legamento crociato del ginocchio. Lungo stop, campionato finito anzitempo. | BI28: FELICI | BN28: BAYER LEVERRUKE | CC28: G1_RISK UNITED | CD28: RISK UNITED | CE28: LA10 BIELLA FC | CF28: CHAMPIONS LEAGUE - G. 1 | CH28: ZZ_RASTA ZETA | CI28: ZZ_RASTA ZETA | CJ28: ZZ_MARIANNA | CK28: COPPA DI LEGA - FASE A GIRONI: 1a GIORNATA | CR28: 0 | CS28: 0 | CT28: RASTA ZETA | CU28: MARIANNA | CV28: G1
A29: ETRURIA UNITED | B29: MURIC | C29: 1 | D29: TURATI | E29: 0 | F29: SATALINO | G29: 0 | H29: GURI | I29: 0 | J29: ACERBI | K29: 1 | L29: DELPRATO | M29: 6 | N29: FLORIANI | O29: 2 | P29: GABBIA | Q29: 2 | R29: KRISTENSEN | S29: 11 | T29: PAVLOVIC | U29: 11 | V29: PONGRACIC | W29: 1 | X29: VOJVODA | Y29: 2 | Z29: DE BRUYNE | AA29: 111 | AB29: DE ROON | AC29: 6 | AD29: FREULER | AE29: 1 | AF29: LOCATELLI | AG29: 9 | AH29: PAYERO | AI29: 2 | AJ29: PRATI | AK29: 3 | AL29: ROVELLA | AM29: 4 | AN29: VANDEPUTTE | AO29: 12 | AP29: ADAMS | AQ29: 14 | AR29: FULLKRUG | AS29: 50 | AT29: HOJLUND | AU29: 76 | AV29: KILICSOY | AW29: 45 | AX29: NKUNKU | AY29: 34 | AZ29: ETRURIA UNITED | BA29: BIJLOW | BB29: GEN | BC29: 4.9 | BD29: 15 | BE29: 6.1 | BF29: IMI_C1_girone_A@googlegroups.com | BG29: FERGUSON E. | BH29: l'attaccante, dopo il perdurare di un problema alla caviglia ed essersi sottoposto a inizio marzo a visite specialistiche a Brighton, ha deciso di operarsi. Tempi di recupero da valutare, ma la sua stagione si è chiusa anzitempo. | BI29: FERGUSON E. | BN29: BEAUTIFUL BUT LOSERS | CC29: G1_ENDYMION | CD29: ENDYMION | CE29: NORTH COCKS | CF29: CHAMPIONS LEAGUE - G. 1 | CH29: ZZ_FIORENTINA | CI29: ZZ_FIORENTINA | CJ29: ZZ_FFC ANGELO DOMENGHINI | CK29: COPPA DI LEGA - FASE A GIRONI: 1a GIORNATA | CR29: 0 | CS29: 0 | CT29: FIORENTINA | CU29: FFC ANGELO DOMENGHINI | CV29: G1
A30: LA BANDA DEGLI ONESTI | B30: SKORUPSKI | C30: 1 | D30: PESSINA | E30: 0 | F30: RAVAGLIA | G30: 0 | H30: HAPPONEN | I30: 0 | J30: ANGELINO | K30: 2 | L30: BUONGIORNO | M30: 1 | N30: CARACCIOLO | O30: 2 | P30: GALLO | Q30: 2 | R30: GARCIA | S30: 3 | T30: MORENO | U30: 1 | V30: TERRACCIANO F. | W30: 3 | X30: VALENTI | Y30: 1 | Z30: CRISTANTE | AA30: 1 | AB30: EL AYNAOUI | AC30: 3 | AD30: FAGIOLI | AE30: 19 | AF30: FRENDRUP | AG30: 3 | AH30: KARLSTROM | AI30: 1 | AJ30: LOBOTKA | AK30: 2 | AL30: ODGAARD | AM30: 1 | AN30: PASALIC | AO30: 1 | AP30: BONAZZOLI | AQ30: 7 | AR30: CASTRO | AS30: 39 | AT30: LEAO | AU30: 82 | AV30: MALEN | AW30: 73 | AX30: SOULE' | AY30: 1 | AZ30: LA BANDA DEGLI ONESTI | BA30: LEALI | BB30: GEN | BC30: 4.80952381 | BD30: 21 | BE30: 6.142857143 | BF30: IMI_C1_girone_A@googlegroups.com | BG30: FOFANA SA. | BH30: Il centrocampista vittima a metà aprile della lesione parziale del legamento collaterale mediale del ginocchio sinistro, campionato finito anzitempo. | BI30: FOFANA SA. | BN30: BEETLES | CC30: G1_DEP LA CAROGNA | CD30: DEP. LA CAROGNA | CE30: SPORTING 2000 | CF30: CHAMPIONS LEAGUE - G. 1 | CH30: ZZ_NORTH COCKS | CI30: ZZ_NORTH COCKS | CJ30: ZZ_AC MORRONE | CK30: COPPA DI LEGA - FASE A GIRONI: 1a GIORNATA | CR30: 0 | CS30: 0 | CT30: NORTH COCKS | CU30: AC MORRONE | CV30: G1
A31: CINICI | B31: SUZUKI | C31: 1 | D31: CORVI | E31: 0 | F31: RINALDI | G31: 0 | H31: ASTALDI | I31: 0 | J31: BASTONI | K31: 26 | L31: COCO | M31: 1 | N31: COMUZZO | O31: 1 | P31: GATTI | Q31: 17 | R31: KOLASINAC | S31: 6 | T31: KOSSOUNOU | U31: 2 | V31: PARISI | W31: 1 | X31: RRAHMANI | Y31: 4 | Z31: CALHANOGLU | AA31: 41 | AB31: CAQUERET | AC31: 1 | AD31: COULIBALY | AE31: 1 | AF31: ISAKSEN | AG31: 1 | AH31: KOOPMEINERS | AI31: 3 | AJ31: PERRONE | AK31: 3 | AL31: POLITANO | AM31: 17 | AN31: SAMARDZIC | AO31: 3 | AP31: BORRELLI | AQ31: 2 | AR31: LAUTARO | AS31: 141 | AT31: RASPADORI | AU31: 16 | AV31: SIMEONE | AW31: 3 | AX31: VARDY | AY31: 6 | AZ31: CINICI | BA31: LYSIONOK | BB31: GEN | BC31: 0 | BD31: 0 | BE31: 0 | BF31: IMI_C1_girone_A@googlegroups.com | BG31: FORTINI | BH31: Il difensore condizionato nelle ultime settimane da una sindrome retto-adduttoria. Out contro il Genoa nel prossimo turno, condizioni da valutare in vista della 37a. | BI31: FORTINI | BN31: BETIS SEVILLA | CC31: G1_FC NAPOLI 2012 | CD31: FC NAPOLI 2012 | CE31: RASTA ZETA | CF31: CHAMPIONS LEAGUE - G. 1 | CH31: ZZ_JUNIORT | CI31: ZZ_JUNIORT | CJ31: ZZ_SWANSEA | CK31: COPPA DI LEGA - FASE A GIRONI: 1a GIORNATA | CR31: 0 | CS31: 0 | CT31: JUNIORT | CU31: SWANSEA | CV31: G1
A32: HOBBIT | B32: SVILAR | C32: 3 | D32: GOLLINI | E32: 0 | F32: ZELEZNY | G32: 0 | H32: DE MARZI | I32: 0 | J32: BARTESAGHI | K32: 1 | L32: CELIK | M32: 1 | N32: GILA | O32: 1 | P32: HEGGEM | Q32: 1 | R32: KABASELE | S32: 1 | T32: MARCANDALLI | U32: 3 | V32: PEDERSEN | W32: 1 | X32: WALUKIEWICZ | Y32: 1 | Z32: BALDANZI | AA32: 1 | AB32: KONE' | AC32: 11 | AD32: MALDINI | AE32: 2 | AF32: MANDRAGORA | AG32: 1 | AH32: MKHITARYAN | AI32: 1 | AJ32: PISILLI | AK32: 1 | AL32: SAELEMAEKERS | AM32: 4 | AN32: STREFEZZA | AO32: 5 | AP32: DE KETELAERE | AQ32: 120 | AR32: ELPHEGE | AS32: 3 | AT32: MOREO | AU32: 1 | AV32: PELLEGRINO | AW32: 52 | AX32: VITINHA | AY32: 1 | AZ32: HOBBIT | BA32: SIEGRIST | BB32: GEN | BC32: 0 | BD32: 0 | BE32: 0 | BF32: IMI_C1_girone_A@googlegroups.com | BG32: FRIGAN | BH32: L'attaccante ora alle prese con una lesione al menisco del ginocchio sinistro, il suo campionato è presumibilmente terminato anzitempo. | BI32: FRIGAN | BN32: BFC MARANO | CC32: G1_DAVINCI TEAM | CD32: DAVINCI TEAM | CE32: PRO WC | CF32: CHAMPIONS LEAGUE - G. 1 | CH32: ZZ_SOLSBURY HILL FC | CI32: ZZ_SOLSBURY HILL FC | CJ32: ZZ_TORI BRIANZOLI | CK32: COPPA DI LEGA - FASE A GIRONI: 1a GIORNATA | CR32: 0 | CS32: 0 | CT32: SOLSBURY HILL FC | CU32: TORI BRIANZOLI | CV32: G1
A33: MANCHO FERE | B33: MERET | C33: 7 | D33: CONTINI | E33: 0 | F33: MILINKOVIC | G33: 0 | H33: FERRANTE | I33: 0 | J33: CIRCATI | K33: 1 | L33: DARMIAN | M33: 2 | N33: ISMAJLI | O33: 3 | P33: KEMPF | Q33: 3 | R33: RANIERI | S33: 3 | T33: SPINAZZOLA | U33: 2 | V33: TOMORI | W33: 7 | X33: ZAPPACOSTA | Y33: 3 | Z33: BRESCIANINI | AA33: 1 | AB33: EKKELENKAMP | AC33: 2 | AD33: LERIS | AE33: 1 | AF33: LOFTUS-CHEEK | AG33: 2 | AH33: LUIS HENRIQUE | AI33: 2 | AJ33: MALINOVSKYI | AK33: 3 | AL33: SUCIC | AM33: 10 | AN33: TAYLOR | AO33: 3 | AP33: ADDAI | AQ33: 5 | AR33: KEAN | AS33: 1 | AT33: LUKAKU | AU33: 31 | AV33: SOLOMON | AW33: 2 | AX33: VLAHOVIC | AY33: 75 | AZ33: MANCHO FERE | BA33: SOMMARIVA | BB33: GEN | BC33: 3.75 | BD33: 2 | BE33: 5.75 | BF33: IMI_C1_girone_A@googlegroups.com | BG33: FURLANETTO | BH33: Il portiere a metà aprile vittima della rottura del legamento crociato del ginocchio, campionato finito anzitempo. | BI33: FURLANETTO | BN33: BLACK&WHITE | CC33: G1_SALENTO FC | CD33: SALENTO FC | CE33: REAL GRIFO | CF33: CHAMPIONS LEAGUE - G. 1 | CH33: ZZ_ISOLA CHE NON CE | CI33: ZZ_ISOLA CHE NON CE | CJ33: ZZ_NEAPOLIS | CK33: COPPA DI LEGA - FASE A GIRONI: 1a GIORNATA | CR33: 0 | CS33: 0 | CT33: ISOLA CHE NON CE | CU33: NEAPOLIS | CV33: G1
A34: COSENZA CALCIO 1914 | B34: SOMMER | C34: 31 | D34: MARTINEZ | E34: 0 | F34: ADOMAVICIUS | G34: 0 | H34: DI GENNARO | I34: 0 | J34: CABAL | K34: 4 | L34: JUAN JESUS | M34: 1 | N34: KALULU | O34: 3 | P34: LAZARO | Q34: 2 | R34: ROMAGNOLI | S34: 7 | T34: SMOLCIC | U34: 2 | V34: SOLET | W34: 1 | X34: VASQUEZ | Y34: 3 | Z34: CATALDI | AA34: 2 | AB34: DA CUNHA | AC34: 2 | AD34: DELE-BASHIRU | AE34: 2 | AF34: EDERSON | AG34: 30 | AH34: MIRETTI | AI34: 2 | AJ34: POBEGA | AK34: 2 | AL34: SOHM | AM34: 5 | AN34: THURAM K. | AO34: 11 | AP34: BOGA | AQ34: 3 | AR34: DAVID | AS34: 101 | AT34: ESPOSITO SE. | AU34: 11 | AV34: MORATA | AW34: 2 | AX34: RATKOV | AY34: 11 | AZ34: COSENZA CALCIO 1914 | BA34: ADOMAVICIUS | BB34: INT | BC34: 0 | BD34: 0 | BE34: 0 | BF34: IMI_C1_girone_A@googlegroups.com | BG34: GASPAR | BH34: il difensore fermo dal 23 febbraio per un trauma distorsivo al ginocchio sinistro con lesione di primo grado del legamento collaterale mediale e lesione parziale del legamento crociato posteriore. Sta provando a tornare dalla prima metà di maggio, da valutare la convocazione per sabato in casa contro la Juve. | BI34: GASPAR | BN34: BLUES BROTHERS | CC34: G1_EROI DEL 1982 | CD34: ABETO FC | CE34: EROI DEL 1982 | CF34: CHAMPIONS LEAGUE - G. 1 | CH34: ZZ_STROMBOLI | CI34: ZZ_STROMBOLI | CJ34: ZZ_TROPEA | CK34: COPPA DI LEGA - FASE A GIRONI: 1a GIORNATA | CT34: STROMBOLI | CU34: TROPEA | CV34: G1
A35: I VAZANICCHI | B35: CARNESECCHI | C35: 1 | D35: ROSSI | E35: 0 | F35: SPORTIELLO | G35: 0 | H35: ZANCHI | I35: 0 | J35: CAMBIASO | K35: 31 | L35: CARLOS AUGUSTO | M35: 3 | N35: DIEGO CARLOS | O35: 1 | P35: DIMARCO | Q35: 31 | R35: ESTUPINAN | S35: 26 | T35: GOSENS | U35: 27 | V35: MIRANDA | W35: 1 | X35: ZORTEA | Y35: 1 | Z35: BATURINA | AA35: 1 | AB35: CORNET | AC35: 1 | AD35: ELMAS | AE35: 1 | AF35: FERGUSON | AG35: 2 | AH35: MODRIC | AI35: 31 | AJ35: PELLEGRINI LO. | AK35: 1 | AL35: RABIOT | AM35: 31 | AN35: RICCI | AO35: 1 | AP35: DYBALA | AQ35: 91 | AR35: KRSTOVIC | AS35: 2 | AT35: NZOLA | AU35: 5 | AV35: PINAMONTI | AW35: 51 | AX35: ZAPATA | AY35: 2 | AZ35: I VAZANICCHI | BA35: CALLIGARIS | BB35: INT | BC35: 0 | BD35: 0 | BE35: 0 | BF35: IMI_C1_girone_A@googlegroups.com | BG35: IDRISSI | BH35: il cursore di fascia degli isolani a inizio marzo rimasto vittima della lesione del legamento crociato anteriore del ginocchio sinistro, campionato finito con anticipo. | BI35: IDRISSI | BN35: BOMBARELLANDIA | CC35: G1_CICCILLO | CD35: RASTA DB | CE35: CICCILLO | CF35: CHAMPIONS LEAGUE - G. 1 | CH35: ZZ_BRUDYLEGHORN | CI35: ZZ_BRUDYLEGHORN | CJ35: ZZ_EL NINO FC | CK35: COPPA DI LEGA - FASE A GIRONI: 1a GIORNATA | CR35: 0 | CS35: 0 | CT35: BRUDYLEGHORN | CU35: EL NINO FC | CV35: G1
A36: TERZO MUNICIPIO | B36: MOTTA | C36: 1 | D36: PROVEDEL | E36: 0 | F36: GIACOMONE | G36: 0 | H36: PANNOZZO | I36: 0 | J36: DI LORENZO | K36: 11 | L36: DJIMSITI | M36: 2 | N36: DODO' | O36: 12 | P36: GHILARDI | Q36: 1 | R36: HERMOSO | S36: 5 | T36: IDZES | U36: 1 | V36: JOAO MARIO | W36: 1 | X36: TIAGO GABRIEL | Y36: 1 | Z36: BERNABE' | AA36: 6 | AB36: FOFANA | AC36: 4 | AD36: GAETANO | AE36: 1 | AF36: MATIC | AG36: 2 | AH36: MESSIAS | AI36: 2 | AJ36: NDOUR | AK36: 3 | AL36: ONDREJKA | AM36: 1 | AN36: ZIELINSKI | AO36: 3 | AP36: DAVIS | AQ36: 26 | AR36: DIA | AS36: 2 | AT36: RODRIGUEZ | AU36: 1 | AV36: STULIC | AW36: 1 | AX36: YILDIZ | AY36: 5 | AZ36: TERZO MUNICIPIO | BA36: DI GENNARO | BB36: INT | BC36: 0 | BD36: 0 | BE36: 0 | BF36: IMI_C1_girone_A@googlegroups.com | BG36: ISMAJLI | BH36: Il difensore assente sabato scorso a Udine per un interessamento distrattivo parziale del bicipite femorale della coscia destra. Da valutare i tempi di rientro, forfait anche venerdì in casa contro il Sassuolo. | BI36: ISMAJLI | BN36: BORGOROSSO FC | CC36: G1_MAGODINA FC | CD36: EU...REKA | CE36: MAGODINA FC | CF36: CHAMPIONS LEAGUE - G. 1 | CH36: ZZ_LIVELE | CI36: ZZ_LIVELE | CJ36: ZZ_TEAM ENO | CK36: COPPA DI LEGA - FASE A GIRONI: 1a GIORNATA | CR36: 0 | CS36: 0 | CT36: LIVELE | CU36: TEAM ENO | CV36: G1
A37: 2TWINS4EVER | B37: CAPRILE | C37: 1 | D37: CIOCCI | E37: 0 | F37: SHERRI | G37: 0 | H37: AUSEKLIS | I37: 0 | J37: ANGORI | K37: 1 | L37: BARBIERI | M37: 2 | N37: CELIK | O37: 1 | P37: EHIZIBUE | Q37: 3 | R37: GILA | S37: 2 | T37: MANCINI | U37: 14 | V37: VALERI | W37: 1 | X37: VALLE | Y37: 1 | Z37: FOLORUNSHO | AA37: 1 | AB37: MCKENNIE | AC37: 5 | AD37: MKHITARYAN | AE37: 6 | AF37: NDOUR | AG37: 1 | AH37: PERRONE | AI37: 5 | AJ37: POLITANO | AK37: 23 | AL37: TAYLOR | AM37: 8 | AN37: ZARAGOZA | AO37: 14 | AP37: GIMENEZ | AQ37: 11 | AR37: KEAN | AS37: 54 | AT37: NOSLIN | AU37: 1 | AV37: PELLEGRINO | AW37: 1 | AX37: SIMEONE | AY37: 45 | AZ37: 2TWINS4EVER | BA37: MARTINEZ | BB37: INT | BC37: 5.875 | BD37: 4 | BE37: 6.125 | BF37: FC_Serie_A@googlegroups.com | BG37: KABASELE | BH37: squalificato nella 36a giornata di campionato | BI37: KABASELE | BN37: BRUDYLEGHORN | CC37: G1_LA VECCHIA GUARDIA | CD37: FC PARTIZAN DEGRADO | CE37: LA VECCHIA GUARDIA | CF37: CHAMPIONS LEAGUE - G. 1 | CH37: ZZ_UDI ONE | CI37: ZZ_UDI ONE | CJ37: ZZ_FFC MARIO CORSO | CK37: COPPA DI LEGA - FASE A GIRONI: 1a GIORNATA | CR37: 0 | CS37: 0 | CT37: UDI ONE | CU37: FFC MARIO CORSO | CV37: G1
A38: FUFF TEAM | B38: DE GEA | C38: 2 | D38: LEZZERINI | E38: 0 | F38: CHRISTENSEN | G38: 0 | H38: DOLFI | I38: 0 | J38: AKANJI | K38: 31 | L38: BERTOLA | M38: 3 | N38: CARLOS AUGUSTO | O38: 7 | P38: GASPAR | Q38: 1 | R38: JUAN JESUS | S38: 4 | T38: KEMPF | U38: 1 | V38: N'DICKA | W38: 16 | X38: VITIK | Y38: 16 | Z38: AKINSANMIRO | AA38: 2 | AB38: BERNABE' | AC38: 21 | AD38: FERGUSON | AE38: 2 | AF38: FRENDRUP | AG38: 8 | AH38: LOBOTKA | AI38: 6 | AJ38: SUCIC | AK38: 33 | AL38: THURAM K. | AM38: 41 | AN38: ZIELINSKI | AO38: 9 | AP38: BONNY | AQ38: 13 | AR38: DIAO | AS38: 11 | AT38: ESPOSITO F.P. | AU38: 58 | AV38: FERGUSON E. | AW38: 63 | AX38: NKUNKU | AY38: 9 | AZ38: FUFF TEAM | BA38: SOMMER | BB38: INT | BC38: 4.96875 | BD38: 32 | BE38: 5.90625 | BF38: FC_Serie_A@googlegroups.com | BG38: KEAN | BH38: l'attaccante out contro Roma, Sassuolo, Lazio e Lecce nelle ultime uscite per il perdurare di un fastidio alla tibia. Condizioni da valutare quotidianamente verso la sfida di domenica al Franchi contro il Genoa nella 36a di A. | BI38: KEAN | BN38: CACAO MERAVIGLIAO | CC38: G1_NASONE NERAZZURRO | CD38: PARASITE | CE38: NASONE NERAZZURRO | CF38: CHAMPIONS LEAGUE - G. 1 | CH38: ZZ_FFC ROBERTO BONINSEGNA | CI38: ZZ_FFC ROBERTO BONINSEGNA | CJ38: ZZ_GRATTACHECCA | CK38: COPPA DI LEGA - FASE A GIRONI: 1a GIORNATA | CR38: 0 | CS38: 0 | CT38: FFC ROBERTO BONINSEGNA | CU38: GRATTACHECCA | CV38: G1
A39: PICCIOTTI NERAZZURRI | B39: SKORUPSKI | C39: 1 | D39: PESSINA | E39: 0 | F39: RAVAGLIA | G39: 0 | H39: HAPPONEN | I39: 0 | J39: COCO | K39: 2 | L39: GALLO | M39: 1 | N39: HEGGEM | O39: 2 | P39: KOLASINAC | Q39: 2 | R39: MINA | S39: 2 | T39: NORTON-CUFFY | U39: 1 | V39: ROMAGNOLI | W39: 1 | X39: TERRACCIANO F. | Y39: 2 | Z39: CALHANOGLU | AA39: 21 | AB39: COULIBALY | AC39: 1 | AD39: FAGIOLI | AE39: 1 | AF39: LERIS | AG39: 2 | AH39: MALDINI | AI39: 21 | AJ39: NERES | AK39: 8 | AL39: PASALIC | AM39: 6 | AN39: STREFEZZA | AO39: 22 | AP39: BERARDI | AQ39: 49 | AR39: CASTRO | AS39: 3 | AT39: ESPOSITO SE. | AU39: 8 | AV39: LAUTARO | AW39: 227 | AX39: PICCOLI | AY39: 41 | AZ39: PICCIOTTI NERAZZURRI | BA39: DI GREGORIO | BB39: JUV | BC39: 5.396551724 | BD39: 29 | BE39: 6.103448276 | BF39: FC_Serie_A@googlegroups.com | BG39: LAMPTEY | BH39: l'esterno della Viola fermo per una lacerazione isolata del legamento crociato anteriore del ginocchio sinistro, il suo campionato è finito con largo anticipo. | BI39: LAMPTEY | BN39: CACCIATORI FC | CC39: G1_REAL BUGGY | CD39: ATLETICO SQUONK | CE39: REAL BUGGY | CF39: CHAMPIONS LEAGUE - G. 1 | CH39: ZZ_ATLETICO SGANITO | CI39: ZZ_ATLETICO SGANITO | CJ39: ZZ_EROI DEL 1982 | CK39: COPPA DI LEGA - FASE A GIRONI: 1a GIORNATA | CR39: 0 | CS39: 0 | CT39: ATLETICO SGANITO | CU39: EROI DEL 1982 | CV39: G1
A40: DINAMO VIGIAK | B40: MERET | C40: 37 | D40: CONTINI | E40: 0 | F40: MILINKOVIC | G40: 0 | H40: FERRANTE | I40: 0 | J40: DJIMSITI | K40: 3 | L40: GABBIA | M40: 16 | N40: GARCIA | O40: 2 | P40: HERMOSO | Q40: 12 | R40: HIEN | S40: 1 | T40: KRISTENSEN | U40: 1 | V40: TOMORI | W40: 1 | X40: ZAPPA | Y40: 1 | Z40: ADOPO | AA40: 2 | AB40: CAQUERET | AC40: 1 | AD40: CRISTANTE | AE40: 12 | AF40: GINEITIS | AG40: 3 | AH40: MODRIC | AI40: 17 | AJ40: PIEROTTI | AK40: 1 | AL40: RICCI | AM40: 1 | AN40: VLASIC | AO40: 6 | AP40: ADAMS | AQ40: 23 | AR40: DAVIS | AS40: 1 | AT40: DE KETELAERE | AU40: 67 | AV40: EKUBAN | AW40: 2 | AX40: LUKAKU | AY40: 64 | AZ40: DINAMO VIGIAK | BA40: HULI | BB40: JUV | BC40: 0 | BD40: 0 | BE40: 0 | BF40: FC_Serie_A@googlegroups.com | BG40: LITETA | BH40: il centrocampista ai box da inizio maggio per una lesione di basso grado ai flessori della coscia destra, campionato presumibilmente terminato. | BI40: LITETA | BN40: CAPIBARA SWOFFY FC | CC40: G1_2TWINS4EVER | CD40: ROSSOBLU FC | CE40: 2TWINS4EVER | CF40: CHAMPIONS LEAGUE - G. 1 | CH40: ZZ_NAPOLI FOREVER | CI40: ZZ_NAPOLI FOREVER | CJ40: ZZ_NICKSTREGA | CK40: COPPA DI LEGA - FASE A GIRONI: 1a GIORNATA | CR40: 0 | CS40: 0 | CT40: NAPOLI FOREVER | CU40: NICKSTREGA | CV40: G1
A41: MAGODINA FC | B41: SOMMER | C41: 29 | D41: MARTINEZ | E41: 0 | F41: ADOMAVICIUS | G41: 0 | H41: DI GENNARO | I41: 0 | J41: BEUKEMA | K41: 1 | L41: CANESTRELLI | M41: 2 | N41: GATTI | O41: 29 | P41: KAMARA | Q41: 1 | R41: LAZARO | S41: 1 | T41: PARISI | U41: 1 | V41: PAVLOVIC | W41: 29 | X41: SMOLCIC | Y41: 1 | Z41: GAETANO | AA41: 1 | AB41: KARLSTROM | AC41: 6 | AD41: KOOPMEINERS | AE41: 28 | AF41: LUIS HENRIQUE | AG41: 14 | AH41: MANDRAGORA | AI41: 14 | AJ41: POBEGA | AK41: 1 | AL41: SAELEMAEKERS | AM41: 2 | AN41: VOLPATO | AO41: 1 | AP41: CAMBIAGHI | AQ41: 6 | AR41: CANCELLIERI | AS41: 5 | AT41: RASPADORI | AU41: 17 | AV41: SOLOMON | AW41: 2 | AX41: VLAHOVIC | AY41: 155 | AZ41: MAGODINA FC | BA41: PERIN | BB41: JUV | BC41: 5.1875 | BD41: 8 | BE41: 6.0625 | BF41: FC_Serie_A@googlegroups.com | BG41: LUKAKU | BH41: L'attaccante condizionato da un'infiammazione al muscolo flessore dell'anca, forfait anche per lunedì contro il Bologna al Maradona. Da valutare in vista della 37a giornata. | BI41: LUKAKU | BN41: CARLITO'S VELEZ | CC41: G1_SWANSEA | CD41: ZERU TITULI | CE41: SWANSEA | CF41: CHAMPIONS LEAGUE - G. 1 | CH41: ZZ_DINAMO VIGIAK | CI41: ZZ_DINAMO VIGIAK | CJ41: ZZ_BFC MARANO | CK41: COPPA DI LEGA - FASE A GIRONI: 1a GIORNATA | CR41: 0 | CS41: 0 | CT41: DINAMO VIGIAK | CU41: BFC MARANO | CV41: G1
A42: PRO WC | B42: DI GREGORIO | C42: 48 | D42: PERIN | E42: 0 | F42: PINSOGLIO | G42: 0 | H42: HULI | I42: 0 | J42: BERNASCONI | K42: 3 | L42: CAMBIASO | M42: 26 | N42: DIMARCO | O42: 50 | P42: DODO' | Q42: 1 | R42: DUMFRIES | S42: 15 | T42: OBRADOR | U42: 2 | V42: PALESTRA | W42: 4 | X42: VOJVODA | Y42: 1 | Z42: ATTA | AA42: 1 | AB42: BAKOLA | AC42: 1 | AD42: BATURINA | AE42: 14 | AF42: EL AYNAOUI | AG42: 2 | AH42: MCTOMINAY | AI42: 33 | AJ42: ODGAARD | AK42: 3 | AL42: PISILLI | AM42: 5 | AN42: THORSTVEDT | AO42: 11 | AP42: BELOTTI | AQ42: 2 | AR42: COLOMBO | AS42: 10 | AT42: EKHATOR | AU42: 2 | AV42: SCAMACCA | AW42: 2 | AX42: YILDIZ | AY42: 14 | AZ42: PRO WC | BA42: PINSOGLIO | BB42: JUV | BC42: 0 | BD42: 0 | BE42: 0 | BF42: FC_Serie_A@googlegroups.com | BG42: MARIN | BH42: il centrocampista fermo da metà marzo per un problema al ginocchio. Proverà a recuperare dalla metà di maggio. | BI42: MARIN | BN42: CATENACCIO & CONTROPIEDE | CC42: G1_FUFF TEAM | CD42: EARL & SOUL GALEONE | CE42: FUFF TEAM | CF42: CHAMPIONS LEAGUE - G. 1 | CH42: ZZ_KITEMMUOR TEAM | CI42: ZZ_KITEMMUOR TEAM | CJ42: ZZ_MOKA JUNIORS | CK42: COPPA DI LEGA - FASE A GIRONI: 1a GIORNATA | CR42: 0 | CS42: 0 | CT42: KITEMMUOR TEAM | CU42: MOKA JUNIORS | CV42: G1
A43: FC BIBI 04 | B43: SVILAR | C43: 9 | D43: GOLLINI | E43: 0 | F43: ZELEZNY | G43: 0 | H43: DE MARZI | I43: 0 | J43: AHANOR | K43: 4 | L43: COMUZZO | M43: 11 | N43: DIEGO CARLOS | O43: 3 | P43: IDZES | Q43: 2 | R43: RAMON | S43: 8 | T43: SCALVINI | U43: 6 | V43: SPINAZZOLA | W43: 1 | X43: WESLEY | Y43: 37 | Z43: BRESCIANINI | AA43: 6 | AB43: EKKELENKAMP | AC43: 5 | AD43: FABBIAN | AE43: 4 | AF43: KONE' | AG43: 7 | AH43: LOCATELLI | AI43: 2 | AJ43: MATIC | AK43: 2 | AL43: SAMARDZIC | AM43: 7 | AN43: SANTOS | AO43: 6 | AP43: GIOVANE | AQ43: 8 | AR43: SOULE' | AS43: 74 | AT43: STULIC | AU43: 1 | AV43: THURAM | AW43: 98 | AX43: VAZ | AY43: 6 | AZ43: FC BIBI 04 | BA43: BOSI | BB43: LAZ | BC43: 0 | BD43: 0 | BE43: 0 | BF43: FC_Serie_A@googlegroups.com | BG43: MAZZITELLI | BH43: il centrocampista in ripresa da una lesione di basso grado al polpaccio destro; recuperabile dalla prima metà di maggio, ma difficile la convocazione già sabato contro l'Udinese. | BI43: MAZZITELLI | BN43: CAVESE | CC43: G1_UDI ONE | CD43: REAL CHR | CE43: UDI ONE | CF43: CHAMPIONS LEAGUE - G. 1 | CH43: ZZ_BAYER LEVERRUKE | CI43: ZZ_BAYER LEVERRUKE | CJ43: ZZ_MOMPRACEM | CK43: COPPA DI LEGA - FASE A GIRONI: 1a GIORNATA | CR43: 0 | CS43: 0 | CT43: BAYER LEVERRUKE | CU43: MOMPRACEM | CV43: G1
A44: NASONE NERAZZURRO | B44: BIJLOW | C44: 1 | D44: LEALI | E44: 0 | F44: SIEGRIST | G44: 0 | H44: SOMMARIVA | I44: 0 | J44: BASCHIROTTO | K44: 12 | L44: BASTONI | M44: 38 | N44: BELLANOVA | O44: 14 | P44: BISSECK | Q44: 6 | R44: LUPERTO | S44: 13 | T44: PONGRACIC | U44: 4 | V44: RRAHMANI | W44: 18 | X44: ZAPPACOSTA | Y44: 18 | Z44: ANGUISSA | AA44: 33 | AB44: CATALDI | AC44: 12 | AD44: DE ROON | AE44: 7 | AF44: DEIOLA | AG44: 1 | AH44: FREULER | AI44: 1 | AJ44: MALINOVSKYI | AK44: 7 | AL44: PRATI | AM44: 1 | AN44: ZALEWSKI | AO44: 21 | AP44: BONAZZOLI | AQ44: 14 | AR44: KRSTOVIC | AS44: 92 | AT44: LAURIENTÈ | AU44: 16 | AV44: MOREO | AW44: 2 | AX44: VITINHA | AY44: 2 | AZ44: NASONE NERAZZURRO | BA44: FURLANETTO | BB44: LAZ | BC44: 0 | BD44: 0 | BE44: 0 | BF44: FC_Serie_A@googlegroups.com | BG44: MESSIAS | BH44: il centrocampista alle prese con un problema muscolare alla coscia rimediato nella gara di Bergamo a inizio maggio. Condizioni da valutare, di certo out nel prossimo turno di campionato. | BI44: MESSIAS | BN44: CICCILLO | CC44: G1_DINAMO VIGIAK | CD44: CATENACCIO & CONTROPIEDE | CE44: DINAMO VIGIAK | CF44: CHAMPIONS LEAGUE - G. 1 | CH44: ZZ_MANZO TEAM | CI44: ZZ_MANZO TEAM | CJ44: ZZ_TC WILLIAMS | CK44: COPPA DI LEGA - FASE A GIRONI: 1a GIORNATA | CR44: 0 | CS44: 0 | CT44: MANZO TEAM | CU44: TC WILLIAMS | CV44: G1
A45: SPORTING 2000 | B45: MAIGNAN | C45: 26 | D45: TERRACCIANO | E45: 0 | F45: TORRIANI | G45: 0 | H45: DONEDA | I45: 0 | J45: ATHEKAME | K45: 1 | L45: DE WINTER | M45: 1 | N45: KOSSOUNOU | O45: 3 | P45: MUHAREMOVIC | Q45: 3 | R45: RANIERI | S45: 1 | T45: RENSCH | U45: 1 | V45: RUGANI | W45: 5 | X45: TAVARES | Y45: 1 | Z45: BALDANZI | AA45: 2 | AB45: CASADEI | AC45: 8 | AD45: DA CUNHA | AE45: 21 | AF45: DE BRUYNE | AG45: 75 | AH45: JASHARI | AI45: 1 | AJ45: ORSOLINI | AK45: 32 | AL45: RABIOT | AM45: 75 | AN45: ZANIOLO | AO45: 5 | AP45: BANDA | AQ45: 1 | AR45: DIA | AS45: 1 | AT45: DOUVIKAS | AU45: 1 | AV45: HOJLUND | AW45: 135 | AX45: PEDRO | AY45: 10 | AZ45: SPORTING 2000 | BA45: GIACOMONE | BB45: LAZ | BC45: 0 | BD45: 0 | BE45: 0 | BF45: FC_Serie_A@googlegroups.com | BG45: MILIK | BH45: Il polacco a metà aprile vittima di una lesione di medio grado del bicipite femorale della coscia destra, campionato concluso con anticipo. | BI45: MILIK | BN45: CINICI | CC45: G1_FFC ANGELO DOMENGHINI | CD45: SPORTING LABRONICA | CE45: FFC ANGELO DOMENGHINI | CF45: CHAMPIONS LEAGUE - G. 1 | CH45: ZZ_TWOSTARS | CI45: ZZ_TWOSTARS | CJ45: ZZ_FUFF TEAM | CK45: COPPA DI LEGA - FASE A GIRONI: 1a GIORNATA | CR45: 0 | CS45: 0 | CT45: TWOSTARS | CU45: FUFF TEAM | CV45: G1
A46: FFC TOPENHAM | B46: CARNESECCHI | C46: 1 | D46: ROSSI | E46: 0 | F46: SPORTIELLO | G46: 0 | H46: ZANCHI | I46: 0 | J46: BARTESAGHI | K46: 1 | L46: BREMER | M46: 7 | N46: CARACCIOLO | O46: 1 | P46: GHILARDI | Q46: 1 | R46: HOLM | S46: 1 | T46: KALULU | U46: 1 | V46: MARTIN | W46: 1 | X46: SOLET | Y46: 1 | Z46: CONCEICAO | AA46: 21 | AB46: EDERSON | AC46: 8 | AD46: GANDELMAN | AE46: 1 | AF46: GUDMUNDSSON | AG46: 6 | AH46: PULISIC | AI46: 93 | AJ46: ROWE | AK46: 1 | AL46: VERGARA | AM46: 5 | AN46: ZACCAGNI | AO46: 87 | AP46: DYBALA | AQ46: 1 | AR46: ELPHEGE | AS46: 1 | AT46: MENDY | AU46: 1 | AV46: PINAMONTI | AW46: 36 | AX46: VARDY | AY46: 10 | AZ46: FFC TOPENHAM | BA46: MOTTA | BB46: LAZ | BC46: 5.166666667 | BD46: 9 | BE46: 6 | BF46: FC_Serie_A@googlegroups.com | BG46: MODRIC | BH46: il regista croato vittima a fine aprile della frattura complessa pluriframmentaria dell'osso zigomatico sinistro. Operato con successo, ma il suo campionato è terminato anzitempo. | BI46: MODRIC | BN46: CLOCKWORK ORANGE FC | CC46: G1_GABRY FC | CD46: RAT-MEN | CE46: GABRY FC | CF46: CHAMPIONS LEAGUE - G. 1 | CH46: ZZ_VIS TRONKO | CI46: ZZ_VIS TRONKO | CJ46: ZZ_FFC TOPENHAM | CK46: COPPA DI LEGA - FASE A GIRONI: 1a GIORNATA | CR46: 0 | CS46: 0 | CT46: VIS TRONKO | CU46: FFC TOPENHAM | CV46: G1
A47: NICKSTREGA | B47: MOTTA | C47: 33 | D47: PROVEDEL | E47: 0 | F47: GIACOMONE | G47: 0 | H47: PANNOZZO | I47: 0 | J47: ACERBI | K47: 2 | L47: ANGELINO | M47: 8 | N47: BUONGIORNO | O47: 14 | P47: DELPRATO | Q47: 7 | R47: DOIG | S47: 6 | T47: MIRANDA | U47: 3 | V47: TIAGO GABRIEL | W47: 1 | X47: VASQUEZ | Y47: 1 | Z47: BASIC | AA47: 1 | AB47: BERNARDESCHI | AC47: 1 | AD47: ELLERTSSON | AE47: 6 | AF47: FOFANA | AG47: 14 | AH47: FRATTESI | AI47: 11 | AJ47: NICO PAZ | AK47: 4 | AL47: PELLEGRINI LO. | AM47: 7 | AN47: VANDEPUTTE | AO47: 6 | AP47: DOVBYK | AQ47: 58 | AR47: LEAO | AS47: 61 | AT47: RODRIGUEZ | AU47: 17 | AV47: SULEMANA K. | AW47: 3 | AX47: ZAPATA | AY47: 2 | AZ47: NICKSTREGA | BA47: PANNOZZO | BB47: LAZ | BC47: 0 | BD47: 0 | BE47: 0 | BF47: FC_Serie_A@googlegroups.com | BG47: MOSQUERA | BH47: l'attaccante ai box per un trauma distorsivo al destro, campionato finito con anticipo. | BI47: MOSQUERA | BN47: COSENZA | CC47: G1_JUNIORT | CD47: A.S. TOTTIGO | CE47: JUNIORT | CF47: CHAMPIONS LEAGUE - G. 1 | CH47: ZZ_FC TRIPLETE | CI47: ZZ_FC TRIPLETE | CJ47: ZZ_NASONE NERAZZURRO | CK47: COPPA DI LEGA - FASE A GIRONI: 1a GIORNATA | CR47: 0 | CS47: 0 | CT47: FC TRIPLETE | CU47: NASONE NERAZZURRO | CV47: G1
A48: TC WILLIAMS | B48: BUTEZ | C48: 1 | D48: CAVLINA | E48: 0 | F48: VIGORITO | G48: 0 | H48: MENKE | I48: 0 | J48: BELGHALI | K48: 2 | L48: CIRCATI | M48: 1 | N48: GOSENS | O48: 35 | P48: GUTIERREZ | Q48: 1 | R48: KABASELE | S48: 1 | T48: KELLY | U48: 16 | V48: MORENO | W48: 1 | X48: OSTIGARD | Y48: 3 | Z48: BARELLA | AA48: 69 | AB48: HARRISON | AC48: 1 | AD48: ISAKSEN | AE48: 25 | AF48: KONÈ I. | AG48: 2 | AH48: LOFTUS-CHEEK | AI48: 1 | AJ48: MAZZITELLI | AK48: 1 | AL48: MESSIAS | AM48: 1 | AN48: THORSBY | AO48: 1 | AP48: ADDAI | AQ48: 1 | AR48: BOGA | AS48: 3 | AT48: BORRELLI | AU48: 1 | AV48: KILICSOY | AW48: 1 | AX48: MALEN | AY48: 87 | AZ48: TC WILLIAMS | BA48: PROVEDEL | BB48: LAZ | BC48: 5.351851852 | BD48: 27 | BE48: 6.259259259 | BF48: FC_Serie_A@googlegroups.com | BG48: MOUMBAGNA | BH48: l'attaccante alle prese con noie fisiche e prosegue il lavoro in disparte dal gruppo. Out nel prossimo turno di campionato, tempi di recupero da valutare. | BI48: MOUMBAGNA | BN48: COSENZA CALCIO 1914 | CC48: G1_NICKSTREGA | CD48: BAR MARIO | CE48: NICKSTREGA | CF48: CHAMPIONS LEAGUE - G. 1 | CH48: ZZ_PICCIOTTI NERAZZURRI | CI48: ZZ_PICCIOTTI NERAZZURRI | CJ48: ZZ_ALAN FORD'S TEAM | CK48: COPPA DI LEGA - FASE A GIRONI: 1a GIORNATA | CR48: 0 | CS48: 0 | CT48: PICCIOTTI NERAZZURRI | CU48: ALAN FORD'S TEAM | CV48: G1
A49: AC DERBOLINA | B49: CARNESECCHI | C49: 3 | D49: ROSSI | E49: 0 | F49: SPORTIELLO | G49: 0 | H49: ZANCHI | I49: 0 | J49: AKANJI | K49: 33 | L49: BARTESAGHI | M49: 1 | N49: DIMARCO | O49: 43 | P49: DOIG | Q49: 1 | R49: GALLO | S49: 2 | T49: IDZES | U49: 3 | V49: KOSSOUNOU | W49: 1 | X49: SCALVINI | Y49: 18 | Z49: EKKELENKAMP | AA49: 1 | AB49: ELMAS | AC49: 8 | AD49: KONÈ I. | AE49: 5 | AF49: RABIOT | AG49: 53 | AH49: ROWE | AI49: 18 | AJ49: SANTOS | AK49: 1 | AL49: THORSTVEDT | AM49: 1 | AN49: VOLPATO | AO49: 1 | AP49: BERARDI | AQ49: 75 | AR49: CASTRO | AS49: 3 | AT49: LUKAKU | AU49: 1 | AV49: NZOLA | AW49: 1 | AX49: RODRIGUEZ | AY49: 18 | AZ49: AC DERBOLINA | BA49: FALCONE | BB49: LEC | BC49: 5.222222222 | BD49: 36 | BE49: 6.416666667 | BF49: FC_Serie_B@googlegroups.com | BG49: NERES | BH49: l'ala offensiva azzurra KO il 4 gennaio contro la Lazio vittima di una distorsione alla caviglia sinistra. Ha deciso di operarsi, intervento (26 gennaio) riuscito. Ora in fase di recupero e potrebbe tornare arruolabile dalla metà di maggio. | BI49: NERES | BN49: CRIMSON | CC49: G1_BRUDYLEGHORN | CD49: MOMENTI DI GLORIA | CE49: BRUDYLEGHORN | CF49: CHAMPIONS LEAGUE - G. 1 | CH49: ZZ_GABRY FC | CI49: ZZ_GABRY FC | CJ49: ZZ_FC JAVIER ZANETTI | CK49: COPPA DI LEGA - FASE A GIRONI: 1a GIORNATA | CR49: 0 | CS49: 0 | CT49: GABRY FC | CU49: FC JAVIER ZANETTI | CV49: G1
A50: EROI DEL 1982 | B50: SKORUPSKI | C50: 21 | D50: PESSINA | E50: 0 | F50: RAVAGLIA | G50: 0 | H50: HAPPONEN | I50: 0 | J50: BIANCHETTI | K50: 4 | L50: CARACCIOLO | M50: 4 | N50: DELPRATO | O50: 4 | P50: DJIMSITI | Q50: 7 | R50: KRISTENSEN | S50: 5 | T50: TERRACCIANO F. | U50: 8 | V50: VASQUEZ | W50: 13 | X50: VOJVODA | Y50: 8 | Z50: ADOPO | AA50: 2 | AB50: CRISTANTE | AC50: 14 | AD50: FOFANA | AE50: 11 | AF50: KARLSTROM | AG50: 13 | AH50: MCKENNIE | AI50: 3 | AJ50: PRATI | AK50: 4 | AL50: SUCIC | AM50: 13 | AN50: ZALEWSKI | AO50: 9 | AP50: EKHATOR | AQ50: 8 | AR50: MOREO | AS50: 3 | AT50: PINAMONTI | AU50: 40 | AV50: SOULE' | AW50: 57 | AX50: SULEMANA K. | AY50: 3 | AZ50: EROI DEL 1982 | BA50: FRUCHTL | BB50: LEC | BC50: 0 | BD50: 0 | BE50: 0 | BF50: FC_Serie_B@googlegroups.com | BG50: NIASSE | BH50: il centrocampista alle prese con noie fisiche e out nel prossimo turno di campionato. Tempi di recupero da valutare. | BI50: NIASSE | BN50: DAGNE BOYS | CC50: G1_GRATTACHECCA | CD50: FERRON | CE50: GRATTACHECCA | CF50: CHAMPIONS LEAGUE - G. 1 | CH50: ZZ_PRO WC | CI50: ZZ_PRO WC | CJ50: ZZ_AC DERBOLINA | CK50: COPPA DI LEGA - FASE A GIRONI: 1a GIORNATA | CR50: 0 | CS50: 0 | CT50: PRO WC | CU50: AC DERBOLINA | CV50: G1
A51: LA10 BIELLA FC | B51: MERET | C51: 15 | D51: CONTINI | E51: 0 | F51: MILINKOVIC | G51: 0 | H51: FERRANTE | I51: 0 | J51: BELLANOVA | K51: 11 | L51: BERTOLA | M51: 1 | N51: GOSENS | O51: 11 | P51: LUCUMI' | Q51: 1 | R51: MARUSIC | S51: 1 | T51: RANIERI | U51: 1 | V51: TIAGO GABRIEL | W51: 1 | X51: VALENTI | Y51: 1 | Z51: BARELLA | AA51: 25 | AB51: LOCATELLI | AC51: 15 | AD51: LUIS HENRIQUE | AE51: 1 | AF51: ODGAARD | AG51: 1 | AH51: PAYERO | AI51: 1 | AJ51: PISILLI | AK51: 1 | AL51: THURAM K. | AM51: 7 | AN51: ZANIOLO | AO51: 15 | AP51: ADAMS | AQ51: 5 | AR51: KEAN | AS51: 105 | AT51: MEISTER | AU51: 1 | AV51: VARDY | AW51: 20 | AX51: YILDIZ | AY51: 5 | AZ51: LA10 BIELLA FC | BA51: PENEV | BB51: LEC | BC51: 0 | BD51: 0 | BE51: 0 | BF51: FC_Serie_B@googlegroups.com | BG51: OLIVERA | BH51: Il difensore assente sabato scorso contro il Como per un affaticamento muscolare lamentato nella rifinitura. Da valutare nei prossimi giorni, a rischio la sua presenza anche per lunedì al Maradona contro il Bologna. | BI51: OLIVERA | BN51: DAJE MO' | CC51: G1_MARIANNA | CD51: CLOCKWORK ORANGE FC | CE51: MARIANNA | CF51: CHAMPIONS LEAGUE - G. 1 | CH51: ZZ_CRIMSON | CI51: ZZ_CRIMSON | CJ51: ZZ_CACAO MERAVIGLIAO | CK51: COPPA DI LEGA - FASE A GIRONI: 1a GIORNATA | CR51: 0 | CS51: 0 | CT51: CRIMSON | CU51: CACAO MERAVIGLIAO | CV51: G1
A52: ATLETICO MA NON TROPPO | B52: BUTEZ | C52: 1 | D52: CAVLINA | E52: 0 | F52: VIGORITO | G52: 0 | H52: MENKE | I52: 0 | J52: ATHEKAME | K52: 1 | L52: DE WINTER | M52: 1 | N52: DIEGO CARLOS | O52: 2 | P52: GILA | Q52: 2 | R52: HEGGEM | S52: 3 | T52: HOLM | U52: 1 | V52: KEMPF | W52: 7 | X52: TOMORI | Y52: 1 | Z52: CAQUERET | AA52: 1 | AB52: CATALDI | AC52: 2 | AD52: COULIBALY | AE52: 3 | AF52: DE BRUYNE | AG52: 105 | AH52: GILMOUR | AI52: 1 | AJ52: JASHARI | AK52: 1 | AL52: LOFTUS-CHEEK | AM52: 1 | AN52: RICCI | AO52: 7 | AP52: DIAO | AQ52: 7 | AR52: DYBALA | AS52: 1 | AT52: LEAO | AU52: 15 | AV52: NKUNKU | AW52: 18 | AX52: VLAHOVIC | AY52: 105 | AZ52: ATLETICO MA NON TROPPO | BA52: SAMOOJA | BB52: LEC | BC52: 0 | BD52: 0 | BE52: 0 | BF52: FC_Serie_B@googlegroups.com | BG52: OYEGOKE | BH52: Il difensore degli scaligeri alle prese con un problema alla caviglia sinistra, campionato terminato con anticipo. | BI52: OYEGOKE | BN52: DAVINCI TEAM | CC52: G1_TC WILLIAMS | CD52: BLACK&WHITE | CE52: TC WILLIAMS | CF52: CHAMPIONS LEAGUE - G. 1 | CH52: ZZ_LA10 BIELLA FC | CI52: ZZ_LA10 BIELLA FC | CJ52: ZZ_FC BIBI 04 | CK52: COPPA DI LEGA - FASE A GIRONI: 1a GIORNATA | CR52: 0 | CS52: 0 | CT52: LA10 BIELLA FC | CU52: FC BIBI 04 | CV52: G1
A53: FC TRIPLETE | B53: OKOYE | C53: 18 | D53: NUNZIANTE | E53: 0 | F53: PADELLI | G53: 0 | H53: SAVA | I53: 0 | J53: BASCHIROTTO | K53: 7 | L53: BISSECK | M53: 5 | N53: MIRANDA | O53: 4 | P53: MORENO | Q53: 1 | R53: NORTON-CUFFY | S53: 4 | T53: PALESTRA | U53: 3 | V53: SOLET | W53: 3 | X53: VALLE | Y53: 3 | Z53: BALDANZI | AA53: 4 | AB53: FERGUSON | AC53: 5 | AD53: GUDMUNDSSON | AE53: 27 | AF53: ISAKSEN | AG53: 5 | AH53: MALINOVSKYI | AI53: 5 | AJ53: ORISTANIO | AK53: 3 | AL53: PASALIC | AM53: 4 | AN53: SOTTIL | AO53: 2 | AP53: COLOMBO | AQ53: 18 | AR53: ESPOSITO F.P. | AS53: 12 | AT53: FERGUSON E. | AU53: 108 | AV53: PICCOLI | AW53: 1 | AX53: SCAMACCA | AY53: 45 | AZ53: FC TRIPLETE | BA53: DONEDA | BB53: MIL | BC53: 0 | BD53: 0 | BE53: 0 | BF53: FC_Serie_B@googlegroups.com | BG53: PAVOLETTI | BH53: l'attaccante fermo da inizio aprile per un fastidio al ginocchio, ha deciso di operarsi e così per lui il campionato è terminato con anticipo. | BI53: PAVOLETTI | BN53: DEP LA CAROGNA | CC53: G1_LA MUCONE | CD53: FANTARAPID CACCAMO | CE53: LA MUCONE | CF53: CHAMPIONS LEAGUE - G. 1 | CH53: ZZ_2TWINS4EVER | CI53: ZZ_2TWINS4EVER | CJ53: ZZ_ATLETICO MA NON TROPPO | CK53: COPPA DI LEGA - FASE A GIRONI: 1a GIORNATA | CR53: 0 | CS53: 0 | CT53: 2TWINS4EVER | CU53: ATLETICO MA NON TROPPO | CV53: G1
A54: MOKA JUNIORS | B54: MOTTA | C54: 31 | D54: PROVEDEL | E54: 0 | F54: GIACOMONE | G54: 0 | H54: PANNOZZO | I54: 0 | J54: BEUKEMA | K54: 6 | L54: BREMER | M54: 10 | N54: BRITSCHGI | O54: 2 | P54: CARLOS AUGUSTO | Q54: 5 | R54: HERMOSO | S54: 2 | T54: LUPERTO | U54: 1 | V54: MARIPAN | W54: 5 | X54: MUHAREMOVIC | Y54: 1 | Z54: BAKOLA | AA54: 1 | AB54: CONCEICAO | AC54: 10 | AD54: DA CUNHA | AE54: 4 | AF54: FRENDRUP | AG54: 15 | AH54: MILLER | AI54: 2 | AJ54: PERRONE | AK54: 2 | AL54: PULISIC | AM54: 52 | AN54: ZIELINSKI | AO54: 2 | AP54: GIOVANE | AQ54: 3 | AR54: HOJLUND | AS54: 62 | AT54: MALEN | AU54: 26 | AV54: SIMEONE | AW54: 2 | AX54: VAZ | AY54: 1 | AZ54: MOKA JUNIORS | BA54: MAIGNAN | BB54: MIL | BC54: 5.442857143 | BD54: 35 | BE54: 6.228571429 | BF54: FC_Serie_B@googlegroups.com | BG54: PELLEGRINI LO. | BH54: il centrocampista fermato il 10 aprile da una lesione muscolare alla coscia destra, tentativo di rientro dalla prima metà di maggio, ma da valutare la convocazione già domenica a Parma. | BI54: PELLEGRINI LO. | BN54: DIAMANTE | CC54: G1_FC BIBI 04 | CD54: VIS FONNO | CE54: FC BIBI 04 | CF54: CHAMPIONS LEAGUE - G. 1 | CH54: ZZ_SPORTING 2000 | CI54: ZZ_SPORTING 2000 | CJ54: ZZ_REAL MADRINK | CK54: COPPA DI LEGA - FASE A GIRONI: 1a GIORNATA | CR54: 0 | CS54: 0 | CT54: SPORTING 2000 | CU54: REAL MADRINK | CV54: G1
A55: ATLETICO SGANITO | B55: DE GEA | C55: 4 | D55: LEZZERINI | E55: 0 | F55: CHRISTENSEN | G55: 0 | H55: DOLFI | I55: 0 | J55: ESTUPINAN | K55: 17 | L55: KALULU | M55: 12 | N55: KELLY | O55: 1 | P55: MINA | Q55: 1 | R55: N'DICKA | S55: 11 | T55: OBERT | U55: 1 | V55: VALERI | W55: 12 | X55: WESLEY | Y55: 22 | Z55: AEBISCHER | AA55: 7 | AB55: EDERSON | AC55: 18 | AD55: GAETANO | AE55: 1 | AF55: MAZZITELLI | AG55: 1 | AH55: MODRIC | AI55: 18 | AJ55: ORSOLINI | AK55: 94 | AL55: TRAMONI | AM55: 18 | AN55: VLASIC | AO55: 17 | AP55: DAVID | AQ55: 115 | AR55: DJURIC | AS55: 1 | AT55: DOUVIKAS | AU55: 13 | AV55: KUHN | AW55: 14 | AX55: LAURIENTÈ | AY55: 20 | AZ55: ATLETICO SGANITO | BA55: TERRACCIANO | BB55: MIL | BC55: 6 | BD55: 2 | BE55: 6 | BF55: FC_Serie_B@googlegroups.com | BG55: PIERAGNOLO | BH55: Il difensore alle prese con una lesione del legamento crociato anteriore da inizio ottobre, lungo stop e probabile campionato finito anzitempo. | BI55: PIERAGNOLO | BN55: DINAMO VIGIAK | CC55: G1_ISOLA CHE NON CE | CD55: SAN SIRO | CE55: ISOLA CHE NON CE | CF55: CHAMPIONS LEAGUE - G. 1 | CH55: ZZ_MAGODINA FC | CI55: ZZ_MAGODINA FC | CJ55: ZZ_AS QUARZA | CK55: COPPA DI LEGA - FASE A GIRONI: 1a GIORNATA | CR55: 0 | CS55: 0 | CT55: MAGODINA FC | CU55: AS QUARZA | CV55: G1
A56: GABRY FC | B56: DI GREGORIO | C56: 30 | D56: PERIN | E56: 0 | F56: PINSOGLIO | G56: 0 | H56: HULI | I56: 0 | J56: BUONGIORNO | K56: 18 | L56: CABAL | M56: 1 | N56: CAMBIASO | O56: 18 | P56: CIRCATI | Q56: 1 | R56: DODO' | S56: 6 | T56: MARTIN | U56: 2 | V56: RAMON | W56: 7 | X56: WALUKIEWICZ | Y56: 1 | Z56: BATURINA | AA56: 1 | AB56: BRESCIANINI | AC56: 1 | AD56: CASADEI | AE56: 5 | AF56: FAGIOLI | AG56: 1 | AH56: KOOPMEINERS | AI56: 8 | AJ56: NICO PAZ | AK56: 1 | AL56: VANDEPUTTE | AM56: 1 | AN56: ZHEGROVA | AO56: 25 | AP56: BONNY | AQ56: 25 | AR56: KRSTOVIC | AS56: 35 | AT56: ORBAN | AU56: 1 | AV56: SANABRIA | AW56: 1 | AX56: THURAM | AY56: 139 | AZ56: GABRY FC | BA56: TORRIANI | BB56: MIL | BC56: 0 | BD56: 0 | BE56: 0 | BF56: FC_Serie_B@googlegroups.com | BG56: PROVEDEL | BH56: Il portiere vittima di una lesione del legamento gleno-omerale. Operato, stop di circa quattro mesi e stagione finita anzitempo. | BI56: PROVEDEL | BN56: DREAM TIN TEAM | CC56: G1_AC DERBOLINA | CD56: LUCHINS | CE56: AC DERBOLINA | CF56: CHAMPIONS LEAGUE - G. 1 | CH56: ZZ_SPORTING VINAO | CI56: ZZ_SPORTING VINAO | CJ56: ZZ_JUVE93 | CK56: COPPA DI LEGA - FASE A GIRONI: 1a GIORNATA | CR56: 0 | CS56: 0 | CT56: SPORTING VINAO | CU56: JUVE93 | CV56: G1
A57: NAPOLI FOREVER | B57: MAIGNAN | C57: 19 | D57: TERRACCIANO | E57: 0 | F57: TORRIANI | G57: 0 | H57: DONEDA | I57: 0 | J57: BRADARIC | K57: 2 | L57: DI LORENZO | M57: 29 | N57: GASPAR | O57: 2 | P57: LYKOGIANNIS | Q57: 3 | R57: MANCINI | S57: 11 | T57: OSTIGARD | U57: 1 | V57: ROMAGNA | W57: 2 | X57: SPINAZZOLA | Y57: 2 | Z57: BERNABE' | AA57: 21 | AB57: MALDINI | AC57: 14 | AD57: MATIC | AE57: 4 | AF57: MCTOMINAY | AG57: 21 | AH57: PIEROTTI | AI57: 4 | AJ57: RAMADANI | AK57: 2 | AL57: VERGARA | AM57: 5 | AN57: ZACCAGNI | AO57: 31 | AP57: BANDA | AQ57: 2 | AR57: CAMBIAGHI | AS57: 5 | AT57: CANCELLIERI | AU57: 29 | AV57: GIMENEZ | AW57: 33 | AX57: SOLOMON | AY57: 7 | AZ57: NAPOLI FOREVER | BA57: CONTINI | BB57: NAP | BC57: 0 | BD57: 0 | BE57: 0 | BF57: FC_Serie_B@googlegroups.com | BG57: RAMON | BH57: squalificato nella 36a giornata di campionato | BI57: RAMON | BN57: EARL & SOUL GALEONE | CC57: G1_AC MORRONE | CD57: REAL GENOA | CE57: AC MORRONE | CF57: CHAMPIONS LEAGUE - G. 1 | CH57: ZZ_DIAMANTE | CI57: ZZ_DIAMANTE | CJ57: ZZ_COSENZA CALCIO 1914 | CK57: COPPA DI LEGA - FASE A GIRONI: 1a GIORNATA | CR57: 0 | CS57: 0 | CT57: DIAMANTE | CU57: COSENZA CALCIO 1914 | CV57: G1
A58: CACAO MERAVIGLIAO | B58: SVILAR | C58: 21 | D58: GOLLINI | E58: 0 | F58: ZELEZNY | G58: 0 | H58: DE MARZI | I58: 0 | J58: BASTONI | K58: 20 | L58: BERNASCONI | M58: 1 | N58: ISMAJLI | O58: 1 | P58: MARCANDALLI | Q58: 1 | R58: PARISI | S58: 1 | T58: PAVLOVIC | U58: 13 | V58: ROMAGNOLI | W58: 4 | X58: ZANOLI | Y58: 1 | Z58: DE ROON | AA58: 6 | AB58: FOLORUNSHO | AC58: 5 | AD58: FREULER | AE58: 1 | AF58: HARRISON | AG58: 1 | AH58: MKHITARYAN | AI58: 18 | AJ58: POLITANO | AK58: 39 | AL58: SAMARDZIC | AM58: 1 | AN58: STREFEZZA | AO58: 1 | AP58: ESPOSITO SE. | AQ58: 15 | AR58: FULLKRUG | AS58: 47 | AT58: PELLEGRINO | AU58: 42 | AV58: RASPADORI | AW58: 51 | AX58: VITINHA | AY58: 1 | AZ58: CACAO MERAVIGLIAO | BA58: FERRANTE | BB58: NAP | BC58: 0 | BD58: 0 | BE58: 0 | BF58: FC_Serie_B@googlegroups.com | BG58: SERDAR | BH58: Il centrocampista KO a metà febbraio vittima della rottura del legamento crociato del ginocchio sinistro. Operato, campionato finito anzitempo. | BI58: SERDAR | BN58: EL NIÑO | CC58: G1_FFC TOPENHAM | CD58: RED HOT CHILI PEPPERS | CE58: FFC TOPENHAM | CF58: CHAMPIONS LEAGUE - G. 1 | CH58: ZZ_BLUES BROTHERS | CI58: ZZ_BLUES BROTHERS | CJ58: ZZ_ELEVEN LIONS | CK58: COPPA DI LEGA - FASE A GIRONI: 1a GIORNATA | CR58: 0 | CS58: 0 | CT58: BLUES BROTHERS | CU58: ELEVEN LIONS | CV58: G1
A59: GRATTACHECCA | B59: FALCONE | C59: 1 | D59: FRUCHTL | E59: 0 | F59: SAMOOJA | G59: 0 | H59: PENEV | I59: 0 | J59: BELGHALI | K59: 2 | L59: CELIK | M59: 6 | N59: COCO | O59: 4 | P59: GABBIA | Q59: 3 | R59: GATTI | S59: 7 | T59: KABASELE | U59: 1 | V59: TAVARES | W59: 15 | X59: ZAPPACOSTA | Y59: 3 | Z59: ATTA | AA59: 21 | AB59: BASIC | AC59: 1 | AD59: CALHANOGLU | AE59: 57 | AF59: KONE' | AG59: 12 | AH59: MANDRAGORA | AI59: 1 | AJ59: MESSIAS | AK59: 3 | AL59: PELLEGRINI LO. | AM59: 6 | AN59: TAYLOR | AO59: 11 | AP59: BOGA | AQ59: 2 | AR59: BONAZZOLI | AS59: 6 | AT59: DAVIS | AU59: 26 | AV59: KILICSOY | AW59: 2 | AX59: ZAPATA | AY59: 47 | AZ59: GRATTACHECCA | BA59: MERET | BB59: NAP | BC59: 4.722222222 | BD59: 9 | BE59: 6.111111111 | BF59: FC_Serie_B@googlegroups.com | BG59: SOTTIL | BH59: L'ala offensiva dei salentini condizionato dal perdurare della lombalgia e le sue condizioni restano da valutare in vista di sabato contro la Juve nella 36a. | BI59: SOTTIL | BN59: EL NINO FC | CC59: G1_ACRESE | CD59: REAL BABBUDOIU | CE59: ACRESE | CF59: CHAMPIONS LEAGUE - G. 1 | CH59: ZZ_PARASITE | CI59: ZZ_PARASITE | CJ59: ZZ_DAVINCI TEAM | CK59: COPPA DI LEGA - FASE A GIRONI: 1a GIORNATA | CR59: 0 | CS59: 0 | CT59: PARASITE | CU59: DAVINCI TEAM | CV59: G1
A60: VIS TRONKO | B60: SOMMER | C60: 50 | D60: MARTINEZ | E60: 0 | F60: ADOMAVICIUS | G60: 0 | H60: DI GENNARO | I60: 0 | J60: ANGORI | K60: 3 | L60: CALABRESI | M60: 1 | N60: CANESTRELLI | O60: 2 | P60: CUADRADO | Q60: 8 | R60: DUMFRIES | S60: 15 | T60: KAMARA | U60: 5 | V60: PROVSTGAARD | W60: 2 | X60: RRAHMANI | Y60: 10 | Z60: AKINSANMIRO | AA60: 5 | AB60: ANGUISSA | AC60: 10 | AD60: ILING JUNIOR | AE60: 1 | AF60: LERIS | AG60: 2 | AH60: LOBOTKA | AI60: 10 | AJ60: LOYOLA | AK60: 8 | AL60: NDOUR | AM60: 2 | AN60: SAELEMAEKERS | AO60: 3 | AP60: DE KETELAERE | AQ60: 33 | AR60: DUROSINMI | AS60: 10 | AT60: LAUTARO | AU60: 37 | AV60: NOSLIN | AW60: 2 | AX60: STOJILKOVIC | AY60: 1 | AZ60: VIS TRONKO | BA60: MILINKOVIC | BB60: NAP | BC60: 5.648148148 | BD60: 27 | BE60: 6.203703704 | BF60: FC_Serie_B@googlegroups.com | BG60: TOMORI | BH60: squalificato nella 36a giornata di campionato | BI60: TOMORI | BN60: ELEVEN LIONS | CC60: G1_LA10 BIELLA FC | CD60: RISK UNITED | CE60: LA10 BIELLA FC | CF60: CHAMPIONS LEAGUE - G. 1 | CH60: ZZ_CINICI | CI60: ZZ_CINICI | CJ60: ZZ_RED HOT CHILI PEPPERS | CK60: COPPA DI LEGA - FASE A GIRONI: 1a GIORNATA | CR60: 0 | CS60: 0 | CT60: CINICI | CU60: RED HOT CHILI PEPPERS | CV60: G1
A61: ALAN FORD'S TEAM | B61: MOTTA | C61: 33 | D61: PROVEDEL | E61: 0 | F61: GIACOMONE | G61: 0 | H61: PANNOZZO | I61: 0 | J61: BASCHIROTTO | K61: 5 | L61: BASTONI | M61: 41 | N61: BIRAGHI | O61: 1 | P61: GALLO | Q61: 3 | R61: GOSENS | S61: 18 | T61: ISMAJLI | U61: 2 | V61: OBERT | W61: 1 | X61: WALUKIEWICZ | Y61: 2 | Z61: ANGUISSA | AA61: 39 | AB61: ATTA | AC61: 28 | AD61: DEIOLA | AE61: 2 | AF61: GUDMUNDSSON | AG61: 19 | AH61: RAMADANI | AI61: 1 | AJ61: VANDEPUTTE | AK61: 19 | AL61: ZACCAGNI | AM61: 25 | AN61: ZERBIN | AO61: 1 | AP61: BANDA | AQ61: 1 | AR61: BERARDI | AS61: 68 | AT61: DYBALA | AU61: 89 | AV61: MOREO | AW61: 15 | AX61: SIMEONE | AY61: 1 | AZ61: ALAN FORD'S TEAM | BA61: ASTALDI | BB61: PAR | BC61: 0 | BD61: 0 | BE61: 0 | BF61: FC_Serie_C@googlegroups.com | BG61: TRAMONI | BH61: Il calciatore non convocato dalla gara di Parma (25 aprile) per noie muscolari. Da valutare in settimana, proverà a tornare arruolabile dalla prima metà di maggio, ma a rischio la sua convocazione anche nel prossimo turno a Cremona. | BI61: TRAMONI | BN61: ENDYMION | CC61: G1_NORTH COCKS | CD61: ENDYMION | CE61: NORTH COCKS | CF61: CHAMPIONS LEAGUE - G. 1 | CH61: ZZ_I VAZANICCHI | CI61: ZZ_I VAZANICCHI | CJ61: ZZ_ETRURIA UNITED | CK61: COPPA DI LEGA - FASE A GIRONI: 1a GIORNATA | CR61: 0 | CS61: 0 | CT61: I VAZANICCHI | CU61: ETRURIA UNITED | CV61: G1
A62: CRIMSON | B62: CAPRILE | C62: 11 | D62: CIOCCI | E62: 0 | F62: SHERRI | G62: 0 | H62: AUSEKLIS | I62: 0 | J62: BREMER | K62: 34 | L62: DE WINTER | M62: 1 | N62: DI LORENZO | O62: 13 | P62: DIMARCO | Q62: 23 | R62: HERMOSO | S62: 13 | T62: JUAN JESUS | U62: 6 | V62: MARTIN | W62: 2 | X62: VOJVODA | Y62: 1 | Z62: BARELLA | AA62: 58 | AB62: DE ROON | AC62: 3 | AD62: DIOUF | AE62: 3 | AF62: ELLERTSSON | AG62: 1 | AH62: KEITA | AI62: 1 | AJ62: MORO | AK62: 1 | AL62: SOTTIL | AM62: 1 | AN62: ZALEWSKI | AO62: 23 | AP62: CANCELLIERI | AQ62: 13 | AR62: ESPOSITO F.P. | AS62: 3 | AT62: HOJLUND | AU62: 103 | AV62: PEDRO | AW62: 1 | AX62: STULIC | AY62: 1 | AZ62: CRIMSON | BA62: CORVI | BB62: PAR | BC62: 5 | BD62: 16 | BE62: 6.15625 | BF62: FC_Serie_C@googlegroups.com | BG62: VITIK | BH62: Il difensore non si allena da giovedì col gruppo a causa di un trauma distorsivo alla caviglia sinistra, verso il forfait lunedì a Napoli. Da valutare. | BI62: VITIK | BN62: EROI DEL 1982 | CC62: G1_SPORTING 2000 | CD62: DEP. LA CAROGNA | CE62: SPORTING 2000 | CF62: CHAMPIONS LEAGUE - G. 1 | CH62: ZZ_CAPIBARA SWOFFY FC | CI62: ZZ_CAPIBARA SWOFFY FC | CJ62: ZZ_TERZO MUNICIPIO | CK62: COPPA DI LEGA - FASE A GIRONI: 1a GIORNATA | CR62: 0 | CS62: 0 | CT62: CAPIBARA SWOFFY FC | CU62: TERZO MUNICIPIO | CV62: G1
A63: MANZO TEAM | B63: DE GEA | C63: 1 | D63: LEZZERINI | E63: 0 | F63: CHRISTENSEN | G63: 0 | H63: DOLFI | I63: 0 | J63: ANGELINO | K63: 2 | L63: COCO | M63: 3 | N63: DJIMSITI | O63: 2 | P63: GASPAR | Q63: 1 | R63: GHILARDI | S63: 1 | T63: KABASELE | U63: 1 | V63: N'DICKA | W63: 2 | X63: VASQUEZ | Y63: 1 | Z63: CRISTANTE | AA63: 5 | AB63: KONE' | AC63: 12 | AD63: MANDRAGORA | AE63: 1 | AF63: MCTOMINAY | AG63: 63 | AH63: MODRIC | AI63: 12 | AJ63: PRATI | AK63: 4 | AL63: PULISIC | AM63: 43 | AN63: VERGARA | AO63: 13 | AP63: ADAMS | AQ63: 12 | AR63: CASTRO | AS63: 12 | AT63: ESPOSITO SE. | AU63: 12 | AV63: FULLKRUG | AW63: 23 | AX63: SCAMACCA | AY63: 2 | AZ63: MANZO TEAM | BA63: RINALDI | BB63: PAR | BC63: 6.5 | BD63: 1 | BE63: 7 | BF63: FC_Serie_C@googlegroups.com | BG63: ZANOLI | BH63: Il cursore di fascia dei friulani a fine gennaio ha rimediato la lesione del legamento crociato anteriore del ginocchio destro. Operato, stop di almeno sei mesi. Campionato finito anzitempo. | BI63: ZANOLI | BN63: ETRURIA UNITED | CC63: G1_RASTA ZETA | CD63: FC NAPOLI 2012 | CE63: RASTA ZETA | CF63: CHAMPIONS LEAGUE - G. 1 | CH63: ZZ_BAR MARIO | CI63: ZZ_BAR MARIO | CJ63: ZZ_LUCHINS | CK63: COPPA DI LEGA - FASE A GIRONI: 1a GIORNATA | CR63: 0 | CS63: 0 | CT63: BAR MARIO | CU63: LUCHINS | CV63: G1
A64: AS QUARZA | B64: OKOYE | C64: 4 | D64: NUNZIANTE | E64: 0 | F64: PADELLI | G64: 0 | H64: SAVA | I64: 0 | J64: ACERBI | K64: 7 | L64: BIANCHETTI | M64: 2 | N64: GATTI | O64: 9 | P64: KELLY | Q64: 2 | R64: KEMPF | S64: 3 | T64: OSTIGARD | U64: 2 | V64: TIAGO GABRIEL | W64: 3 | X64: VEIGA | Y64: 3 | Z64: ADOPO | AA64: 2 | AB64: AKINSANMIRO | AC64: 2 | AD64: BERNABE' | AE64: 11 | AF64: CONCEICAO | AG64: 2 | AH64: FRENDRUP | AI64: 8 | AJ64: KONÈ I. | AK64: 2 | AL64: KOOPMEINERS | AM64: 6 | AN64: LOCATELLI | AO64: 6 | AP64: CAMBIAGHI | AQ64: 4 | AR64: KEAN | AS64: 11 | AT64: KUHN | AU64: 7 | AV64: VLAHOVIC | AW64: 154 | AX64: YILDIZ | AY64: 32 | AZ64: AS QUARZA | BA64: SUZUKI | BB64: PAR | BC64: 4.684210526 | BD64: 19 | BE64: 5.973684211 | BF64: FC_Serie_C@googlegroups.com | BG64: ZARAGOZA | BH64: L'ala offensiva giallorossa alle prese con un'infiammazione al ginocchio, forfait per lunedì scorso all'Olimpico contro la Fiorentina. Da valutare in vista di domenica a Parma nella 36a giornata di A. | BI64: ZARAGOZA | BN64: EUREKA | CC64: G1_PRO WC | CD64: DAVINCI TEAM | CE64: PRO WC | CF64: CHAMPIONS LEAGUE - G. 1 | CH64: ZZ_ABETO FC | CI64: ZZ_ABETO FC | CJ64: ZZ_EARL & SOUL GALEONE | CK64: COPPA DI LEGA - FASE A GIRONI: 1a GIORNATA | CR64: 0 | CS64: 0 | CT64: ABETO FC | CU64: EARL & SOUL GALEONE | CV64: G1
A65: FC JAVIER ZANETTI | B65: SOMMER | C65: 36 | D65: MARTINEZ | E65: 0 | F65: ADOMAVICIUS | G65: 0 | H65: DI GENNARO | I65: 0 | J65: BUONGIORNO | K65: 4 | L65: DUMFRIES | M65: 41 | N65: GILA | O65: 1 | P65: LUCUMI' | Q65: 6 | R65: LUPERTO | S65: 1 | T65: PONGRACIC | U65: 2 | V65: SCALVINI | W65: 13 | X65: ZAPPACOSTA | Y65: 6 | Z65: EDERSON | AA65: 24 | AB65: FAGIOLI | AC65: 1 | AD65: NICO PAZ | AE65: 4 | AF65: PISILLI | AG65: 1 | AH65: POBEGA | AI65: 1 | AJ65: POLITANO | AK65: 34 | AL65: SOHM | AM65: 7 | AN65: TRAMONI | AO65: 5 | AP65: GIOVANE | AQ65: 2 | AR65: KRSTOVIC | AS65: 38 | AT65: MORATA | AU65: 8 | AV65: PINAMONTI | AW65: 18 | AX65: SOULE' | AY65: 127 | AZ65: FC JAVIER ZANETTI | BA65: BAGLINI | BB65: PIS | BC65: 0 | BD65: 0 | BE65: 0 | BF65: FC_Serie_C@googlegroups.com | BG65: ZEMURA | BH65: Il difensore in recupero da una lesione muscolare al bicipite femorale della coscia sinistra; tentativo di rientro dalla prima metà di maggio, ma da valutare nella rifinitura le possibilità di convocazione per sabato a Cagliari. | BI65: ZEMURA | BN65: FANTARAPID CACCAMO | CC65: G1_REAL GRIFO | CD65: SALENTO FC | CE65: REAL GRIFO | CF65: CHAMPIONS LEAGUE - G. 1 | CH65: ZZ_VIS FONNO | CI65: ZZ_VIS FONNO | CJ65: ZZ_DEP. LA CAROGNA | CK65: COPPA DI LEGA - FASE A GIRONI: 1a GIORNATA | CR65: 0 | CS65: 0 | CT65: VIS FONNO | CU65: DEP. LA CAROGNA | CV65: G1
A66: MOMPRACEM | B66: BUTEZ | C66: 3 | D66: CAVLINA | E66: 0 | F66: VIGORITO | G66: 0 | H66: MENKE | I66: 0 | J66: BEUKEMA | K66: 2 | L66: CANESTRELLI | M66: 1 | N66: CARLOS AUGUSTO | O66: 7 | P66: DOIG | Q66: 3 | R66: MARUSIC | S66: 2 | T66: MINA | U66: 1 | V66: SPINAZZOLA | W66: 1 | X66: ZAPPA | Y66: 1 | Z66: COULIBALY | AA66: 2 | AB66: DA CUNHA | AC66: 3 | AD66: EKKELENKAMP | AE66: 6 | AF66: FAZZINI | AG66: 3 | AH66: LUIS HENRIQUE | AI66: 6 | AJ66: MKHITARYAN | AK66: 6 | AL66: PIEROTTI | AM66: 2 | AN66: ZIELINSKI | AO66: 7 | AP66: DE KETELAERE | AQ66: 13 | AR66: DIA | AS66: 17 | AT66: MALEN | AU66: 21 | AV66: MEISTER | AW66: 7 | AX66: RASPADORI | AY66: 16 | AZ66: MOMPRACEM | BA66: NICOLAS | BB66: PIS | BC66: 3.583333333 | BD66: 6 | BE66: 5.916666667 | BF66: FC_Serie_C@googlegroups.com | BG66: 0 | BH66: 00:00:00 | BI66: 0 | BN66: FANTASPEZIA | CH66: ZZ_LA BANDA DEGLI ONESTI | CI66: ZZ_LA BANDA DEGLI ONESTI | CJ66: ZZ_SVICAT | CK66: COPPA DI LEGA - FASE A GIRONI: 1a GIORNATA | CR66: 0 | CS66: 0 | CT66: LA BANDA DEGLI ONESTI | CU66: SVICAT | CV66: G1
A67: BAYER LEVERRUKE | B67: SKORUPSKI | C67: 17 | D67: PESSINA | E67: 0 | F67: RAVAGLIA | G67: 0 | H67: HAPPONEN | I67: 0 | J67: AHANOR | K67: 3 | L67: CIRCATI | M67: 1 | N67: EHIZIBUE | O67: 1 | P67: MANCINI | Q67: 4 | R67: NORTON-CUFFY | S67: 1 | T67: OLIVERA | U67: 2 | V67: PAVLOVIC | W67: 4 | X67: RANIERI | Y67: 1 | Z67: BASIC | AA67: 1 | AB67: CATALDI | AC67: 1 | AD67: FABBIAN | AE67: 15 | AF67: ISAKSEN | AG67: 2 | AH67: LOBOTKA | AI67: 18 | AJ67: MALINOVSKYI | AK67: 15 | AL67: RICCI | AM67: 1 | AN67: SAMARDZIC | AO67: 27 | AP67: LAURIENTÈ | AQ67: 17 | AR67: OPENDA | AS67: 123 | AT67: PICCOLI | AU67: 27 | AV67: SOLOMON | AW67: 11 | AX67: VITINHA | AY67: 4 | AZ67: BAYER LEVERRUKE | BA67: SCUFFET | BB67: PIS | BC67: 4.071428571 | BD67: 7 | BE67: 6.214285714 | BF67: FC_Serie_C@googlegroups.com | BG67: 0 | BH67: 00:00:00 | BI67: 0 | BN67: FANTONI & GINELLI | CC67: G1_SPORTING VINAO | CD67: SPORTING VINAO | CE67: BFC MARANO | CF67: EUROPA LEAGUE - G. 1 | CH67: ZZ_FERRON | CI67: ZZ_FERRON | CJ67: ZZ_RISK UNITED | CK67: COPPA DI LEGA - FASE A GIRONI: 1a GIORNATA | CT67: FERRON | CU67: RISK UNITED | CV67: G1
A68: FFC ROBERTO BONINSEGNA | B68: SVILAR | C68: 8 | D68: GOLLINI | E68: 0 | F68: ZELEZNY | G68: 0 | H68: DE MARZI | I68: 0 | J68: BISSECK | K68: 2 | L68: HEGGEM | M68: 2 | N68: MARCANDALLI | O68: 1 | P68: MARIPAN | Q68: 2 | R68: OBRADOR | S68: 1 | T68: PALESTRA | U68: 2 | V68: RRAHMANI | W68: 5 | X68: SMOLCIC | Y68: 2 | Z68: CALHANOGLU | AA68: 10 | AB68: GANDELMAN | AC68: 1 | AD68: NERES | AE68: 5 | AF68: ORSOLINI | AG68: 24 | AH68: SAELEMAEKERS | AI68: 2 | AJ68: TAYLOR | AK68: 5 | AL68: ZANIOLO | AM68: 1 | AN68: ZARAGOZA | AO68: 4 | AP68: COLOMBO | AQ68: 2 | AR68: DAVIS | AS68: 5 | AT68: DOUVIKAS | AU68: 5 | AV68: NKUNKU | AW68: 1 | AX68: THURAM | AY68: 152 | AZ68: FFC ROBERTO BONINSEGNA | BA68: SEMPER | BB68: PIS | BC68: 4.456521739 | BD68: 23 | BE68: 6.065217391 | BF68: FC_Serie_C@googlegroups.com | BG68: 0 | BH68: 00:00:00 | BI68: 0 | BN68: FC BIBI 04 | CC68: G1_DAJE MO' | CD68: DAJE MO' | CE68: ATLETICO PIGROTTO | CF68: EUROPA LEAGUE - G. 1 | CH68: ZZ_ROSSOBLU FC | CI68: ZZ_ROSSOBLU FC | CJ68: ZZ_RAT-MEN | CK68: COPPA DI LEGA - FASE A GIRONI: 1a GIORNATA | CR68: 0 | CS68: 0 | CT68: ROSSOBLU FC | CU68: RAT-MEN | CV68: G1
A69: REAL MADRINK | B69: MAIGNAN | C69: 1 | D69: TERRACCIANO | E69: 0 | F69: TORRIANI | G69: 0 | H69: DONEDA | I69: 0 | J69: BELGHALI | K69: 1 | L69: CELIK | M69: 4 | N69: DODO' | O69: 1 | P69: GABBIA | Q69: 1 | R69: LAZARO | S69: 1 | T69: ROMAGNOLI | U69: 1 | V69: VALENTI | W69: 2 | X69: ZORTEA | Y69: 1 | Z69: BALDANZI | AA69: 1 | AB69: ELMAS | AC69: 2 | AD69: FOFANA | AE69: 1 | AF69: FOLORUNSHO | AG69: 1 | AH69: MALDINI | AI69: 7 | AJ69: MATIC | AK69: 1 | AL69: SANTOS | AM69: 1 | AN69: THORSBY | AO69: 1 | AP69: BOGA | AQ69: 1 | AR69: LAUTARO | AS69: 176 | AT69: LUKAKU | AU69: 23 | AV69: RATKOV | AW69: 2 | AX69: VARDY | AY69: 7 | AZ69: REAL MADRINK | BA69: DE MARZI | BB69: ROM | BC69: 0 | BD69: 0 | BE69: 0 | BF69: FC_Serie_C@googlegroups.com | BG69: 0 | BH69: 00:00:00 | BI69: 0 | BN69: FC BIRO | CC69: G1_BLUES BROTHERS | CD69: BLUES BROTHERS | CE69: MOMPRACEM | CF69: EUROPA LEAGUE - G. 1 | CH69: ZZ_SALEX | CI69: ZZ_SALEX | CJ69: ZZ_CATENACCIO & CONTROPIEDE | CK69: COPPA DI LEGA - FASE A GIRONI: 1a GIORNATA | CR69: 0 | CS69: 0 | CT69: SALEX | CU69: CATENACCIO & CONTROPIEDE | CV69: G1
A70: BFC MARANO | B70: DI GREGORIO | C70: 25 | D70: PERIN | E70: 0 | F70: PINSOGLIO | G70: 0 | H70: HULI | I70: 0 | J70: BARTESAGHI | K70: 2 | L70: BERNASCONI | M70: 2 | N70: MIRANDA | O70: 1 | P70: MUHAREMOVIC | Q70: 1 | R70: SOLET | S70: 3 | T70: TOMORI | U70: 1 | V70: VALERI | W70: 2 | X70: VALLE | Y70: 1 | Z70: BERNARDESCHI | AA70: 2 | AB70: FERGUSON | AC70: 2 | AD70: FREULER | AE70: 5 | AF70: GAETANO | AG70: 2 | AH70: PELLEGRINI LO. | AI70: 2 | AJ70: PERRONE | AK70: 1 | AL70: STREFEZZA | AM70: 3 | AN70: TOURE' | AO70: 2 | AP70: DAVID | AQ70: 101 | AR70: KILICSOY | AS70: 1 | AT70: SARR | AU70: 3 | AV70: SULEMANA K. | AW70: 1 | AX70: ZAPATA | AY70: 3 | AZ70: BFC MARANO | BA70: GOLLINI | BB70: ROM | BC70: 0 | BD70: 0 | BE70: 0 | BF70: FC_Serie_C@googlegroups.com | BG70: 0 | BH70: 00:00:00 | BI70: 0 | BN70: FC FANTATLETICO | CC70: G1_AC ZDENEK | CD70: A.C. ZDENEK | CE70: EL NINO FC | CF70: EUROPA LEAGUE - G. 1 | CH70: ZZ_ALL BLACKS | CI70: ZZ_ALL BLACKS | CJ70: ZZ_PRENESTINO FC | CK70: COPPA DI LEGA - FASE A GIRONI: 1a GIORNATA | CR70: 0 | CS70: 0 | CT70: ALL BLACKS | CU70: PRENESTINO FC | CV70: G1
A71: KITEMMUOR TEAM | B71: CARNESECCHI | C71: 21 | D71: ROSSI | E71: 0 | F71: SPORTIELLO | G71: 0 | H71: ZANCHI | I71: 0 | J71: BELLANOVA | K71: 1 | L71: CAMBIASO | M71: 21 | N71: GUTIERREZ | O71: 3 | P71: HIEN | Q71: 1 | R71: JOAO MARIO | S71: 3 | T71: KALULU | U71: 5 | V71: RAMON | W71: 3 | X71: WESLEY | Y71: 11 | Z71: BATURINA | AA71: 7 | AB71: BELAHYANE | AC71: 2 | AD71: MCKENNIE | AE71: 1 | AF71: RABIOT | AG71: 3 | AH71: ROWE | AI71: 11 | AJ71: THURAM K. | AK71: 33 | AL71: VLASIC | AM71: 11 | AN71: ZHEGROVA | AO71: 17 | AP71: BONNY | AQ71: 33 | AR71: LEAO | AS71: 111 | AT71: PELLEGRINO | AU71: 23 | AV71: RODRIGUEZ | AW71: 11 | AX71: VAZ | AY71: 5 | AZ71: KITEMMUOR TEAM | BA71: SVILAR | BB71: ROM | BC71: 5.402777778 | BD71: 36 | BE71: 6.263888889 | BF71: FC_Serie_C@googlegroups.com | BG71: 0 | BH71: 00:00:00 | BI71: 0 | BN71: FC JAVIER ZANETTI | CC71: G1_DIAMANTE | CD71: DIAMANTE | CE71: TWOSTARS | CF71: EUROPA LEAGUE - G. 1 | CH71: ZZ_BORGOROSSO F.C. | CI71: ZZ_BORGOROSSO F.C. | CJ71: ZZ_MANCHO FERE | CK71: COPPA DI LEGA - FASE A GIRONI: 1a GIORNATA | CR71: 0 | CS71: 0 | CT71: BORGOROSSO F.C. | CU71: MANCHO FERE | CV71: G1
A72: TWOSTARS | B72: MERET | C72: 16 | D72: CONTINI | E72: 0 | F72: MILINKOVIC | G72: 0 | H72: FERRANTE | I72: 0 | J72: AKANJI | K72: 12 | L72: ANGORI | M72: 1 | N72: DELPRATO | O72: 3 | P72: KRISTENSEN | Q72: 4 | R72: LIROLA | S72: 1 | T72: PELLEGRINI LU. | U72: 1 | V72: TERRACCIANO F. | W72: 2 | X72: ZANOLI | Y72: 1 | Z72: BAILEY | AA72: 0 | AB72: CASADEI | AC72: 1 | AD72: DE BRUYNE | AE72: 51 | AF72: ODGAARD | AG72: 5 | AH72: PASALIC | AI72: 7 | AJ72: SERDAR | AK72: 1 | AL72: SUCIC | AM72: 18 | AN72: THORSTVEDT | AO72: 1 | AP72: CHEDDIRA | AQ72: 1 | AR72: CUTRONE | AS72: 0 | AT72: DIAO | AU72: 18 | AV72: FERGUSON E. | AW72: 80 | AX72: ORBAN | AY72: 1 | AZ72: TWOSTARS | BA72: ZELEZNY | BB72: ROM | BC72: 0 | BD72: 0 | BE72: 0 | BF72: FC_Serie_C@googlegroups.com | BG72: 0 | BH72: 00:00:00 | BI72: 0 | BN72: FC NAPOLI 2012 | CC72: G1_FRIUL GALAXI | CD72: FRIUL GALAXI | CE72: NEAPOLIS | CF72: EUROPA LEAGUE - G. 1 | CH72: ZZ_HOBBIT | CI72: ZZ_HOBBIT | CJ72: ZZ_BOMBARELLANDIA | CK72: COPPA DI LEGA - FASE A GIRONI: 1a GIORNATA | CR72: 0 | CS72: 0 | CT72: HOBBIT | CU72: BOMBARELLANDIA | CV72: G1
A73: ARMATA NERAZZURRA | B73: SUZUKI | C73: 1 | D73: CORVI | E73: 0 | F73: RINALDI | G73: 0 | H73: ASTALDI | I73: 0 | J73: AKANJI | K73: 4 | L73: BISSECK | M73: 1 | N73: HIEN | O73: 4 | P73: KALULU | Q73: 3 | R73: PARISI | S73: 1 | T73: ROMAGNOLI | U73: 3 | V73: SPINAZZOLA | W73: 1 | X73: ZAPPACOSTA | Y73: 4 | Z73: CALHANOGLU | AA73: 20 | AB73: FAGIOLI | AC73: 1 | AD73: FRATTESI | AE73: 4 | AF73: MALDINI | AG73: 13 | AH73: ROVELLA | AI73: 1 | AJ73: SUCIC | AK73: 15 | AL73: THURAM K. | AM73: 25 | AN73: ZALEWSKI | AO73: 1 | AP73: BONNY | AQ73: 20 | AR73: CHEDDIRA | AS73: 5 | AT73: DYBALA | AU73: 5 | AV73: NKUNKU | AW73: 30 | AX73: RASPADORI | AY73: 15 | AZ73: ARMATA NERAZZURRA | BA73: GURI | BB73: SAS | BC73: 0 | BD73: 0 | BE73: 0 | BF73: IMI_C1_girone_B@googlegroups.com | BG73: 0 | BH73: 00:00:00 | BI73: 0 | BN73: FC PARTIZAN DEGRADO | CC73: G1_ZEMANLANDIA AFC | CD73: ZEMANLANDIA AFC | CE73: CACAO MERAVIGLIAO | CF73: EUROPA LEAGUE - G. 1 | CH73: ZZ_BLACK&WHITE | CI73: ZZ_BLACK&WHITE | CJ73: ZZ_EU...REKA | CK73: COPPA DI LEGA - FASE A GIRONI: 1a GIORNATA | CR73: 0 | CS73: 0 | CT73: BLACK&WHITE | CU73: EU...REKA | CV73: G1
A74: FFC ALESSANDRO ALTOBELLI | B74: DI GREGORIO | C74: 15 | D74: PERIN | E74: 0 | F74: PINSOGLIO | G74: 0 | H74: HULI | I74: 0 | J74: DIEGO CARLOS | K74: 1 | L74: HEGGEM | M74: 1 | N74: HERMOSO | O74: 1 | P74: NELSSON | Q74: 1 | R74: OBRADOR | S74: 1 | T74: PALESTRA | U74: 3 | V74: TROILO | W74: 1 | X74: VALLE | Y74: 4 | Z74: CAQUERET | AA74: 1 | AB74: CRISTANTE | AC74: 25 | AD74: MALINOVSKYI | AE74: 1 | AF74: MANDRAGORA | AG74: 1 | AH74: MESSIAS | AI74: 1 | AJ74: MODRIC | AK74: 52 | AL74: SAMARDZIC | AM74: 2 | AN74: STREFEZZA | AO74: 2 | AP74: DIA | AQ74: 1 | AR74: ELPHEGE | AS74: 1 | AT74: ORBAN | AU74: 2 | AV74: PICCOLI | AW74: 5 | AX74: SULEMANA K. | AY74: 3 | AZ74: FFC ALESSANDRO ALTOBELLI | BA74: MURIC | BB74: SAS | BC74: 4.765625 | BD74: 32 | BE74: 6.078125 | BF74: IMI_C1_girone_B@googlegroups.com | BG74: 0 | BH74: 00:00:00 | BI74: 0 | BN74: FC ROMA SUD | CC74: G1_FC ZETAJ TEAM 1999 | CD74: FC ZETAJ TEAM 1999 | CE74: TORI BRIANZOLI | CF74: EUROPA LEAGUE - G. 1 | CH74: ZZ_ZERVENA VIGIAK | CI74: ZZ_ZERVENA VIGIAK | CJ74: ZZ_TITANS | CK74: COPPA DI LEGA - FASE A GIRONI: 1a GIORNATA | CR74: 0 | CS74: 0 | CT74: ZERVENA VIGIAK | CU74: TITANS | CV74: G1
A75: PRAVETTONI CC | B75: MERET | C75: 35 | D75: CONTINI | E75: 0 | F75: MILINKOVIC | G75: 0 | H75: FERRANTE | I75: 0 | J75: BARTESAGHI | K75: 1 | L75: CAMBIASO | M75: 25 | N75: CANESTRELLI | O75: 1 | P75: ESTUPINAN | Q75: 14 | R75: GATTI | S75: 5 | T75: PAVLOVIC | U75: 2 | V75: RANIERI | W75: 7 | X75: VALERI | Y75: 3 | Z75: ATTA | AA75: 16 | AB75: BERNARDESCHI | AC75: 1 | AD75: ELLERTSSON | AE75: 4 | AF75: ILIC | AG75: 1 | AH75: KOSTIC | AI75: 3 | AJ75: MCKENNIE | AK75: 5 | AL75: MCTOMINAY | AM75: 19 | AN75: TAYLOR | AO75: 11 | AP75: CAMARDA | AQ75: 1 | AR75: DAVID | AS75: 21 | AT75: ESPOSITO F.P. | AU75: 5 | AV75: RATKOV | AW75: 10 | AX75: ZAPATA | AY75: 1 | AZ75: PRAVETTONI CC | BA75: SATALINO | BB75: SAS | BC75: 0 | BD75: 0 | BE75: 0 | BF75: IMI_C1_girone_B@googlegroups.com | BG75: 0 | BH75: 00:00:00 | BI75: 0 | BN75: FC TRIPLETE | CC75: G1_ALL BLACKS | CD75: ALL BLACKS | CE75: ATLETICO MA NON TROPPO | CF75: EUROPA LEAGUE - G. 1 | CH75: ZZ_OLTREMARE | CI75: ZZ_OLTREMARE | CJ75: ZZ_REAL PIPPERO | CK75: COPPA DI LEGA - FASE A GIRONI: 1a GIORNATA | CR75: 0 | CS75: 0 | CT75: OLTREMARE | CU75: REAL PIPPERO | CV75: G1
A76: AS NEW TEAM | B76: BUTEZ | C76: 3 | D76: CAVLINA | E76: 0 | F76: VIGORITO | G76: 0 | H76: MENKE | I76: 0 | J76: GHILARDI | K76: 1 | L76: MIRANDA | M76: 2 | N76: N'DICKA | O76: 2 | P76: OSTIGARD | Q76: 2 | R76: PEZZELLA | S76: 3 | T76: RENSCH | U76: 1 | V76: TERRACCIANO F. | W76: 2 | X76: VOJVODA | Y76: 1 | Z76: BATURINA | AA76: 7 | AB76: CASADEI | AC76: 9 | AD76: EKKELENKAMP | AE76: 1 | AF76: FOFANA | AG76: 5 | AH76: KONE' | AI76: 48 | AJ76: VLASIC | AK76: 9 | AL76: ZERBIN | AM76: 1 | AN76: ZIELINSKI | AO76: 7 | AP76: DAVIS | AQ76: 1 | AR76: ESPOSITO SE. | AS76: 2 | AT76: NZOLA | AU76: 1 | AV76: PELLEGRINO | AW76: 7 | AX76: VARDY | AY76: 1 | AZ76: AS NEW TEAM | BA76: TURATI | BB76: SAS | BC76: 5.25 | BD76: 4 | BE76: 6 | BF76: IMI_C1_girone_B@googlegroups.com | BG76: 0 | BH76: 00:00:00 | BI76: 0 | BN76: FC ZETAJ TEAM 1999 | CC76: G1_FANTASPEZIA | CD76: FANTASPEZIA | CE76: MOMENTI DI GLORIA FMC | CF76: EUROPA LEAGUE - G. 1 | CH76: ZZ_ZEMANLANDIA AFC | CI76: ZZ_ZEMANLANDIA AFC | CJ76: ZZ_PICARD | CK76: COPPA DI LEGA - FASE A GIRONI: 1a GIORNATA | CR76: 0 | CS76: 0 | CT76: ZEMANLANDIA AFC | CU76: PICARD | CV76: G1
A77: INAZUMA ELEVEN | B77: SKORUPSKI | C77: 3 | D77: PESSINA | E77: 0 | F77: RAVAGLIA | G77: 0 | H77: HAPPONEN | I77: 0 | J77: AHANOR | K77: 1 | L77: CARLOS AUGUSTO | M77: 5 | N77: DODO' | O77: 3 | P77: RAMON | Q77: 2 | R77: SCALVINI | S77: 1 | T77: TIAGO GABRIEL | U77: 3 | V77: WESLEY | W77: 26 | X77: ZIOLKOWSKI | Y77: 1 | Z77: ANGUISSA | AA77: 3 | AB77: DE BRUYNE | AC77: 37 | AD77: EL AYNAOUI | AE77: 1 | AF77: FERGUSON | AG77: 2 | AH77: KARLSTROM | AI77: 2 | AJ77: PISILLI | AK77: 1 | AL77: PRATI | AM77: 7 | AN77: RICCI | AO77: 2 | AP77: ADAMS | AQ77: 5 | AR77: CASTRO | AS77: 11 | AT77: EKHATOR | AU77: 2 | AV77: SOULE' | AW77: 1 | AX77: YILDIZ | AY77: 55 | AZ77: INAZUMA ELEVEN | BA77: ISRAEL | BB77: TOR | BC77: 3.833333333 | BD77: 9 | BE77: 5.888888889 | BF77: IMI_C1_girone_B@googlegroups.com | BG77: 0 | BH77: 00:00:00 | BI77: 0 | BN77: FERRON | CC77: G1_PRENESTINO FC | CD77: PRENESTINO FC | CE77: FC JAVIER ZANETTI | CF77: EUROPA LEAGUE - G. 1 | CH77: ZZ_AS_TONMARTIN | CI77: ZZ_AS_TONMARTIN | CJ77: ZZ_BEETLES | CK77: COPPA DI LEGA - FASE A GIRONI: 1a GIORNATA | CR77: 0 | CS77: 0 | CT77: AS_TONMARTIN | CU77: BEETLES | CV77: G1
A78: TITANS | B78: CARNESECCHI | C78: 1 | D78: ROSSI | E78: 0 | F78: SPORTIELLO | G78: 0 | H78: ZANCHI | I78: 0 | J78: BASTONI | K78: 24 | L78: GUTIERREZ | M78: 4 | N78: HOLM | O78: 1 | P78: KABASELE | Q78: 1 | R78: KELLY | S78: 2 | T78: KRISTENSEN | U78: 7 | V78: SOLET | W78: 1 | X78: TAVARES | Y78: 1 | Z78: BARELLA | AA78: 46 | AB78: CONCEICAO | AC78: 57 | AD78: ISAKSEN | AE78: 3 | AF78: KONÈ I. | AG78: 1 | AH78: LOFTUS-CHEEK | AI78: 1 | AJ78: SANTOS | AK78: 3 | AL78: THORSBY | AM78: 1 | AN78: ZACCAGNI | AO78: 57 | AP78: ADDAI | AQ78: 1 | AR78: BERARDI | AS78: 53 | AT78: DIAO | AU78: 23 | AV78: LEAO | AW78: 7 | AX78: MENDY | AY78: 1 | AZ78: TITANS | BA78: PALEARI | BB78: TOR | BC78: 4.537037037 | BD78: 27 | BE78: 6.074074074 | BF78: IMI_C1_girone_B@googlegroups.com | BG78: 0 | BH78: 00:00:00 | BI78: 0 | BN78: FFC ALESSANDRO ALTOBELLI | CC78: G1_ATLETICO PIPPAO | CD78: ATLETICO PIPPAO | CE78: CAVESE | CF78: EUROPA LEAGUE - G. 1 | CH78: ZZ_LIVERCOOL | CI78: ZZ_LIVERCOOL | CJ78: ZZ_SFIGARENSE | CK78: COPPA DI LEGA - FASE A GIRONI: 1a GIORNATA | CR78: 0 | CS78: 0 | CT78: LIVERCOOL | CU78: SFIGARENSE | CV78: G1
A79: CACCIATORI FC | B79: SOMMER | C79: 25 | D79: MARTINEZ | E79: 0 | F79: ADOMAVICIUS | G79: 0 | H79: DI GENNARO | I79: 0 | J79: ANGELINO | K79: 2 | L79: DELPRATO | M79: 1 | N79: DJIMSITI | O79: 1 | P79: GOSENS | Q79: 31 | R79: KOSSOUNOU | S79: 2 | T79: MANCINI | U79: 7 | V79: MORENO | W79: 1 | X79: PELLEGRINI LU. | Y79: 1 | Z79: BASIC | AA79: 1 | AB79: GANDELMAN | AC79: 1 | AD79: KEITA | AE79: 1 | AF79: MATIC | AG79: 1 | AH79: PERRONE | AI79: 1 | AJ79: SOTTIL | AK79: 1 | AL79: SUSLOV | AM79: 1 | AN79: THORSTVEDT | AO79: 3 | AP79: BOGA | AQ79: 1 | AR79: DE KETELAERE | AS79: 11 | AT79: FULLKRUG | AU79: 7 | AV79: SOLOMON | AW79: 11 | AX79: THURAM | AY79: 74 | AZ79: CACCIATORI FC | BA79: SANTER | BB79: TOR | BC79: 0 | BD79: 0 | BE79: 0 | BF79: IMI_C1_girone_B@googlegroups.com | BG79: 0 | BH79: 00:00:00 | BI79: 0 | BN79: FFC ANGELO DOMENGHINI | CC79: G1_LA BANDA DEGLI ONESTI | CD79: LA BANDA DEGLI ONESTI | CE79: BAYER LEVERRUKE | CF79: EUROPA LEAGUE - G. 1 | CH79: ZZ_FFC LUISITO SUAREZ | CI79: ZZ_FFC LUISITO SUAREZ | CJ79: ZZ_CACCIATORI FC | CK79: COPPA DI LEGA - FASE A GIRONI: 1a GIORNATA | CR79: 0 | CS79: 0 | CT79: FFC LUISITO SUAREZ | CU79: CACCIATORI FC | CV79: G1
A80: NAPO-LEONI | B80: MOTTA | C80: 14 | D80: PROVEDEL | E80: 0 | F80: GIACOMONE | G80: 0 | H80: PANNOZZO | I80: 0 | J80: COMUZZO | K80: 1 | L80: DARMIAN | M80: 1 | N80: DIMARCO | O80: 48 | P80: DUMFRIES | Q80: 24 | R80: JUAN JESUS | S80: 1 | T80: MARUSIC | U80: 1 | V80: NORTON-CUFFY | W80: 1 | X80: SMOLCIC | Y80: 2 | Z80: DE ROON | AA80: 4 | AB80: FABBIAN | AC80: 8 | AD80: FREULER | AE80: 14 | AF80: LOBOTKA | AG80: 28 | AH80: LOCATELLI | AI80: 1 | AJ80: MKHITARYAN | AK80: 2 | AL80: PASALIC | AM80: 28 | AN80: VERGARA | AO80: 18 | AP80: BANDA | AQ80: 1 | AR80: BONAZZOLI | AS80: 2 | AT80: EKUBAN | AU80: 2 | AV80: PEDRO | AW80: 3 | AX80: SANABRIA | AY80: 8 | AZ80: NAPO-LEONI | BA80: SIVIERO | BB80: TOR | BC80: 0 | BD80: 0 | BE80: 0 | BF80: IMI_C1_girone_B@googlegroups.com | BG80: 0 | BH80: 00:00:00 | BI80: 0 | BN80: FFC EVARISTO BECCALOSSI | CC80: G1_FFC SANDRO MAZZOLA | CD80: FFC SANDRO MAZZOLA | CE80: A TUTTA CALLARA | CF80: EUROPA LEAGUE - G. 1 | CH80: ZZ_PRINCESS OF ETRURIA | CI80: ZZ_PRINCESS OF ETRURIA | CJ80: ZZ_PERDENTUS FC | CK80: COPPA DI LEGA - FASE A GIRONI: 1a GIORNATA | CR80: 0 | CS80: 0 | CT80: PRINCESS OF ETRURIA | CU80: PERDENTUS FC | CV80: G1
A81: YOUNG BOYS | B81: DE GEA | C81: 2 | D81: LEZZERINI | E81: 0 | F81: CHRISTENSEN | G81: 0 | H81: DOLFI | I81: 0 | J81: BELLANOVA | K81: 3 | L81: CARACCIOLO | M81: 1 | N81: CELIK | O81: 4 | P81: COCO | Q81: 1 | R81: DE WINTER | S81: 1 | T81: MARTIN | U81: 2 | V81: MUHAREMOVIC | W81: 1 | X81: ZORTEA | Y81: 1 | Z81: BERNEDE | AA81: 1 | AB81: EDERSON | AC81: 8 | AD81: FOLORUNSHO | AE81: 8 | AF81: JASHARI | AG81: 16 | AH81: SAELEMAEKERS | AI81: 3 | AJ81: TOURE' | AK81: 1 | AL81: TRAMONI | AM81: 1 | AN81: VANDEPUTTE | AO81: 4 | AP81: HOJLUND | AQ81: 87 | AR81: KRSTOVIC | AS81: 35 | AT81: LAURIENTÈ | AU81: 41 | AV81: MORATA | AW81: 41 | AX81: VITINHA | AY81: 1 | AZ81: YOUNG BOYS | BA81: NUNZIANTE | BB81: UDI | BC81: 0 | BD81: 0 | BE81: 0 | BF81: IMI_C1_girone_B@googlegroups.com | BG81: 0 | BH81: 00:00:00 | BI81: 0 | BN81: FFC GIUSEPPE BERGOMI | CC81: G1_AS NEW TEAM | CD81: AS NEW TEAM | CE81: MOKA JUNIORS | CF81: EUROPA LEAGUE - G. 1 | CH81: ZZ_FANTONI & GINELLI | CI81: ZZ_FANTONI & GINELLI | CJ81: ZZ_FK'S TEAM | CK81: COPPA DI LEGA - FASE A GIRONI: 1a GIORNATA | CR81: 0 | CS81: 0 | CT81: FANTONI & GINELLI | CU81: FK'S TEAM | CV81: G1
A82: DAGNE BOYS | B82: SVILAR | C82: 11 | D82: GOLLINI | E82: 0 | F82: ZELEZNY | G82: 0 | H82: DE MARZI | I82: 0 | J82: BASCHIROTTO | K82: 6 | L82: BELGHALI | M82: 3 | N82: BERNASCONI | O82: 2 | P82: BREMER | Q82: 23 | R82: DI LORENZO | S82: 7 | T82: GABBIA | U82: 1 | V82: GARCIA | W82: 1 | X82: MINA | Y82: 2 | Z82: BRESCIANINI | AA82: 3 | AB82: GUDMUNDSSON | AC82: 9 | AD82: KOOPMEINERS | AE82: 1 | AF82: ODGAARD | AG82: 1 | AH82: PELLEGRINI LO. | AI82: 3 | AJ82: POLITANO | AK82: 5 | AL82: ROWE | AM82: 1 | AN82: ZANIOLO | AO82: 3 | AP82: CAMBIAGHI | AQ82: 1 | AR82: DOUVIKAS | AS82: 37 | AT82: GIOVANE | AU82: 1 | AV82: LAUTARO | AW82: 133 | AX82: VLAHOVIC | AY82: 12 | AZ82: DAGNE BOYS | BA82: OKOYE | BB82: UDI | BC82: 5.035714286 | BD82: 28 | BE82: 6.053571429 | BF82: IMI_C1_girone_B@googlegroups.com | BG82: 0 | BH82: 00:00:00 | BI82: 0 | BN82: FFC LUISITO SUAREZ | CC82: G1_P CUATRO | CD82: P CUATRO | CE82: FIORENTINA | CF82: EUROPA LEAGUE - G. 1 | CH82: ZZ_REAL FARNESE | CI82: ZZ_REAL FARNESE | CJ82: ZZ_PAPAVERI E PAPERE | CK82: COPPA DI LEGA - FASE A GIRONI: 1a GIORNATA | CR82: 0 | CS82: 0 | CT82: REAL FARNESE | CU82: PAPAVERI E PAPERE | CV82: G1
A83: OSTIAMARE FC | B83: ISRAEL | C83: 16 | D83: PALEARI | E83: 0 | F83: SIVIERO | G83: 0 | H83: SANTER | I83: 0 | J83: ACERBI | K83: 32 | L83: BEUKEMA | M83: 1 | N83: BIANCHETTI | O83: 1 | P83: KEMPF | Q83: 1 | R83: LAZARO | S83: 1 | T83: LUPERTO | U83: 1 | V83: RRAHMANI | W83: 11 | X83: VASQUEZ | Y83: 7 | Z83: CATALDI | AA83: 2 | AB83: COULIBALY | AC83: 2 | AD83: DA CUNHA | AE83: 2 | AF83: DEIOLA | AG83: 1 | AH83: FRENDRUP | AI83: 11 | AJ83: GAETANO | AK83: 3 | AL83: GRASSI | AM83: 1 | AN83: ORSOLINI | AO83: 16 | AP83: CANCELLIERI | AQ83: 16 | AR83: MALEN | AS83: 62 | AT83: PINAMONTI | AU83: 41 | AV83: RODRIGUEZ | AW83: 20 | AX83: SIMEONE | AY83: 42 | AZ83: OSTIAMARE FC | BA83: PADELLI | BB83: UDI | BC83: 5.25 | BD83: 2 | BE83: 6.25 | BF83: IMI_C1_girone_B@googlegroups.com | BG83: 0 | BH83: 00:00:00 | BI83: 0 | BN83: FFC MARIO CORSO | CC83: G1_INAZUMA ELEVEN | CD83: INAZUMA ELEVEN | CE83: FC TRIPLETE | CF83: EUROPA LEAGUE - G. 1 | CH83: ZZ_YOUNG BOYS | CI83: ZZ_YOUNG BOYS | CJ83: ZZ_CARLITO'S VELEZ | CK83: COPPA DI LEGA - FASE A GIRONI: 1a GIORNATA | CR83: 0 | CS83: 0 | CT83: YOUNG BOYS | CU83: CARLITO'S VELEZ | CV83: G1
A84: ZEMANLANDIA AFC | B84: MAIGNAN | C84: 35 | D84: TERRACCIANO | E84: 0 | F84: TORRIANI | G84: 0 | H84: DONEDA | I84: 0 | J84: BERTOLA | K84: 5 | L84: BUONGIORNO | M84: 15 | N84: CIRCATI | O84: 1 | P84: GILA | Q84: 1 | R84: LUCUMI' | S84: 15 | T84: TOMORI | U84: 10 | V84: VALENTI | W84: 1 | X84: ZAPPA | Y84: 5 | Z84: BERNABE' | AA84: 15 | AB84: DELE-BASHIRU | AC84: 3 | AD84: NERES | AE84: 25 | AF84: NICO PAZ | AG84: 1 | AH84: PULISIC | AI84: 25 | AJ84: RABIOT | AK84: 35 | AL84: SERDAR | AM84: 3 | AN84: SERGI ROBERTO | AO84: 1 | AP84: COLOMBO | AQ84: 30 | AR84: GIMENEZ | AS84: 42 | AT84: OPENDA | AU84: 26 | AV84: SCAMACCA | AW84: 1 | AX84: VAZ | AY84: 1 | AZ84: ZEMANLANDIA AFC | BA84: SAVA | BB84: UDI | BC84: 3.5 | BD84: 7 | BE84: 5.571428571 | BF84: IMI_C1_girone_B@googlegroups.com | BG84: 0 | BH84: 00:00:00 | BI84: 0 | BN84: FFC ROBERTO BONINSEGNA | CC84: G1_EL NIÑO | CD84: EL NIÑO | CE84: MARUEGO BOYS | CF84: EUROPA LEAGUE - G. 1 | CH84: ZZ_UDINESE 1896 | CI84: ZZ_UDINESE 1896 | CJ84: ZZ_BEAUTIFUL BUT LOSERS | CK84: COPPA DI LEGA - FASE A GIRONI: 1a GIORNATA | CR84: 0 | CS84: 0 | CT84: UDINESE 1896 | CU84: BEAUTIFUL BUT LOSERS | CV84: G1
A85: A'NFAMI | B85: CAPRILE | C85: 1 | D85: CIOCCI | E85: 0 | F85: SHERRI | G85: 0 | H85: AUSEKLIS | I85: 0 | J85: DELPRATO | K85: 2 | L85: HERMOSO | M85: 1 | N85: KEMPF | O85: 2 | P85: OSTIGARD | Q85: 1 | R85: PALESTRA | S85: 2 | T85: PONGRACIC | U85: 2 | V85: RAMON | W85: 2 | X85: TERRACCIANO F. | Y85: 4 | Z85: BATURINA | AA85: 14 | AB85: BERNABE' | AC85: 13 | AD85: CRISTANTE | AE85: 1 | AF85: EDERSON | AG85: 8 | AH85: GUDMUNDSSON | AI85: 23 | AJ85: MCTOMINAY | AK85: 97 | AL85: ODGAARD | AM85: 2 | AN85: PASALIC | AO85: 13 | AP85: LAURIENTÈ | AQ85: 1 | AR85: PINAMONTI | AS85: 38 | AT85: RASPADORI | AU85: 7 | AV85: RODRIGUEZ | AW85: 13 | AX85: VITINHA | AY85: 1 | AZ85: A'NFAMI | BA85: CASTAGNINI | BB85: VER | BC85: 0 | BD85: 0 | BE85: 0 | BF85: IMI_C2_girone_A@googlegroups.com | BG85: 0 | BH85: 00:00:00 | BI85: 0 | BN85: FFC SANDRO MAZZOLA | CC85: G1_BOMBARELLANDIA | CD85: BOMBARELLANDIA | CE85: ALAN FORD'S TEAM | CF85: EUROPA LEAGUE - G. 1 | CH85: ZZ_A'NFAMI | CI85: ZZ_A'NFAMI | CJ85: ZZ_AL-ZENA | CK85: COPPA DI LEGA - FASE A GIRONI: 1a GIORNATA | CR85: 0 | CS85: 0 | CT85: A'NFAMI | CU85: AL-ZENA | CV85: G1
A86: LOS | B86: MAIGNAN | C86: 1 | D86: TERRACCIANO | E86: 0 | F86: TORRIANI | G86: 0 | H86: DONEDA | I86: 0 | J86: BASCHIROTTO | K86: 3 | L86: CABAL | M86: 7 | N86: CARACCIOLO | O86: 1 | P86: KABASELE | Q86: 1 | R86: KAMARA | S86: 5 | T86: LUPERTO | U86: 4 | V86: MANCINI | W86: 9 | X86: ZAPPA | Y86: 1 | Z86: ATTA | AA86: 9 | AB86: BALDANZI | AC86: 1 | AD86: CATALDI | AE86: 1 | AF86: LOCATELLI | AG86: 3 | AH86: PAYERO | AI86: 1 | AJ86: RAMADANI | AK86: 1 | AL86: TRAMONI | AM86: 2 | AN86: ZALEWSKI | AO86: 5 | AP86: BONAZZOLI | AQ86: 11 | AR86: MOREO | AS86: 11 | AT86: SARR | AU86: 1 | AV86: SOULE' | AW86: 62 | AX86: SULEMANA K. | AY86: 1 | AZ86: LOS | BA86: MONTIPO' | BB86: VER | BC86: 4.772727273 | BD86: 33 | BE86: 6.136363636 | BF86: IMI_C2_girone_A@googlegroups.com | BG86: 0 | BH86: 00:00:00 | BI86: 0 | BN86: FFC TARCISIO BURGNICH | CC86: G1_TIME OUT | CD86: TIME OUT | CE86: ANDREAS | CF86: EUROPA LEAGUE - G. 1 | CH86: ZZ_FFC EVARISTO BECCALOSSI | CI86: ZZ_FFC EVARISTO BECCALOSSI | CJ86: ZZ_GIAMBOTTINO FC | CK86: COPPA DI LEGA - FASE A GIRONI: 1a GIORNATA | CR86: 0 | CS86: 0 | CT86: FFC EVARISTO BECCALOSSI | CU86: GIAMBOTTINO FC | CV86: G1
A87: PIGGI | B87: CARNESECCHI | C87: 17 | D87: ROSSI | E87: 0 | F87: SPORTIELLO | G87: 0 | H87: ZANCHI | I87: 0 | J87: AHANOR | K87: 1 | L87: DI LORENZO | M87: 23 | N87: DODO' | O87: 21 | P87: GILA | Q87: 1 | R87: JOAO MARIO | S87: 1 | T87: N'DICKA | U87: 1 | V87: VASQUEZ | W87: 3 | X87: VOJVODA | Y87: 1 | Z87: ANGUISSA | AA87: 15 | AB87: GINEITIS | AC87: 1 | AD87: KARLSTROM | AE87: 1 | AF87: KONÈ I. | AG87: 1 | AH87: KOOPMEINERS | AI87: 1 | AJ87: ORSOLINI | AK87: 37 | AL87: PISILLI | AM87: 5 | AN87: ZIELINSKI | AO87: 1 | AP87: ADAMS | AQ87: 35 | AR87: BELOTTI | AS87: 1 | AT87: BERARDI | AU87: 1 | AV87: KRSTOVIC | AW87: 18 | AX87: SOLOMON | AY87: 1 | AZ87: PIGGI | BA87: PERILLI | BB87: VER | BC87: 3.833333333 | BD87: 3 | BE87: 6.166666667 | BF87: IMI_C2_girone_A@googlegroups.com | BG87: 0 | BH87: 00:00:00 | BI87: 0 | BN87: FFC TOPENHAM | CC87: G1_ELEVEN LIONS | CD87: ELEVEN LIONS | CE87: ATLETICO SGANITO | CF87: EUROPA LEAGUE - G. 1 | CH87: ZZ_LOS | CI87: ZZ_LOS | CJ87: ZZ_LUPIN III | CK87: COPPA DI LEGA - FASE A GIRONI: 1a GIORNATA | CR87: 0 | CS87: 0 | CT87: LOS | CU87: LUPIN III | CV87: G1
A88: BEAUTIFUL BUT LOSERS | B88: BUTEZ | C88: 8 | D88: CAVLINA | E88: 0 | F88: VIGORITO | G88: 0 | H88: MENKE | I88: 0 | J88: CAMBIASO | K88: 7 | L88: DJIMSITI | M88: 4 | N88: HIEN | O88: 1 | P88: HOLM | Q88: 2 | R88: KALULU | S88: 3 | T88: KELLY | U88: 18 | V88: MIRANDA | W88: 1 | X88: ZORTEA | Y88: 1 | Z88: BARELLA | AA88: 40 | AB88: BERISHA | AC88: 5 | AD88: ELMAS | AE88: 1 | AF88: FADERA | AG88: 7 | AH88: FERGUSON | AI88: 7 | AJ88: FREULER | AK88: 2 | AL88: GANDELMAN | AM88: 2 | AN88: MANDRAGORA | AO88: 3 | AP88: DUROSINMI | AQ88: 2 | AR88: NZOLA | AS88: 3 | AT88: PICCOLI | AU88: 3 | AV88: THURAM | AW88: 66 | AX88: VARDY | AY88: 2 | AZ88: BEAUTIFUL BUT LOSERS | BA88: TONIOLO | BB88: VER | BC88: 0 | BD88: 0 | BE88: 0 | BF88: IMI_C2_girone_A@googlegroups.com | BG88: 0 | BH88: 00:00:00 | BI88: 0 | BN88: FIORENTINA | CC88: G1_FFC GIUSEPPE BERGOMI | CD88: FFC GIUSEPPE BERGOMI | CE88: TROPEA | CF88: EUROPA LEAGUE - G. 1 | CH88: ZZ_AS NEW TEAM | CI88: ZZ_AS NEW TEAM | CJ88: ZZ_RED-GREEN | CK88: COPPA DI LEGA - FASE A GIRONI: 1a GIORNATA | CR88: 0 | CS88: 0 | CT88: AS NEW TEAM | CU88: RED-GREEN | CV88: G1
A89: LUPIN III | B89: DE GEA | C89: 12 | D89: LEZZERINI | E89: 0 | F89: CHRISTENSEN | G89: 0 | H89: DOLFI | I89: 0 | J89: BELLANOVA | K89: 28 | L89: CUADRADO | M89: 2 | N89: DE WINTER | O89: 2 | P89: DIMARCO | Q89: 35 | R89: GOSENS | S89: 22 | T89: MARUSIC | U89: 2 | V89: MINA | W89: 2 | X89: NORTON-CUFFY | Y89: 2 | Z89: COULIBALY | AA89: 2 | AB89: ELLERTSSON | AC89: 2 | AD89: ISAKSEN | AE89: 10 | AF89: MATIC | AG89: 2 | AH89: MIRETTI | AI89: 5 | AJ89: TAYLOR | AK89: 5 | AL89: TETE MORENTE | AM89: 0 | AN89: ZHEGROVA | AO89: 2 | AP89: CAMARDA | AQ89: 8 | AR89: FERGUSON E. | AS89: 30 | AT89: LEAO | AU89: 30 | AV89: OKEREKE | AW89: 1 | AX89: SIMEONE | AY89: 2 | AZ89: LUPIN III | BA89: AHANOR | BB89: ATA | BC89: 5.710526316 | BD89: 19 | BE89: 5.789473684 | BF89: IMI_C2_girone_A@googlegroups.com | BG89: 0 | BH89: 00:00:00 | BI89: 0 | BN89: FK'S TEAM | CC89: G1_SALEX | CD89: SALEX | CE89: PICCIOTTI NERAZZURRI | CF89: EUROPA LEAGUE - G. 1 | CH89: ZZ_3T | CI89: ZZ_3T | CJ89: ZZ_OSTIAMARE FC | CK89: COPPA DI LEGA - FASE A GIRONI: 1a GIORNATA | CR89: 0 | CS89: 0 | CT89: 3T | CU89: OSTIAMARE FC | CV89: G1
A90: PRINCESS OF ETRURIA | B90: SKORUPSKI | C90: 1 | D90: PESSINA | E90: 0 | F90: RAVAGLIA | G90: 0 | H90: HAPPONEN | I90: 0 | J90: BEUKEMA | K90: 1 | L90: GABBIA | M90: 1 | N90: GHILARDI | O90: 1 | P90: RATERINK | Q90: 1 | R90: RENSCH | S90: 3 | T90: SMOLCIC | U90: 1 | V90: SPINAZZOLA | W90: 7 | X90: ZIOLKOWSKI | Y90: 1 | Z90: DIOUF | AA90: 1 | AB90: EL AYNAOUI | AC90: 15 | AD90: KONE' | AE90: 41 | AF90: MCKENNIE | AG90: 1 | AH90: MODRIC | AI90: 12 | AJ90: SAELEMAEKERS | AK90: 7 | AL90: VERGARA | AM90: 1 | AN90: ZARAGOZA | AO90: 3 | AP90: BOGA | AQ90: 4 | AR90: DIAO | AS90: 15 | AT90: DYBALA | AU90: 67 | AV90: ESPOSITO SE. | AW90: 1 | AX90: LAUTARO | AY90: 81 | AZ90: PRINCESS OF ETRURIA | BA90: BELLANOVA | BB90: ATA | BC90: 5.785714286 | BD90: 21 | BE90: 5.833333333 | BF90: IMI_C2_girone_A@googlegroups.com | BG90: 0 | BH90: 00:00:00 | BI90: 0 | BN90: FRIUL GALAXI | CC90: G1_PANZER8 | CD90: PANZER8 | CE90: TEAM ENO | CF90: EUROPA LEAGUE - G. 1 | CH90: ZZ_FC ROMA SUD | CI90: ZZ_FC ROMA SUD | CJ90: ZZ_PRAVETTONI CC | CK90: COPPA DI LEGA - FASE A GIRONI: 1a GIORNATA | CR90: 0 | CS90: 0 | CT90: FC ROMA SUD | CU90: PRAVETTONI CC | CV90: G1
A91: FC BIRO | B91: DI GREGORIO | C91: 31 | D91: PERIN | E91: 0 | F91: PINSOGLIO | G91: 0 | H91: HULI | I91: 0 | J91: COCO | K91: 1 | L91: GUTIERREZ | M91: 2 | N91: LUCUMI' | O91: 2 | P91: MARIPAN | Q91: 1 | R91: OLIVERA | S91: 2 | T91: PEZZELLA | U91: 2 | V91: RANIERI | W91: 1 | X91: WESLEY | Y91: 16 | Z91: EKKELENKAMP | AA91: 2 | AB91: FOLORUNSHO | AC91: 3 | AD91: GAETANO | AE91: 1 | AF91: PULISIC | AG91: 43 | AH91: SOTTIL | AI91: 4 | AJ91: SUCIC | AK91: 18 | AL91: THORSTVEDT | AM91: 1 | AN91: ZACCAGNI | AO91: 61 | AP91: CANCELLIERI | AQ91: 3 | AR91: CASTRO | AS91: 2 | AT91: FULLKRUG | AU91: 16 | AV91: RATKOV | AW91: 19 | AX91: STULIC | AY91: 1 | AZ91: FC BIRO | BA91: BERNASCONI | BB91: ATA | BC91: 6.022727273 | BD91: 22 | BE91: 6.090909091 | BF91: IMI_C2_girone_A@googlegroups.com | BG91: 0 | BH91: 00:00:00 | BI91: 0 | BN91: FUFF TEAM | CC91: G1_SVICAT | CD91: SVICAT | CE91: VIS TRONKO | CF91: EUROPA LEAGUE - G. 1 | CH91: ZZ_ARMATA NERAZZURRA | CI91: ZZ_ARMATA NERAZZURRA | CJ91: ZZ_NAPO-LEONI | CK91: COPPA DI LEGA - FASE A GIRONI: 1a GIORNATA | CR91: 0 | CS91: 0 | CT91: ARMATA NERAZZURRA | CU91: NAPO-LEONI | CV91: G1
A92: NOJOSETTE | B92: SOMMER | C92: 13 | D92: MARTINEZ | E92: 0 | F92: ADOMAVICIUS | G92: 0 | H92: DI GENNARO | I92: 0 | J92: BIRAGHI | K92: 3 | L92: BREMER | M92: 5 | N92: BUONGIORNO | O92: 4 | P92: CELIK | Q92: 3 | R92: ESTUPINAN | S92: 7 | T92: LAZARO | U92: 1 | V92: TOMORI | W92: 15 | X92: VITIK | Y92: 1 | Z92: FAZZINI | AA92: 5 | AB92: FOFANA | AC92: 11 | AD92: FRATTESI | AE92: 13 | AF92: FRENDRUP | AG92: 11 | AH92: LOBOTKA | AI92: 13 | AJ92: MKHITARYAN | AK92: 3 | AL92: PRATI | AM92: 3 | AN92: THORSBY | AO92: 1 | AP92: ALMQVIST | AQ92: 1 | AR92: COLOMBO | AS92: 5 | AT92: DE KETELAERE | AU92: 17 | AV92: ESPOSITO F.P. | AW92: 3 | AX92: HOJLUND | AY92: 101 | AZ92: NOJOSETTE | BA92: DJIMSITI | BB92: ATA | BC92: 5.790322581 | BD92: 31 | BE92: 5.85483871 | BF92: IMI_C2_girone_A@googlegroups.com | BG92: 0 | BH92: 00:00:00 | BI92: 0 | BN92: GABRY FC | CC92: G1_VOTANTONIO | CD92: VOTANTONIO | CE92: STROMBOLI | CF92: EUROPA LEAGUE - G. 1 | CH92: ZZ_FC BIRO | CI92: ZZ_FC BIRO | CJ92: ZZ_PIGGI | CK92: COPPA DI LEGA - FASE A GIRONI: 1a GIORNATA | CR92: 0 | CS92: 0 | CT92: FC BIRO | CU92: PIGGI | CV92: G1
A93: SFIGARENSE | B93: MERET | C93: 1 | D93: CONTINI | E93: 0 | F93: MILINKOVIC | G93: 0 | H93: FERRANTE | I93: 0 | J93: BARTESAGHI | K93: 1 | L93: BELGHALI | M93: 5 | N93: CIRCATI | O93: 1 | P93: DIEGO CARLOS | Q93: 3 | R93: GATTI | S93: 11 | T93: PAVLOVIC | U93: 11 | V93: RRAHMANI | W93: 11 | X93: TIAGO GABRIEL | Y93: 3 | Z93: BRESCIANINI | AA93: 13 | AB93: CALHANOGLU | AC93: 22 | AD93: ILING JUNIOR | AE93: 3 | AF93: KEITA | AG93: 3 | AH93: LUIS HENRIQUE | AI93: 2 | AJ93: MALDINI | AK93: 1 | AL93: MALINOVSKYI | AM93: 5 | AN93: STREFEZZA | AO93: 17 | AP93: DOVBYK | AQ93: 1 | AR93: GIMENEZ | AS93: 63 | AT93: LUKAKU | AU93: 1 | AV93: YILDIZ | AW93: 9 | AX93: ZAPATA | AY93: 35 | AZ93: SFIGARENSE | BA93: HIEN | BB93: ATA | BC93: 5.833333333 | BD93: 27 | BE93: 5.888888889 | BF93: IMI_C2_girone_A@googlegroups.com | BG93: 0 | BH93: 00:00:00 | BI93: 0 | BN93: GIAMBOTTINO FC | CC93: G1_TITANS | CD93: TITANS | CE93: MANZO TEAM | CF93: EUROPA LEAGUE - G. 1 | CH93: ZZ_NOJOSETTE | CI93: ZZ_NOJOSETTE | CJ93: ZZ_FFC TARCISIO BURGNICH | CK93: COPPA DI LEGA - FASE A GIRONI: 1a GIORNATA | CR93: 0 | CS93: 0 | CT93: NOJOSETTE | CU93: FFC TARCISIO BURGNICH | CV93: G1
A94: FFC TARCISIO BURGNICH | B94: FALCONE | C94: 1 | D94: FRUCHTL | E94: 0 | F94: SAMOOJA | G94: 0 | H94: PENEV | I94: 0 | J94: ACERBI | K94: 21 | L94: AKANJI | M94: 1 | N94: BASTONI | O94: 25 | P94: BISSECK | Q94: 8 | R94: CARLOS AUGUSTO | S94: 8 | T94: DE VRIJ | U94: 1 | V94: DUMFRIES | W94: 12 | X94: HEGGEM | Y94: 3 | Z94: CAQUERET | AA94: 2 | AB94: CASADEI | AC94: 5 | AD94: DE BRUYNE | AE94: 62 | AF94: JASHARI | AG94: 2 | AH94: PERRONE | AI94: 2 | AJ94: RICCI | AK94: 2 | AL94: SAMARDZIC | AM94: 3 | AN94: SUSLOV | AO94: 1 | AP94: BONNY | AQ94: 2 | AR94: DOUVIKAS | AS94: 10 | AT94: MALEN | AU94: 44 | AV94: NKUNKU | AW94: 2 | AX94: SCAMACCA | AY94: 2 | AZ94: FFC TARCISIO BURGNICH | BA94: KOLASINAC | BB94: ATA | BC94: 5.941176471 | BD94: 17 | BE94: 6.029411765 | BF94: IMI_C2_girone_A@googlegroups.com | BG94: 0 | BH94: 00:00:00 | BI94: 0 | BN94: GOBBOFINCHECAMPO | CC94: G1_BARBERA & CHAMPAGNE | CD94: BARBERA & CHAMPAGNE | CE94: DREAM TIN TEAM | CF94: EUROPA LEAGUE - G. 1 | CH94: ZZ_INAZUMA ELEVEN | CI94: ZZ_INAZUMA ELEVEN | CJ94: ZZ_VARCELLONA | CK94: COPPA DI LEGA - FASE A GIRONI: 1a GIORNATA | CR94: 0 | CS94: 0 | CT94: INAZUMA ELEVEN | CU94: VARCELLONA | CV94: G1
A95: PICARD | B95: MOTTA | C95: 1 | D95: PROVEDEL | E95: 0 | F95: GIACOMONE | G95: 0 | H95: PANNOZZO | I95: 0 | J95: KOLASINAC | K95: 1 | L95: KOSSOUNOU | M95: 1 | N95: KRISTENSEN | O95: 1 | P95: ROMAGNOLI | Q95: 3 | R95: SCALVINI | S95: 5 | T95: SOLET | U95: 1 | V95: VALERI | W95: 1 | X95: VALLE | Y95: 2 | Z95: BERNARDESCHI | AA95: 3 | AB95: CONCEICAO | AC95: 6 | AD95: DE ROON | AE95: 1 | AF95: FAGIOLI | AG95: 9 | AH95: POLITANO | AI95: 69 | AJ95: ROWE | AK95: 1 | AL95: THURAM K. | AM95: 21 | AN95: VANDEPUTTE | AO95: 2 | AP95: CAMBIAGHI | AQ95: 6 | AR95: DAVID | AS95: 89 | AT95: DAVIS | AU95: 1 | AV95: KEAN | AW95: 30 | AX95: PELLEGRINO | AY95: 1 | AZ95: PICARD | BA95: KOSSOUNOU | BB95: ATA | BC95: 6.09375 | BD95: 16 | BE95: 5.9375 | BF95: IMI_C2_girone_A@googlegroups.com | BG95: 0 | BH95: 00:00:00 | BI95: 0 | BN95: GRATTACHECCA | CC95: G1_BORGOROSSO FC | CD95: BORGOROSSO F.C. | CE95: NAPOLI FOREVER | CF95: EUROPA LEAGUE - G. 1 | CH95: ZZ_LAZIO | CI95: ZZ_LAZIO | CJ95: ZZ_URACAN | CK95: COPPA DI LEGA - FASE A GIRONI: 1a GIORNATA | CR95: 0 | CS95: 0 | CT95: LAZIO | CU95: URACAN | CV95: G1
A96: UDINESE 1896 | B96: SVILAR | C96: 5 | D96: GOLLINI | E96: 0 | F96: ZELEZNY | G96: 0 | H96: DE MARZI | I96: 0 | J96: BERNASCONI | K96: 5 | L96: BERTOLA | M96: 2 | N96: COMUZZO | O96: 1 | P96: MARTIN | Q96: 1 | R96: MLACIC | S96: 1 | T96: MUHAREMOVIC | U96: 1 | V96: TAVARES | W96: 8 | X96: ZAPPACOSTA | Y96: 3 | Z96: DA CUNHA | AA96: 1 | AB96: NICO PAZ | AC96: 7 | AD96: PELLEGRINI LO. | AE96: 1 | AF96: RABIOT | AG96: 42 | AH96: SANTOS | AI96: 7 | AJ96: TOURE' | AK96: 1 | AL96: VLASIC | AM96: 11 | AN96: ZANIOLO | AO96: 5 | AP96: BANDA | AQ96: 1 | AR96: GIOVANE | AS96: 3 | AT96: OPENDA | AU96: 38 | AV96: VAZ | AW96: 9 | AX96: VLAHOVIC | AY96: 72 | AZ96: UDINESE 1896 | BA96: SCALVINI | BB96: ATA | BC96: 6.454545455 | BD96: 22 | BE96: 6.090909091 | BF96: IMI_C2_girone_A@googlegroups.com | BG96: 0 | BH96: 00:00:00 | BI96: 0 | BN96: HIC SUNT FERAE | CC96: G1_OXFORD UNITED | CD96: OXFORD UNITED | CE96: LIVELE | CF96: EUROPA LEAGUE - G. 1 | CH96: ZZ_OLYMPIC KEBAB | CI96: ZZ_OLYMPIC KEBAB | CJ96: ZZ_DAGNE BOYS | CK96: COPPA DI LEGA - FASE A GIRONI: 1a GIORNATA | CR96: 0 | CS96: 0 | CT96: OLYMPIC KEBAB | CU96: DAGNE BOYS | CV96: G1
A97: 3T | B97: MOTTA | C97: 7 | D97: PROVEDEL | E97: 0 | F97: GIACOMONE | G97: 0 | H97: PANNOZZO | I97: 0 | J97: ALBIOL | K97: 1 | L97: DODO' | M97: 3 | N97: DUMFRIES | O97: 13 | P97: EHIZIBUE | Q97: 1 | R97: KOLASINAC | S97: 1 | T97: ROMAGNOLI | U97: 12 | V97: TOMORI | W97: 7 | X97: ZORTEA | Y97: 9 | Z97: BERNARDESCHI | AA97: 22 | AB97: DE ROON | AC97: 14 | AD97: EDERSON | AE97: 7 | AF97: ORSOLINI | AG97: 1 | AH97: PASALIC | AI97: 3 | AJ97: PULISIC | AK97: 41 | AL97: SUCIC | AM97: 12 | AN97: THORSTVEDT | AO97: 5 | AP97: DE KETELAERE | AQ97: 42 | AR97: KEAN | AS97: 7 | AT97: MORATA | AU97: 18 | AV97: SARR | AW97: 1 | AX97: STULIC | AY97: 1 | AZ97: 3T | BA97: ZAPPACOSTA | BB97: ATA | BC97: 6.287878788 | BD97: 33 | BE97: 6.060606061 | BF97: IMI_C2_girone_B@googlegroups.com | BG97: 0 | BH97: 00:00:00 | BI97: 0 | BN97: HOBBIT | CC97: G1_JUVE93 | CD97: JUVE93 | CE97: KITEMMUOR TEAM | CF97: EUROPA LEAGUE - G. 1 | CH97: ZZ_FFC ALESSANDRO ALTOBELLI | CI97: ZZ_FFC ALESSANDRO ALTOBELLI | CJ97: ZZ_GOBBOFINCHECAMPO | CK97: COPPA DI LEGA - FASE A GIRONI: 1a GIORNATA | CR97: 0 | CS97: 0 | CT97: FFC ALESSANDRO ALTOBELLI | CU97: GOBBOFINCHECAMPO | CV97: G1
A98: LAZIO | B98: SUZUKI | C98: 1 | D98: CORVI | E98: 0 | F98: RINALDI | G98: 0 | H98: ASTALDI | I98: 0 | J98: DE WINTER | K98: 6 | L98: GILA | M98: 1 | N98: JOAO MARIO | O98: 21 | P98: KAMARA | Q98: 16 | R98: NORTON-CUFFY | S98: 1 | T98: PEZZELLA | U98: 1 | V98: RRAHMANI | W98: 11 | X98: VALERI | Y98: 1 | Z98: BALDANZI | AA98: 1 | AB98: CONCEICAO | AC98: 31 | AD98: KONÈ I. | AE98: 1 | AF98: PRATI | AG98: 7 | AH98: RABIOT | AI98: 46 | AJ98: SAELEMAEKERS | AK98: 14 | AL98: SAMARDZIC | AM98: 1 | AN98: ZACCAGNI | AO98: 61 | AP98: BANDA | AQ98: 1 | AR98: DALLINGA | AS98: 1 | AT98: DIA | AU98: 3 | AV98: LEAO | AW98: 41 | AX98: YILDIZ | AY98: 1 | AZ98: LAZIO | BA98: CASALE | BB98: BOL | BC98: 5.65 | BD98: 10 | BE98: 5.65 | BF98: IMI_C2_girone_B@googlegroups.com | BG98: 0 | BH98: 00:00:00 | BI98: 0 | BN98: I VAZANICCHI | CC98: G1_LAMÙFOREVER | CD98: LAMÙFOREVER | CE98: COSENZA | CF98: EUROPA LEAGUE - G. 1 | CH98: ZZ_RASTA DB | CI98: ZZ_RASTA DB | CJ98: ZZ_REAL CHR | CK98: COPPA DI LEGA - FASE A GIRONI: 2a GIORNATA | CR98: 0 | CS98: 0 | CT98: RASTA DB | CU98: REAL CHR | CV98: G2
A99: REAL PIPPERO | B99: DI GREGORIO | C99: 25 | D99: PERIN | E99: 0 | F99: PINSOGLIO | G99: 0 | H99: HULI | I99: 0 | J99: BREMER | K99: 31 | L99: CAMBIASO | M99: 10 | N99: DI LORENZO | O99: 30 | P99: HEGGEM | Q99: 1 | R99: IDZES | S99: 1 | T99: JUAN JESUS | U99: 11 | V99: KOSSOUNOU | W99: 1 | X99: OSTIGARD | Y99: 1 | Z99: ADOPO | AA99: 1 | AB99: ADZIC | AC99: 1 | AD99: BARELLA | AE99: 10 | AF99: FAGIOLI | AG99: 3 | AH99: GILMOUR | AI99: 3 | AJ99: MIRETTI | AK99: 3 | AL99: THURAM K. | AM99: 21 | AN99: ZHEGROVA | AO99: 11 | AP99: BOWIE | AQ99: 5 | AR99: FULLKRUG | AS99: 5 | AT99: MOREO | AU99: 1 | AV99: PEDRO | AW99: 1 | AX99: RODRIGUEZ | AY99: 51 | AZ99: REAL PIPPERO | BA99: DE SILVESTRI | BB99: BOL | BC99: 5.944444444 | BD99: 9 | BE99: 6.055555556 | BF99: IMI_C2_girone_B@googlegroups.com | BG99: 0 | BH99: 00:00:00 | BI99: 0 | BN99: INAZUMA ELEVEN | CC99: G1_BFC MARANO | CD99: SPORTING VINAO | CE99: BFC MARANO | CF99: EUROPA LEAGUE - G. 1 | CH99: ZZ_TIME OUT | CI99: ZZ_TIME OUT | CJ99: ZZ_LAMÙFOREVER | CK99: COPPA DI LEGA - FASE A GIRONI: 2a GIORNATA | CR99: 0 | CS99: 0 | CT99: TIME OUT | CU99: LAMÙFOREVER | CV99: G2
A100: BEETLES | B100: CAPRILE | C100: 4 | D100: CIOCCI | E100: 0 | F100: SHERRI | G100: 0 | H100: AUSEKLIS | I100: 0 | J100: ANGORI | K100: 3 | L100: BIANCHETTI | M100: 2 | N100: CARACCIOLO | O100: 4 | P100: MARTIN | Q100: 5 | R100: MINA | S100: 2 | T100: MUHAREMOVIC | U100: 4 | V100: OBERT | W100: 7 | X100: TIAGO GABRIEL | Y100: 7 | Z100: CATALDI | AA100: 11 | AB100: KARLSTROM | AC100: 3 | AD100: KEITA | AE100: 1 | AF100: LOBOTKA | AG100: 6 | AH100: MATIC | AI100: 2 | AJ100: MORO | AK100: 3 | AL100: PERRONE | AM100: 5 | AN100: TAMEZE | AO100: 6 | AP100: BONAZZOLI | AQ100: 11 | AR100: CAMBIAGHI | AS100: 3 | AT100: EKHATOR | AU100: 4 | AV100: KILICSOY | AW100: 14 | AX100: SULEMANA K. | AY100: 1 | AZ100: BEETLES | BA100: HEGGEM | BB100: BOL | BC100: 5.770833333 | BD100: 24 | BE100: 5.8125 | BF100: IMI_C2_girone_B@googlegroups.com | BG100: 0 | BH100: 00:00:00 | BI100: 0 | BN100: ISOLA CHE NON CE | CC100: G1_ATLETICO PIGROTTO | CD100: DAJE MO' | CE100: ATLETICO PIGROTTO | CF100: EUROPA LEAGUE - G. 1 | CH100: ZZ_DAJE MO' | CI100: ZZ_DAJE MO' | CJ100: ZZ_A.S. TOTTIGO | CK100: COPPA DI LEGA - FASE A GIRONI: 2a GIORNATA | CT100: DAJE MO' | CU100: A.S. TOTTIGO | CV100: G2
A101: PAPAVERI E PAPERE | B101: BUTEZ | C101: 1 | D101: CAVLINA | E101: 0 | F101: VIGORITO | G101: 0 | H101: MENKE | I101: 0 | J101: ACERBI | K101: 13 | L101: COCO | M101: 9 | N101: DE SILVESTRI | O101: 4 | P101: KABASELE | Q101: 2 | R101: KELLY | S101: 8 | T101: LUPERTO | U101: 8 | V101: TERRACCIANO F. | W101: 7 | X101: ZAPPACOSTA | Y101: 11 | Z101: ANGUISSA | AA101: 9 | AB101: EKKELENKAMP | AC101: 1 | AD101: FRENDRUP | AE101: 14 | AF101: ISAKSEN | AG101: 33 | AH101: LOCATELLI | AI101: 23 | AJ101: RAMADANI | AK101: 11 | AL101: RICCI | AM101: 17 | AN101: SOHM | AO101: 6 | AP101: ESPOSITO F.P. | AQ101: 18 | AR101: ESPOSITO SE. | AS101: 13 | AT101: GIOVANE | AU101: 16 | AV101: LAUTARO | AW101: 16 | AX101: SANABRIA | AY101: 16 | AZ101: PAPAVERI E PAPERE | BA101: HELLAND | BB101: BOL | BC101: 5.125 | BD101: 4 | BE101: 5.375 | BF101: IMI_C2_girone_B@googlegroups.com | BN101: JUNIORT | CC101: G1_MOMPRACEM | CD101: BLUES BROTHERS | CE101: MOMPRACEM | CF101: EUROPA LEAGUE - G. 1 | CH101: ZZ_FFC GIUSEPPE BERGOMI | CI101: ZZ_FFC GIUSEPPE BERGOMI | CJ101: ZZ_FC NAPOLI 2012 | CK101: COPPA DI LEGA - FASE A GIRONI: 2a GIORNATA | CT101: FFC GIUSEPPE BERGOMI | CU101: FC NAPOLI 2012 | CV101: G2
A102: RED-GREEN | B102: SOMMER | C102: 23 | D102: MARTINEZ | E102: 0 | F102: ADOMAVICIUS | G102: 0 | H102: DI GENNARO | I102: 0 | J102: CELIK | K102: 1 | L102: CUADRADO | M102: 2 | N102: HERMOSO | O102: 7 | P102: KEMPF | Q102: 2 | R102: MANCINI | S102: 9 | T102: RAMON | U102: 1 | V102: SMOLCIC | W102: 1 | X102: VAN DER BREMPT | Y102: 1 | Z102: BATURINA | AA102: 1 | AB102: FADERA | AC102: 1 | AD102: FERGUSON | AE102: 5 | AF102: KOSTIC | AG102: 1 | AH102: MANDRAGORA | AI102: 8 | AJ102: NICO PAZ | AK102: 3 | AL102: PISILLI | AM102: 3 | AN102: ZALEWSKI | AO102: 3 | AP102: GIMENEZ | AQ102: 96 | AR102: LAURIENTÈ | AS102: 4 | AT102: LUKAKU | AU102: 60 | AV102: PINAMONTI | AW102: 1 | AX102: VLAHOVIC | AY102: 6 | AZ102: RED-GREEN | BA102: JOAO MARIO | BB102: BOL | BC102: 5.923076923 | BD102: 13 | BE102: 5.769230769 | BF102: IMI_C2_girone_B@googlegroups.com | BN102: JUVE93 | CC102: G1_EL NINO FC | CD102: A.C. ZDENEK | CE102: EL NINO FC | CF102: EUROPA LEAGUE - G. 1 | CH102: ZZ_P CUATRO | CI102: ZZ_P CUATRO | CJ102: ZZ_FANTARAPID CACCAMO | CK102: COPPA DI LEGA - FASE A GIRONI: 2a GIORNATA | CR102: ABETO FC | CS102: RASTA DB | CT102: P CUATRO | CU102: FANTARAPID CACCAMO | CV102: G2
A103: FFC EVARISTO BECCALOSSI | B103: SKORUPSKI | C103: 2 | D103: PESSINA | E103: 0 | F103: RAVAGLIA | G103: 0 | H103: HAPPONEN | I103: 0 | J103: AHANOR | K103: 1 | L103: BERNASCONI | M103: 1 | N103: DOIG | O103: 1 | P103: KALULU | Q103: 2 | R103: LUCUMI' | S103: 1 | T103: OBRADOR | U103: 1 | V103: PALESTRA | W103: 3 | X103: SCALVINI | Y103: 1 | Z103: ATTA | AA103: 12 | AB103: BERNABE' | AC103: 3 | AD103: CALHANOGLU | AE103: 23 | AF103: DE BRUYNE | AG103: 78 | AH103: MALINOVSKYI | AI103: 2 | AJ103: ROWE | AK103: 4 | AL103: SANTOS | AM103: 1 | AN103: ZARAGOZA | AO103: 1 | AP103: BERARDI | AQ103: 44 | AR103: COLOMBO | AS103: 2 | AT103: DIAO | AU103: 1 | AV103: DOUVIKAS | AW103: 3 | AX103: VARDY | AY103: 45 | AZ103: FFC EVARISTO BECCALOSSI | BA103: LUCUMI' | BB103: BOL | BC103: 5.888888889 | BD103: 27 | BE103: 5.87037037 | BF103: IMI_C2_girone_B@googlegroups.com | BN103: KITEMMUOR TEAM | CC103: G1_TWOSTARS | CD103: DIAMANTE | CE103: TWOSTARS | CF103: EUROPA LEAGUE - G. 1 | CH103: ZZ_FC ZETAJ TEAM 1999 | CI103: ZZ_FC ZETAJ TEAM 1999 | CJ103: ZZ_REAL GENOA | CK103: COPPA DI LEGA - FASE A GIRONI: 2a GIORNATA | CR103: EROI DEL 1982 | CS103: CICCILLO | CT103: FC ZETAJ TEAM 1999 | CU103: REAL GENOA | CV103: G2
A104: PERDENTUS FC | B104: DE GEA | C104: 1 | D104: LEZZERINI | E104: 0 | F104: CHRISTENSEN | G104: 0 | H104: DOLFI | I104: 0 | J104: BASTONI | K104: 19 | L104: CARLOS AUGUSTO | M104: 1 | N104: DELPRATO | O104: 1 | P104: DIEGO CARLOS | Q104: 1 | R104: GUTIERREZ | S104: 1 | T104: MIRANDA | U104: 2 | V104: OLIVERA | W104: 1 | X104: PROVSTGAARD | Y104: 1 | Z104: CAQUERET | AA104: 1 | AB104: ELMAS | AC104: 1 | AD104: FOFANA | AE104: 2 | AF104: GAETANO | AG104: 1 | AH104: NERES | AI104: 2 | AJ104: ODGAARD | AK104: 7 | AL104: VANDEPUTTE | AM104: 5 | AN104: VERGARA | AO104: 2 | AP104: BONNY | AQ104: 1 | AR104: CASTRO | AS104: 3 | AT104: DAVIS | AU104: 1 | AV104: EKUBAN | AW104: 1 | AX104: ZAPATA | AY104: 35 | AZ104: PERDENTUS FC | BA104: LYKOGIANNIS | BB104: BOL | BC104: 5.4375 | BD104: 8 | BE104: 5.625 | BF104: IMI_C2_girone_B@googlegroups.com | BN104: LA BANDA DEGLI ONESTI | CC104: G1_NEAPOLIS | CD104: FRIUL GALAXI | CE104: NEAPOLIS | CF104: EUROPA LEAGUE - G. 1 | CH104: ZZ_A.C. ZDENEK | CI104: ZZ_A.C. ZDENEK | CJ104: ZZ_AMOREODIO | CK104: COPPA DI LEGA - FASE A GIRONI: 2a GIORNATA | CR104: EU...REKA | CS104: FC PARTIZAN DEGRADO | CT104: A.C. ZDENEK | CU104: AMOREODIO | CV104: G2
A105: VARCELLONA | B105: SVILAR | C105: 5 | D105: GOLLINI | E105: 0 | F105: ZELEZNY | G105: 0 | H105: DE MARZI | I105: 0 | J105: AKANJI | K105: 19 | L105: BISSECK | M105: 1 | N105: BUONGIORNO | O105: 19 | P105: DIMARCO | Q105: 25 | R105: GABBIA | S105: 1 | T105: GOSENS | U105: 19 | V105: HIEN | W105: 1 | X105: PAVLOVIC | Y105: 2 | Z105: BERISHA | AA105: 2 | AB105: COULIBALY | AC105: 2 | AD105: FRATTESI | AE105: 18 | AF105: GUDMUNDSSON | AG105: 16 | AH105: LUIS HENRIQUE | AI105: 12 | AJ105: MKHITARYAN | AK105: 14 | AL105: POLITANO | AM105: 2 | AN105: ZIELINSKI | AO105: 12 | AP105: DAVID | AQ105: 30 | AR105: NKUNKU | AS105: 12 | AT105: SCAMACCA | AU105: 30 | AV105: SOLOMON | AW105: 1 | AX105: VITINHA | AY105: 3 | AZ105: VARCELLONA | BA105: MIRANDA | BB105: BOL | BC105: 6 | BD105: 29 | BE105: 6 | BF105: IMI_C2_girone_B@googlegroups.com | BN105: LA MUCONE | CC105: G1_CACAO MERAVIGLIAO | CD105: ZEMANLANDIA AFC | CE105: CACAO MERAVIGLIAO | CF105: EUROPA LEAGUE - G. 1 | CH105: ZZ_ATLETICO PIPPAO | CI105: ZZ_ATLETICO PIPPAO | CJ105: ZZ_ENDYMION | CK105: COPPA DI LEGA - FASE A GIRONI: 2a GIORNATA | CR105: MAGODINA FC | CS105: LA VECCHIA GUARDIA | CT105: ATLETICO PIPPAO | CU105: ENDYMION | CV105: G2
A106: FK'S TEAM | B106: CARNESECCHI | C106: 30 | D106: ROSSI | E106: 0 | F106: SPORTIELLO | G106: 0 | H106: ZANCHI | I106: 0 | J106: BEUKEMA | K106: 2 | L106: BRADARIC | M106: 5 | N106: CANESTRELLI | O106: 10 | P106: COMUZZO | Q106: 10 | R106: GALLO | S106: 5 | T106: RENSCH | U106: 3 | V106: SOLET | W106: 10 | X106: VITIK | Y106: 10 | Z106: ELLERTSSON | AA106: 5 | AB106: FABBIAN | AC106: 2 | AD106: FOLORUNSHO | AE106: 5 | AF106: FREULER | AG106: 2 | AH106: KONE' | AI106: 15 | AJ106: MESSIAS | AK106: 2 | AL106: NICOLUSSI CAVIGLIA | AM106: 13 | AN106: TAYLOR | AO106: 3 | AP106: ADAMS | AQ106: 21 | AR106: KRSTOVIC | AS106: 10 | AT106: MALEN | AU106: 69 | AV106: PICCOLI | AW106: 2 | AX106: SOULE' | AY106: 20 | AZ106: FK'S TEAM | BA106: VITIK | BB106: BOL | BC106: 5.861111111 | BD106: 18 | BE106: 5.944444444 | BF106: IMI_C2_girone_B@googlegroups.com | BN106: LA VECCHIA GUARDIA | CC106: G1_TORI BRIANZOLI | CD106: FC ZETAJ TEAM 1999 | CE106: TORI BRIANZOLI | CF106: EUROPA LEAGUE - G. 1 | CH106: ZZ_FC FANTATLETICO | CI106: ZZ_FC FANTATLETICO | CJ106: ZZ_MOMENTI DI GLORIA | CK106: COPPA DI LEGA - FASE A GIRONI: 2a GIORNATA | CR106: PARASITE | CS106: ATLETICO SQUONK | CT106: FC FANTATLETICO | CU106: MOMENTI DI GLORIA | CV106: G2
A107: REAL FARNESE | B107: MAIGNAN | C107: 11 | D107: TERRACCIANO | E107: 0 | F107: TORRIANI | G107: 0 | H107: DONEDA | I107: 0 | J107: ANGELINO | K107: 1 | L107: GHILARDI | M107: 1 | N107: KRISTENSEN | O107: 1 | P107: N'DICKA | Q107: 25 | R107: SPINAZZOLA | S107: 1 | T107: VALLE | U107: 1 | V107: VOJVODA | W107: 1 | X107: WESLEY | Y107: 36 | Z107: EL AYNAOUI | AA107: 1 | AB107: GANDELMAN | AC107: 1 | AD107: GINEITIS | AE107: 1 | AF107: MALDINI | AG107: 1 | AH107: MCKENNIE | AI107: 1 | AJ107: PELLEGRINI LO. | AK107: 1 | AL107: STREFEZZA | AM107: 1 | AN107: ZANIOLO | AO107: 1 | AP107: BELOTTI | AQ107: 1 | AR107: BOGA | AS107: 1 | AT107: DYBALA | AU107: 67 | AV107: PELLEGRINO | AW107: 7 | AX107: RASPADORI | AY107: 7 | AZ107: REAL FARNESE | BA107: ZORTEA | BB107: BOL | BC107: 5.814814815 | BD107: 27 | BE107: 5.851851852 | BF107: IMI_C2_girone_B@googlegroups.com | BN107: LA10 BIELLA FC | CC107: G1_ATLETICO MA NON TROPPO | CD107: ALL BLACKS | CE107: ATLETICO MA NON TROPPO | CF107: EUROPA LEAGUE - G. 1 | CH107: ZZ_FANTASPEZIA | CI107: ZZ_FANTASPEZIA | CJ107: ZZ_OXFORD UNITED | CK107: COPPA DI LEGA - FASE A GIRONI: 2a GIORNATA | CR107: NASONE NERAZZURRO | CS107: REAL BUGGY | CT107: FANTASPEZIA | CU107: OXFORD UNITED | CV107: G2
A108: ZERVENA VIGIAK | B108: MERET | C108: 7 | D108: CONTINI | E108: 0 | F108: MILINKOVIC | G108: 0 | H108: FERRANTE | I108: 0 | J108: BARTESAGHI | K108: 2 | L108: BASCHIROTTO | M108: 4 | N108: BELLANOVA | O108: 3 | P108: DJIMSITI | Q108: 9 | R108: GARCIA | S108: 1 | T108: MARUSIC | U108: 9 | V108: VASQUEZ | W108: 9 | X108: ZAPPA | Y108: 1 | Z108: CASADEI | AA108: 2 | AB108: CRISTANTE | AC108: 3 | AD108: DA CUNHA | AE108: 1 | AF108: MCTOMINAY | AG108: 16 | AH108: MODRIC | AI108: 13 | AJ108: PIEROTTI | AK108: 6 | AL108: POBEGA | AM108: 2 | AN108: VLASIC | AO108: 12 | AP108: CANCELLIERI | AQ108: 1 | AR108: HOJLUND | AS108: 92 | AT108: NZOLA | AU108: 12 | AV108: SIMEONE | AW108: 43 | AX108: THURAM | AY108: 113 | AZ108: ZERVENA VIGIAK | BA108: DOSSENA | BB108: CAG | BC108: 5.5 | BD108: 9 | BE108: 5.777777778 | BF108: IMI_C2_girone_B@googlegroups.com | BN108: LAMÙFOREVER | CC108: G1_MOMENTI DI GLORIA FMC | CD108: FANTASPEZIA | CE108: MOMENTI DI GLORIA FMC | CF108: EUROPA LEAGUE - G. 1 | CH108: ZZ_FC PARTIZAN DEGRADO | CI108: ZZ_FC PARTIZAN DEGRADO | CJ108: ZZ_CLOCKWORK ORANGE FC | CK108: COPPA DI LEGA - FASE A GIRONI: 2a GIORNATA | CR108: ROSSOBLU FC | CS108: ZERU TITULI | CT108: FC PARTIZAN DEGRADO | CU108: CLOCKWORK ORANGE FC | CV108: G2
A109: AS TOTTIGO | B109: BUTEZ | C109: 5 | D109: CAVLINA | E109: 0 | F109: VIGORITO | G109: 0 | H109: MENKE | I109: 0 | J109: BREMER | K109: 21 | L109: DJIMSITI | M109: 3 | N109: KALULU | O109: 5 | P109: LUCUMI' | Q109: 3 | R109: MARIANUCCI | S109: 1 | T109: PONGRACIC | U109: 3 | V109: ROMAGNOLI | W109: 2 | X109: RUGANI | Y109: 2 | Z109: DE BRUYNE | AA109: 71 | AB109: EL SHAARAWY | AC109: 1 | AD109: ISAKSEN | AE109: 11 | AF109: KARLSTROM | AG109: 1 | AH109: KONE' | AI109: 11 | AJ109: NERES | AK109: 2 | AL109: POLITANO | AM109: 11 | AN109: THURAM K. | AO109: 11 | AP109: BOGA | AQ109: 3 | AR109: CAMBIAGHI | AS109: 11 | AT109: CANCELLIERI | AU109: 2 | AV109: MALEN | AW109: 120 | AX109: RASPADORI | AY109: 75 | AZ109: A.S. TOTTIGO | BA109: IDRISSI | BB109: CAG | BC109: 6.088235294 | BD109: 17 | BE109: 5.823529412 | BF109: cihf_a@googlegroups.com | BN109: LAZIO | CC109: G1_FC JAVIER ZANETTI | CD109: PRENESTINO FC | CE109: FC JAVIER ZANETTI | CF109: EUROPA LEAGUE - G. 1 | CH109: ZZ_FFC SANDRO MAZZOLA | CI109: ZZ_FFC SANDRO MAZZOLA | CJ109: ZZ_SALENTO FC | CK109: COPPA DI LEGA - FASE A GIRONI: 2a GIORNATA | CR109: 2TWINS4EVER | CS109: SWANSEA | CT109: FFC SANDRO MAZZOLA | CU109: SALENTO FC | CV109: G2
A110: FC NAPOLI 2012 | B110: MERET | C110: 3 | D110: CONTINI | E110: 0 | F110: MILINKOVIC | G110: 0 | H110: FERRANTE | I110: 0 | J110: DI LORENZO | K110: 7 | L110: EHIZIBUE | M110: 1 | N110: GILA | O110: 3 | P110: HIEN | Q110: 2 | R110: KOSSOUNOU | S110: 7 | T110: OLIVERA | U110: 3 | V110: OSTIGARD | W110: 1 | X110: PEZZELLA | Y110: 1 | Z110: ANGUISSA | AA110: 23 | AB110: COULIBALY | AC110: 1 | AD110: FRATTESI | AE110: 3 | AF110: GAETANO | AG110: 3 | AH110: KEITA | AI110: 1 | AJ110: ROWE | AK110: 6 | AL110: TOURE' | AM110: 2 | AN110: ZERBIN | AO110: 3 | AP110: DOVBYK | AQ110: 13 | AR110: HOJLUND | AS110: 110 | AT110: KRSTOVIC | AU110: 37 | AV110: SANABRIA | AW110: 9 | AX110: VITINHA | AY110: 7 | AZ110: FC NAPOLI 2012 | BA110: MINA | BB110: CAG | BC110: 5.958333333 | BD110: 24 | BE110: 5.9375 | BF110: cihf_a@googlegroups.com | BN110: LIVELE | CC110: G1_CAVESE | CD110: ATLETICO PIPPAO | CE110: CAVESE | CF110: EUROPA LEAGUE - G. 1 | CH110: ZZ_EL NIÑO | CI110: ZZ_EL NIÑO | CJ110: ZZ_VOTANTONIO | CK110: COPPA DI LEGA - FASE A GIRONI: 2a GIORNATA | CR110: EARL & SOUL GALEONE | CS110: REAL CHR | CT110: EL NIÑO | CU110: VOTANTONIO | CV110: G2
A111: REAL GENOA | B111: DE GEA | C111: 17 | D111: LEZZERINI | E111: 0 | F111: CHRISTENSEN | G111: 0 | H111: DOLFI | I111: 0 | J111: BASTONI | K111: 25 | L111: BELLANOVA | M111: 2 | N111: CAMBIASO | O111: 8 | P111: CELIK | Q111: 2 | R111: DODO' | S111: 1 | T111: GUTIERREZ | U111: 5 | V111: KABASELE | W111: 2 | X111: PROVSTGAARD | Y111: 1 | Z111: ATTA | AA111: 1 | AB111: CAQUERET | AC111: 1 | AD111: CRISTANTE | AE111: 2 | AF111: DE ROON | AG111: 6 | AH111: KONÈ I. | AI111: 1 | AJ111: MCKENNIE | AK111: 6 | AL111: MESSIAS | AM111: 1 | AN111: PELLEGRINI LO. | AO111: 19 | AP111: COLOMBO | AQ111: 18 | AR111: DIA | AS111: 26 | AT111: FERGUSON E. | AU111: 1 | AV111: GIMENEZ | AW111: 31 | AX111: VLAHOVIC | AY111: 98 | AZ111: REAL GENOA | BA111: OBERT | BB111: CAG | BC111: 5.703125 | BD111: 32 | BE111: 5.859375 | BF111: cihf_a@googlegroups.com | BN111: LIVERCOOL | CC111: G1_BAYER LEVERRUKE | CD111: LA BANDA DEGLI ONESTI | CE111: BAYER LEVERRUKE | CF111: EUROPA LEAGUE - G. 1 | CH111: ZZ_SPORTING LABRONICA | CI111: ZZ_SPORTING LABRONICA | CJ111: ZZ_PANZER8 | CK111: COPPA DI LEGA - FASE A GIRONI: 2a GIORNATA | CR111: FUFF TEAM | CS111: UDI ONE | CT111: SPORTING LABRONICA | CU111: PANZER8 | CV111: G2
A112: ATLETICO SQUONK | B112: CARNESECCHI | C112: 3 | D112: ROSSI | E112: 0 | F112: SPORTIELLO | G112: 0 | H112: ZANCHI | I112: 0 | J112: BERNASCONI | K112: 31 | L112: BUONGIORNO | M112: 9 | N112: DIEGO CARLOS | O112: 4 | P112: DUMFRIES | Q112: 21 | R112: EDMUNDSSON | S112: 4 | T112: JUAN JESUS | U112: 3 | V112: KEMPF | W112: 1 | X112: MARTIN | Y112: 2 | Z112: BATURINA | AA112: 7 | AB112: BERNABE' | AC112: 10 | AD112: DA CUNHA | AE112: 20 | AF112: EDERSON | AG112: 42 | AH112: FAGIOLI | AI112: 10 | AJ112: NICO PAZ | AK112: 12 | AL112: PERRONE | AM112: 4 | AN112: ZIELINSKI | AO112: 2 | AP112: BONNY | AQ112: 28 | AR112: BOWIE | AS112: 1 | AT112: ESPOSITO F.P. | AU112: 45 | AV112: MORATA | AW112: 24 | AX112: RODRIGUEZ | AY112: 26 | AZ112: ATLETICO SQUONK | BA112: PALESTRA | BB112: CAG | BC112: 6.3 | BD112: 35 | BE112: 6.257142857 | BF112: cihf_a@googlegroups.com | BN112: LOS | CC112: G1_A TUTTA CALLARA | CD112: FFC SANDRO MAZZOLA | CE112: A TUTTA CALLARA | CF112: EUROPA LEAGUE - G. 1 | CH112: ZZ_FRIUL GALAXI | CI112: ZZ_FRIUL GALAXI | CJ112: ZZ_REAL BABBUDOIU | CK112: COPPA DI LEGA - FASE A GIRONI: 2a GIORNATA | CR112: CATENACCIO & CONTROPIEDE | CS112: SPORTING LABRONICA | CT112: FRIUL GALAXI | CU112: REAL BABBUDOIU | CV112: G2
A113: RASTA DB | B113: MOTTA | C113: 7 | D113: PROVEDEL | E113: 0 | F113: GIACOMONE | G113: 0 | H113: PANNOZZO | I113: 0 | J113: ACERBI | K113: 3 | L113: AKANJI | M113: 3 | N113: GARCIA | O113: 1 | P113: GATTI | Q113: 3 | R113: LUPERTO | S113: 1 | T113: MARIPAN | U113: 3 | V113: MARUSIC | W113: 1 | X113: VASQUEZ | Y113: 1 | Z113: ELMAS | AA113: 1 | AB113: GANDELMAN | AC113: 1 | AD113: MALINOVSKYI | AE113: 1 | AF113: ORSOLINI | AG113: 94 | AH113: PULISIC | AI113: 103 | AJ113: VERGARA | AK113: 23 | AL113: VLASIC | AM113: 2 | AN113: VOLPATO | AO113: 1 | AP113: DAVID | AQ113: 83 | AR113: DOUVIKAS | AS113: 1 | AT113: LAUTARO | AU113: 203 | AV113: MOREO | AW113: 1 | AX113: ZAPATA | AY113: 1 | AZ113: RASTA DB | BA113: RATERINK | BB113: CAG | BC113: 0 | BD113: 0 | BE113: 0 | BF113: cihf_a@googlegroups.com | BN113: LUCHINS | CC113: G1_MOKA JUNIORS | CD113: AS NEW TEAM | CE113: MOKA JUNIORS | CF113: EUROPA LEAGUE - G. 1 | CH113: ZZ_ATLETICO SQUONK | CI113: ZZ_ATLETICO SQUONK | CJ113: ZZ_SAN SIRO | CK113: COPPA DI LEGA - FASE A GIRONI: 2a GIORNATA | CR113: DINAMO VIGIAK | CS113: FFC ANGELO DOMENGHINI | CT113: ATLETICO SQUONK | CU113: SAN SIRO | CV113: G2
A114: SALENTO FC | B114: BIJLOW | C114: 1 | D114: LEALI | E114: 0 | F114: SIEGRIST | G114: 0 | H114: SOMMARIVA | I114: 0 | J114: ANGORI | K114: 2 | L114: COCO | M114: 2 | N114: GASPAR | O114: 1 | P114: MINA | Q114: 1 | R114: MIRANDA | S114: 2 | T114: MUHAREMOVIC | U114: 1 | V114: VALLE | W114: 1 | X114: ZORTEA | Y114: 1 | Z114: ADOPO | AA114: 3 | AB114: BALDANZI | AC114: 1 | AD114: KOOPMEINERS | AE114: 32 | AF114: SOTTIL | AG114: 8 | AH114: STREFEZZA | AI114: 25 | AJ114: ZACCAGNI | AK114: 60 | AL114: ZANIOLO | AM114: 2 | AN114: ZHEGROVA | AO114: 15 | AP114: GIOVANE | AQ114: 8 | AR114: MOSQUERA | AS114: 10 | AT114: PICCOLI | AU114: 1 | AV114: SOLOMON | AW114: 30 | AX114: YILDIZ | AY114: 35 | AZ114: SALENTO FC | BA114: RODRIGUEZ JU. | BB114: CAG | BC114: 5.433333333 | BD114: 15 | BE114: 5.533333333 | BF114: cihf_a@googlegroups.com | BN114: LUPIN III | CC114: G1_FIORENTINA | CD114: P CUATRO | CE114: FIORENTINA | CF114: EUROPA LEAGUE - G. 1 | CH114: ZZ_ZERU TITULI | CI114: ZZ_ZERU TITULI | CJ114: ZZ_AMBROSIANA | CK114: COPPA DI LEGA - FASE A GIRONI: 2a GIORNATA | CR114: RAT-MEN | CS114: A.S. TOTTIGO | CT114: ZERU TITULI | CU114: AMBROSIANA | CV114: G2
A115: CLOCKWORK ORANGE FC | B115: SVILAR | C115: 31 | D115: GOLLINI | E115: 0 | F115: ZELEZNY | G115: 0 | H115: DE MARZI | I115: 0 | J115: BISSECK | K115: 2 | L115: HERMOSO | M115: 6 | N115: KAMARA | O115: 3 | P115: PAVLOVIC | Q115: 16 | R115: RAMON | S115: 7 | T115: WESLEY | U115: 21 | V115: ZAPPA | W115: 2 | X115: ZEMURA | Y115: 1 | Z115: CONCEICAO | AA115: 31 | AB115: FERGUSON | AC115: 6 | AD115: FRENDRUP | AE115: 3 | AF115: GUDMUNDSSON | AG115: 31 | AH115: LOCATELLI | AI115: 7 | AJ115: PASALIC | AK115: 4 | AL115: RICCI | AM115: 7 | AN115: VANDEPUTTE | AO115: 4 | AP115: ADAMS | AQ115: 11 | AR115: DAVIS | AS115: 47 | AT115: DYBALA | AU115: 76 | AV115: EKHATOR | AW115: 2 | AX115: ORBAN | AY115: 19 | AZ115: CLOCKWORK ORANGE FC | BA115: ZAPPA | BB115: CAG | BC115: 5.847826087 | BD115: 23 | BE115: 5.891304348 | BF115: cihf_a@googlegroups.com | BN115: MAGODINA FC | CC115: G1_FC TRIPLETE | CD115: INAZUMA ELEVEN | CE115: FC TRIPLETE | CF115: EUROPA LEAGUE - G. 1 | CH115: ZZ_REAL BUCCINASCO | CI115: ZZ_REAL BUCCINASCO | CJ115: ZZ_BARBERA & CHAMPAGNE | CK115: COPPA DI LEGA - FASE A GIRONI: 2a GIORNATA | CR115: GABRY FC | CS115: JUNIORT | CT115: REAL BUCCINASCO | CU115: BARBERA & CHAMPAGNE | CV115: G2
A116: REAL BABBUDOIU | B116: DI GREGORIO | C116: 42 | D116: PERIN | E116: 0 | F116: PINSOGLIO | G116: 0 | H116: HULI | I116: 0 | J116: BARBIERI | K116: 1 | L116: BELGHALI | M116: 1 | N116: DELPRATO | O116: 3 | P116: GALLO | Q116: 2 | R116: GHILARDI | S116: 1 | T116: NORTON-CUFFY | U116: 4 | V116: PALESTRA | W116: 2 | X116: TAVARES | Y116: 18 | Z116: BASIC | AA116: 1 | AB116: EL AYNAOUI | AC116: 1 | AD116: ELLERTSSON | AE116: 1 | AF116: FOLORUNSHO | AG116: 2 | AH116: MALDINI | AI116: 3 | AJ116: SAELEMAEKERS | AK116: 12 | AL116: SANTOS | AM116: 13 | AN116: TAYLOR | AO116: 8 | AP116: FULLKRUG | AQ116: 2 | AR116: KEAN | AS116: 67 | AT116: NKUNKU | AU116: 2 | AV116: SIMEONE | AW116: 3 | AX116: VAZ | AY116: 1 | AZ116: REAL BABBUDOIU | BA116: ZE PEDRO | BB116: CAG | BC116: 5.642857143 | BD116: 21 | BE116: 5.761904762 | BF116: cihf_a@googlegroups.com | BN116: MANCHO FERE | CC116: G1_MARUEGO BOYS | CD116: EL NIÑO | CE116: MARUEGO BOYS | CF116: EUROPA LEAGUE - G. 1 | CH116: ZZ_REAL GRIFO | CI116: ZZ_REAL GRIFO | CJ116: ZZ_CAVESE | CK116: COPPA DI LEGA - FASE A GIRONI: 2a GIORNATA | CR116: BAR MARIO | CS116: MOMENTI DI GLORIA | CT116: REAL GRIFO | CU116: CAVESE | CV116: G2
A117: VOTANTONIO | B117: SKORUPSKI | C117: 2 | D117: PESSINA | E117: 0 | F117: RAVAGLIA | G117: 0 | H117: HAPPONEN | I117: 0 | J117: BARTESAGHI | K117: 1 | L117: DE WINTER | M117: 1 | N117: GABBIA | O117: 8 | P117: GOSENS | Q117: 33 | R117: N'DICKA | S117: 6 | T117: PARISI | U117: 1 | V117: TIAGO GABRIEL | W117: 1 | X117: VOJVODA | Y117: 1 | Z117: BRESCIANINI | AA117: 6 | AB117: CASADEI | AC117: 13 | AD117: FOFANA | AE117: 6 | AF117: JASHARI | AG117: 13 | AH117: MANDRAGORA | AI117: 1 | AJ117: MKHITARYAN | AK117: 7 | AL117: PISILLI | AM117: 3 | AN117: ROVELLA | AO117: 2 | AP117: BONAZZOLI | AQ117: 14 | AR117: DIAO | AS117: 1 | AT117: LAURIENTÈ | AU117: 18 | AV117: LEAO | AW117: 97 | AX117: PELLEGRINO | AY117: 42 | AZ117: VOTANTONIO | BA117: DIEGO CARLOS | BB117: COM | BC117: 6.1 | BD117: 25 | BE117: 6.14 | BF117: cihf_a@googlegroups.com | BN117: MANZO TEAM | CC117: G1_ALAN FORD'S TEAM | CD117: BOMBARELLANDIA | CE117: ALAN FORD'S TEAM | CF117: EUROPA LEAGUE - G. 1 | CH117: ZZ_LA MUCONE | CI117: ZZ_LA MUCONE | CJ117: ZZ_CICCILLO | CK117: COPPA DI LEGA - FASE A GIRONI: 2a GIORNATA | CR117: NICKSTREGA | CS117: BRUDYLEGHORN | CT117: LA MUCONE | CU117: CICCILLO | CV117: G2
A118: ENDYMION | B118: CAPRILE | C118: 1 | D118: CIOCCI | E118: 0 | F118: SHERRI | G118: 0 | H118: AUSEKLIS | I118: 0 | J118: AHANOR | K118: 7 | L118: BASCHIROTTO | M118: 1 | N118: CARLOS AUGUSTO | O118: 11 | P118: DIMARCO | Q118: 55 | R118: KOLASINAC | S118: 1 | T118: KRISTENSEN | U118: 11 | V118: RANIERI | W118: 1 | X118: ZAPPACOSTA | Y118: 11 | Z118: DELE-BASHIRU | AA118: 1 | AB118: FREULER | AC118: 13 | AD118: LOBOTKA | AE118: 29 | AF118: LUIS HENRIQUE | AG118: 1 | AH118: MODRIC | AI118: 11 | AJ118: NDOUR | AK118: 3 | AL118: SUCIC | AM118: 11 | AN118: ZALEWSKI | AO118: 3 | AP118: CASTRO | AQ118: 7 | AR118: ELPHEGE | AS118: 1 | AT118: ESPOSITO SE. | AU118: 7 | AV118: NOSLIN | AW118: 1 | AX118: SCAMACCA | AY118: 22 | AZ118: ENDYMION | BA118: GOLDANIGA | BB118: COM | BC118: 0 | BD118: 0 | BE118: 0 | BF118: cihf_a@googlegroups.com | BN118: MARIANNA | CC118: G1_ANDREAS | CD118: TIME OUT | CE118: ANDREAS | CF118: EUROPA LEAGUE - G. 1 | CH118: ZZ_COSENZA | CI118: ZZ_COSENZA | CJ118: ZZ_MARUEGO BOYS | CK118: COPPA DI LEGA - FASE A GIRONI: 2a GIORNATA | CR118: FERRON | CS118: CLOCKWORK ORANGE FC | CT118: COSENZA | CU118: MARUEGO BOYS | CV118: G2
A119: REAL CHR | B119: SOMMER | C119: 45 | D119: MARTINEZ | E119: 0 | F119: ADOMAVICIUS | G119: 0 | H119: DI GENNARO | I119: 0 | J119: DOIG | K119: 5 | L119: LAZARO | M119: 7 | N119: MANCINI | O119: 4 | P119: OBERT | Q119: 1 | R119: SOLET | S119: 2 | T119: SPINAZZOLA | U119: 3 | V119: TERRACCIANO F. | W119: 4 | X119: VEIGA | Y119: 3 | Z119: BARELLA | AA119: 25 | AB119: BERNARDESCHI | AC119: 2 | AD119: EKKELENKAMP | AE119: 4 | AF119: GINEITIS | AG119: 1 | AH119: MATIC | AI119: 1 | AJ119: MCTOMINAY | AK119: 22 | AL119: RABIOT | AM119: 52 | AN119: SAMARDZIC | AO119: 38 | AP119: CAMARDA | AQ119: 25 | AR119: DE KETELAERE | AS119: 55 | AT119: KILICSOY | AU119: 14 | AV119: LUKAKU | AW119: 25 | AX119: PINAMONTI | AY119: 11 | AZ119: REAL CHR | BA119: KEMPF | BB119: COM | BC119: 6.481481481 | BD119: 27 | BE119: 6.092592593 | BF119: cihf_a@googlegroups.com | BN119: MARUEGO BOYS | CC119: G1_ATLETICO SGANITO | CD119: ELEVEN LIONS | CE119: ATLETICO SGANITO | CF119: EUROPA LEAGUE - G. 1 | CH119: ZZ_BETIS SEVILLA | CI119: ZZ_BETIS SEVILLA | CJ119: ZZ_ATLETICO PIGROTTO | CK119: COPPA DI LEGA - FASE A GIRONI: 2a GIORNATA | CR119: GRATTACHECCA | CS119: MARIANNA | CT119: BETIS SEVILLA | CU119: ATLETICO PIGROTTO | CV119: G2
A120: ZERU TITULI | B120: MAIGNAN | C120: 36 | D120: TERRACCIANO | E120: 0 | F120: TORRIANI | G120: 0 | H120: DONEDA | I120: 0 | J120: BEUKEMA | K120: 2 | L120: CARACCIOLO | M120: 1 | N120: KELLY | O120: 1 | P120: RRAHMANI | Q120: 7 | R120: SCALVINI | S120: 1 | T120: TOMORI | U120: 3 | V120: VALERI | W120: 1 | X120: VITIK | Y120: 3 | Z120: CALHANOGLU | AA120: 51 | AB120: FABBIAN | AC120: 1 | AD120: LOFTUS-CHEEK | AE120: 7 | AF120: MILLER | AG120: 1 | AH120: ODGAARD | AI120: 1 | AJ120: PIEROTTI | AK120: 1 | AL120: THORSTVEDT | AM120: 5 | AN120: TRAMONI | AO120: 8 | AP120: BERARDI | AQ120: 52 | AR120: KULENOVIC | AS120: 2 | AT120: SOULE' | AU120: 11 | AV120: THURAM | AW120: 93 | AX120: VARDY | AY120: 42 | AZ120: ZERU TITULI | BA120: MORENO | BB120: COM | BC120: 6.142857143 | BD120: 14 | BE120: 6 | BF120: cihf_a@googlegroups.com | BN120: MOKA JUNIORS | CC120: G1_TROPEA | CD120: FFC GIUSEPPE BERGOMI | CE120: TROPEA | CF120: EUROPA LEAGUE - G. 1 | CH120: ZZ_DREAM TIN TEAM | CI120: ZZ_DREAM TIN TEAM | CJ120: ZZ_MOMENTI DI GLORIA FMC | CK120: COPPA DI LEGA - FASE A GIRONI: 2a GIORNATA | CR120: BLACK&WHITE | CS120: FANTARAPID CACCAMO | CT120: DREAM TIN TEAM | CU120: MOMENTI DI GLORIA FMC | CV120: G2
A121: FANTARAPID CACCAMO | B121: SKORUPSKI | C121: 16 | D121: PESSINA | E121: 0 | F121: RAVAGLIA | G121: 0 | H121: HAPPONEN | I121: 0 | J121: ANGORI | K121: 3 | L121: BELLANOVA | M121: 13 | N121: DUMFRIES | O121: 21 | P121: GABBIA | Q121: 1 | R121: MARIPAN | S121: 1 | T121: PALESTRA | U121: 2 | V121: VASQUEZ | W121: 1 | X121: WESLEY | Y121: 24 | Z121: FAGIOLI | AA121: 1 | AB121: GAETANO | AC121: 12 | AD121: ISAKSEN | AE121: 16 | AF121: MKHITARYAN | AG121: 13 | AH121: ODGAARD | AI121: 20 | AJ121: STREFEZZA | AK121: 25 | AL121: TOURE' | AM121: 1 | AN121: VLASIC | AO121: 8 | AP121: ESPOSITO SE. | AQ121: 2 | AR121: FERGUSON E. | AS121: 168 | AT121: KRSTOVIC | AU121: 21 | AV121: PINAMONTI | AW121: 31 | AX121: STULIC | AY121: 15 | AZ121: FANTARAPID CACCAMO | BA121: RAMON | BB121: COM | BC121: 6.166666667 | BD121: 30 | BE121: 6.166666667 | BF121: cihf_b@googlegroups.com | BN121: MOMENTI DI GLORIA | CC121: G1_PICCIOTTI NERAZZURRI | CD121: SALEX | CE121: PICCIOTTI NERAZZURRI | CF121: EUROPA LEAGUE - G. 1 | CH121: ZZ_A TUTTA CALLARA | CI121: ZZ_A TUTTA CALLARA | CJ121: ZZ_LA VECCHIA GUARDIA | CK121: COPPA DI LEGA - FASE A GIRONI: 2a GIORNATA | CR121: TC WILLIAMS | CS121: LA MUCONE | CT121: A TUTTA CALLARA | CU121: LA VECCHIA GUARDIA | CV121: G2
A122: FFC SANDRO MAZZOLA | B122: BUTEZ | C122: 1 | D122: CAVLINA | E122: 0 | F122: VIGORITO | G122: 0 | H122: MENKE | I122: 0 | J122: BREMER | K122: 26 | L122: DOIG | M122: 1 | N122: GALLO | O122: 1 | P122: KEMPF | Q122: 2 | R122: MINA | S122: 2 | T122: SMOLCIC | U122: 2 | V122: TROILO | W122: 1 | X122: ZAPPA | Y122: 1 | Z122: DE BRUYNE | AA122: 77 | AB122: FERGUSON | AC122: 1 | AD122: JASHARI | AE122: 2 | AF122: POLITANO | AG122: 39 | AH122: RICCI | AI122: 1 | AJ122: ROWE | AK122: 2 | AL122: SUSLOV | AM122: 1 | AN122: ZANIOLO | AO122: 2 | AP122: BOWIE | AQ122: 1 | AR122: DAVID | AS122: 26 | AT122: DAVIS | AU122: 5 | AV122: LAUTARO | AW122: 186 | AX122: MORATA | AY122: 2 | AZ122: FFC SANDRO MAZZOLA | BA122: SMOLCIC | BB122: COM | BC122: 5.760869565 | BD122: 23 | BE122: 5.934782609 | BF122: cihf_b@googlegroups.com | BN122: MOMENTI DI GLORIA FMC | CC122: G1_TEAM ENO | CD122: PANZER8 | CE122: TEAM ENO | CF122: EUROPA LEAGUE - G. 1 | CH122: ZZ_ACRESE | CI122: ZZ_ACRESE | CJ122: ZZ_ANDREAS | CK122: COPPA DI LEGA - FASE A GIRONI: 2a GIORNATA | CR122: VIS FONNO | CS122: SAN SIRO | CT122: ACRESE | CU122: ANDREAS | CV122: G2
A123: OXFORD UNITED | B123: MERET | C123: 16 | D123: CONTINI | E123: 0 | F123: MILINKOVIC | G123: 0 | H123: FERRANTE | I123: 0 | J123: BARBIERI | K123: 1 | L123: HEGGEM | M123: 3 | N123: KELLY | O123: 2 | P123: MUHAREMOVIC | Q123: 1 | R123: PONGRACIC | S123: 7 | T123: RANIERI | U123: 6 | V123: VALLE | W123: 1 | X123: VOJVODA | Y123: 6 | Z123: ATTA | AA123: 18 | AB123: BERNABE' | AC123: 18 | AD123: KONÈ I. | AE123: 1 | AF123: KOOPMEINERS | AG123: 42 | AH123: LOCATELLI | AI123: 23 | AJ123: MESSIAS | AK123: 5 | AL123: ONDREJKA | AM123: 1 | AN123: SAMARDZIC | AO123: 1 | AP123: BONNY | AQ123: 14 | AR123: DE KETELAERE | AS123: 31 | AT123: HOJLUND | AU123: 81 | AV123: KEAN | AW123: 98 | AX123: RODRIGUEZ | AY123: 6 | AZ123: OXFORD UNITED | BA123: VALLE | BB123: COM | BC123: 6.115384615 | BD123: 26 | BE123: 6.057692308 | BF123: cihf_b@googlegroups.com | BN123: MOMPRACEM | CC123: G1_VIS TRONKO | CD123: SVICAT | CE123: VIS TRONKO | CF123: EUROPA LEAGUE - G. 1 | CH123: ZZ_HIC SUNT FERAE | CI123: ZZ_HIC SUNT FERAE | CJ123: ZZ_REAL BUGGY | CK123: COPPA DI LEGA - FASE A GIRONI: 2a GIORNATA | CR123: FC BIBI 04 | CS123: ISOLA CHE NON CE | CT123: HIC SUNT FERAE | CU123: REAL BUGGY | CV123: G2
A124: FANTASPEZIA | B124: DI GREGORIO | C124: 27 | D124: PERIN | E124: 0 | F124: PINSOGLIO | G124: 0 | H124: HULI | I124: 0 | J124: AHANOR | K124: 7 | L124: BERTOLA | M124: 2 | N124: EHIZIBUE | O124: 2 | P124: GATTI | Q124: 12 | R124: HOLM | S124: 1 | T124: MANCINI | U124: 7 | V124: SPINAZZOLA | W124: 12 | X124: ZAPPACOSTA | Y124: 12 | Z124: FREULER | AA124: 3 | AB124: GUDMUNDSSON | AC124: 17 | AD124: MALDINI | AE124: 2 | AF124: MANDRAGORA | AG124: 7 | AH124: ORSOLINI | AI124: 32 | AJ124: PASALIC | AK124: 24 | AL124: PIOTROWSKI | AM124: 3 | AN124: POBEGA | AO124: 2 | AP124: CAMBIAGHI | AQ124: 3 | AR124: DOVBYK | AS124: 42 | AT124: MOREO | AU124: 2 | AV124: NZOLA | AW124: 13 | AX124: SANABRIA | AY124: 14 | AZ124: FANTASPEZIA | BA124: VAN DER BREMPT | BB124: COM | BC124: 5.833333333 | BD124: 12 | BE124: 5.916666667 | BF124: cihf_b@googlegroups.com | BN124: NAPO-LEONI | CC124: G1_STROMBOLI | CD124: VOTANTONIO | CE124: STROMBOLI | CF124: EUROPA LEAGUE - G. 1 | CH124: ZZ_RASTA ZETA | CI124: ZZ_RASTA ZETA | CJ124: ZZ_FIORENTINA | CK124: COPPA DI LEGA - FASE A GIRONI: 2a GIORNATA | CR124: LUCHINS | CS124: REAL GENOA | CT124: RASTA ZETA | CU124: FIORENTINA | CV124: G2
A125: FRIUL GALAXI | B125: SVILAR | C125: 1 | D125: GOLLINI | E125: 0 | F125: ZELEZNY | G125: 0 | H125: DE MARZI | I125: 0 | J125: ARIZALA | K125: 1 | L125: BUONGIORNO | M125: 9 | N125: CAMBIASO | O125: 9 | P125: DIEGO CARLOS | Q125: 3 | R125: GUTIERREZ | S125: 2 | T125: HERMOSO | U125: 5 | V125: KOSSOUNOU | W125: 1 | X125: ZORTEA | Y125: 5 | Z125: BERNARDESCHI | AA125: 3 | AB125: EKKELENKAMP | AC125: 1 | AD125: ELMAS | AE125: 12 | AF125: LAHDO | AG125: 1 | AH125: MODRIC | AI125: 16 | AJ125: NICO PAZ | AK125: 6 | AL125: VERGARA | AM125: 2 | AN125: ZACCAGNI | AO125: 14 | AP125: DYBALA | AQ125: 9 | AR125: KUHN | AS125: 3 | AT125: SOULE' | AU125: 15 | AV125: VAZ | AW125: 3 | AX125: VLAHOVIC | AY125: 107 | AZ125: FRIUL GALAXI | BA125: VOJVODA | BB125: COM | BC125: 6.222222222 | BD125: 27 | BE125: 6.018518519 | BF125: cihf_b@googlegroups.com | BN125: NAPOLI FOREVER | CC125: G1_MANZO TEAM | CD125: TITANS | CE125: MANZO TEAM | CF125: EUROPA LEAGUE - G. 1 | CH125: ZZ_MARIANNA | CI125: ZZ_MARIANNA | CJ125: ZZ_FFC ANGELO DOMENGHINI | CK125: COPPA DI LEGA - FASE A GIRONI: 2a GIORNATA | CR125: AC DERBOLINA | CS125: AC MORRONE | CT125: MARIANNA | CU125: FFC ANGELO DOMENGHINI | CV125: G2
A126: P CUATRO | B126: ISRAEL | C126: 21 | D126: PALEARI | E126: 0 | F126: SIVIERO | G126: 0 | H126: SANTER | I126: 0 | J126: ACERBI | K126: 2 | L126: AKANJI | M126: 3 | N126: BASCHIROTTO | O126: 21 | P126: CANESTRELLI | Q126: 9 | R126: LUCUMI' | S126: 6 | T126: TAVARES | U126: 21 | V126: TERRACCIANO F. | W126: 11 | X126: TOMORI | Y126: 9 | Z126: BARELLA | AA126: 63 | AB126: DA CUNHA | AC126: 6 | AD126: ILKHAN | AE126: 1 | AF126: MAZZITELLI | AG126: 5 | AH126: NERES | AI126: 31 | AJ126: PIEROTTI | AK126: 3 | AL126: PULISIC | AM126: 51 | AN126: SUCIC | AO126: 13 | AP126: BERARDI | AQ126: 51 | AR126: BONAZZOLI | AS126: 3 | AT126: DIA | AU126: 33 | AV126: RASPADORI | AW126: 41 | AX126: ZAPATA | AY126: 1 | AZ126: P CUATRO | BA126: BARBIERI | BB126: CRE | BC126: 5.86 | BD126: 25 | BE126: 6 | BF126: cihf_b@googlegroups.com | BN126: NASONE NERAZZURRO | CC126: G1_DREAM TIN TEAM | CD126: BARBERA & CHAMPAGNE | CE126: DREAM TIN TEAM | CF126: EUROPA LEAGUE - G. 1 | CH126: ZZ_NORTH COCKS | CI126: ZZ_NORTH COCKS | CJ126: ZZ_JUNIORT | CK126: COPPA DI LEGA - FASE A GIRONI: 2a GIORNATA | CR126: RED HOT CHILI PEPPERS | CS126: REAL BABBUDOIU | CT126: NORTH COCKS | CU126: JUNIORT | CV126: G2
A127: FC PARTIZAN DEGRADO | B127: DE GEA | C127: 1 | D127: LEZZERINI | E127: 0 | F127: CHRISTENSEN | G127: 0 | H127: DOLFI | I127: 0 | J127: CELIK | K127: 5 | L127: COCO | M127: 2 | N127: DJIMSITI | O127: 1 | P127: HIEN | Q127: 1 | R127: KOLASINAC | S127: 1 | T127: LAZARO | U127: 1 | V127: MARUSIC | W127: 1 | X127: ROMAGNOLI | Y127: 1 | Z127: CALHANOGLU | AA127: 51 | AB127: CATALDI | AC127: 1 | AD127: EL AYNAOUI | AE127: 1 | AF127: KONE' | AG127: 16 | AH127: LOFTUS-CHEEK | AI127: 23 | AJ127: MCKENNIE | AK127: 1 | AL127: SAELEMAEKERS | AM127: 1 | AN127: THORSBY | AO127: 1 | AP127: CASTRO | AQ127: 23 | AR127: DOUVIKAS | AS127: 41 | AT127: MALEN | AU127: 51 | AV127: THURAM | AW127: 31 | AX127: VARDY | AY127: 43 | AZ127: FC PARTIZAN DEGRADO | BA127: BASCHIROTTO | BB127: CRE | BC127: 6.120689655 | BD127: 29 | BE127: 5.948275862 | BF127: cihf_b@googlegroups.com | BN127: NEAPOLIS | CC127: G1_NAPOLI FOREVER | CD127: BORGOROSSO F.C. | CE127: NAPOLI FOREVER | CF127: EUROPA LEAGUE - G. 1 | CH127: ZZ_AC MORRONE | CI127: ZZ_AC MORRONE | CJ127: ZZ_SWANSEA | CK127: COPPA DI LEGA - FASE A GIRONI: 2a GIORNATA | CR127: FFC TOPENHAM | CS127: ACRESE | CT127: AC MORRONE | CU127: SWANSEA | CV127: G2
A128: LAMÙFOREVER | B128: MOTTA | C128: 2 | D128: PROVEDEL | E128: 0 | F128: GIACOMONE | G128: 0 | H128: PANNOZZO | I128: 0 | J128: BEUKEMA | K128: 1 | L128: DE WINTER | M128: 2 | N128: DI LORENZO | O128: 17 | P128: JUAN JESUS | Q128: 4 | R128: KALULU | S128: 2 | T128: MARCANDALLI | U128: 1 | V128: MIRANDA | W128: 1 | X128: RRAHMANI | Y128: 9 | Z128: CAQUERET | AA128: 2 | AB128: DE ROON | AC128: 3 | AD128: FOFANA | AE128: 7 | AF128: KARLSTROM | AG128: 2 | AH128: PELLEGRINI LO. | AI128: 3 | AJ128: PRATI | AK128: 1 | AL128: SANTOS | AM128: 2 | AN128: ZALEWSKI | AO128: 7 | AP128: ADAMS | AQ128: 22 | AR128: BELOTTI | AS128: 16 | AT128: KULENOVIC | AU128: 1 | AV128: NKUNKU | AW128: 4 | AX128: SCAMACCA | AY128: 3 | AZ128: LAMÙFOREVER | BA128: BIANCHETTI | BB128: CRE | BC128: 5.7 | BD128: 25 | BE128: 5.76 | BF128: cihf_b@googlegroups.com | BN128: NICKSTREGA | CC128: G1_LIVELE | CD128: OXFORD UNITED | CE128: LIVELE | CF128: EUROPA LEAGUE - G. 1 | CH128: ZZ_SOLSBURY HILL FC | CI128: ZZ_SOLSBURY HILL FC | CJ128: ZZ_ISOLA CHE NON CE | CK128: COPPA DI LEGA - FASE A GIRONI: 2a GIORNATA | CR128: RISK UNITED | CS128: ENDYMION | CT128: SOLSBURY HILL FC | CU128: ISOLA CHE NON CE | CV128: G2
A129: SAN SIRO | B129: MAIGNAN | C129: 1 | D129: TERRACCIANO | E129: 0 | F129: TORRIANI | G129: 0 | H129: DONEDA | I129: 0 | J129: DOSSENA | K129: 1 | L129: GOSENS | M129: 31 | N129: KABASELE | O129: 1 | P129: N'DICKA | Q129: 3 | R129: OBRADOR | S129: 1 | T129: OSTIGARD | U129: 1 | V129: PAVLOVIC | W129: 31 | X129: WALUKIEWICZ | Y129: 1 | Z129: BALDANZI | AA129: 5 | AB129: BRESCIANINI | AC129: 1 | AD129: CASADEI | AE129: 15 | AF129: COULIBALY | AG129: 3 | AH129: CRISTANTE | AI129: 1 | AJ129: FOLORUNSHO | AK129: 1 | AL129: MALINOVSKYI | AM129: 1 | AN129: VOLPATO | AO129: 1 | AP129: CAMARDA | AQ129: 1 | AR129: ELPHEGE | AS129: 1 | AT129: GIMENEZ | AU129: 87 | AV129: LAURIENTÈ | AW129: 15 | AX129: VITINHA | AY129: 1 | AZ129: SAN SIRO | BA129: CECCHERINI | BB129: CRE | BC129: 5.375 | BD129: 8 | BE129: 5.5625 | BF129: cihf_b@googlegroups.com | BN129: NOJOSETTE | CC129: G1_KITEMMUOR TEAM | CD129: JUVE93 | CE129: KITEMMUOR TEAM | CF129: EUROPA LEAGUE - G. 1 | CH129: ZZ_TORI BRIANZOLI | CI129: ZZ_TORI BRIANZOLI | CJ129: ZZ_NEAPOLIS | CK129: COPPA DI LEGA - FASE A GIRONI: 2a GIORNATA | CR129: LA10 BIELLA FC | CS129: NORTH COCKS | CT129: TORI BRIANZOLI | CU129: NEAPOLIS | CV129: G2
A130: FC ZETAJ TEAM 1999 | B130: SOMMER | C130: 4 | D130: MARTINEZ | E130: 0 | F130: ADOMAVICIUS | G130: 0 | H130: DI GENNARO | I130: 0 | J130: BASTONI | K130: 21 | L130: BISSECK | M130: 1 | N130: CARLOS AUGUSTO | O130: 1 | P130: CIRCATI | Q130: 1 | R130: DODO' | S130: 12 | T130: GILA | U130: 2 | V130: IDZES | W130: 1 | X130: RENSCH | Y130: 1 | Z130: EDERSON | AA130: 28 | AB130: FRATTESI | AC130: 12 | AD130: FRENDRUP | AE130: 12 | AF130: GANDELMAN | AG130: 2 | AH130: MCTOMINAY | AI130: 26 | AJ130: THURAM K. | AK130: 22 | AL130: TRAMONI | AM130: 1 | AN130: ZIELINSKI | AO130: 1 | AP130: BOGA | AQ130: 3 | AR130: COLOMBO | AS130: 18 | AT130: ESPOSITO F.P. | AU130: 18 | AV130: GIOVANE | AW130: 3 | AX130: PELLEGRINO | AY130: 14 | AZ130: FC ZETAJ TEAM 1999 | BA130: FAYE | BB130: CRE | BC130: 5.642857143 | BD130: 7 | BE130: 5.714285714 | BF130: cihf_b@googlegroups.com | BN130: NORTH COCKS | CC130: G1_COSENZA | CD130: LAMÙFOREVER | CE130: COSENZA | CF130: EUROPA LEAGUE - G. 1 | CH130: ZZ_STROMBOLI | CI130: ZZ_STROMBOLI | CJ130: ZZ_BRUDYLEGHORN | CK130: COPPA DI LEGA - FASE A GIRONI: 2a GIORNATA | CR130: DEP. LA CAROGNA | CS130: FC NAPOLI 2012 | CT130: STROMBOLI | CU130: BRUDYLEGHORN | CV130: G2
A131: MOMENTI DI GLORIA | B131: CARNESECCHI | C131: 5 | D131: ROSSI | E131: 0 | F131: SPORTIELLO | G131: 0 | H131: ZANCHI | I131: 0 | J131: ANGELINO | K131: 1 | L131: BERNASCONI | M131: 3 | N131: DELPRATO | O131: 2 | P131: ISMAJLI | Q131: 1 | R131: RAMON | S131: 6 | T131: SCALVINI | U131: 1 | V131: SOLET | W131: 2 | X131: TIAGO GABRIEL | Y131: 2 | Z131: AMORIM | AA131: 1 | AB131: BASIC | AC131: 1 | AD131: LOBOTKA | AE131: 3 | AF131: MATIC | AG131: 7 | AH131: PERRONE | AI131: 8 | AJ131: PISILLI | AK131: 2 | AL131: RABIOT | AM131: 31 | AN131: THORSTVEDT | AO131: 11 | AP131: ADDAI | AQ131: 1 | AR131: DIAO | AS131: 6 | AT131: LEAO | AU131: 11 | AV131: LUKAKU | AW131: 1 | AX131: SOLOMON | AY131: 2 | AZ131: MOMENTI DI GLORIA | BA131: FLORIANI | BB131: CRE | BC131: 5.666666667 | BD131: 21 | BE131: 5.714285714 | BF131: cihf_b@googlegroups.com | BN131: OLTREMARE | CH131: ZZ_TROPEA | CI131: ZZ_TROPEA | CJ131: ZZ_EL NINO FC | CK131: COPPA DI LEGA - FASE A GIRONI: 2a GIORNATA | CR131: SPORTING 2000 | CS131: RASTA ZETA | CT131: TROPEA | CU131: EL NINO FC | CV131: G2
A132: SPORTING LABRONICA | B132: CAPRILE | C132: 1 | D132: CIOCCI | E132: 0 | F132: SHERRI | G132: 0 | H132: AUSEKLIS | I132: 0 | J132: BARTESAGHI | K132: 1 | L132: BELGHALI | M132: 2 | N132: DIMARCO | O132: 44 | P132: GHILARDI | Q132: 1 | R132: KRISTENSEN | S132: 1 | T132: NORTON-CUFFY | U132: 1 | V132: PARISI | W132: 2 | X132: VALERI | Y132: 1 | Z132: ANGUISSA | AA132: 34 | AB132: BATURINA | AC132: 1 | AD132: CONCEICAO | AE132: 21 | AF132: ELLERTSSON | AG132: 1 | AH132: NDOUR | AI132: 1 | AJ132: TAYLOR | AK132: 9 | AL132: VANDEPUTTE | AM132: 1 | AN132: ZARAGOZA | AO132: 18 | AP132: CANCELLIERI | AQ132: 1 | AR132: KILICSOY | AS132: 3 | AT132: ORBAN | AU132: 11 | AV132: SIMEONE | AW132: 21 | AX132: YILDIZ | AY132: 1 | AZ132: SPORTING LABRONICA | BA132: FOLINO | BB132: CRE | BC132: 6 | BD132: 11 | BE132: 5.772727273 | BF132: cihf_b@googlegroups.com | BN132: OLYMPIC KEBAB | CC132: G1_CAPIBARA SWOFFY FC | CD132: CAPIBARA SWOFFY FC | CE132: REAL BUCCINASCO | CF132: CONFERENCE LEAGUE - G. 1 | CH132: ZZ_LIVELE | CI132: ZZ_LIVELE | CJ132: ZZ_UDI ONE | CK132: COPPA DI LEGA - FASE A GIRONI: 2a GIORNATA | CR132: DAVINCI TEAM | CS132: SALENTO FC | CT132: LIVELE | CU132: UDI ONE | CV132: G2
A133: AC ZDENEK | B133: CARNESECCHI | C133: 4 | D133: ROSSI | E133: 0 | F133: SPORTIELLO | G133: 0 | H133: ZANCHI | I133: 0 | J133: BEUKEMA | K133: 1 | L133: DE WINTER | M133: 1 | N133: IDZES | O133: 1 | P133: KOLASINAC | Q133: 1 | R133: MORENO | S133: 1 | T133: NORTON-CUFFY | U133: 1 | V133: OBRADOR | W133: 1 | X133: VOJVODA | Y133: 1 | Z133: CRISTANTE | AA133: 2 | AB133: ELLERTSSON | AC133: 2 | AD133: KONE' | AE133: 11 | AF133: ODGAARD | AG133: 1 | AH133: PULISIC | AI133: 69 | AJ133: ROWE | AK133: 3 | AL133: VOLPATO | AM133: 1 | AN133: ZIELINSKI | AO133: 1 | AP133: BERARDI | AQ133: 77 | AR133: DE KETELAERE | AS133: 38 | AT133: ORBAN | AU133: 13 | AV133: PINAMONTI | AW133: 14 | AX133: SOLOMON | AY133: 3 | AZ133: A.C. ZDENEK | BA133: LUPERTO | BB133: CRE | BC133: 5.890625 | BD133: 32 | BE133: 5.859375 | BF133: cihf_c@googlegroups.com | BN133: OSTIAMARE FC | CC133: G1_HIC SUNT FERAE | CD133: HIC SUNT FERAE | CE133: AS QUARZA | CF133: CONFERENCE LEAGUE - G. 1 | CH133: ZZ_TEAM ENO | CI133: ZZ_TEAM ENO | CJ133: ZZ_FFC MARIO CORSO | CK133: COPPA DI LEGA - FASE A GIRONI: 2a GIORNATA | CR133: PRO WC | CS133: REAL GRIFO | CT133: TEAM ENO | CU133: FFC MARIO CORSO | CV133: G2
A134: BARBERA & CHAMPAGNE | B134: SKORUPSKI | C134: 8 | D134: PESSINA | E134: 0 | F134: RAVAGLIA | G134: 0 | H134: HAPPONEN | I134: 0 | J134: BASCHIROTTO | K134: 3 | L134: BUONGIORNO | M134: 20 | N134: GHILARDI | O134: 1 | P134: LUCUMI' | Q134: 1 | R134: MANCINI | S134: 23 | T134: MARUSIC | U134: 1 | V134: PROVSTGAARD | W134: 1 | X134: TIAGO GABRIEL | Y134: 1 | Z134: AEBISCHER | AA134: 1 | AB134: CAQUERET | AC134: 1 | AD134: EL AYNAOUI | AE134: 7 | AF134: FREULER | AG134: 3 | AH134: LERIS | AI134: 1 | AJ134: MANDRAGORA | AK134: 1 | AL134: POLITANO | AM134: 21 | AN134: SOTTIL | AO134: 1 | AP134: ELPHEGE | AQ134: 1 | AR134: KILICSOY | AS134: 1 | AT134: MALEN | AU134: 122 | AV134: MOREO | AW134: 1 | AX134: RASPADORI | AY134: 10 | AZ134: BARBERA & CHAMPAGNE | BA134: PEZZELLA | BB134: CRE | BC134: 5.534482759 | BD134: 29 | BE134: 5.706896552 | BF134: cihf_c@googlegroups.com | BN134: OXFORD UNITED | CC134: G1_FFC ROBERTO BONINSEGNA | CD134: FFC ROBERTO BONINSEGNA | CE134: AMOREODIO | CF134: CONFERENCE LEAGUE - G. 1 | CH134: ZZ_FFC ROBERTO BONINSEGNA | CI134: ZZ_FFC ROBERTO BONINSEGNA | CJ134: ZZ_ATLETICO SGANITO | CK134: COPPA DI LEGA - FASE A GIRONI: 2a GIORNATA | CT134: FFC ROBERTO BONINSEGNA | CU134: ATLETICO SGANITO | CV134: G2
A135: FFC GIUSEPPE BERGOMI | B135: DE GEA | C135: 2 | D135: LEZZERINI | E135: 0 | F135: CHRISTENSEN | G135: 0 | H135: DOLFI | I135: 0 | J135: AHANOR | K135: 1 | L135: BASTONI | M135: 23 | N135: BERTOLA | O135: 2 | P135: DOIG | Q135: 2 | R135: DUMFRIES | S135: 32 | T135: KOSSOUNOU | U135: 2 | V135: MINA | W135: 2 | X135: PALESTRA | Y135: 2 | Z135: FABBIAN | AA135: 2 | AB135: FRENDRUP | AC135: 2 | AD135: NICO PAZ | AE135: 75 | AF135: ORSOLINI | AG135: 65 | AH135: RICCI | AI135: 7 | AJ135: SANTOS | AK135: 1 | AL135: VERGARA | AM135: 1 | AN135: ZARAGOZA | AO135: 10 | AP135: LEAO | AQ135: 101 | AR135: MORATA | AS135: 2 | AT135: STULIC | AU135: 1 | AV135: THURAM | AW135: 123 | AX135: VAZ | AY135: 1 | AZ135: FFC GIUSEPPE BERGOMI | BA135: TERRACCIANO F. | BB135: CRE | BC135: 5.833333333 | BD135: 33 | BE135: 5.863636364 | BF135: cihf_c@googlegroups.com | BN135: P CUATRO | CC135: G1_BETIS SEVILLA | CD135: BETIS SEVILLA | CE135: BEETLES | CF135: CONFERENCE LEAGUE - G. 1 | CH135: ZZ_GRATTACHECCA | CI135: ZZ_GRATTACHECCA | CJ135: ZZ_EROI DEL 1982 | CK135: COPPA DI LEGA - FASE A GIRONI: 2a GIORNATA | CR135: SPORTING VINAO | CS135: DAJE MO' | CT135: GRATTACHECCA | CU135: EROI DEL 1982 | CV135: G2
A136: AMBROSIANA | B136: FALCONE | C136: 1 | D136: FRUCHTL | E136: 0 | F136: SAMOOJA | G136: 0 | H136: PENEV | I136: 0 | J136: ACERBI | K136: 1 | L136: EDMUNDSSON | M136: 1 | N136: GILA | O136: 1 | P136: JOAO MARIO | Q136: 1 | R136: KRISTENSEN | S136: 1 | T136: OSTIGARD | U136: 1 | V136: SOLET | W136: 1 | X136: WESLEY | Y136: 33 | Z136: BERNEDE | AA136: 1 | AB136: FOFANA | AC136: 1 | AD136: GINEITIS | AE136: 1 | AF136: ISAKSEN | AG136: 1 | AH136: MALINOVSKYI | AI136: 1 | AJ136: MATIC | AK136: 1 | AL136: PELLEGRINI LO. | AM136: 1 | AN136: ZACCAGNI | AO136: 50 | AP136: BELOTTI | AQ136: 1 | AR136: CHEDDIRA | AS136: 1 | AT136: DALLINGA | AU136: 1 | AV136: DIAO | AW136: 1 | AX136: NZOLA | AY136: 1 | AZ136: AMBROSIANA | BA136: BALBO | BB136: FIO | BC136: 5.666666667 | BD136: 3 | BE136: 5.666666667 | BF136: cihf_c@googlegroups.com | BN136: PANZER8 | CC136: G1_FC FANTATLETICO | CD136: FC FANTATLETICO | CE136: ETRURIA UNITED | CF136: CONFERENCE LEAGUE - G. 1 | CH136: ZZ_NAPOLI FOREVER | CI136: ZZ_NAPOLI FOREVER | CJ136: ZZ_DINAMO VIGIAK | CK136: COPPA DI LEGA - FASE A GIRONI: 2a GIORNATA | CR136: BFC MARANO | CS136: ATLETICO PIGROTTO | CT136: NAPOLI FOREVER | CU136: DINAMO VIGIAK | CV136: G2
A137: DAJE MO' | B137: SOMMER | C137: 31 | D137: MARTINEZ | E137: 0 | F137: ADOMAVICIUS | G137: 0 | H137: DI GENNARO | I137: 0 | J137: CABAL | K137: 2 | L137: CAMBIASO | M137: 7 | N137: DELPRATO | O137: 5 | P137: DI LORENZO | Q137: 9 | R137: DIEGO CARLOS | S137: 2 | T137: HEGGEM | U137: 3 | V137: HIEN | W137: 2 | X137: SPINAZZOLA | Y137: 7 | Z137: ANGUISSA | AA137: 15 | AB137: BRESCIANINI | AC137: 5 | AD137: DE BRUYNE | AE137: 29 | AF137: DE ROON | AG137: 6 | AH137: EKKELENKAMP | AI137: 2 | AJ137: MIRETTI | AK137: 6 | AL137: PERRONE | AM137: 4 | AN137: RABIOT | AO137: 29 | AP137: DOUVIKAS | AQ137: 1 | AR137: HOJLUND | AS137: 101 | AT137: LAUTARO | AU137: 201 | AV137: LUKAKU | AW137: 51 | AX137: NKUNKU | AY137: 25 | AZ137: DAJE MO' | BA137: COMUZZO | BB137: FIO | BC137: 5.818181818 | BD137: 22 | BE137: 5.727272727 | BF137: cihf_c@googlegroups.com | BN137: PAPAVERI E PAPERE | CC137: G1_REAL MADRINK | CD137: REAL MADRINK | CE137: FFC MARIO CORSO | CF137: CONFERENCE LEAGUE - G. 1 | CH137: ZZ_NICKSTREGA | CI137: ZZ_NICKSTREGA | CJ137: ZZ_BFC MARANO | CK137: COPPA DI LEGA - FASE A GIRONI: 2a GIORNATA | CR137: BLUES BROTHERS | CS137: A.C. ZDENEK | CT137: NICKSTREGA | CU137: BFC MARANO | CV137: G2
A138: PANZER8 | B138: DI GREGORIO | C138: 19 | D138: PERIN | E138: 0 | F138: PINSOGLIO | G138: 0 | H138: HULI | I138: 0 | J138: JUAN JESUS | K138: 2 | L138: KALULU | M138: 9 | N138: KELLY | O138: 9 | P138: KEMPF | Q138: 3 | R138: PEZZELLA | S138: 3 | T138: SMOLCIC | U138: 3 | V138: TOMORI | W138: 9 | X138: VASQUEZ | Y138: 3 | Z138: BATURINA | AA138: 2 | AB138: CATALDI | AC138: 3 | AD138: FAGIOLI | AE138: 7 | AF138: FERGUSON | AG138: 3 | AH138: LUIS HENRIQUE | AI138: 3 | AJ138: MKHITARYAN | AK138: 9 | AL138: MODRIC | AM138: 25 | AN138: POBEGA | AO138: 2 | AP138: CANCELLIERI | AQ138: 11 | AR138: DYBALA | AS138: 51 | AT138: KRSTOVIC | AU138: 33 | AV138: SCAMACCA | AW138: 1 | AX138: VLAHOVIC | AY138: 88 | AZ138: PANZER8 | BA138: DODO' | BB138: FIO | BC138: 5.941176471 | BD138: 34 | BE138: 5.955882353 | BF138: cihf_c@googlegroups.com | BN138: PARASITE | CC138: G1_SOLSBURY HILL FC | CD138: SOLSBURY HILL FC | CE138: CRIMSON | CF138: CONFERENCE LEAGUE - G. 1 | CH138: ZZ_KITEMMUOR TEAM | CI138: ZZ_KITEMMUOR TEAM | CJ138: ZZ_BAYER LEVERRUKE | CK138: COPPA DI LEGA - FASE A GIRONI: 2a GIORNATA | CR138: MOMPRACEM | CS138: EL NINO FC | CT138: KITEMMUOR TEAM | CU138: BAYER LEVERRUKE | CV138: G2
A139: AMOREODIO | B139: MOTTA | C139: 11 | D139: PROVEDEL | E139: 0 | F139: GIACOMONE | G139: 0 | H139: PANNOZZO | I139: 0 | J139: CARACCIOLO | K139: 5 | L139: LYKOGIANNIS | M139: 1 | N139: PONGRACIC | O139: 5 | P139: SCALVINI | Q139: 1 | R139: VALERI | S139: 3 | T139: VALLE | U139: 6 | V139: VAN DER BREMPT | W139: 4 | X139: ZAPPACOSTA | Y139: 4 | Z139: BARELLA | AA139: 29 | AB139: BERNARDESCHI | AC139: 19 | AD139: KARLSTROM | AE139: 13 | AF139: MCTOMINAY | AG139: 61 | AH139: ORISTANIO | AI139: 9 | AJ139: SUCIC | AK139: 9 | AL139: ZALEWSKI | AM139: 9 | AN139: ZANIOLO | AO139: 19 | AP139: BONAZZOLI | AQ139: 11 | AR139: COLOMBO | AS139: 19 | AT139: DAVIS | AU139: 29 | AV139: DIA | AW139: 9 | AX139: PICCOLI | AY139: 11 | AZ139: AMOREODIO | BA139: FORTINI | BB139: FIO | BC139: 5.958333333 | BD139: 12 | BE139: 5.958333333 | BF139: cihf_c@googlegroups.com | BN139: PERDENTUS FC | CC139: G1_AL-ZENA | CD139: AL-ZENA | CE139: AMBROSIANA | CF139: CONFERENCE LEAGUE - G. 1 | CH139: ZZ_MOKA JUNIORS | CI139: ZZ_MOKA JUNIORS | CJ139: ZZ_MOMPRACEM | CK139: COPPA DI LEGA - FASE A GIRONI: 2a GIORNATA | CR139: DIAMANTE | CS139: FRIUL GALAXI | CT139: MOKA JUNIORS | CU139: MOMPRACEM | CV139: G2
A140: EL NIÑO | B140: ISRAEL | C140: 1 | D140: PALEARI | E140: 0 | F140: SIVIERO | G140: 0 | H140: SANTER | I140: 0 | J140: GABBIA | K140: 4 | L140: GATTI | M140: 2 | N140: GOSENS | O140: 21 | P140: HERMOSO | Q140: 2 | R140: KABASELE | S140: 1 | T140: PAVLOVIC | U140: 21 | V140: RRAHMANI | W140: 8 | X140: TERRACCIANO F. | Y140: 2 | Z140: CONCEICAO | AA140: 8 | AB140: COULIBALY | AC140: 2 | AD140: LOBOTKA | AE140: 8 | AF140: LOCATELLI | AG140: 11 | AH140: MESSIAS | AI140: 1 | AJ140: PASALIC | AK140: 11 | AL140: SAELEMAEKERS | AM140: 22 | AN140: ZHEGROVA | AO140: 2 | AP140: ADAMS | AQ140: 9 | AR140: EKHATOR | AS140: 1 | AT140: EKUBAN | AU140: 1 | AV140: SIMEONE | AW140: 16 | AX140: YILDIZ | AY140: 28 | AZ140: EL NIÑO | BA140: GOSENS | BB140: FIO | BC140: 6.282608696 | BD140: 23 | BE140: 5.934782609 | BF140: cihf_c@googlegroups.com | BN140: PICARD | CC140: G1_CINICI | CD140: CINICI | CE140: GIAMBOTTINO FC | CF140: CONFERENCE LEAGUE - G. 1 | CH140: ZZ_MANZO TEAM | CI140: ZZ_MANZO TEAM | CJ140: ZZ_TWOSTARS | CK140: COPPA DI LEGA - FASE A GIRONI: 2a GIORNATA | CR140: TWOSTARS | CS140: NEAPOLIS | CT140: MANZO TEAM | CU140: TWOSTARS | CV140: G2
A141: REAL BUCCINASCO | B141: MERET | C141: 30 | D141: CONTINI | E141: 0 | F141: MILINKOVIC | G141: 0 | H141: FERRANTE | I141: 0 | J141: AKANJI | K141: 11 | L141: BARTESAGHI | M141: 10 | N141: BELLANOVA | O141: 20 | P141: GUTIERREZ | Q141: 5 | R141: LIROLA | S141: 5 | T141: MARTIN | U141: 5 | V141: ZAPPA | W141: 5 | X141: ZIOLKOWSKI | Y141: 1 | Z141: ATTA | AA141: 5 | AB141: EDERSON | AC141: 21 | AD141: FOLORUNSHO | AE141: 5 | AF141: GAETANO | AG141: 5 | AH141: KONÈ I. | AI141: 1 | AJ141: MALDINI | AK141: 5 | AL141: MCKENNIE | AM141: 5 | AN141: PISILLI | AO141: 10 | AP141: BOGA | AQ141: 10 | AR141: DAVID | AS141: 81 | AT141: KEAN | AU141: 5 | AV141: SOULE' | AW141: 7 | AX141: SULEMANA K. | AY141: 5 | AZ141: REAL BUCCINASCO | BA141: KOUADIO | BB141: FIO | BC141: 6 | BD141: 2 | BE141: 6 | BF141: cihf_c@googlegroups.com | BN141: PICCIOTTI NERAZZURRI | CC141: G1_PERDENTUS FC | CD141: PERDENTUS FC | CE141: 3T | CF141: CONFERENCE LEAGUE - G. 1 | CH141: ZZ_TC WILLIAMS | CI141: ZZ_TC WILLIAMS | CJ141: ZZ_FUFF TEAM | CK141: COPPA DI LEGA - FASE A GIRONI: 2a GIORNATA | CR141: ZEMANLANDIA AFC | CS141: FC ZETAJ TEAM 1999 | CT141: TC WILLIAMS | CU141: FUFF TEAM | CV141: G2
A142: ATLETICO PIPPAO | B142: MAIGNAN | C142: 13 | D142: TERRACCIANO | E142: 0 | F142: TORRIANI | G142: 0 | H142: DONEDA | I142: 0 | J142: COCO | K142: 2 | L142: DJIMSITI | M142: 2 | N142: DODO' | O142: 2 | P142: GALLO | Q142: 1 | R142: ROMAGNOLI | S142: 1 | T142: TAVARES | U142: 1 | V142: VALENTI | W142: 2 | X142: ZORTEA | Y142: 1 | Z142: BALDANZI | AA142: 2 | AB142: BERNABE' | AC142: 6 | AD142: CALHANOGLU | AE142: 38 | AF142: CASADEI | AG142: 2 | AH142: DA CUNHA | AI142: 6 | AJ142: JASHARI | AK142: 11 | AL142: TRAMONI | AM142: 4 | AN142: VANDEPUTTE | AO142: 4 | AP142: BORRELLI | AQ142: 2 | AR142: FULLKRUG | AS142: 11 | AT142: LAURIENTÈ | AU142: 18 | AV142: OPENDA | AW142: 72 | AX142: PEDRO | AY142: 1 | AZ142: ATLETICO PIPPAO | BA142: LAMPTEY | BB142: FIO | BC142: 6 | BD142: 1 | BE142: 6 | BF142: cihf_c@googlegroups.com | BN142: PIGGI | CC142: G1_REAL FARNESE | CD142: REAL FARNESE | CE142: PIGGI | CF142: CONFERENCE LEAGUE - G. 1 | CH142: ZZ_VIS TRONKO | CI142: ZZ_VIS TRONKO | CJ142: ZZ_FC TRIPLETE | CK142: COPPA DI LEGA - FASE A GIRONI: 2a GIORNATA | CR142: CACAO MERAVIGLIAO | CS142: TORI BRIANZOLI | CT142: VIS TRONKO | CU142: FC TRIPLETE | CV142: G2
A143: FC FANTATLETICO | B143: BUTEZ | C143: 1 | D143: CAVLINA | E143: 0 | F143: VIGORITO | G143: 0 | H143: MENKE | I143: 0 | J143: BELGHALI | K143: 1 | L143: CANESTRELLI | M143: 3 | N143: CELIK | O143: 2 | P143: COMUZZO | Q143: 1 | R143: LAZARO | S143: 1 | T143: MARCANDALLI | U143: 1 | V143: MUHAREMOVIC | W143: 1 | X143: N'DICKA | Y143: 6 | Z143: BASIC | AA143: 1 | AB143: ELMAS | AC143: 3 | AD143: GUDMUNDSSON | AE143: 44 | AF143: LOFTUS-CHEEK | AG143: 45 | AH143: STREFEZZA | AI143: 3 | AJ143: TAYLOR | AK143: 7 | AL143: THURAM K. | AM143: 12 | AN143: VLASIC | AO143: 6 | AP143: BONNY | AQ143: 11 | AR143: CASTRO | AS143: 11 | AT143: FERGUSON E. | AU143: 124 | AV143: PELLEGRINO | AW143: 17 | AX143: VITINHA | AY143: 11 | AZ143: FC FANTATLETICO | BA143: PARISI | BB143: FIO | BC143: 5.931818182 | BD143: 22 | BE143: 6.022727273 | BF143: cihf_c@googlegroups.com | BN143: PRAVETTONI CC | CC143: G1_TERZO MUNICIPIO | CD143: TERZO MUNICIPIO | CE143: YOUNG BOYS | CF143: CONFERENCE LEAGUE - G. 1 | CH143: ZZ_FFC TOPENHAM | CI143: ZZ_FFC TOPENHAM | CJ143: ZZ_NASONE NERAZZURRO | CK143: COPPA DI LEGA - FASE A GIRONI: 2a GIORNATA | CR143: ALL BLACKS | CS143: FANTASPEZIA | CT143: FFC TOPENHAM | CU143: NASONE NERAZZURRO | CV143: G2
A144: TIME OUT | B144: SVILAR | C144: 21 | D144: GOLLINI | E144: 0 | F144: ZELEZNY | G144: 0 | H144: DE MARZI | I144: 0 | J144: ANGORI | K144: 5 | L144: BISSECK | M144: 3 | N144: BREMER | O144: 11 | P144: CARLOS AUGUSTO | Q144: 3 | R144: DIMARCO | S144: 21 | T144: MIRANDA | U144: 3 | V144: RAMON | W144: 5 | X144: RANIERI | Y144: 1 | Z144: AKINSANMIRO | AA144: 2 | AB144: FRATTESI | AC144: 1 | AD144: KOOPMEINERS | AE144: 34 | AF144: NERES | AG144: 28 | AH144: PIEROTTI | AI144: 2 | AJ144: SAMARDZIC | AK144: 7 | AL144: THORSTVEDT | AM144: 3 | AN144: TOURE' | AO144: 3 | AP144: CAMARDA | AQ144: 11 | AR144: ESPOSITO F.P. | AS144: 21 | AT144: ESPOSITO SE. | AU144: 5 | AV144: GIMENEZ | AW144: 11 | AX144: RODRIGUEZ | AY144: 11 | AZ144: TIME OUT | BA144: PONGRACIC | BB144: FIO | BC144: 5.636363636 | BD144: 33 | BE144: 5.803030303 | BF144: cihf_c@googlegroups.com | BN144: PRENESTINO FC | CC144: G1_OLYMPIC KEBAB | CD144: OLYMPIC KEBAB | CE144: FC ROMA SUD | CF144: CONFERENCE LEAGUE - G. 1 | CH144: ZZ_PICCIOTTI NERAZZURRI | CI144: ZZ_PICCIOTTI NERAZZURRI | CJ144: ZZ_GABRY FC | CK144: COPPA DI LEGA - FASE A GIRONI: 2a GIORNATA | CR144: ATLETICO MA NON TROPPO | CS144: MOMENTI DI GLORIA FMC | CT144: PICCIOTTI NERAZZURRI | CU144: GABRY FC | CV144: G2
A145: AL-ZENA | B145: DI GREGORIO | C145: 39 | D145: PERIN | E145: 0 | F145: PINSOGLIO | G145: 0 | H145: HULI | I145: 0 | J145: AKANJI | K145: 15 | L145: BISSECK | M145: 10 | N145: BUONGIORNO | O145: 30 | P145: GHILARDI | Q145: 1 | R145: LUCUMI' | S145: 2 | T145: MUHAREMOVIC | U145: 1 | V145: SCALVINI | W145: 4 | X145: TIAGO GABRIEL | Y145: 1 | Z145: ELLERTSSON | AA145: 1 | AB145: FERGUSON | AC145: 2 | AD145: GAETANO | AE145: 2 | AF145: RICCI | AG145: 15 | AH145: SAMARDZIC | AI145: 21 | AJ145: STREFEZZA | AK145: 6 | AL145: ZACCAGNI | AM145: 8 | AN145: ZARAGOZA | AO145: 8 | AP145: ADAMS | AQ145: 12 | AR145: BONNY | AS145: 12 | AT145: KILICSOY | AU145: 8 | AV145: KRSTOVIC | AW145: 11 | AX145: VAZ | AY145: 2 | AZ145: AL-ZENA | BA145: RANIERI | BB145: FIO | BC145: 5.8 | BD145: 30 | BE145: 5.833333333 | BF145: IMI_C2_girone_C@googlegroups.com | BN145: PRINCESS OF ETRURIA | CC145: G1_NOJOSETTE | CD145: NOJOSETTE | CE145: NAPO-LEONI | CF145: CONFERENCE LEAGUE - G. 1 | CH145: ZZ_ALAN FORD'S TEAM | CI145: ZZ_ALAN FORD'S TEAM | CJ145: ZZ_FC JAVIER ZANETTI | CK145: COPPA DI LEGA - FASE A GIRONI: 2a GIORNATA | CR145: PRENESTINO FC | CS145: ATLETICO PIPPAO | CT145: ALAN FORD'S TEAM | CU145: FC JAVIER ZANETTI | CV145: G2
A146: FC ROMA SUD | B146: MOTTA | C146: 1 | D146: PROVEDEL | E146: 0 | F146: GIACOMONE | G146: 0 | H146: PANNOZZO | I146: 0 | J146: BELLANOVA | K146: 2 | L146: CARACCIOLO | M146: 1 | N146: CELIK | O146: 5 | P146: COCO | Q146: 1 | R146: DJIMSITI | S146: 1 | T146: HIEN | U146: 2 | V146: N'DICKA | W146: 4 | X146: VALENTI | Y146: 4 | Z146: BALDANZI | AA146: 1 | AB146: DE ROON | AC146: 4 | AD146: EKKELENKAMP | AE146: 1 | AF146: FOLORUNSHO | AG146: 4 | AH146: LOBOTKA | AI146: 1 | AJ146: MANDRAGORA | AK146: 1 | AL146: VERGARA | AM146: 1 | AN146: VLASIC | AO146: 3 | AP146: BONAZZOLI | AQ146: 3 | AR146: BORRELLI | AS146: 2 | AT146: DOVBYK | AU146: 16 | AV146: FULLKRUG | AW146: 5 | AX146: KEAN | AY146: 147 | AZ146: FC ROMA SUD | BA146: RUGANI | BB146: FIO | BC146: 5.5 | BD146: 7 | BE146: 5.642857143 | BF146: IMI_C2_girone_C@googlegroups.com | BN146: PRO WC | CC146: G1_DAGNE BOYS | CD146: DAGNE BOYS | CE146: FC BIRO | CF146: CONFERENCE LEAGUE - G. 1 | CH146: ZZ_PRO WC | CI146: ZZ_PRO WC | CJ146: ZZ_CRIMSON | CK146: COPPA DI LEGA - FASE A GIRONI: 2a GIORNATA | CR146: FC JAVIER ZANETTI | CS146: CAVESE | CT146: PRO WC | CU146: CRIMSON | CV146: G2
A147: LIVERCOOL | B147: BUTEZ | C147: 2 | D147: CAVLINA | E147: 0 | F147: VIGORITO | G147: 0 | H147: MENKE | I147: 0 | J147: BARTESAGHI | K147: 3 | L147: BELGHALI | M147: 3 | N147: CIRCATI | O147: 1 | P147: DELPRATO | Q147: 5 | R147: KABASELE | S147: 3 | T147: MARCANDALLI | U147: 1 | V147: OBRADOR | W147: 1 | X147: VALERI | Y147: 6 | Z147: GAGLIARDINI | AA147: 1 | AB147: KEITA | AC147: 2 | AD147: KONÈ I. | AE147: 3 | AF147: MESSIAS | AG147: 2 | AH147: NDOUR | AI147: 1 | AJ147: PERRONE | AK147: 3 | AL147: PULISIC | AM147: 60 | AN147: RABIOT | AO147: 19 | AP147: BERARDI | AQ147: 29 | AR147: DAVIS | AS147: 19 | AT147: DE KETELAERE | AU147: 16 | AV147: LAUTARO | AW147: 38 | AX147: VITINHA | AY147: 6 | AZ147: LIVERCOOL | BA147: DOUCOURE' | BB147: GEN | BC147: 0 | BD147: 0 | BE147: 0 | BF147: IMI_C2_girone_C@googlegroups.com | BN147: RASTA DB | CC147: G1_RED-GREEN | CD147: RED-GREEN | CE147: FFC TARCISIO BURGNICH | CF147: CONFERENCE LEAGUE - G. 1 | CH147: ZZ_AC DERBOLINA | CI147: ZZ_AC DERBOLINA | CJ147: ZZ_CACAO MERAVIGLIAO | CK147: COPPA DI LEGA - FASE A GIRONI: 2a GIORNATA | CR147: LA BANDA DEGLI ONESTI | CS147: FFC SANDRO MAZZOLA | CT147: AC DERBOLINA | CU147: CACAO MERAVIGLIAO | CV147: G2
A148: AS_TONMARTIN | B148: SOMMER | C148: 11 | D148: MARTINEZ | E148: 0 | F148: ADOMAVICIUS | G148: 0 | H148: DI GENNARO | I148: 0 | J148: BASCHIROTTO | K148: 1 | L148: GOSENS | M148: 17 | N148: IDZES | O148: 1 | P148: LAZARO | Q148: 10 | R148: LUPERTO | S148: 2 | T148: PROVSTGAARD | U148: 1 | V148: VALLE | W148: 1 | X148: ZAPPACOSTA | Y148: 1 | Z148: BERNABE' | AA148: 3 | AB148: DA CUNHA | AC148: 1 | AD148: FRATTESI | AE148: 1 | AF148: FREULER | AG148: 1 | AH148: MALDINI | AI148: 1 | AJ148: ORSOLINI | AK148: 32 | AL148: SAELEMAEKERS | AM148: 1 | AN148: VOLPATO | AO148: 1 | AP148: CAMARDA | AQ148: 1 | AR148: CASTRO | AS148: 8 | AT148: DAVID | AU148: 89 | AV148: ESPOSITO SE. | AW148: 11 | AX148: STULIC | AY148: 1 | AZ148: AS_TONMARTIN | BA148: MARCANDALLI | BB148: GEN | BC148: 5.793103448 | BD148: 29 | BE148: 5.862068966 | BF148: IMI_C2_girone_C@googlegroups.com | BN148: RASTA ZETA | CC148: G1_ZERVENA VIGIAK | CD148: ZERVENA VIGIAK | CE148: I VAZANICCHI | CF148: CONFERENCE LEAGUE - G. 1 | CH148: ZZ_LA10 BIELLA FC | CI148: ZZ_LA10 BIELLA FC | CJ148: ZZ_2TWINS4EVER | CK148: COPPA DI LEGA - FASE A GIRONI: 2a GIORNATA | CR148: BAYER LEVERRUKE | CS148: A TUTTA CALLARA | CT148: LA10 BIELLA FC | CU148: 2TWINS4EVER | CV148: G2
A149: FFC LUISITO SUAREZ | B149: OKOYE | C149: 1 | D149: NUNZIANTE | E149: 0 | F149: PADELLI | G149: 0 | H149: SAVA | I149: 0 | J149: BEUKEMA | K149: 1 | L149: BRITSCHGI | M149: 3 | N149: DE WINTER | O149: 2 | P149: GILA | Q149: 7 | R149: ISMAJLI | S149: 1 | T149: KOLASINAC | U149: 1 | V149: MARIPAN | W149: 3 | X149: MINA | Y149: 2 | Z149: BERNARDESCHI | AA149: 1 | AB149: BRESCIANINI | AC149: 2 | AD149: CAQUERET | AE149: 1 | AF149: CASADEI | AG149: 2 | AH149: DE BRUYNE | AI149: 81 | AJ149: ELMAS | AK149: 12 | AL149: NICO PAZ | AM149: 1 | AN149: SUSLOV | AO149: 1 | AP149: DIAO | AQ149: 3 | AR149: DOUVIKAS | AS149: 3 | AT149: LUKAKU | AU149: 37 | AV149: SCAMACCA | AW149: 1 | AX149: SULEMANA K. | AY149: 1 | AZ149: FFC LUISITO SUAREZ | BA149: MARTIN | BB149: GEN | BC149: 5.928571429 | BD149: 28 | BE149: 5.964285714 | BF149: IMI_C2_girone_C@googlegroups.com | BN149: RAT-MEN | CC149: G1_SFIGARENSE | CD149: SFIGARENSE | CE149: CARLITO'S VELEZ | CF149: CONFERENCE LEAGUE - G. 1 | CH149: ZZ_FC BIBI 04 | CI149: ZZ_FC BIBI 04 | CJ149: ZZ_ATLETICO MA NON TROPPO | CK149: COPPA DI LEGA - FASE A GIRONI: 2a GIORNATA | CR149: AS NEW TEAM | CS149: P CUATRO | CT149: FC BIBI 04 | CU149: ATLETICO MA NON TROPPO | CV149: G2
A150: OLTREMARE | B150: MERET | C150: 32 | D150: CONTINI | E150: 0 | F150: MILINKOVIC | G150: 0 | H150: FERRANTE | I150: 0 | J150: ANGELINO | K150: 13 | L150: DIMARCO | M150: 32 | N150: GABBIA | O150: 4 | P150: MANCINI | Q150: 8 | R150: RRAHMANI | S150: 8 | T150: SMOLCIC | U150: 1 | V150: WALUKIEWICZ | W150: 1 | X150: ZAPPA | Y150: 4 | Z150: EDERSON | AA150: 11 | AB150: FOFANA | AC150: 12 | AD150: MAZZITELLI | AE150: 1 | AF150: MKHITARYAN | AG150: 9 | AH150: TRAMONI | AI150: 10 | AJ150: VANDEPUTTE | AK150: 9 | AL150: ZERBIN | AM150: 1 | AN150: ZIELINSKI | AO150: 1 | AP150: CANCELLIERI | AQ150: 29 | AR150: COLOMBO | AS150: 10 | AT150: KUHN | AU150: 8 | AV150: LAURIENTÈ | AW150: 31 | AX150: PEDRO | AY150: 9 | AZ150: OLTREMARE | BA150: NORTON-CUFFY | BB150: GEN | BC150: 6.057692308 | BD150: 26 | BE150: 5.923076923 | BF150: IMI_C2_girone_C@googlegroups.com | BN150: REAL BABBUDOIU | CC150: G1_FFC EVARISTO BECCALOSSI | CD150: FFC EVARISTO BECCALOSSI | CE150: BEAUTIFUL BUT LOSERS | CF150: CONFERENCE LEAGUE - G. 1 | CH150: ZZ_SPORTING 2000 | CI150: ZZ_SPORTING 2000 | CJ150: ZZ_MAGODINA FC | CK150: COPPA DI LEGA - FASE A GIRONI: 2a GIORNATA | CR150: MOKA JUNIORS | CS150: FIORENTINA | CT150: SPORTING 2000 | CU150: MAGODINA FC | CV150: G2
A151: CARLITO'S VELEZ | B151: DE GEA | C151: 15 | D151: LEZZERINI | E151: 0 | F151: CHRISTENSEN | G151: 0 | H151: DOLFI | I151: 0 | J151: BASTONI | K151: 44 | L151: CARLOS AUGUSTO | M151: 5 | N151: DI LORENZO | O151: 13 | P151: DUMFRIES | Q151: 21 | R151: GALLO | S151: 3 | T151: RANIERI | U151: 10 | V151: WESLEY | W151: 31 | X151: ZANOLI | Y151: 2 | Z151: CRISTANTE | AA151: 5 | AB151: EL SHAARAWY | AC151: 7 | AD151: MARIN | AE151: 1 | AF151: MODRIC | AG151: 21 | AH151: PELLEGRINI LO. | AI151: 21 | AJ151: PISILLI | AK151: 5 | AL151: ZALEWSKI | AM151: 3 | AN151: ZHEGROVA | AO151: 2 | AP151: ARENA | AQ151: 2 | AR151: BELOTTI | AS151: 3 | AT151: BUKSA | AU151: 1 | AV151: DYBALA | AW151: 61 | AX151: SIMEONE | AY151: 7 | AZ151: CARLITO'S VELEZ | BA151: OSTIGARD | BB151: GEN | BC151: 6.516666667 | BD151: 30 | BE151: 6.133333333 | BF151: IMI_C2_girone_C@googlegroups.com | BN151: REAL BUCCINASCO | CC151: G1_LAZIO | CD151: LAZIO | CE151: FK'S TEAM | CF151: CONFERENCE LEAGUE - G. 1 | CH151: ZZ_REAL MADRINK | CI151: ZZ_REAL MADRINK | CJ151: ZZ_AS QUARZA | CK151: COPPA DI LEGA - FASE A GIRONI: 2a GIORNATA | CR151: INAZUMA ELEVEN | CS151: EL NIÑO | CT151: REAL MADRINK | CU151: AS QUARZA | CV151: G2
A152: GIAMBOTTINO FC | B152: SVILAR | C152: 26 | D152: GOLLINI | E152: 0 | F152: ZELEZNY | G152: 0 | H152: DE MARZI | I152: 0 | J152: CABAL | K152: 1 | L152: DIEGO CARLOS | M152: 1 | N152: GATTI | O152: 1 | P152: KEMPF | Q152: 1 | R152: OLIVERA | S152: 1 | T152: PAVLOVIC | U152: 1 | V152: SPINAZZOLA | W152: 1 | X152: TAVARES | Y152: 3 | Z152: ANGUISSA | AA152: 3 | AB152: KONE' | AC152: 1 | AD152: MCTOMINAY | AE152: 12 | AF152: NERES | AG152: 1 | AH152: POLITANO | AI152: 1 | AJ152: ROWE | AK152: 1 | AL152: TAYLOR | AM152: 8 | AN152: TOURE' | AO152: 1 | AP152: BOGA | AQ152: 1 | AR152: DIA | AS152: 1 | AT152: MENDY | AU152: 1 | AV152: NOSLIN | AW152: 1 | AX152: RASPADORI | AY152: 3 | AZ152: GIAMBOTTINO FC | BA152: OTOA | BB152: GEN | BC152: 5.25 | BD152: 8 | BE152: 5.5625 | BF152: IMI_C2_girone_C@googlegroups.com | BN152: REAL BUGGY | CC152: G1_VARCELLONA | CD152: VARCELLONA | CE152: OLTREMARE | CF152: CONFERENCE LEAGUE - G. 1 | CH152: ZZ_SPORTING VINAO | CI152: ZZ_SPORTING VINAO | CJ152: ZZ_DIAMANTE | CK152: COPPA DI LEGA - FASE A GIRONI: 2a GIORNATA | CR152: FC TRIPLETE | CS152: MARUEGO BOYS | CT152: SPORTING VINAO | CU152: DIAMANTE | CV152: G2
A153: OLYMPIC KEBAB | B153: SKORUPSKI | C153: 1 | D153: PESSINA | E153: 0 | F153: RAVAGLIA | G153: 0 | H153: HAPPONEN | I153: 0 | J153: AHANOR | K153: 4 | L153: BERNASCONI | M153: 1 | N153: BREMER | O153: 1 | P153: KOSSOUNOU | Q153: 1 | R153: MARTIN | S153: 1 | T153: MIRANDA | U153: 1 | V153: RAMON | W153: 3 | X153: SOLET | Y153: 1 | Z153: BATURINA | AA153: 1 | AB153: CALHANOGLU | AC153: 3 | AD153: GUDMUNDSSON | AE153: 14 | AF153: MALINOVSKYI | AG153: 5 | AH153: PASALIC | AI153: 1 | AJ153: SANTOS | AK153: 5 | AL153: SUCIC | AM153: 1 | AN153: THORSTVEDT | AO153: 1 | AP153: ESPOSITO F.P. | AQ153: 2 | AR153: HOJLUND | AS153: 81 | AT153: MALEN | AU153: 50 | AV153: PELLEGRINO | AW153: 1 | AX153: VLAHOVIC | AY153: 10 | AZ153: OLYMPIC KEBAB | BA153: OUEDRAOGO | BB153: GEN | BC153: 6 | BD153: 1 | BE153: 6 | BF153: IMI_C2_girone_C@googlegroups.com | BN153: REAL CHR | CC153: G1_FANTONI & GINELLI | CD153: FANTONI & GINELLI | CE153: OSTIAMARE FC | CF153: CONFERENCE LEAGUE - G. 1 | CH153: ZZ_JUVE93 | CI153: ZZ_JUVE93 | CJ153: ZZ_COSENZA CALCIO 1914 | CK153: COPPA DI LEGA - FASE A GIRONI: 2a GIORNATA | CR153: BOMBARELLANDIA | CS153: TIME OUT | CT153: JUVE93 | CU153: COSENZA CALCIO 1914 | CV153: G2
A154: FANTONI & GINELLI | B154: CARNESECCHI | C154: 13 | D154: ROSSI | E154: 0 | F154: SPORTIELLO | G154: 0 | H154: ZANCHI | I154: 0 | J154: DODO' | K154: 9 | L154: GARCIA | M154: 1 | N154: KELLY | O154: 5 | P154: KRISTENSEN | Q154: 7 | R154: PARISI | S154: 1 | T154: ROMAGNOLI | U154: 9 | V154: TERRACCIANO F. | W154: 7 | X154: VOJVODA | Y154: 1 | Z154: CONCEICAO | AA154: 19 | AB154: FABBIAN | AC154: 1 | AD154: ISAKSEN | AE154: 18 | AF154: MCKENNIE | AG154: 12 | AH154: MORO | AI154: 1 | AJ154: ODGAARD | AK154: 1 | AL154: POBEGA | AM154: 1 | AN154: SERDAR | AO154: 11 | AP154: GIOVANE | AQ154: 17 | AR154: MOREO | AS154: 1 | AT154: OKEREKE | AU154: 1 | AV154: RODRIGUEZ | AW154: 16 | AX154: THURAM | AY154: 27 | AZ154: FANTONI & GINELLI | BA154: SABELLI | BB154: GEN | BC154: 5.625 | BD154: 12 | BE154: 5.791666667 | BF154: IMI_C2_girone_C@googlegroups.com | BN154: REAL FARNESE | CC154: G1_LIVERCOOL | CD154: LIVERCOOL | CE154: A'NFAMI | CF154: CONFERENCE LEAGUE - G. 1 | CH154: ZZ_BLUES BROTHERS | CI154: ZZ_BLUES BROTHERS | CJ154: ZZ_PARASITE | CK154: COPPA DI LEGA - FASE A GIRONI: 2a GIORNATA | CR154: ALAN FORD'S TEAM | CS154: ANDREAS | CT154: BLUES BROTHERS | CU154: PARASITE | CV154: G2
A155: GOBBOFINCHECAMPO | B155: MAIGNAN | C155: 31 | D155: TERRACCIANO | E155: 0 | F155: TORRIANI | G155: 0 | H155: DONEDA | I155: 0 | J155: CAMBIASO | K155: 27 | L155: DOIG | M155: 2 | N155: KALULU | O155: 3 | P155: NORTON-CUFFY | Q155: 2 | R155: OSTIGARD | S155: 2 | T155: PALESTRA | U155: 2 | V155: VASQUEZ | W155: 1 | X155: ZEMURA | Y155: 1 | Z155: FRENDRUP | AA155: 2 | AB155: HARRISON | AC155: 3 | AD155: JASHARI | AE155: 2 | AF155: KARLSTROM | AG155: 1 | AH155: KOOPMEINERS | AI155: 77 | AJ155: LOCATELLI | AK155: 1 | AL155: THURAM K. | AM155: 23 | AN155: ZANIOLO | AO155: 2 | AP155: BOWIE | AQ155: 3 | AR155: EKUBAN | AS155: 3 | AT155: PICCOLI | AU155: 12 | AV155: PINAMONTI | AW155: 21 | AX155: YILDIZ | AY155: 11 | AZ155: GOBBOFINCHECAMPO | BA155: VASQUEZ | BB155: GEN | BC155: 6.028571429 | BD155: 35 | BE155: 6.057142857 | BF155: IMI_C2_girone_C@googlegroups.com | BN155: REAL GENOA | CC155: G1_URACAN | CD155: URACAN | CE155: CACCIATORI FC | CF155: CONFERENCE LEAGUE - G. 1 | CH155: ZZ_ELEVEN LIONS | CI155: ZZ_ELEVEN LIONS | CJ155: ZZ_DAVINCI TEAM | CK155: COPPA DI LEGA - FASE A GIRONI: 2a GIORNATA | CR155: ELEVEN LIONS | CS155: FFC GIUSEPPE BERGOMI | CT155: ELEVEN LIONS | CU155: DAVINCI TEAM | CV155: G2
A156: URACAN | B156: BIJLOW | C156: 1 | D156: LEALI | E156: 0 | F156: SIEGRIST | G156: 0 | H156: SOMMARIVA | I156: 0 | J156: BARBIERI | K156: 1 | L156: CUADRADO | M156: 1 | N156: KAMARA | O156: 2 | P156: MARUSIC | Q156: 1 | R156: PEZZELLA | S156: 2 | T156: PONGRACIC | U156: 1 | V156: TOMORI | W156: 1 | X156: ZORTEA | Y156: 11 | Z156: ATTA | AA156: 21 | AB156: BARELLA | AC156: 51 | AD156: COULIBALY | AE156: 1 | AF156: FADERA | AG156: 1 | AH156: FAGIOLI | AI156: 2 | AJ156: MATIC | AK156: 2 | AL156: MIRETTI | AM156: 7 | AN156: ORISTANIO | AO156: 2 | AP156: BANDA | AQ156: 2 | AR156: CAMBIAGHI | AS156: 21 | AT156: LEAO | AU156: 41 | AV156: SOULE' | AW156: 5 | AX156: ZAPATA | AY156: 21 | AZ156: URACAN | BA156: ZATTERSTROM | BB156: GEN | BC156: 6 | BD156: 1 | BE156: 6 | BF156: IMI_C2_girone_C@googlegroups.com | BN156: REAL GRIFO | CC156: G1_UDINESE 1896 | CD156: UDINESE 1896 | CE156: PAPAVERI E PAPERE | CF156: CONFERENCE LEAGUE - G. 1 | CH156: ZZ_CINICI | CI156: ZZ_CINICI | CJ156: ZZ_I VAZANICCHI | CK156: COPPA DI LEGA - FASE A GIRONI: 2a GIORNATA | CR156: ATLETICO SGANITO | CS156: TROPEA | CT156: CINICI | CU156: I VAZANICCHI | CV156: G2
A157: AC MORRONE | B157: CARNESECCHI | D157: ROSSI | E157: 0 | F157: SPORTIELLO | G157: 0 | H157: ZANCHI | I157: 0 | J157: BARTESAGHI | L157: CARLOS AUGUSTO | N157: DI LORENZO | P157: ESTUPINAN | R157: GABBIA | T157: GOSENS | V157: LUCUMI' | X157: RANIERI | Z157: ELLERTSSON | AB157: LOBOTKA | AD157: LOCATELLI | AF157: MALDINI | AH157: MKHITARYAN | AJ157: VANDEPUTTE | AL157: VERGARA | AN157: ZANIOLO | AP157: BERARDI | AR157: DAVIS | AT157: KRSTOVIC | AV157: PINAMONTI | AX157: VARDY | AZ157: AC MORRONE | BA157: ACERBI | BB157: INT | BC157: 5.966666667 | BD157: 15 | BE157: 6.033333333 | BF157: fmc_a@googlegroups.com | BN157: REAL MADRINK | CC157: G1_FFC LUISITO SUAREZ | CD157: FFC LUISITO SUAREZ | CE157: LUPIN III | CF157: CONFERENCE LEAGUE - G. 1 | CH157: ZZ_RED HOT CHILI PEPPERS | CI157: ZZ_RED HOT CHILI PEPPERS | CJ157: ZZ_ETRURIA UNITED | CK157: COPPA DI LEGA - FASE A GIRONI: 2a GIORNATA | CR157: SALEX | CS157: PANZER8 | CT157: RED HOT CHILI PEPPERS | CU157: ETRURIA UNITED | CV157: G2
A158: ACRESE | B158: SOMMER | D158: MARTINEZ | E158: 0 | F158: ADOMAVICIUS | G158: 0 | H158: DI GENNARO | I158: 0 | J158: ATHEKAME | L158: CANESTRELLI | N158: COCO | P158: DOIG | R158: HERMOSO | T158: KOSSOUNOU | V158: MANCINI | X158: OSTIGARD | Z158: ANGUISSA | AB158: BARELLA | AD158: FAGIOLI | AF158: FRATTESI | AH158: KEITA | AJ158: POLITANO | AL158: RICCI | AN158: ZACCAGNI | AP158: EKUBAN | AR158: LAUTARO | AT158: LEAO | AV158: LUKAKU | AX158: SOLOMON | AZ158: ACRESE | BA158: AKANJI | BB158: INT | BC158: 6.40625 | BD158: 32 | BE158: 6.28125 | BF158: fmc_a@googlegroups.com | BN158: REAL PIPPERO | CC158: G1_PRINCESS OF ETRURIA | CD158: PRINCESS OF ETRURIA | CE158: ARMATA NERAZZURRA | CF158: CONFERENCE LEAGUE - G. 1 | CH158: ZZ_CAPIBARA SWOFFY FC | CI158: ZZ_CAPIBARA SWOFFY FC | CJ158: ZZ_BAR MARIO | CK158: COPPA DI LEGA - FASE A GIRONI: 2a GIORNATA | CR158: PICCIOTTI NERAZZURRI | CS158: TEAM ENO | CT158: CAPIBARA SWOFFY FC | CU158: BAR MARIO | CV158: G2
A159: ANDREAS | B159: SKORUPSKI | D159: PESSINA | E159: 0 | F159: RAVAGLIA | G159: 0 | H159: HAPPONEN | I159: 0 | J159: AKANJI | L159: BELLANOVA | N159: BREMER | P159: BUONGIORNO | R159: ISMAJLI | T159: KALULU | V159: MUHAREMOVIC | X159: RAMON | Z159: CONCEICAO | AB159: CRISTANTE | AD159: FOLORUNSHO | AF159: GUDMUNDSSON | AH159: KONE' | AJ159: ROVELLA | AL159: SORENSEN | AN159: ZHEGROVA | AP159: DAVID | AR159: ESPOSITO SE. | AT159: OPENDA | AV159: RODRIGUEZ | AX159: SOULE' | AZ159: ANDREAS | BA159: BASTONI | BB159: INT | BC159: 6.196428571 | BD159: 28 | BE159: 6.196428571 | BF159: fmc_a@googlegroups.com | BN159: RED HOT CHILI PEPPERS | CC159: G1_LOS | CD159: LOS | CE159: MANCHO FERE | CF159: CONFERENCE LEAGUE - G. 1 | CH159: ZZ_TERZO MUNICIPIO | CI159: ZZ_TERZO MUNICIPIO | CJ159: ZZ_LUCHINS | CK159: COPPA DI LEGA - FASE A GIRONI: 2a GIORNATA | CR159: SVICAT | CS159: VOTANTONIO | CT159: TERZO MUNICIPIO | CU159: LUCHINS | CV159: G2
A160: FFC ANGELO DOMENGHINI | B160: BUTEZ | D160: CAVLINA | E160: 0 | F160: VIGORITO | G160: 0 | H160: MENKE | I160: 0 | J160: AHANOR | L160: BISSECK | N160: DE WINTER | P160: DIMARCO | R160: MINA | T160: OBRADOR | V160: VALERI | X160: VALLE | Z160: BERNARDESCHI | AB160: CAQUERET | AD160: CASADEI | AF160: JASHARI | AH160: ROWE | AJ160: SANTOS | AL160: SUCIC | AN160: ZARAGOZA | AP160: DIAO | AR160: DOUVIKAS | AT160: NKUNKU | AV160: RASPADORI | AX160: SULEMANA K. | AZ160: FFC ANGELO DOMENGHINI | BA160: BISSECK | BB160: INT | BC160: 6.613636364 | BD160: 22 | BE160: 6.25 | BF160: fmc_a@googlegroups.com | BN160: RED-GREEN | CC160: G1_HOBBIT | CD160: HOBBIT | CE160: PICARD | CF160: CONFERENCE LEAGUE - G. 1 | CH160: ZZ_ABETO FC | CI160: ZZ_ABETO FC | CJ160: ZZ_VIS FONNO | CK160: COPPA DI LEGA - FASE A GIRONI: 2a GIORNATA | CR160: VIS TRONKO | CS160: STROMBOLI | CT160: ABETO FC | CU160: VIS FONNO | CV160: G2
A161: ISOLA CHE NON CE | B161: MOTTA | D161: PROVEDEL | E161: 0 | F161: GIACOMONE | G161: 0 | H161: PANNOZZO | I161: 0 | J161: BERNASCONI | L161: CELIK | N161: EHIZIBUE | P161: HEGGEM | R161: KOLASINAC | T161: NORTON-CUFFY | V161: PALESTRA | X161: VASQUEZ | Z161: BERNABE' | AB161: CALHANOGLU | AD161: DE ROON | AF161: EL SHAARAWY | AH161: FRENDRUP | AJ161: GAETANO | AL161: HARRISON | AN161: PELLEGRINI LO. | AP161: CASTRO | AR161: EKHATOR | AT161: ESPOSITO F.P. | AV161: LAURIENTÈ | AX161: MALEN | AZ161: ISOLA CHE NON CE | BA161: CARLOS AUGUSTO | BB161: INT | BC161: 6.153846154 | BD161: 26 | BE161: 6.153846154 | BF161: fmc_a@googlegroups.com | BN161: RISK UNITED | CC161: G1_FFC ALESSANDRO ALTOBELLI | CD161: FFC ALESSANDRO ALTOBELLI | CE161: REAL PIPPERO | CF161: CONFERENCE LEAGUE - G. 1 | CH161: ZZ_EARL & SOUL GALEONE | CI161: ZZ_EARL & SOUL GALEONE | CJ161: ZZ_DEP. LA CAROGNA | CK161: COPPA DI LEGA - FASE A GIRONI: 2a GIORNATA | CR161: TITANS | CS161: BARBERA & CHAMPAGNE | CT161: EARL & SOUL GALEONE | CU161: DEP. LA CAROGNA | CV161: G2
A162: JUNIORT | B162: MAIGNAN | D162: TERRACCIANO | E162: 0 | F162: TORRIANI | G162: 0 | H162: DONEDA | I162: 0 | J162: BASTONI | L162: CIRCATI | N162: DODO' | P162: MARCANDALLI | R162: SCALVINI | T162: TAVARES | V162: ZAPPACOSTA | X162: ZORTEA | Z162: COULIBALY | AB162: FOFANA | AD162: MANDRAGORA | AF162: MATIC | AH162: MODRIC | AJ162: NDOUR | AL162: NERES | AN162: PIOTROWSKI | AP162: CANCELLIERI | AR162: COLOMBO | AT162: DIA | AV162: KUHN | AX162: PICCOLI | AZ162: JUNIORT | BA162: DARMIAN | BB162: INT | BC162: 6 | BD162: 4 | BE162: 6 | BF162: fmc_a@googlegroups.com | BN162: ROSSOBLU FC | CC162: G1_PRAVETTONI CC | CD162: PRAVETTONI CC | CE162: AS_TONMARTIN | CF162: CONFERENCE LEAGUE - G. 1 | CH162: ZZ_LA BANDA DEGLI ONESTI | CI162: ZZ_LA BANDA DEGLI ONESTI | CJ162: ZZ_FERRON | CK162: COPPA DI LEGA - FASE A GIRONI: 2a GIORNATA | CR162: MANZO TEAM | CS162: DREAM TIN TEAM | CT162: LA BANDA DEGLI ONESTI | CU162: FERRON | CV162: G2
A163: MARIANNA | B163: SVILAR | D163: GOLLINI | E163: 0 | F163: ZELEZNY | G163: 0 | H163: DE MARZI | I163: 0 | J163: BEUKEMA | L163: CARACCIOLO | N163: KRISTENSEN | P163: RRAHMANI | R163: SOLET | T163: SPINAZZOLA | V163: TERRACCIANO F. | X163: TIAGO GABRIEL | Z163: EDERSON | AB163: FREULER | AD163: MALINOVSKYI | AF163: MAZZITELLI | AH163: PASALIC | AJ163: SOHM | AL163: THURAM K. | AN163: ZALEWSKI | AP163: BONAZZOLI | AR163: BONNY | AT163: FERGUSON E. | AV163: FULLKRUG | AX163: HOJLUND | AZ163: MARIANNA | BA163: DE VRIJ | BB163: INT | BC163: 6.166666667 | BD163: 6 | BE163: 6.25 | BF163: fmc_a@googlegroups.com | BN163: SALENTO FC | CC163: G1_GOBBOFINCHECAMPO | CD163: GOBBOFINCHECAMPO | CE163: COSENZA CALCIO 1914 | CF163: CONFERENCE LEAGUE - G. 1 | CH163: ZZ_SVICAT | CI163: ZZ_SVICAT | CJ163: ZZ_RISK UNITED | CK163: COPPA DI LEGA - FASE A GIRONI: 2a GIORNATA | CR163: BORGOROSSO F.C. | CS163: OXFORD UNITED | CT163: SVICAT | CU163: RISK UNITED | CV163: G2
A164: NORTH COCKS | B164: MERET | D164: CONTINI | E164: 0 | F164: MILINKOVIC | G164: 0 | H164: FERRANTE | I164: 0 | J164: BELGHALI | L164: CAMBIASO | N164: FLORIANI | P164: GALLO | R164: GHILARDI | T164: JUAN JESUS | V164: KEMPF | X164: LUPERTO | Z164: DA CUNHA | AB164: FABBIAN | AD164: FERGUSON | AF164: MCTOMINAY | AH164: NICO PAZ | AJ164: NICOLUSSI CAVIGLIA | AL164: PRATI | AN164: ZIELINSKI | AP164: DYBALA | AR164: MENDY | AT164: NZOLA | AV164: SIMEONE | AX164: YILDIZ | AZ164: NORTH COCKS | BA164: DIMARCO | BB164: INT | BC164: 7.121212121 | BD164: 33 | BE164: 6.621212121 | BF164: fmc_a@googlegroups.com | BN164: SALEX | CC164: G1_REAL BUCCINASCO | CD164: CAPIBARA SWOFFY FC | CE164: REAL BUCCINASCO | CF164: CONFERENCE LEAGUE - G. 1 | CH164: ZZ_ROSSOBLU FC | CI164: ZZ_ROSSOBLU FC | CJ164: ZZ_SALEX | CK164: COPPA DI LEGA - FASE A GIRONI: 2a GIORNATA | CR164: NAPOLI FOREVER | CS164: LIVELE | CT164: ROSSOBLU FC | CU164: SALEX | CV164: G2
A165: RASTA ZETA | B165: DI GREGORIO | D165: PERIN | E165: 0 | F165: PINSOGLIO | G165: 0 | H165: HULI | I165: 0 | J165: ACERBI | L165: ANGORI | N165: DELPRATO | P165: GILA | R165: MARIPAN | T165: MIRANDA | V165: N'DICKA | X165: ROMAGNOLI | Z165: DE BRUYNE | AB165: ELMAS | AD165: GANDELMAN | AF165: LOYOLA | AH165: ORSOLINI | AJ165: RABIOT | AL165: THORSBY | AN165: VLASIC | AP165: CHEDDIRA | AR165: ELPHEGE | AT165: KEAN | AV165: PELLEGRINO | AX165: THURAM | AZ165: RASTA ZETA | BA165: DUMFRIES | BB165: INT | BC165: 6.526315789 | BD165: 19 | BE165: 6.105263158 | BF165: fmc_a@googlegroups.com | BN165: SAN SIRO | CC165: G1_AS QUARZA | CD165: HIC SUNT FERAE | CE165: AS QUARZA | CF165: CONFERENCE LEAGUE - G. 1 | CH165: ZZ_RAT-MEN | CI165: ZZ_RAT-MEN | CJ165: ZZ_CATENACCIO & CONTROPIEDE | CK165: COPPA DI LEGA - FASE A GIRONI: 2a GIORNATA | CR165: JUVE93 | CS165: LAMÙFOREVER | CT165: RAT-MEN | CU165: CATENACCIO & CONTROPIEDE | CV165: G2
A166: REAL BUGGY | B166: DE GEA | D166: LEZZERINI | E166: 0 | F166: CHRISTENSEN | G166: 0 | H166: DOLFI | I166: 0 | J166: CABAL | L166: DJIMSITI | N166: GATTI | P166: HOLM | R166: KELLY | T166: MARUSIC | V166: OLIVERA | X166: PONGRACIC | Z166: KONÈ I. | AB166: KOOPMEINERS | AD166: MCKENNIE | AF166: MIRETTI | AH166: ODGAARD | AJ166: RAMADANI | AL166: SAELEMAEKERS | AN166: SAMARDZIC | AP166: BOGA | AR166: DE KETELAERE | AT166: MOREO | AV166: NOSLIN | AX166: VLAHOVIC | AZ166: REAL BUGGY | BA166: BREMER | BB166: JUV | BC166: 6.74 | BD166: 25 | BE166: 6.34 | BF166: fmc_a@googlegroups.com | BN166: SFIGARENSE | CC166: G1_AMOREODIO | CD166: FFC ROBERTO BONINSEGNA | CE166: AMOREODIO | CF166: CONFERENCE LEAGUE - G. 1 | CH166: ZZ_ALL BLACKS | CI166: ZZ_ALL BLACKS | CJ166: ZZ_BORGOROSSO F.C. | CK166: COPPA DI LEGA - FASE A GIRONI: 2a GIORNATA | CR166: KITEMMUOR TEAM | CS166: COSENZA | CT166: ALL BLACKS | CU166: BORGOROSSO F.C. | CV166: G2
A167: SWANSEA | B167: CAPRILE | D167: CIOCCI | E167: 0 | F167: SHERRI | G167: 0 | H167: AUSEKLIS | I167: 0 | J167: DUMFRIES | L167: FRESE | N167: IDZES | P167: KABASELE | R167: LAZARO | T167: MARTIN | V167: TOMORI | X167: WESLEY | Z167: ADOPO | AB167: BATURINA | AD167: EL AYNAOUI | AF167: ISAKSEN | AH167: LOVRIC | AJ167: ONDREJKA | AL167: PERRONE | AN167: THORSTVEDT | AP167: BOWIE | AR167: CAMBIAGHI | AT167: DALLINGA | AV167: DOVBYK | AX167: SCAMACCA | AZ167: SWANSEA | BA167: CABAL | BB167: JUV | BC167: 6.555555556 | BD167: 9 | BE167: 5.944444444 | BF167: fmc_a@googlegroups.com | BN167: SOLSBURY HILL FC | CC167: G1_BEETLES | CD167: BETIS SEVILLA | CE167: BEETLES | CF167: CONFERENCE LEAGUE - G. 1 | CH167: ZZ_PRENESTINO FC | CI167: ZZ_PRENESTINO FC | CJ167: ZZ_MANCHO FERE | CK167: COPPA DI LEGA - FASE A GIRONI: 2a GIORNATA | CT167: PRENESTINO FC | CU167: MANCHO FERE | CV167: G2
A168: UDI ONE | B168: OKOYE | D168: NUNZIANTE | E168: 0 | F168: PADELLI | G168: 0 | H168: SAVA | I168: 0 | J168: HIEN | L168: KAMARA | N168: MORENO | P168: PAVLOVIC | R168: RUGANI | T168: VOJVODA | V168: WALUKIEWICZ | X168: ZAPPA | Z168: ATTA | AB168: BALDANZI | AD168: BRESCIANINI | AF168: EKKELENKAMP | AH168: KARLSTROM | AJ168: PULISIC | AL168: STREFEZZA | AN168: TAYLOR | AP168: ADAMS | AR168: DUROSINMI | AT168: GIOVANE | AV168: ORBAN | AX168: VITINHA | AZ168: UDI ONE | BA168: CAMBIASO | BB168: JUV | BC168: 5.897058824 | BD168: 34 | BE168: 5.823529412 | BF168: fmc_a@googlegroups.com | BN168: SPORTING 2000 | CC168: G1_ETRURIA UNITED | CD168: FC FANTATLETICO | CE168: ETRURIA UNITED | CF168: CONFERENCE LEAGUE - G. 1 | CH168: ZZ_HOBBIT | CI168: ZZ_HOBBIT | CJ168: ZZ_BLACK&WHITE | CK168: COPPA DI LEGA - FASE A GIRONI: 2a GIORNATA | CR168: CAPIBARA SWOFFY FC | CS168: HIC SUNT FERAE | CT168: HOBBIT | CU168: BLACK&WHITE | CV168: G2
A169: A TUTTA CALLARA | B169: MAIGNAN | D169: TERRACCIANO | E169: 0 | F169: TORRIANI | G169: 0 | H169: DONEDA | I169: 0 | J169: CABAL | L169: DUMFRIES | N169: HEGGEM | P169: HERMOSO | R169: ISMAJLI | T169: KABASELE | V169: PONGRACIC | X169: SPINAZZOLA | Z169: BATURINA | AB169: CONCEICAO | AD169: DIOUF | AF169: MCTOMINAY | AH169: SUCIC | AJ169: TRAMONI | AL169: VANDEPUTTE | AN169: VOLPATO | AP169: ADDAI | AR169: BOGA | AT169: HOJLUND | AV169: LUKAKU | AX169: VLAHOVIC | AZ169: A TUTTA CALLARA | BA169: GATTI | BB169: JUV | BC169: 6.3 | BD169: 15 | BE169: 6 | BF169: fmc_b@googlegroups.com | BN169: SPORTING LABRONICA | CC169: G1_FFC MARIO CORSO | CD169: REAL MADRINK | CE169: FFC MARIO CORSO | CF169: CONFERENCE LEAGUE - G. 1 | CH169: ZZ_BOMBARELLANDIA | CI169: ZZ_BOMBARELLANDIA | CJ169: ZZ_EU...REKA | CK169: COPPA DI LEGA - FASE A GIRONI: 2a GIORNATA | CR169: REAL BUCCINASCO | CS169: AS QUARZA | CT169: BOMBARELLANDIA | CU169: EU...REKA | CV169: G2
A170: ATLETICO PIGROTTO | B170: DE GEA | D170: LEZZERINI | E170: 0 | F170: CHRISTENSEN | G170: 0 | H170: DOLFI | I170: 0 | J170: ANGELINO | L170: BASCHIROTTO | N170: LUPERTO | P170: MARUSIC | R170: PELLEGRINI LU. | T170: RENSCH | V170: ROMAGNOLI | X170: ZAPPA | Z170: ATTA | AB170: BONDO | AD170: CATALDI | AF170: DELE-BASHIRU | AH170: EKKELENKAMP | AJ170: FABBIAN | AL170: PERRONE | AN170: PIOTROWSKI | AP170: ADAMS | AR170: CASTRO | AT170: DAVID | AV170: DIA | AX170: PEDRO | AZ170: ATLETICO PIGROTTO | BA170: HOLM | BB170: JUV | BC170: 6.233333333 | BD170: 15 | BE170: 6.133333333 | BF170: fmc_b@googlegroups.com | BN170: SPORTING VINAO | CC170: G1_CRIMSON | CD170: SOLSBURY HILL FC | CE170: CRIMSON | CF170: CONFERENCE LEAGUE - G. 1 | CH170: ZZ_ZERVENA VIGIAK | CI170: ZZ_ZERVENA VIGIAK | CJ170: ZZ_OLTREMARE | CK170: COPPA DI LEGA - FASE A GIRONI: 2a GIORNATA | CR170: FFC ROBERTO BONINSEGNA | CS170: BETIS SEVILLA | CT170: ZERVENA VIGIAK | CU170: OLTREMARE | CV170: G2
A171: BRUDYLEGHORN | B171: AUDERO | D171: NAVA | E171: 0 | F171: SILVESTRI | G171: 0 | H171: NOVATI | I171: 0 | J171: DELPRATO | L171: DODO' | N171: GHILARDI | P171: MANCINI | R171: MUHAREMOVIC | T171: TAVARES | V171: VOJVODA | X171: ZORTEA | Z171: BERNABE' | AB171: BERNARDESCHI | AD171: GUDMUNDSSON | AF171: KARLSTROM | AH171: MALDINI | AJ171: ODGAARD | AL171: SAELEMAEKERS | AN171: VERGARA | AP171: CAMARDA | AR171: DAVIS | AT171: ESPOSITO F.P. | AV171: NOSLIN | AX171: THURAM | AZ171: BRUDYLEGHORN | BA171: KALULU | BB171: JUV | BC171: 6.285714286 | BD171: 35 | BE171: 6.157142857 | BF171: fmc_b@googlegroups.com | BN171: STROMBOLI | CC171: G1_AMBROSIANA | CD171: AL-ZENA | CE171: AMBROSIANA | CF171: CONFERENCE LEAGUE - G. 1 | CH171: ZZ_TITANS | CI171: ZZ_TITANS | CJ171: ZZ_REAL PIPPERO | CK171: COPPA DI LEGA - FASE A GIRONI: 2a GIORNATA | CR171: AMOREODIO | CS171: BEETLES | CT171: TITANS | CU171: REAL PIPPERO | CV171: G2
A172: CICCILLO | B172: BIJLOW | D172: LEALI | E172: 0 | F172: SIEGRIST | G172: 0 | H172: SOMMARIVA | I172: 0 | J172: GILA | L172: IDZES | N172: KEMPF | P172: LYKOGIANNIS | R172: N'DICKA | T172: NORTON-CUFFY | V172: OBERT | X172: PROVSTGAARD | Z172: BRESCIANINI | AB172: EDERSON | AD172: ILKHAN | AF172: PELLEGRINI LO. | AH172: ROVELLA | AJ172: TAYLOR | AL172: ZACCAGNI | AN172: ZANIOLO | AP172: DE KETELAERE | AR172: GIMENEZ | AT172: MORATA | AV172: RATKOV | AX172: SULEMANA K. | AZ172: CICCILLO | BA172: KELLY | BB172: JUV | BC172: 6.060606061 | BD172: 33 | BE172: 6.03030303 | BF172: fmc_b@googlegroups.com | BN172: SVICAT | CC172: G1_GIAMBOTTINO FC | CD172: CINICI | CE172: GIAMBOTTINO FC | CF172: CONFERENCE LEAGUE - G. 1 | CH172: ZZ_ZEMANLANDIA AFC | CI172: ZZ_ZEMANLANDIA AFC | CJ172: ZZ_AS_TONMARTIN | CK172: COPPA DI LEGA - FASE A GIRONI: 2a GIORNATA | CR172: FC FANTATLETICO | CS172: REAL MADRINK | CT172: ZEMANLANDIA AFC | CU172: AS_TONMARTIN | CV172: G2
A173: COSENZA | B173: MERET | D173: CONTINI | E173: 0 | F173: MILINKOVIC | G173: 0 | H173: FERRANTE | I173: 0 | J173: BELLANOVA | L173: CARLOS AUGUSTO | N173: DIMARCO | P173: GABBIA | R173: MARCANDALLI | T173: PAVLOVIC | V173: RRAHMANI | X173: TERRACCIANO F. | Z173: BARELLA | AB173: CRISTANTE | AD173: FRENDRUP | AF173: LOBOTKA | AH173: LUIS HENRIQUE | AJ173: MALINOVSKYI | AL173: MKHITARYAN | AN173: SORENSEN | AP173: CANCELLIERI | AR173: KEAN | AT173: RASPADORI | AV173: SOULE' | AX173: VITINHA | AZ173: COSENZA | BA173: GIGOT | BB173: LAZ | BC173: 0 | BD173: 0 | BE173: 0 | BF173: fmc_b@googlegroups.com | BN173: SWANSEA | CC173: G1_3T | CD173: PERDENTUS FC | CE173: 3T | CF173: CONFERENCE LEAGUE - G. 1 | CH173: ZZ_PICARD | CI173: ZZ_PICARD | CJ173: ZZ_BEETLES | CK173: COPPA DI LEGA - FASE A GIRONI: 2a GIORNATA | CR173: ETRURIA UNITED | CS173: FFC MARIO CORSO | CT173: PICARD | CU173: BEETLES | CV173: G2
A174: LA MUCONE | B174: DI GREGORIO | D174: PERIN | E174: 0 | F174: PINSOGLIO | G174: 0 | H174: HULI | I174: 0 | J174: ATHEKAME | L174: BREMER | N174: CAMBIASO | P174: COCO | R174: DE WINTER | T174: GATTI | V174: MARTIN | X174: ZAPPACOSTA | Z174: CASADEI | AB174: FOFANA | AD174: KONE' | AF174: KOOPMEINERS | AH174: LOCATELLI | AJ174: MODRIC | AL174: RABIOT | AN174: SAMARDZIC | AP174: BONNY | AR174: EKUBAN | AT174: KRSTOVIC | AV174: PICCOLI | AX174: RODRIGUEZ | AZ174: LA MUCONE | BA174: GILA | BB174: LAZ | BC174: 6 | BD174: 29 | BE174: 6.068965517 | BF174: fmc_b@googlegroups.com | BN174: TC WILLIAMS | CC174: G1_PIGGI | CD174: REAL FARNESE | CE174: PIGGI | CF174: CONFERENCE LEAGUE - G. 1 | CH174: ZZ_LIVERCOOL | CI174: ZZ_LIVERCOOL | CJ174: ZZ_FFC LUISITO SUAREZ | CK174: COPPA DI LEGA - FASE A GIRONI: 2a GIORNATA | CR174: SOLSBURY HILL FC | CS174: AL-ZENA | CT174: LIVERCOOL | CU174: FFC LUISITO SUAREZ | CV174: G2
A175: MOMENTI DI GLORIA FMC | B175: BUTEZ | D175: CAVLINA | E175: 0 | F175: VIGORITO | G175: 0 | H175: MENKE | I175: 0 | J175: BERNASCONI | L175: EHIZIBUE | N175: GALLO | P175: MINA | R175: SCALVINI | T175: SOLET | V175: TIAGO GABRIEL | X175: VALERI | Z175: AMORIM | AB175: DA CUNHA | AD175: EL AYNAOUI | AF175: FOLORUNSHO | AH175: HARRISON | AJ175: KONÈ I. | AL175: ROWE | AN175: THORSTVEDT | AP175: BERARDI | AR175: ESPOSITO SE. | AT175: SCAMACCA | AV175: SOLOMON | AX175: ZAPATA | AZ175: MOMENTI DI GLORIA FMC | BA175: HYSAJ | BB175: LAZ | BC175: 5.5 | BD175: 2 | BE175: 5.5 | BF175: fmc_b@googlegroups.com | BN175: TEAM ENO | CC175: G1_YOUNG BOYS | CD175: TERZO MUNICIPIO | CE175: YOUNG BOYS | CF175: CONFERENCE LEAGUE - G. 1 | CH175: ZZ_SFIGARENSE | CI175: ZZ_SFIGARENSE | CJ175: ZZ_CACCIATORI FC | CK175: COPPA DI LEGA - FASE A GIRONI: 2a GIORNATA | CR175: CRIMSON | CS175: AMBROSIANA | CT175: SFIGARENSE | CU175: CACCIATORI FC | CV175: G2
A176: NEAPOLIS | B176: SVILAR | D176: GOLLINI | E176: 0 | F176: ZELEZNY | G176: 0 | H176: DE MARZI | I176: 0 | J176: AKANJI | L176: COMUZZO | N176: DI LORENZO | P176: DIEGO CARLOS | R176: DJIMSITI | T176: JUAN JESUS | V176: LUCUMI' | X176: OLIVERA | Z176: CAQUERET | AB176: DE BRUYNE | AD176: DE ROON | AF176: ELMAS | AH176: LOFTUS-CHEEK | AJ176: MCKENNIE | AL176: NERES | AN176: THURAM K. | AP176: BANDA | AR176: DOVBYK | AT176: DYBALA | AV176: OPENDA | AX176: PINAMONTI | AZ176: NEAPOLIS | BA176: LAZZARI | BB176: LAZ | BC176: 5.735294118 | BD176: 17 | BE176: 5.794117647 | BF176: fmc_b@googlegroups.com | BN176: TERZO MUNICIPIO | CC176: G1_FC ROMA SUD | CD176: OLYMPIC KEBAB | CE176: FC ROMA SUD | CF176: CONFERENCE LEAGUE - G. 1 | CH176: ZZ_PRINCESS OF ETRURIA | CI176: ZZ_PRINCESS OF ETRURIA | CJ176: ZZ_FANTONI & GINELLI | CK176: COPPA DI LEGA - FASE A GIRONI: 2a GIORNATA | CR176: CINICI | CS176: PERDENTUS FC | CT176: PRINCESS OF ETRURIA | CU176: FANTONI & GINELLI | CV176: G2
A177: REAL GRIFO | B177: MOTTA | D177: PROVEDEL | E177: 0 | F177: GIACOMONE | G177: 0 | H177: PANNOZZO | I177: 0 | J177: BARTESAGHI | L177: CELIK | N177: HIEN | P177: HOLM | R177: KELLY | T177: PALESTRA | V177: VALLE | X177: VASQUEZ | Z177: BALDANZI | AB177: CALHANOGLU | AD177: ISAKSEN | AF177: JASHARI | AH177: MESSIAS | AJ177: PISILLI | AL177: RICCI | AN177: VLASIC | AP177: DOUVIKAS | AR177: EKHATOR | AT177: FERGUSON E. | AV177: LEAO | AX177: SIMEONE | AZ177: REAL GRIFO | BA177: MARUSIC | BB177: LAZ | BC177: 5.935483871 | BD177: 31 | BE177: 5.887096774 | BF177: fmc_b@googlegroups.com | BN177: TIME OUT | CC177: G1_NAPO-LEONI | CD177: NOJOSETTE | CE177: NAPO-LEONI | CF177: CONFERENCE LEAGUE - G. 1 | CH177: ZZ_PERDENTUS FC | CI177: ZZ_PERDENTUS FC | CJ177: ZZ_FK'S TEAM | CK177: COPPA DI LEGA - FASE A GIRONI: 2a GIORNATA | CR177: GIAMBOTTINO FC | CS177: 3T | CT177: PERDENTUS FC | CU177: FK'S TEAM | CV177: G2
A178: STROMBOLI | B178: CARNESECCHI | D178: ROSSI | E178: 0 | F178: SPORTIELLO | G178: 0 | H178: ZANCHI | I178: 0 | J178: ACERBI | L178: AHANOR | N178: KALULU | P178: KOSSOUNOU | R178: KRISTENSEN | T178: OSTIGARD | V178: RAMON | X178: SMOLCIC | Z178: ANGUISSA | AB178: BAKOLA | AD178: COULIBALY | AF178: GINEITIS | AH178: MATIC | AJ178: NICO PAZ | AL178: ORSOLINI | AN178: ZIELINSKI | AP178: BELOTTI | AR178: CHEDDIRA | AT178: DALLINGA | AV178: GIOVANE | AX178: NZOLA | AZ178: STROMBOLI | BA178: PATRIC | BB178: LAZ | BC178: 5.75 | BD178: 10 | BE178: 5.85 | BF178: fmc_b@googlegroups.com | BN178: TITANS | CC178: G1_FC BIRO | CD178: DAGNE BOYS | CE178: FC BIRO | CF178: CONFERENCE LEAGUE - G. 1 | CH178: ZZ_REAL FARNESE | CI178: ZZ_REAL FARNESE | CJ178: ZZ_YOUNG BOYS | CK178: COPPA DI LEGA - FASE A GIRONI: 2a GIORNATA | CR178: REAL FARNESE | CS178: TERZO MUNICIPIO | CT178: REAL FARNESE | CU178: YOUNG BOYS | CV178: G2
A179: TORI BRIANZOLI | B179: SKORUPSKI | D179: PESSINA | E179: 0 | F179: RAVAGLIA | G179: 0 | H179: HAPPONEN | I179: 0 | J179: BARBIERI | L179: BELGHALI | N179: GARCIA | P179: KAMARA | R179: MIRANDA | T179: OBRADOR | V179: RANIERI | X179: TOMORI | Z179: FRATTESI | AB179: GAETANO | AD179: GILMOUR | AF179: MAZZITELLI | AH179: MIRETTI | AJ179: ONDREJKA | AL179: PULISIC | AN179: SANTOS | AP179: BOWIE | AR179: DIAO | AT179: FULLKRUG | AV179: MALEN | AX179: PELLEGRINO | AZ179: TORI BRIANZOLI | BA179: PELLEGRINI LU. | BB179: LAZ | BC179: 5.804347826 | BD179: 23 | BE179: 5.847826087 | BF179: fmc_b@googlegroups.com | BN179: TORI BRIANZOLI | CC179: G1_FFC TARCISIO BURGNICH | CD179: RED-GREEN | CE179: FFC TARCISIO BURGNICH | CF179: CONFERENCE LEAGUE - G. 1 | CH179: ZZ_PAPAVERI E PAPERE | CI179: ZZ_PAPAVERI E PAPERE | CJ179: ZZ_CARLITO'S VELEZ | CK179: COPPA DI LEGA - FASE A GIRONI: 2a GIORNATA | CR179: PIGGI | CS179: YOUNG BOYS | CT179: PAPAVERI E PAPERE | CU179: CARLITO'S VELEZ | CV179: G2
A180: TROPEA | B180: SOMMER | D180: MARTINEZ | E180: 0 | F180: ADOMAVICIUS | G180: 0 | H180: DI GENNARO | I180: 0 | J180: ANGORI | L180: BASTONI | N180: BEUKEMA | P180: BISSECK | R180: BUONGIORNO | T180: CIRCATI | V180: PARISI | X180: WESLEY | Z180: ELLERTSSON | AB180: FAGIOLI | AD180: FREULER | AF180: KEITA | AH180: MANDRAGORA | AJ180: PASALIC | AL180: POLITANO | AN180: ZALEWSKI | AP180: BONAZZOLI | AR180: COLOMBO | AT180: LAUTARO | AV180: VAZ | AX180: YILDIZ | AZ180: TROPEA | BA180: PROVSTGAARD | BB180: LAZ | BC180: 5.880952381 | BD180: 21 | BE180: 5.952380952 | BF180: fmc_b@googlegroups.com | BN180: TROPEA | CC180: G1_I VAZANICCHI | CD180: ZERVENA VIGIAK | CE180: I VAZANICCHI | CF180: CONFERENCE LEAGUE - G. 1 | CH180: ZZ_UDINESE 1896 | CI180: ZZ_UDINESE 1896 | CJ180: ZZ_A'NFAMI | CK180: COPPA DI LEGA - FASE A GIRONI: 2a GIORNATA | CR180: OLYMPIC KEBAB | CS180: NOJOSETTE | CT180: UDINESE 1896 | CU180: A'NFAMI | CV180: G2
A181: BETIS SEVILLA | B181: SVILAR | D181: GOLLINI | E181: 0 | F181: ZELEZNY | G181: 0 | H181: DE MARZI | I181: 0 | J181: BASCHIROTTO | L181: BREMER | N181: KOSSOUNOU | P181: NORTON-CUFFY | R181: OBRADOR | T181: SCALVINI | V181: TAVARES | X181: ZORTEA | Z181: EDERSON | AB181: ELLERTSSON | AD181: PERRONE | AF181: SAMARDZIC | AH181: THURAM K. | AJ181: VANDEPUTTE | AL181: ZALEWSKI | AN181: ZARAGOZA | AP181: BOGA | AR181: FULLKRUG | AT181: OPENDA | AV181: ORBAN | AX181: SCAMACCA | AZ181: BETIS SEVILLA | BA181: ROMAGNOLI | BB181: LAZ | BC181: 5.903225806 | BD181: 31 | BE181: 6.032258065 | BF181: fmc_c@googlegroups.com | BN181: TWOSTARS | CC181: G1_CARLITO'S VELEZ | CD181: SFIGARENSE | CE181: CARLITO'S VELEZ | CF181: CONFERENCE LEAGUE - G. 1 | CH181: ZZ_BEAUTIFUL BUT LOSERS | CI181: ZZ_BEAUTIFUL BUT LOSERS | CJ181: ZZ_AL-ZENA | CK181: COPPA DI LEGA - FASE A GIRONI: 2a GIORNATA | CR181: FC ROMA SUD | CS181: NAPO-LEONI | CT181: BEAUTIFUL BUT LOSERS | CU181: AL-ZENA | CV181: G2
A182: CAVESE | B182: BUTEZ | D182: CAVLINA | E182: 0 | F182: VIGORITO | G182: 0 | H182: MENKE | I182: 0 | J182: BELLANOVA | L182: KELLY | N182: KOLASINAC | P182: LUCUMI' | R182: LUPERTO | T182: MARIPAN | V182: VALLE | X182: ZAPPACOSTA | Z182: BERNARDESCHI | AB182: FRATTESI | AD182: HARRISON | AF182: ONDREJKA | AH182: PASALIC | AJ182: PULISIC | AL182: SUCIC | AN182: VOLPATO | AP182: ADAMS | AR182: CAMBIAGHI | AT182: KRSTOVIC | AV182: NKUNKU | AX182: VARDY | AZ182: CAVESE | BA182: TAVARES | BB182: LAZ | BC182: 5.857142857 | BD182: 21 | BE182: 5.952380952 | BF182: fmc_c@googlegroups.com | BN182: UDI ONE | CC182: G1_BEAUTIFUL BUT LOSERS | CD182: FFC EVARISTO BECCALOSSI | CE182: BEAUTIFUL BUT LOSERS | CF182: CONFERENCE LEAGUE - G. 1 | CH182: ZZ_FFC EVARISTO BECCALOSSI | CI182: ZZ_FFC EVARISTO BECCALOSSI | CJ182: ZZ_LOS | CK182: COPPA DI LEGA - FASE A GIRONI: 2a GIORNATA | CR182: DAGNE BOYS | CS182: RED-GREEN | CT182: FFC EVARISTO BECCALOSSI | CU182: LOS | CV182: G2
A183: DREAM TIN TEAM | B183: SOMMER | D183: MARTINEZ | E183: 0 | F183: ADOMAVICIUS | G183: 0 | H183: DI GENNARO | I183: 0 | J183: BELGHALI | L183: COCO | N183: DJIMSITI | P183: GASPAR | R183: LAZARO | T183: MARUSIC | V183: MUHAREMOVIC | X183: VASQUEZ | Z183: DE ROON | AB183: EL AYNAOUI | AD183: FOFANA | AF183: GUDMUNDSSON | AH183: ORSOLINI | AJ183: PISILLI | AL183: ROVELLA | AN183: ZANIOLO | AP183: CANCELLIERI | AR183: CHEDDIRA | AT183: KEAN | AV183: LEAO | AX183: PICCOLI | AZ183: DREAM TIN TEAM | BA183: GALLO | BB183: LEC | BC183: 5.914285714 | BD183: 35 | BE183: 5.942857143 | BF183: fmc_c@googlegroups.com | BN183: UDINESE 1896 | CC183: G1_FK'S TEAM | CD183: LAZIO | CE183: FK'S TEAM | CF183: CONFERENCE LEAGUE - G. 1 | CH183: ZZ_GIAMBOTTINO FC | CI183: ZZ_GIAMBOTTINO FC | CJ183: ZZ_LUPIN III | CK183: COPPA DI LEGA - FASE A GIRONI: 2a GIORNATA | CR183: FC BIRO | CS183: FFC TARCISIO BURGNICH | CT183: GIAMBOTTINO FC | CU183: LUPIN III | CV183: G2
A184: EL NINO FC | B184: FALCONE | D184: FRUCHTL | E184: 0 | F184: SAMOOJA | G184: 0 | H184: PENEV | I184: 0 | J184: GABBIA | L184: GATTI | N184: JUAN JESUS | P184: KABASELE | R184: PAVLOVIC | T184: PROVSTGAARD | V184: RRAHMANI | X184: TERRACCIANO F. | Z184: CRISTANTE | AB184: FOLORUNSHO | AD184: GANDELMAN | AF184: LOBOTKA | AH184: MODRIC | AJ184: MORO | AL184: PELLEGRINI LO. | AN184: ZHEGROVA | AP184: BERARDI | AR184: BONAZZOLI | AT184: DYBALA | AV184: PINAMONTI | AX184: VLAHOVIC | AZ184: EL NINO FC | BA184: GASPAR | BB184: LEC | BC184: 5.642857143 | BD184: 21 | BE184: 5.833333333 | BF184: fmc_c@googlegroups.com | BN184: URACAN | CC184: G1_OLTREMARE | CD184: VARCELLONA | CE184: OLTREMARE | CF184: CONFERENCE LEAGUE - G. 1 | CH184: ZZ_AS NEW TEAM | CI184: ZZ_AS NEW TEAM | CJ184: ZZ_3T | CK184: COPPA DI LEGA - FASE A GIRONI: 2a GIORNATA | CR184: ZERVENA VIGIAK | CS184: SFIGARENSE | CT184: AS NEW TEAM | CU184: 3T | CV184: G2
A185: FFC MARIO CORSO | B185: MAIGNAN | D185: TERRACCIANO | E185: 0 | F185: TORRIANI | G185: 0 | H185: DONEDA | I185: 0 | J185: ACERBI | L185: BASTONI | N185: BISSECK | P185: DARMIAN | R185: DE VRIJ | T185: DE WINTER | V185: DUMFRIES | X185: MARTIN | Z185: CAQUERET | AB185: JASHARI | AD185: MALDINI | AF185: MALINOVSKYI | AH185: POLITANO | AJ185: SUSLOV | AL185: TAYLOR | AN185: TRAMONI | AP185: DIAO | AR185: DOUVIKAS | AT185: STULIC | AV185: SULEMANA K. | AX185: THURAM | AZ185: FFC MARIO CORSO | BA185: JEAN | BB185: LEC | BC185: 5.75 | BD185: 4 | BE185: 5.875 | BF185: fmc_c@googlegroups.com | BN185: VARCELLONA | CC185: G1_OSTIAMARE FC | CD185: FANTONI & GINELLI | CE185: OSTIAMARE FC | CF185: CONFERENCE LEAGUE - G. 1 | CH185: ZZ_RED-GREEN | CI185: ZZ_RED-GREEN | CJ185: ZZ_OSTIAMARE FC | CK185: COPPA DI LEGA - FASE A GIRONI: 2a GIORNATA | CR185: I VAZANICCHI | CS185: CARLITO'S VELEZ | CT185: RED-GREEN | CU185: OSTIAMARE FC | CV185: G2
A186: FIORENTINA | B186: CARNESECCHI | D186: ROSSI | E186: 0 | F186: SPORTIELLO | G186: 0 | H186: ZANCHI | I186: 0 | J186: AHANOR | L186: AKANJI | N186: BERNASCONI | P186: CARLOS AUGUSTO | R186: GOSENS | T186: N'DICKA | V186: RENSCH | X186: SOLET | Z186: ATTA | AB186: ELMAS | AD186: LAHDO | AF186: LOCATELLI | AH186: NICO PAZ | AJ186: RABIOT | AL186: STREFEZZA | AN186: VERGARA | AP186: DE KETELAERE | AR186: DOMINGUEZ | AT186: MORATA | AV186: VAZ | AX186: YILDIZ | AZ186: FIORENTINA | BA186: NDABA | BB186: LEC | BC186: 5.5 | BD186: 9 | BE186: 5.5 | BF186: fmc_c@googlegroups.com | BN186: VIS FONNO | CC186: G1_A'NFAMI | CD186: LIVERCOOL | CE186: A'NFAMI | CF186: CONFERENCE LEAGUE - G. 1 | CH186: ZZ_FC ROMA SUD | CI186: ZZ_FC ROMA SUD | CJ186: ZZ_ARMATA NERAZZURRA | CK186: COPPA DI LEGA - FASE A GIRONI: 2a GIORNATA | CR186: FFC EVARISTO BECCALOSSI | CS186: LAZIO | CT186: FC ROMA SUD | CU186: ARMATA NERAZZURRA | CV186: G2
A187: HIC SUNT FERAE | B187: MERET | D187: CONTINI | E187: 0 | F187: MILINKOVIC | G187: 0 | H187: FERRANTE | I187: 0 | J187: CELIK | L187: DI LORENZO | N187: HERMOSO | P187: IDZES | R187: KALULU | T187: MANCINI | V187: SPINAZZOLA | X187: TOMORI | Z187: EL SHAARAWY | AB187: FERGUSON | AD187: FREULER | AF187: LOFTUS-CHEEK | AH187: MANDRAGORA | AJ187: MKHITARYAN | AL187: POBEGA | AN187: SAELEMAEKERS | AP187: BANDA | AR187: DALLINGA | AT187: GIMENEZ | AV187: LUKAKU | AX187: SIMEONE | AZ187: HIC SUNT FERAE | BA187: PEREZ | BB187: LEC | BC187: 5 | BD187: 1 | BE187: 5 | BF187: fmc_c@googlegroups.com | BN187: VIS TRONKO | CC187: G1_CACCIATORI FC | CD187: URACAN | CE187: CACCIATORI FC | CF187: CONFERENCE LEAGUE - G. 1 | CH187: ZZ_PRAVETTONI CC | CI187: ZZ_PRAVETTONI CC | CJ187: ZZ_NAPO-LEONI | CK187: COPPA DI LEGA - FASE A GIRONI: 2a GIORNATA | CR187: BEAUTIFUL BUT LOSERS | CS187: FK'S TEAM | CT187: PRAVETTONI CC | CU187: NAPO-LEONI | CV187: G2
A188: LA VECCHIA GUARDIA | B188: CAPRILE | D188: CIOCCI | E188: 0 | F188: SHERRI | G188: 0 | H188: AUSEKLIS | I188: 0 | J188: BIANCHETTI | L188: CANESTRELLI | N188: KAMARA | P188: MARCANDALLI | R188: PONGRACIC | T188: RANIERI | V188: ROMAGNOLI | X188: WALUKIEWICZ | Z188: ADOPO | AB188: AEBISCHER | AD188: CASADEI | AF188: DE BRUYNE | AH188: KARLSTROM | AJ188: KONÈ I. | AL188: MCTOMINAY | AN188: PRATI | AP188: CASTRO | AR188: MOREO | AT188: PEDRO | AV188: SARR | AX188: VITINHA | AZ188: LA VECCHIA GUARDIA | BA188: SIEBERT | BB188: LEC | BC188: 5.764705882 | BD188: 17 | BE188: 5.676470588 | BF188: fmc_c@googlegroups.com | BN188: VOTANTONIO | CC188: G1_PAPAVERI E PAPERE | CD188: UDINESE 1896 | CE188: PAPAVERI E PAPERE | CF188: CONFERENCE LEAGUE - G. 1 | CH188: ZZ_FC BIRO | CI188: ZZ_FC BIRO | CJ188: ZZ_NOJOSETTE | CK188: COPPA DI LEGA - FASE A GIRONI: 2a GIORNATA | CR188: VARCELLONA | CS188: FANTONI & GINELLI | CT188: FC BIRO | CU188: NOJOSETTE | CV188: G2
A189: LIVELE | B189: SKORUPSKI | D189: PESSINA | E189: 0 | F189: RAVAGLIA | G189: 0 | H189: HAPPONEN | I189: 0 | J189: BUONGIORNO | L189: CIRCATI | N189: DIMARCO | P189: GARCIA | R189: KEMPF | T189: KRISTENSEN | V189: OSTIGARD | X189: WESLEY | Z189: ANGUISSA | AB189: BARELLA | AD189: BERNABE' | AF189: MAZZITELLI | AH189: MESSIAS | AJ189: SANTOS | AL189: THORSBY | AN189: ZIELINSKI | AP189: ADDAI | AR189: HOJLUND | AT189: KILICSOY | AV189: SOLOMON | AX189: SOULE' | AZ189: LIVELE | BA189: TIAGO GABRIEL | BB189: LEC | BC189: 6.044117647 | BD189: 34 | BE189: 6 | BF189: fmc_c@googlegroups.com | BN189: YOUNG BOYS | CC189: G1_LUPIN III | CD189: FFC LUISITO SUAREZ | CE189: LUPIN III | CF189: CONFERENCE LEAGUE - G. 1 | CH189: ZZ_PIGGI | CI189: ZZ_PIGGI | CJ189: ZZ_FFC TARCISIO BURGNICH | CK189: COPPA DI LEGA - FASE A GIRONI: 2a GIORNATA | CR189: OLTREMARE | CS189: OSTIAMARE FC | CT189: PIGGI | CU189: FFC TARCISIO BURGNICH | CV189: G2
A190: MARUEGO BOYS | B190: BIJLOW | D190: LEALI | E190: 0 | F190: SIEGRIST | G190: 0 | H190: SOMMARIVA | I190: 0 | J190: CAMBIASO | L190: DODO' | N190: ESTUPINAN | P190: HIEN | R190: JOAO MARIO | T190: OLIVERA | V190: RAMON | X190: TSIMIKAS | Z190: BATURINA | AB190: CONCEICAO | AD190: DA CUNHA | AF190: ISAKSEN | AH190: KEITA | AJ190: LUIS HENRIQUE | AL190: NERES | AN190: ROWE | AP190: BONNY | AR190: COLOMBO | AT190: DAVID | AV190: PELLEGRINO | AX190: RASPADORI | AZ190: MARUEGO BOYS | BA190: VEIGA | BB190: LEC | BC190: 5.691176471 | BD190: 34 | BE190: 5.808823529 | BF190: fmc_c@googlegroups.com | BN190: ZEMANLANDIA AFC | CC190: G1_ARMATA NERAZZURRA | CD190: PRINCESS OF ETRURIA | CE190: ARMATA NERAZZURRA | CF190: CONFERENCE LEAGUE - G. 1 | CH190: ZZ_INAZUMA ELEVEN | CI190: ZZ_INAZUMA ELEVEN | CJ190: ZZ_LAZIO | CK190: COPPA DI LEGA - FASE A GIRONI: 2a GIORNATA | CR190: LIVERCOOL | CS190: URACAN | CT190: INAZUMA ELEVEN | CU190: LAZIO | CV190: G2
A191: SOLSBURY HILL FC | B191: DI GREGORIO | D191: PERIN | E191: 0 | F191: PINSOGLIO | G191: 0 | H191: HULI | I191: 0 | J191: BEUKEMA | L191: CABAL | N191: GHILARDI | P191: ISMAJLI | R191: MINA | T191: TIAGO GABRIEL | V191: ZAPPA | X191: ZIOLKOWSKI | Z191: BALDANZI | AB191: COULIBALY | AD191: EKKELENKAMP | AF191: FAGIOLI | AH191: FRENDRUP | AJ191: KONE' | AL191: PAYERO | AN191: VLASIC | AP191: DAVIS | AR191: ESPOSITO SE. | AT191: LAURIENTÈ | AV191: LAUTARO | AX191: MALEN | AZ191: SOLSBURY HILL FC | BA191: ATHEKAME | BB191: MIL | BC191: 5.966666667 | BD191: 15 | BE191: 5.866666667 | BF191: fmc_c@googlegroups.com | BN191: ZERU TITULI | CC191: G1_MANCHO FERE | CD191: LOS | CE191: MANCHO FERE | CF191: CONFERENCE LEAGUE - G. 1 | CH191: ZZ_VARCELLONA | CI191: ZZ_VARCELLONA | CJ191: ZZ_URACAN | CK191: COPPA DI LEGA - FASE A GIRONI: 2a GIORNATA | CR191: A'NFAMI | CS191: CACCIATORI FC | CT191: VARCELLONA | CU191: URACAN | CV191: G2
A192: TEAM ENO | B192: MOTTA | D192: PROVEDEL | E192: 0 | F192: GIACOMONE | G192: 0 | H192: PANNOZZO | I192: 0 | J192: BARTESAGHI | L192: DELPRATO | N192: GILA | P192: MIRANDA | R192: PALESTRA | T192: PARISI | V192: VALERI | X192: VOJVODA | Z192: BRESCIANINI | AB192: CALHANOGLU | AD192: GAETANO | AF192: KOOPMEINERS | AH192: MCKENNIE | AJ192: NDOUR | AL192: THORSTVEDT | AN192: ZACCAGNI | AP192: ELPHEGE | AR192: ESPOSITO F.P. | AT192: GIOVANE | AV192: NOSLIN | AX192: RODRIGUEZ | AZ192: TEAM ENO | BA192: BARTESAGHI | BB192: MIL | BC192: 6.068965517 | BD192: 29 | BE192: 5.982758621 | BF192: fmc_c@googlegroups.com | BN192: ZERVENA VIGIAK | CC192: G1_PICARD | CD192: HOBBIT | CE192: PICARD | CF192: CONFERENCE LEAGUE - G. 1 | CH192: ZZ_OLYMPIC KEBAB | CI192: ZZ_OLYMPIC KEBAB | CJ192: ZZ_FFC ALESSANDRO ALTOBELLI | CK192: COPPA DI LEGA - FASE A GIRONI: 2a GIORNATA | CR192: UDINESE 1896 | CS192: FFC LUISITO SUAREZ | CT192: OLYMPIC KEBAB | CU192: FFC ALESSANDRO ALTOBELLI | CV192: G2
BA193: DE WINTER | BB193: MIL | BC193: 5.891304348 | BD193: 23 | BE193: 5.782608696 | CC193: G1_REAL PIPPERO | CD193: FFC ALESSANDRO ALTOBELLI | CE193: REAL PIPPERO | CF193: CONFERENCE LEAGUE - G. 1 | CH193: ZZ_DAGNE BOYS | CI193: ZZ_DAGNE BOYS | CJ193: ZZ_GOBBOFINCHECAMPO | CK193: COPPA DI LEGA - FASE A GIRONI: 2a GIORNATA | CR193: PAPAVERI E PAPERE | CS193: LUPIN III | CT193: DAGNE BOYS | CU193: GOBBOFINCHECAMPO | CV193: G2
BA194: ESTUPINAN | BB194: MIL | BC194: 5.642857143 | BD194: 14 | BE194: 5.642857143 | CC194: G1_AS_TONMARTIN | CD194: PRAVETTONI CC | CE194: AS_TONMARTIN | CF194: CONFERENCE LEAGUE - G. 1 | CH194: ZZ_LAMÙFOREVER | CI194: ZZ_LAMÙFOREVER | CJ194: ZZ_RASTA DB | CK194: COPPA DI LEGA - FASE A GIRONI: 3a GIORNATA | CR194: PRINCESS OF ETRURIA | CS194: LOS | CT194: LAMÙFOREVER | CU194: RASTA DB | CV194: G3
BA195: GABBIA | BB195: MIL | BC195: 5.87037037 | BD195: 27 | BE195: 5.925925926 | CC195: G1_COSENZA CALCIO 1914 | CD195: GOBBOFINCHECAMPO | CE195: COSENZA CALCIO 1914 | CF195: CONFERENCE LEAGUE - G. 1 | CH195: ZZ_REAL CHR | CI195: ZZ_REAL CHR | CJ195: ZZ_TIME OUT | CK195: COPPA DI LEGA - FASE A GIRONI: 3a GIORNATA | CR195: ARMATA NERAZZURRA | CS195: MANCHO FERE | CT195: REAL CHR | CU195: TIME OUT | CV195: G3
BA196: ODOGU | BB196: MIL | BC196: 0 | BD196: 0 | BE196: 0 | CH196: ZZ_FC NAPOLI 2012 | CI196: ZZ_FC NAPOLI 2012 | CJ196: ZZ_DAJE MO' | CK196: COPPA DI LEGA - FASE A GIRONI: 3a GIORNATA | CR196: HOBBIT | CS196: FFC ALESSANDRO ALTOBELLI | CT196: FC NAPOLI 2012 | CU196: DAJE MO' | CV196: G3
BA197: PAVLOVIC | BB197: MIL | BC197: 6.6875 | BD197: 32 | BE197: 6.265625 | CH197: ZZ_A.S. TOTTIGO | CI197: ZZ_A.S. TOTTIGO | CJ197: ZZ_FFC GIUSEPPE BERGOMI | CK197: COPPA DI LEGA - FASE A GIRONI: 3a GIORNATA | CR197: PICARD | CS197: REAL PIPPERO | CT197: A.S. TOTTIGO | CU197: FFC GIUSEPPE BERGOMI | CV197: G3
BA198: TOMORI | BB198: MIL | BC198: 5.883333333 | BD198: 30 | BE198: 6 | CH198: ZZ_REAL GENOA | CI198: ZZ_REAL GENOA | CJ198: ZZ_P CUATRO | CK198: COPPA DI LEGA - FASE A GIRONI: 3a GIORNATA | CR198: PRAVETTONI CC | CS198: GOBBOFINCHECAMPO | CT198: REAL GENOA | CU198: P CUATRO | CV198: G3
BA199: BEUKEMA | BB199: NAP | BC199: 6.166666667 | BD199: 21 | BE199: 5.928571429 | CC199: G2_ABETO FC | CD199: ABETO FC | CE199: RASTA DB | CF199: CHAMPIONS LEAGUE - G. 2 | CH199: ZZ_FANTARAPID CACCAMO | CI199: ZZ_FANTARAPID CACCAMO | CJ199: ZZ_FC ZETAJ TEAM 1999 | CK199: COPPA DI LEGA - FASE A GIRONI: 3a GIORNATA | CR199: AS_TONMARTIN | CS199: COSENZA CALCIO 1914 | CT199: FANTARAPID CACCAMO | CU199: FC ZETAJ TEAM 1999 | CV199: G3
BA200: BUONGIORNO | BB200: NAP | BC200: 5.85483871 | BD200: 31 | BE200: 5.903225806 | CC200: G2_EROI DEL 1982 | CD200: EROI DEL 1982 | CE200: CICCILLO | CF200: CHAMPIONS LEAGUE - G. 2 | CH200: ZZ_ENDYMION | CI200: ZZ_ENDYMION | CJ200: ZZ_A.C. ZDENEK | CK200: COPPA DI LEGA - FASE A GIRONI: 3a GIORNATA | CT200: ENDYMION | CU200: A.C. ZDENEK | CV200: G3
... 347 more rows
